Workbook

Sheet Form Instructions
F3: New Construction Lighting Application - Electronic Version
F4: Dominion Energy South Carolina, Inc.
R10: ="Version #" & 'Version Tracking'!C4 -> Version #10.1
D11: *If an error occurs when using buttons above, manually navigate to appropriate tab
A12: Application and Instructions | K12: Participation Instructions
A13: The EnergyWise for Your Business Program is designed to help non-residential customers install high efficiency technologies in new buildings. The program provides customers with incentive and technical assistance that will facilitate the installation of premium efficient equipment. EnergyWise for Your Business incentive payments are capped per Customer Federal tax ID number at $100,000 for each program year (December 1–November 30.) Details of the program, including incentive levels and technical requirements, are subject to change without prior notice. Eligible Participants EnergyWise for Your Business is open to all non-residential electric customers within our service territory, except for industrial and certain large retail customers that have elected to opt out of the Demand Side Management (DSM) programs by notifying us in writing using the Opt-Out form. | K13: Please review the program Terms and Conditions tab and the Technical Requirements tab for all program rules and requirements. Tabs colored Blue should be filled in by applicant.
K14: Step 1
K15: Review program materials to confirm your proposed equipment meets program requirements. Visit the program website at www.DominionEnergySC.com/ForYourBusiness or contact us at SCEnergyExperts@DominionEnergySC.com or 877-784-7234 with any questions about eligibility. Step 2 → Complete the blue Project Information tab. Please indicate the mailing address for all correspondence under the Customer Contact Information including incentive checks if applicable. Please indicate if the incentive payment should be made payable to the customer of record or a third party, such as the installation contractor. All incentive payments require authorization from the customer of record. IRS Form W-9 must be completed for the party receiving the incentive payment from us. This form is available at www.irs.gov. Regardless of who is receiving the incentive payment, the customer’s Federal tax ID number must be provided on this tab. → Complete the applicable blue Input tab(s). Refer to the black Input Instructions tab for additional information. → Complete the blue Checklist and Acknowledgement tab. Provide customer signature and verify that all required information and documentation are included for submission to us. Incomplete applications will not be accepted and will be returned to the customer for completion. → Complete application packages must be submitted by email to Dominion Energy South Carolina.
A16: Eligible Equipment
A17: Eligible incentives for performance-based new construction lighting and lighting controls are listed on the NC Lighting Incentives and Lighting Control Incentives tabs. These measures are subject to the associated technical eligibility criteria (refer to the Technical Requirements tab). All equipment must be new; used or refurbished equipment is not eligible. This application is applicable to new construction or major renovation projects only. Lighting retrofit projects are not eligible through this application. Pre-Approval Requirements All new construction lighting projects require pre-approval from us prior to ordering, purchasing or installing any equipment. After the application has been pre-approved by us, the customer will be notified in writing, assigned a
A18: project identification number, and given any specific instructions. The customer may then purchase and install the pre-approved equipment. Questions If you have questions about the program, email SCEnergyExperts@DominionEnergySC.com, visit www.DominionEnergySC.com/ForYourBusiness or call 877-784-7234. | K18: Email: | L18: SCEnergyExperts@DominionEnergySC.com
K19: Step 3 Applications will be processed and we will notify the customer in writing when the review is complete and funds have been reserved. Upon receipt of program pre-approval, customers may then purchase and install their energy efficient equipment. We will notify customers if an inspection of the facility is necessary prior to pre-approval. Any changes in the proposed equipment, quantities, or operating conditions must be approved by us prior to implementing.
K20: Step 4
K21: Upon project completion, please return the signed customer acknowledgment at bottom of the pre-approval letter along with proof of purchase. We will notify customers if an inspection of the facility is necessary prior to final payment processing.

Sheet Project Information
A1: Fill in Light Blue and Orange Cells Only!
A2: PROJECT INFORMATION
A3: Application Date | K3: Expected Completion Date
A4: Company Name | K4: Electric Account #
A5: Street Address (of the facility) | K5: Customer Federal Tax ID
A6: City | H6: State | I6: SC | K6: Zip
A7: Building Type (select one)
L9: Please indicate "other" type:
A10: CUSTOMER CONTACT INFORMATION
A11: Mailing Address
A12: (where all correspondence will be mailed, including incentive check if payment is to the customer)
A13: City | H13: State | K13: Zip
A14: Contact Person | K14: Title
A15: Telephone No. | H15: Fax No. | K15: Email
A17: CONTRACTOR INFORMATION
A18: Company Name
A19: Mailing Address
A20: City | H20: State | K20: Zip
A21: Contact Person | K21: Title
A22: Telephone No. | H22: Fax No. | K22: Email
A24: Please indicate if the Customer or Contractor should be primary point of contact for this project. If another party should be primary point of contact, please indicate below:
A25: Customer Contractor Other (fill out below)
A26: PRIMARY POINT OF CONTACT (IF APPLICABLE)
A27: Company Name
A28: Street Address
A29: City | H29: State | K29: Zip
A30: Contact Person | K30: Title
A31: Telephone No. | H31: Fax No. | K31: Email
A33: PAYMENT INFORMATION
A34: Payment to:
A35: Federal Tax ID # (of recipient)
A36: Tax Status of Recipient (select one)
A38: Customer Name | K38: Title
A39: Customer Signature (if payment to contractor, Customer must type his/her name in the orange box to the right and check the box below) | K39: Date (XX/XX/XXXX)
B40: I understand and intend that my electronic, PDF or facsimile signature be accepted and have the same force and effect as an original signature.
A41: Dominion Energy South Carolina, Inc. New Construction Lighting Application - Electronic Version | N41: Version | O41: ='Version Tracking'!C4 -> 10.1

Sheet Checklist & Acknowledgement
A1: Fill in Light Blue and Orange Cells Only!
A2: APPLICATION CHECKLIST
A3: For faster application processing, please include the following items with your application:
A4: Complete application (Project Information tab and customer acknowledgment below).
A5: Electric account number must be provided before payment of any incentive.
A6: IRS Form W-9 completed for payment recipient (available at www.irs.gov). If payment is to a contractor, customer's W-9 must also be provided.
A7: Required documentation listed on the Technical Requirements tab.
A8: Complete Input Tab(s) - Building OR Space Method tab - refer to Input Instructions tab first.
A9: Customer signature and proof of purchase (contractor receipts), at time of project completion.
A10: Applications submitted for processing will be processed in the order in which they are received. Applicants will be notified as to their pre-approval status and/or any pre-inspection requirements within 10 business days from receipt of complete application. Applicants will be notified if post-installation inspections are required.
A12: CUSTOMER ACKNOWLEDGMENT
A13: Authorized Representative | I13: Title
I14: Date (XX/XX/XXXX)
B15: By checking this box and typing my name, I hereby certify that all statements made on this application are correct to the best of my knowledge and that I have read and agree to the Terms and Conditions. Furthermore, I understand and intend that my electronic, PDF or facsimile signature be accepted and have the same force and effect as an original signature. Note: Upon completion of project, customer of record must sign and return the written pre-approval letter and provide invoices for all energy efficiency measures.
A16: ='Project Information'!A41:J41 -> Dominion Energy South Carolina, Inc. New Construction Lighting Application - Electronic Version | N16: Version | O16: ='Project Information'!O41 -> 10.1

Sheet Terms and Conditions
A1: Dominion Energy South Carolina, Inc.
A2: TERMS AND CONDITIONS
A3: 1. Eligibility: EnergyWise For Your Business Program (“Program”) incentives are available to Dominion Energy South Carolina non-residential electric customers for the purchase and installation of qualifying energy conservation measures (ECMs) in our service territory, subject to these Terms and Conditions (T&Cs). The process of purchasing and installing ECMs for an eligible Customer pursuant to the Program is referred to herein as a “Project.” Industrial customers and specific large retail customers who have elected to opt out of Demand Side Management programs, by notifying us in writing using the Dominion Energy South Carolina Opt-Out form, are not eligible to participate. Dominion Energy South Carolina and our program implementer (“Implementer”) (together, “We”) reserve the right to deny any application that may result in exceeding our Program budget. Program incentives are limited, offered on a first-come/first-served basis, and are subject to Project and Customer eligibility and funds availability. For each Program year (December 1–November 30), Program incentive payments are capped per Customer Federal tax ID number at $100,000. 2. Authorization, Program Changes, Suspension, or Cancellation: We may change the program requirements, incentives or T&Cs, including suspending acceptance of applications or terminating the program, at any time and without notice. In the event of a program change, pre-approved applications will be processed to completion under the T&Cs in effect at time of pre-approval. Submission of a completed application does not entitle Customer to program participation. For all projects, entitlement to programparticipation and our obligation to pay incentives may occur only after we have granted written authorization, which we may grant or not at its sole discretion. 3. Project Approval: Pre-approval is required for all projects. We reserve the right to inspect any project prior to pre-approval. For all projects, no project-related ECMs may be ordered or installed prior to the date of our pre-approval. Violation of this prohibition will disqualify the ECM for incentives. Projects must be completed by the date listed on the pre-approval notification letter (within 180 calendar days for retrofit projects or one year for new construction projects). 4. Creditworthiness: An incentive payment is conditioned upon and subject to Customer maintaining its financial creditworthiness and keeping its account in good standing. At any time prior to an issuance of an incentive check, we may request financial information to support its financial due diligence procedures. Customer agrees to assist in this reasonable financial review. If We believe in good faith that the Customer’s account is not in good standing, or if creditworthiness of participant has been diminished, we may reject approval of an incentive payment. 5. Proof of Purchase: Prior to our verification of the ECM installation, Customer must provide copies of all invoices or other appropriate documentation that clearly verifies the costs of purchasing and installing the ECMs, including all material, labor, and equipment discounts. Invoices must indicate a verifiable breakout of all ECMs purchased for installation under the ECM incentives application, including model numbers and quantity. 6. Project Verification: We (or our Evaluator) may conduct an inspection of Customer’s facility to verify pre- and post-installation conditions or verify documentation prior to incentive payment at any time after receipt of an application. No warranty is expressed or implied by this verification. We are not obligated to pay any incentive until it has performed a satisfactory post-installation inspection. Should we determine that ECMs were not installed in accordance with the approved application, or if an unapproved ECM was installed, or if the installation was not consistent with generally accepted engineering/construction practices, changes may be required before payment is issued. Notwithstanding anything to the contrary, should we determine at any point before payment of the incentive that there has been significant deviation in the type, amount, cost or performance of the ECMs underlying this incentive commitment that were set forth in the Program application and pre-approved, we retain the right to revoke this commitment or reduce the final incentive amount accordingly. We reserve this right despite a satisfactory post-installation inspection. Customer agrees to provide prompt notice to us of any significant deviation in the type, amount, cost or performance of the ECMs underlying this incentive commitment that were set forth in the Program application and pre-approved by Dominion Energy South Carolina. | B3: 7. Customer Tax Obligation: Customer or Customer’s designated contractor is responsible for declaring and paying any and all applicable federal, state, and local taxes that may be owed on any incentive payment. Neither Dominion Energy South Carolina, Inc. nor any of its subsidiaries shall be liable for any federal, state, and local taxes that may be owed on or as a result of any incentive payment. The party receiving the incentive payment (Customer or Contractor) must complete IRS Form W-9 and submit it to us with the incentive application materials. If payment is to a contractor, customer's W-9 must also be provided. 8. Compliance: Customer is responsible for obtaining any and all necessary licenses and permits related to the installation of ECMs. Customer also agrees to comply with all federal, state, and local laws, codes, and regulations related to the installation and disposal of all equipment. 9. Removal of Equipment: Customer agrees to remove and dispose of the equipment being replaced by the ECMs in accordance with all legal requirements. Customer agrees not to re-install any of this equipment in our service territory or transfer it to any other party for such installation. 10. Replacement of Failed Equipment: Customers who install ECMs are expected to replace any of the ECMs that fail with similar or superior energy savings equipment at Customer’s expense. 11. Evaluation Follow-up Visits: With advance notice, we reserve the right to make or to have its contractor(s) make follow-up visits to Customer facilities during the 36 months following completion of the project to provide us with an opportunity to review the operation of the ECMs for program evaluation purposes. Customer agrees to cooperate with this effort. 12. Contractor Selection: Customer may select any contractor to perform the work contemplated by the application, even after the application is pre-approved by us. However, we reserve the right, in its sole discretion, to prohibit specific contractors from program participation. 13. No Warranties: Dominion Energy South Carolina, Inc. does not endorse, guarantee, or warrant any particular manufacturer or product and we provide no warranties, express or implied, for any products or services, and herein specifically disclaims any such guarantees or warranties. We are not liable or responsible for any act or omission of any contractor hired by Customer. Customer’s reliance on warranties is limited to any warranties that may arise from, or be provided by contractors, vendors, etc. Customer acknowledges that neither Dominion Energy South Carolina, Inc. nor any of its consultants are responsible for ensuring that the design, engineering, and construction of the facility or installation of the ECMs are proper or comply with any particular laws (including patent laws), codes, regulations, or industry standards. We make no representations of any kind regarding the results to be achieved by the ECMs or the adequacy or safety of such measures. 14. Assumption of Risk and Limitation of Liability: Customer assumes and acknowledges all risks arising from its participation in the Program including but not limited to exposure to the novel coronavirus (“COVID-19”), and releases and discharges Dominion Energy, Inc., Dominion Energy South Carolina, its Implementer, Evaluator, and their respective officers, directors, employees and agents from any liability related thereto. Our sole obligation is limited to paying the properly qualified rebates specified herein. Neither Dominion Energy South Carolina, Inc., any of its subsidiaries, nor its Implementer or Evaluator shall be liable to Customer or any other party for any special, indirect, consequential, or incidental damages, regardless of the theory of recovery, caused by or arising from any activities associated with this Program. 15. Obligations between the Parties: Customer acknowledges that any contractor selected by Customer is not an agent, contractor, or subcontractor of Dominion Energy South Carolina, Inc. and is an independent contractor engaged by Customer, and that we do not manage or control the contractor’s performance. We shall have no obligation to maintain, remove, or perform any work whatsoever on the ECMs installed. We shall have no liability for a contractor’s failure to perform, for failure of the energy savings measures to function, for any damage to Customer’s premises caused by the contractor, or for any and all damages to property or injuries to persons caused by or associated with the energy savings measures. 16. Miscellaneous: These T&Cs and this application, of which these T&Cs are an integral part, constitute the entire agreement between the parties and supersede all other communications, representations, and understandings.
B6: ="Version #" & 'Version Tracking'!C4 -> Version #10.1

Sheet Technical Requirements
A2: NEW CONSTRUCTION LIGHTING ELIGIBILITY AND TECHNICAL REQUIREMENTS
A3: Incentives for new construction lighting are available for reducing the lighting power density (LPD) (watts per square foot) from the baseline lighting design that complies with the American Society of Heating, Refrigerating and Air-Conditioning Engineers/Illuminating Engineering Society of North America (ASHRAE/IESNA) 90.1–2007 Interior Lighting Power Allowance. Wattage reduction may be calculated on a space-by-space or building-area basis. To qualify for new construction lighting incentives, projects must have an installed LPD that is at least 15 percent less than what the code requires. Incentives are also available for qualifying lighting controls, including occupancy controls and daylight dimming controls.
A4: Project Requirements
A5: § Must be a new construction project or, on a case-by-case basis, an extensive/substantial major renovation project that consists of the installation of new fixtures throughout the building or renovated spaces. Major renovation projects are eligible and classified as: → Removal of the entire existing lighting system and wiring, and → Redesign of the entire existing lighting system, and → Significant change to the actual function of the building through significant renovation, i.e., projects where a licensed professional architect or engineer has prepared and certified building plans for the change of use and reconstruction of an existing or vacant space.
A6: § Must provide maintained lighting levels in accordance with IESNA recommendations.
A7: § Must provide high-quality lighting achieving appropriate levels of glare control, color rendering, lighting uniformity, and other lighting quality parameters.
A8: § High-performance and reduced-wattage T8 lamps must be specified if T8 systems are being installed. A current list of qualifying products is available at the Consortium for Energy Efficiency website. Visit:
A9: http://www.cee1.org
A10: § In order to receive incentives, the new construction project as a whole must have at least 70% of fixtures installed on either the ENERGY STAR® or Design Lights Consortium qualified products list. Visit:
A11: http://www.designlights.org/QPL
A12: http://www.energystar.gov/products/certified-products/detail/light-bulbs
A13: Required Supporting Documentation
A14: § Signed Lighting Compliance Certificate (COMcheck or equivalent) run under current code conditions.
A15: § Electrical or reflected ceiling plan showing lighting layouts.
A16: § Lighting fixture schedule including manufacturer model number and rated wattage.
A17: § Manufacturer’s specification sheets for all equipment specified.
A18: § Supporting calculations demonstrating building/space area and installed lighting wattage.
A19: We reserve the right to require submission of site-specific photometric reports and/or point-by-point lighting calculations for each significant space type.
O20: ="Version #" & 'Version Tracking'!C4 -> Version #10.1

Sheet NC Lighting Incentives
A2: NEW CONSTRUCTION LIGHTING INCENTIVES AND CALCULATION INSTRUCTIONS
A3: Projects must have an installed LPD that is at least 15 percent less than ASHRAE/IESNA 90.1–2007 Interior Lighting Power Allowance baseline LPDs to qualify for new construction lighting incentives. Projects meeting these criteria are eligible for incentives of $.40 per watt reduced, up to $30 per fixture, from the code baseline. ASHRAE/IESNA LPD reference tables are provided on the LPD tabs.
A4: Step 1: Select Calculation Method
A5: BUILDING AREA METHOD: To be used for projects involving the entire building or projects involving a single, independent, and separate occupancy in a multioccupancy building. All lighting in the building or separate occupancy must be included in the calculations. SPACE-BY-SPACE METHOD: To be used for projects involving a portion of a building or as an alternative to the building area method for those buildings involving multiple space types.
A6: Step 2: Determine Building or Space Type Information
A7: Determine square footage of building or space types being considered for this application. Total lighting wattage for the building or space type also must be determined.
A8: Step 3: Complete Applicable Input Tab(s)
A9: The new construction lighting Input tabs must be completed to calculate the incentives using the methods described in Step 1. To be considered for an incentive, the tabs must be completed and submitted with all applications - please refer to the Input Instructions tab for further details.
O10: ="Version #" & 'Version Tracking'!C4 -> Version #10.1

Sheet Lighting Control Incentives
A2: LIGHTING CONTROLS ELIGIBILITY AND TECHNICAL REQUIREMENTS
A3: Incentives also are available for new construction projects involving the installation of qualifying lighting controls. Lighting control installations required by applicable state and local energy codes are not eligible for incentives. Applicants must claim controls incentives using the Input-Lighting Controls tab. The following table describes available new construction lighting controls incentives.
A5: LIGHTING CONTROL MEASURES AND INCENTIVES
A6: Lighting Controls | B6: Measure | C6: Proposed Measure | D6: Minimum Watts | E6: Incentive/ Unit | F6: Technical Requirements
B7: Code | D7: Controlled
B8: 80A | C8: Occupancy Control: Wall Switch Replacement | D8: 40 | E8: $15/Control | F8: § Installation of hardwired or wireless passive infrared or dual technology wall switch replacement occupancy or vacancy controls.
F9: § Installations must comply with manufacturer’s guidelines on coverage and maximum controlled watts.
F10: § Residential-grade controls or those with manual-on capability are not eligible for incentives.
B11: 80B | C11: Occupancy Control: Remote Ceiling/Wall Mount | D11: 119 | E11: $35/Control | F11: § Installation of hardwired or wireless; passive infrared, ultrasonic, or dual technology; remote-mounted wall or ceiling occupancy controls.
F12: § Installations must comply with manufacturer’s guidelines on coverage and maximum controlled watts.
B13: 80C | C13: Occupancy Control: Fixture Mounted/High Bay | D13: 40 | E13: $15/Control | F13: § Installation of hardwired, passive infrared, or dual technology, fixture-mounted occupancy controls in high bay applications.
F14: § Installations must comply with manufacturer’s guidelines on coverage and maximum controlled watts.
B15: 80E | C15: Daylight Control/Harvesting (On/Off) | D15: 119 | E15: $35/Control | F15: § Installation of hardwired daylight harvesting (on/ off) system consisting of photocell or other control apparatus, wired to standard ballasts.
F16: § System designed to control lighting on/off in response to ambient lighting conditions.
F17: ="Version #" & 'Version Tracking'!C4 -> Version #10.1

Sheet Input Instructions
B4: New Construction Lighting Worksheet
B5: Dominion Energy South Carolina, Inc.
D7: Copyright © 2015 ICF Resources, LLC, All Rights Reserved. Do not copy, distribute or quote without ICF’s written permission.
F8: ="Version #" & 'Version Tracking'!C4 -> Version #10.1
D13: *If an error occurs when using buttons above, manually navigate to appropriate tab
C14: Instructions
C15: 1. Read the Form Instructions tab for detailed information on participation for this program.
C16: 2. The applicable inventory input worksheet is required for all New Construction Lighting projects and must be completed. Application packages must be submitted by email.
D17: Email Address:
D18: SCEnergyExperts@DominionEnergySC.com
C22: 3. Select appropriate inventory input tab:
D23: - For a New Construction Project being evaluated on a building type method select the Building Method tab.
D24: - For a New Construction Project being evaluated on a space-by-space method select the Space Method tab.
D25: - For a New Construction Project that is having lighting controls installed, select the Lighting Controls tab.
C26: 4. Enter required project information at the top of the appropriate worksheet.
D27: - The "Building Type LPD" and "Space-by-Space LPD" tabs display information pertaining to baseline Lighting Power Densities based on building type and space type respectively.
C28: 5. Enter the required project information in the shaded areas only. A description of this information is provided below in the Inputs section. The Orange Building Type LPD tab, Space-by-Space LPD tab, and Wattage Table tab are reference tabs for additional information related to the Input tabs.
D29: - All other information will be populated automatically.
C31: Inputs
C32: Building Method Fields | E32: Unit | F32: Input Range | G32: Description
C33: 1. | D33: Building AC / Heat Type | E33: n/a | F33: (Building AC / Heat Type) | G33: Enter the appropriate Building AC / Heat Type
C34: 2. | D34: Building Type | E34: n/a | F34: (Building Type LPD) | G34: Enter the appropriate building classification from ASHRAE 90.1 descriptions
C35: 3. | D35: Lighted Area for Building | E35: Square Feet | F35: any | G35: Enter the square footage of all lit space in the building
C36: 4. | D36: Est. Annual Hours of Operation | E36: Hours | F36: 8760 maximum | G36: Enter the average annual operating hours for all lighting in the building
C37: 5. | D37: Installed Wattage | E37: Watts | F37: any | G37: Enter the total rated watts of all installed fixtures
C39: Space Method Fields | E39: Unit | F39: Input Range | G39: Description
C40: 1. | D40: Building AC / Heat Type | E40: n/a | F40: (Building AC / Heat Type) | G40: Enter the appropriate Building AC / Heat Type
C41: 2. | D41: Overall Building and Individual Space Types | E41: n/a | F41: (Space-by-Space LPD) | G41: In the first cell, enter the overall building type for schedule assumptions. For each row, enter the appropriate space type classification from ASHRAE 90.1 descriptions
C42: 3. | D42: Lighted Area for Space Type | E42: Square Feet | F42: any | G42: Enter the square footage of all lit space for that space type
C43: 4. | D43: Est. Annual Hours of Operation | F43: 8760 maximum | G43: Enter the average annual operating hours for all lighting in that space type
C44: 5 | D44: Installed Wattage | E44: Watts | F44: any | G44: Enter the total rated watts of all installed fixtures
C46: Lighting Controls Fields | E46: Unit | F46: Input Range | G46: Description
C47: 1. | D47: Controls Included | E47: Control Type | F47: (see Lighting Controls Summary tab) | G47: Select the type of controls being installed
C48: 2. | D48: Quantity of Controls | E48: Whole Number | F48: any | G48: Enter the quantity of controls for that type and location being installed
C49: 3. | D49: Device Category | E49: Device Category | F49: Type of Fixture | G49: Select the type of device the control is being installed on
C50: 4. | D50: Device Code | E50: Device Code | F50: Type of Device | G50: Select the device code that control is being installed on
C51: 5. | D51: Annual Operating Hours | E51: Whole Number | F51: Max of 8760 | G51: Enter the annual operating hours before the control is installed
C52: 6. | D52: Quantity of Devices | E52: Whole Number | F52: any | G52: Enter the quantity of devices being controlled by line item

Sheet Input - Building Method
B4: Building Method
B5: ="Version # "&'Version Tracking'!C4 -> Version # 10.1
B7: Copyright © 2015 ICF Resources, LLC, All Rights Reserved. Do not copy, distribute or quote without ICF’s written permission.
B9: Required General Project Information | H9: Administrative Use Only | O9: Summary Table
O10: Total kWh | P10: Total Summer Coincident Peak (kW) | Q10: Total Incentive
C11: Project Name | F11: Prepared By | H11: Project ID | O11: =SUM(O22:O22) -> 0 | P11: =SUM(P22:P22) -> 0 | Q11: =SUM(Q22:Q22) -> 0
C12: Project Address | F12: Contact Person | H12: Data Input By
C13: City | F13: Phone | H13: Input Date
C14: ZIP | F14: Email
B16: Input Cells
C17: Data input allowed in shaded cells only. | D17: * Building HVAC type is required | I17: *If print button malfunctions,
I18: select printer settings manually from print menu
B19: Building AC / Heat Type * | O19: Savings | Q19: Incentive
B20: Line Item | C20: Building Type (See Building Type Tab) | D20: Lighted Building Area (Sq. Ft) | E20: Est. Annual Hours of Operation | F20: Installed Wattage (W) | G20: Total Number of Luminaires | H20: Base Lighting Power Density (W/Sq. Ft.) | I20: Installed Lighting Power Density | J20: Lighting Power Allowance (W) | K20: LPD Percentage Reduction | L20: Power Reduction from Baseline (W) | M20: Qualify for Program? | N20: Incentive | O20: Total kWh Saved | P20: Summer Coincident Peak kW Saved | Q20: Incentive
B21: Ex. | C21: Dining: Bar Lounge/Leisure | D21: 45000 | E21: 6000 | F21: 42300 | G21: 458 | H21: =IF(C21="","",INDEX(BaseBuildingLPD,MATCH(C21,BuildingType),0)) -> 1.3 | I21: =IF(D21="","",F21/D21) -> 0.94 | J21: =IF(H21="","",H21*D21) -> 58500 | K21: =IF(C21="","",(H21-I21)/H21) -> 0.2769230769 | L21: =IF(ISERROR(J21-F21),"",J21-F21) -> 16200 | M21: =IF(C21="","",IF(K21>=0.15,"Yes","No")) -> Yes | N21: =IFERROR(IF(M21="NO","",IF((30*G21)<((J21-F21)*0.4),(30*G21),(J21-F21)*0.4)),"") -> 6480 | O21: =IF(M21="Yes",(J21-F21)/1000*E21,0) -> 97200 | P21: =IF(M21="Yes",L21*0.001*0.747,0) -> 12.1014 | Q21: =IF(M21="Yes",N21,0) -> 6480
B22: 1 | H22: =IF(C22="","",INDEX(BaseBuildingLPD,MATCH(C22,BuildingType),0)) ->  | I22: =IF(D22="","",F22/D22) ->  | J22: =IF(H22="","",H22*D22) ->  | K22: =IF(C22="","",(H22-I22)/H22) ->  | L22: =IF(ISERROR(J22-F22),"",J22-F22) ->  | M22: =IF(C22="","",IF(K22>=0.15,"Yes","No")) ->  | N22: =IFERROR(IF(M22="NO","",IF((30*G22)<((J22-F22)*0.4),(30*G22),(J22-F22)*0.4)),"") ->  | O22: =IF(M22="Yes",((J22-F22)/1000)*E22*VLOOKUP(C19,Validation!D19:F27,3,0)) -> FALSE | P22: =IF(M22="Yes",L22*0.001*0.747*VLOOKUP(C19,Validation!D19:F27,2,0)) -> FALSE | Q22: =IF(M22="Yes",N22,0) -> 0

Sheet Input - Space Method
B4: Space Method
B5: ="Version # "&'Version Tracking'!C4 -> Version # 10.1
B7: Copyright © 2015 ICF Resources, LLC, All Rights Reserved. Do not copy, distribute or quote without ICF’s written permission.
B9: Required General Project Information | I9: Administrative Use Only | R9: Summary Table
R10: Total kWh | S10: Total Summer Coincident Peak (kW) | T10: Total Incentive
C11: Project Name | G11: Prepared By | I11: Project ID | R11: =N21 ->  | S11: =O21 ->  | T11: =P21 -> 
C12: Project Address | G12: Contact Person | I12: Data Input By
C13: City | G13: Phone | I13: Input Date
C14: ZIP | G14: Email
B16: Input Cells
C17: Data input allowed in shaded cells only. | D17: * Building HVAC type is required
I18: *If print button malfunctions, select printer settings manually from print menu
B19: Building AC / Heat Type | N19: Savings
B20: Line Item | C20: Business Type & Individual Space Types (see Space -by-Space Tab) | D20: Lighted Area for Space Type (Sq. Ft.) | E20: Est. Annual Hours of Operation | F20: Installed Wattage (W) | G20: Total Number of Luminaires | H20: Base Lighting Power Density (W/Sq. Ft.) | I20: Installed Lighting Power Density (W/Sq. Ft.) | J20: Lighting Power Allowance (W) | K20: Wattage Reduction (W) | L20: LPD Percentage Reduction | M20: Qualify For Program? | N20: Total kWh Saved | O20: Summer Coincident Peak kW Saved | P20: Incentive
B21: Whole Bldng | D21: =SUM(D23:D47) -> 0 | E21: =IF(E23="","",SUMPRODUCT(E23:E47,D23:D47)/D21) ->  | F21: =SUM(F23:F47) -> 0 | G21: =SUM(G23:G47) -> 0 | H21: =IF(H23="","",SUMPRODUCT(H23:H47,D23:D47)/D21) ->  | I21: =IF(I23="","",SUMPRODUCT(I23:I47,D23:D47)/D21) ->  | J21: =IF(H21="","",H21*D21) ->  | K21: =IF(J21="","",J21-F21) ->  | L21: =IF(I21="","",(H21-I21)/H21) ->  | M21: =IF(L21="","",IF(L21>=0.15,"Yes","No")) ->  | N21: =K21/1000*E21*VLOOKUP(C19,Validation!D19:F27,3,0) ->  | O21: =(K21*1*0.747)/1000*VLOOKUP(C19,Validation!D19:F27,2,0) ->  | P21: =IF(OR(M21="NO",M21=""),"",IF((G21*30)<(K21*0.4),(G21*30),(K21*0.4))) -> 
B22: Ex. | C22: Atrium-First Three Floors | D22: 4000 | E22: 5000 | F22: 2000 | G22: 12 | H22: =IF(C22="","",INDEX(BaseSpaceLPD,MATCH(C22,SpaceType,0))) -> 0.6 | I22: =IF(F22="","",F22/D22) -> 0.5 | J22: =IF(D22="","",H22*D22) -> 2400 | K22: =IF(F22="","",J22-F22) -> 400 | L22: =IF(I22="","",(H22-I22)/I22) -> 0.2
B23: 1 | I23: =IF(F23="","",F23/D23) ->  | J23: =IF(D23="","",H23*D23) ->  | K23: =IF(F23="","",J23-F23) ->  | L23: =IF(I23="","",(H23-I23)/I23) -> 
B24: 2
B25: 3
B26: 4
B27: 5
B28: 6
B29: 7
B30: 8
B31: 9
B32: 10
B33: 11
B34: 12
B35: 13
B36: 14
B37: 15
B38: 16
B39: 17
B40: 18
B41: 19
B42: 20
B43: 21
B44: 22
B45: 23
B46: 24
B47: 25

Sheet Input - Lighting Controls
B4: Lighting Controls Only
B5: ="Version # "&'Version Tracking'!C4 -> Version # 10.1
B7: Copyright © 2015 ICF Resources, LLC, All Rights Reserved. Do not copy, distribute or quote without ICF’s written permission.
B9: Required General Project Information | H9: Administrative Use Only | M9: Summary Table
B10: Input information on the Input-Building Method or Input-Space Method worksheets. | M10: Total kWh | N10: Total Summer Coincident Peak (kW) | O10: Total Incentive
C11: Project Name | D11: =IF('Input - Building Method'!D11:E11>0,'Input - Building Method'!D11:E11,IF('Input - Space Method'!D11:E11>0,'Input - Space Method'!D11:E11,"")) ->  | F11: Prepared By | G11: =IF('Input - Building Method'!G11>0,'Input - Building Method'!G11,IF('Input - Space Method'!H11>0,'Input - Space Method'!H11,"")) ->  | H11: Project ID | M11: =SUM(M22:M221) -> 0 | N11: =SUM(N22:N221) -> 0 | O11: =SUM(O22:O221) -> 0
C12: Project Address | D12: =IF('Input - Building Method'!D12:E12>0,'Input - Building Method'!D12:E12,IF('Input - Space Method'!D12:E12>0,'Input - Space Method'!D12:E12,"")) ->  | F12: Contact Person | G12: =IF('Input - Building Method'!G12>0,'Input - Building Method'!G12,IF('Input - Space Method'!H12>0,'Input - Space Method'!H12,"")) ->  | H12: Data Input By
C13: City | D13: =IF('Input - Building Method'!D13:E13>0,'Input - Building Method'!D13:E13,IF('Input - Space Method'!D13:E13>0,'Input - Space Method'!D13:E13,"")) ->  | F13: Phone | G13: =IF('Input - Building Method'!G13>0,'Input - Building Method'!G13,IF('Input - Space Method'!H13>0,'Input - Space Method'!H13,"")) ->  | H13: Input Date
C14: ZIP | D14: =IF('Input - Building Method'!D14:E14>0,'Input - Building Method'!D14:E14,IF('Input - Space Method'!D14:E14>0,'Input - Space Method'!D14:E14,"")) ->  | F14: Email | G14: =IF('Input - Building Method'!G14>0,'Input - Building Method'!G14,IF('Input - Space Method'!H14>0,'Input - Space Method'!H14,"")) -> 
B16: Input Cells
C17: Data input allowed in shaded cells only. | K17: *If print button malfunctions,
K18: select printer settings manually from print menu
D19: Controls Installed | M19: Savings | O19: Incentive | Q19: Total Wattage | R19: Qualification
B20: Line Item | C20: Location | D20: Controls Included | E20: Control Type | F20: Quantity of Controls | G20: Device Category of Controlled Fixtures | H20: Device Code of Controlled Fixtures | I20: Device Description | J20: Annual Operating Hours w/o Control Installed | K20: Hours Reduced by Controls | L20: Quantity of Devices Controlled | M20: Total kWh Saved | N20: Summer Coincident Peak kW Saved | O20: Control Incentive | P20: Control Count | R20: Controls Qualify?
B21: Ex. | C21: Stockroom | D21: 80A | E21: =IF(D21="","",IF(D21="None","None",INDEX('Lighting Controls Summary'!$D$19:$D$22,MATCH(D21,'Lighting Controls Summary'!$C$19:$C$22,0),1))) -> Occupancy Control: Wall Switch Replacement | F21: 1 | G21: 4’ HPT8 Retrofit: 1-2 Lamps | H21: 2F32SSE | I21: =IF(H21="","",VLOOKUP(H21,'Wattage Table'!$D:$E,2,0)) -> 2L4' T8/ELIG | J21: 5000 | K21: =IF(OR(D21="",J21=""),0,J21*0.25) -> 1250 | L21: 1 | M21: =IF(OR(H21="",R21="No"),0,(((VLOOKUP(H21,'Wattage Table'!$D:$F,3,0)*J21)-(VLOOKUP(H21,'Wattage Table'!$D:$F,3,0)*(J21-K21)))*L21)/1000) -> 68.75 | N21: =IF(OR(H21="",R21="No"),0,(VLOOKUP(H21,'Wattage Table'!$D:$F,3,0)*L21)/1000*0.25) -> 0.01375 | O21: =IF(OR(D21="None",M21<=0,N21<=0,D21="",H21="",R21="No"),0,IF(OR(D21="80B",D21="80E"),F21*35,IF(OR(D21="80A",D21="80C"),F21*15,0))) -> 15 | P21: =IF(O21<=0,0,F21) -> 1 | Q21: =IF(ISERROR(IF(H21="-","-",INDEX('Wattage Table'!$F$23:$F$451,MATCH(H21,'Wattage Table'!$D$23:$D$451,0)))*$L21)," ",IF(H21="-","-",INDEX('Wattage Table'!$F$23:$F$451,MATCH(H21,'Wattage Table'!$D$23:$D$451,0)))*$L21) -> 55 | R21: =IF(D21="","",IF(OR(D21="None",D21="",H21=""),"No",IF(VLOOKUP(H21,'Wattage Table'!$D:$F,3,0)*L21/F21<=VLOOKUP(D21,Validation!$O$7:$Q$9,3,0),"No","Yes"))) -> Yes
B22: 1 | E22: =IF(D22="","",IF(D22="None","None",INDEX('Lighting Controls Summary'!$D$19:$D$22,MATCH(D22,'Lighting Controls Summary'!$C$19:$C$22,0),1))) ->  | I22: =IF(H22="","",VLOOKUP(H22,'Wattage Table'!$D:$E,2,0)) ->  | K22: =IF(OR(D22="",J22=""),0,J22*0.25) -> 0 | M22: =IF(OR(H22="",R22="No"),0,(((VLOOKUP(H22,'Wattage Table'!$D:$F,3,0)*J22)-(VLOOKUP(H22,'Wattage Table'!$D:$F,3,0)*(J22-K22)))*L22)/1000) -> 0 | N22: =IF(OR(H22="",R22="No"),0,(VLOOKUP(H22,'Wattage Table'!$D:$F,3,0)*L22)/1000*0.25) -> 0 | O22: =IF(OR(D22="None",M22<=0,N22<=0,D22="",H22="",R22="No"),0,IF(OR(D22="80B",D22="80E"),F22*35,IF(OR(D22="80A",D22="80C"),F22*15,0))) -> 0 | P22: =IF(O22<=0,0,F22) -> 0 | Q22: =IF(ISERROR(IF(H22="-","-",INDEX('Wattage Table'!$F$23:$F$451,MATCH(H22,'Wattage Table'!$D$23:$D$451,0)))*$L22)," ",IF(H22="-","-",INDEX('Wattage Table'!$F$23:$F$451,MATCH(H22,'Wattage Table'!$D$23:$D$451,0)))*$L22) ->  | R22: =IF(D22="","",IF(OR(D22="None",D22="",H22=""),"No",IF(VLOOKUP(H22,'Wattage Table'!$D:$F,3,0)*L22/F22<=VLOOKUP(D22,Validation!$O$7:$Q$9,3,0),"No","Yes"))) -> 
B23: 2 | E23: =IF(D23="","",IF(D23="None","None",INDEX('Lighting Controls Summary'!$D$19:$D$22,MATCH(D23,'Lighting Controls Summary'!$C$19:$C$22,0),1))) ->  | I23: =IF(H23="","",VLOOKUP(H23,'Wattage Table'!$D:$E,2,0)) ->  | K23: 0 | M23: =IF(OR(H23="",R23="No"),0,(((VLOOKUP(H23,'Wattage Table'!$D:$F,3,0)*J23)-(VLOOKUP(H23,'Wattage Table'!$D:$F,3,0)*(J23-K23)))*L23)/1000) -> 0 | N23: =IF(OR(H23="",R23="No"),0,(VLOOKUP(H23,'Wattage Table'!$D:$F,3,0)*L23)/1000*0.25) -> 0 | O23: =IF(OR(D23="None",M23<=0,N23<=0,D23="",H23="",R23="No"),0,IF(OR(D23="80B",D23="80E"),F23*35,IF(OR(D23="80A",D23="80C"),F23*15,0))) -> 0 | P23: 0 | Q23: =IF(ISERROR(IF(H23="-","-",INDEX('Wattage Table'!$F$23:$F$451,MATCH(H23,'Wattage Table'!$D$23:$D$451,0)))*$L23)," ",IF(H23="-","-",INDEX('Wattage Table'!$F$23:$F$451,MATCH(H23,'Wattage Table'!$D$23:$D$451,0)))*$L23) ->  | R23: =IF(D23="","",IF(OR(D23="None",D23="",H23=""),"No",IF(VLOOKUP(H23,'Wattage Table'!$D:$F,3,0)*L23/F23<=VLOOKUP(D23,Validation!$O$7:$Q$9,3,0),"No","Yes"))) -> 
B24: 3 | E24: =IF(D24="","",IF(D24="None","None",INDEX('Lighting Controls Summary'!$D$19:$D$22,MATCH(D24,'Lighting Controls Summary'!$C$19:$C$22,0),1))) ->  | I24: =IF(H24="","",VLOOKUP(H24,'Wattage Table'!$D:$E,2,0)) ->  | K24: 0 | M24: =IF(OR(H24="",R24="No"),0,(((VLOOKUP(H24,'Wattage Table'!$D:$F,3,0)*J24)-(VLOOKUP(H24,'Wattage Table'!$D:$F,3,0)*(J24-K24)))*L24)/1000) -> 0 | N24: =IF(OR(H24="",R24="No"),0,(VLOOKUP(H24,'Wattage Table'!$D:$F,3,0)*L24)/1000*0.25) -> 0 | O24: 0 | P24: 0 | Q24: =IF(ISERROR(IF(H24="-","-",INDEX('Wattage Table'!$F$23:$F$451,MATCH(H24,'Wattage Table'!$D$23:$D$451,0)))*$L24)," ",IF(H24="-","-",INDEX('Wattage Table'!$F$23:$F$451,MATCH(H24,'Wattage Table'!$D$23:$D$451,0)))*$L24) ->  | R24: =IF(D24="","",IF(OR(D24="None",D24="",H24=""),"No",IF(VLOOKUP(H24,'Wattage Table'!$D:$F,3,0)*L24/F24<=VLOOKUP(D24,Validation!$O$7:$Q$9,3,0),"No","Yes"))) -> 
B25: 4 | E25: =IF(D25="","",IF(D25="None","None",INDEX('Lighting Controls Summary'!$D$19:$D$22,MATCH(D25,'Lighting Controls Summary'!$C$19:$C$22,0),1))) ->  | I25: =IF(H25="","",VLOOKUP(H25,'Wattage Table'!$D:$E,2,0)) ->  | K25: 0 | M25: =IF(OR(H25="",R25="No"),0,(((VLOOKUP(H25,'Wattage Table'!$D:$F,3,0)*J25)-(VLOOKUP(H25,'Wattage Table'!$D:$F,3,0)*(J25-K25)))*L25)/1000) -> 0 | N25: =IF(OR(H25="",R25="No"),0,(VLOOKUP(H25,'Wattage Table'!$D:$F,3,0)*L25)/1000*0.25) -> 0 | O25: 0 | P25: 0 | Q25: =IF(ISERROR(IF(H25="-","-",INDEX('Wattage Table'!$F$23:$F$451,MATCH(H25,'Wattage Table'!$D$23:$D$451,0)))*$L25)," ",IF(H25="-","-",INDEX('Wattage Table'!$F$23:$F$451,MATCH(H25,'Wattage Table'!$D$23:$D$451,0)))*$L25) ->  | R25: =IF(D25="","",IF(OR(D25="None",D25="",H25=""),"No",IF(VLOOKUP(H25,'Wattage Table'!$D:$F,3,0)*L25/F25<=VLOOKUP(D25,Validation!$O$7:$Q$9,3,0),"No","Yes"))) -> 
B26: 5 | E26: =IF(D26="","",IF(D26="None","None",INDEX('Lighting Controls Summary'!$D$19:$D$22,MATCH(D26,'Lighting Controls Summary'!$C$19:$C$22,0),1))) ->  | I26: =IF(H26="","",VLOOKUP(H26,'Wattage Table'!$D:$E,2,0)) ->  | K26: 0 | M26: =IF(OR(H26="",R26="No"),0,(((VLOOKUP(H26,'Wattage Table'!$D:$F,3,0)*J26)-(VLOOKUP(H26,'Wattage Table'!$D:$F,3,0)*(J26-K26)))*L26)/1000) -> 0 | N26: =IF(OR(H26="",R26="No"),0,(VLOOKUP(H26,'Wattage Table'!$D:$F,3,0)*L26)/1000*0.25) -> 0 | O26: 0 | P26: 0 | Q26: =IF(ISERROR(IF(H26="-","-",INDEX('Wattage Table'!$F$23:$F$451,MATCH(H26,'Wattage Table'!$D$23:$D$451,0)))*$L26)," ",IF(H26="-","-",INDEX('Wattage Table'!$F$23:$F$451,MATCH(H26,'Wattage Table'!$D$23:$D$451,0)))*$L26) ->  | R26: =IF(D26="","",IF(OR(D26="None",D26="",H26=""),"No",IF(VLOOKUP(H26,'Wattage Table'!$D:$F,3,0)*L26/F26<=VLOOKUP(D26,Validation!$O$7:$Q$9,3,0),"No","Yes"))) -> 
B27: 6 | E27: =IF(D27="","",IF(D27="None","None",INDEX('Lighting Controls Summary'!$D$19:$D$22,MATCH(D27,'Lighting Controls Summary'!$C$19:$C$22,0),1))) ->  | I27: =IF(H27="","",VLOOKUP(H27,'Wattage Table'!$D:$E,2,0)) ->  | K27: 0 | M27: =IF(OR(H27="",R27="No"),0,(((VLOOKUP(H27,'Wattage Table'!$D:$F,3,0)*J27)-(VLOOKUP(H27,'Wattage Table'!$D:$F,3,0)*(J27-K27)))*L27)/1000) -> 0 | N27: =IF(OR(H27="",R27="No"),0,(VLOOKUP(H27,'Wattage Table'!$D:$F,3,0)*L27)/1000*0.25) -> 0 | O27: 0 | P27: 0 | Q27: =IF(ISERROR(IF(H27="-","-",INDEX('Wattage Table'!$F$23:$F$451,MATCH(H27,'Wattage Table'!$D$23:$D$451,0)))*$L27)," ",IF(H27="-","-",INDEX('Wattage Table'!$F$23:$F$451,MATCH(H27,'Wattage Table'!$D$23:$D$451,0)))*$L27) ->  | R27: =IF(D27="","",IF(OR(D27="None",D27="",H27=""),"No",IF(VLOOKUP(H27,'Wattage Table'!$D:$F,3,0)*L27/F27<=VLOOKUP(D27,Validation!$O$7:$Q$9,3,0),"No","Yes"))) -> 
B28: 7 | E28: =IF(D28="","",IF(D28="None","None",INDEX('Lighting Controls Summary'!$D$19:$D$22,MATCH(D28,'Lighting Controls Summary'!$C$19:$C$22,0),1))) ->  | I28: =IF(H28="","",VLOOKUP(H28,'Wattage Table'!$D:$E,2,0)) ->  | K28: 0 | M28: =IF(OR(H28="",R28="No"),0,(((VLOOKUP(H28,'Wattage Table'!$D:$F,3,0)*J28)-(VLOOKUP(H28,'Wattage Table'!$D:$F,3,0)*(J28-K28)))*L28)/1000) -> 0 | N28: =IF(OR(H28="",R28="No"),0,(VLOOKUP(H28,'Wattage Table'!$D:$F,3,0)*L28)/1000*0.25) -> 0 | O28: 0 | P28: 0 | Q28: =IF(ISERROR(IF(H28="-","-",INDEX('Wattage Table'!$F$23:$F$451,MATCH(H28,'Wattage Table'!$D$23:$D$451,0)))*$L28)," ",IF(H28="-","-",INDEX('Wattage Table'!$F$23:$F$451,MATCH(H28,'Wattage Table'!$D$23:$D$451,0)))*$L28) ->  | R28: =IF(D28="","",IF(OR(D28="None",D28="",H28=""),"No",IF(VLOOKUP(H28,'Wattage Table'!$D:$F,3,0)*L28/F28<=VLOOKUP(D28,Validation!$O$7:$Q$9,3,0),"No","Yes"))) -> 
B29: 8 | E29: =IF(D29="","",IF(D29="None","None",INDEX('Lighting Controls Summary'!$D$19:$D$22,MATCH(D29,'Lighting Controls Summary'!$C$19:$C$22,0),1))) ->  | I29: =IF(H29="","",VLOOKUP(H29,'Wattage Table'!$D:$E,2,0)) ->  | K29: 0 | M29: =IF(OR(H29="",R29="No"),0,(((VLOOKUP(H29,'Wattage Table'!$D:$F,3,0)*J29)-(VLOOKUP(H29,'Wattage Table'!$D:$F,3,0)*(J29-K29)))*L29)/1000) -> 0 | N29: =IF(OR(H29="",R29="No"),0,(VLOOKUP(H29,'Wattage Table'!$D:$F,3,0)*L29)/1000*0.25) -> 0 | O29: 0 | P29: 0 | Q29: =IF(ISERROR(IF(H29="-","-",INDEX('Wattage Table'!$F$23:$F$451,MATCH(H29,'Wattage Table'!$D$23:$D$451,0)))*$L29)," ",IF(H29="-","-",INDEX('Wattage Table'!$F$23:$F$451,MATCH(H29,'Wattage Table'!$D$23:$D$451,0)))*$L29) ->  | R29: =IF(D29="","",IF(OR(D29="None",D29="",H29=""),"No",IF(VLOOKUP(H29,'Wattage Table'!$D:$F,3,0)*L29/F29<=VLOOKUP(D29,Validation!$O$7:$Q$9,3,0),"No","Yes"))) -> 
B30: 9 | E30: =IF(D30="","",IF(D30="None","None",INDEX('Lighting Controls Summary'!$D$19:$D$22,MATCH(D30,'Lighting Controls Summary'!$C$19:$C$22,0),1))) ->  | I30: =IF(H30="","",VLOOKUP(H30,'Wattage Table'!$D:$E,2,0)) ->  | K30: 0 | M30: =IF(OR(H30="",R30="No"),0,(((VLOOKUP(H30,'Wattage Table'!$D:$F,3,0)*J30)-(VLOOKUP(H30,'Wattage Table'!$D:$F,3,0)*(J30-K30)))*L30)/1000) -> 0 | N30: =IF(OR(H30="",R30="No"),0,(VLOOKUP(H30,'Wattage Table'!$D:$F,3,0)*L30)/1000*0.25) -> 0 | O30: 0 | P30: 0 | Q30: =IF(ISERROR(IF(H30="-","-",INDEX('Wattage Table'!$F$23:$F$451,MATCH(H30,'Wattage Table'!$D$23:$D$451,0)))*$L30)," ",IF(H30="-","-",INDEX('Wattage Table'!$F$23:$F$451,MATCH(H30,'Wattage Table'!$D$23:$D$451,0)))*$L30) ->  | R30: =IF(D30="","",IF(OR(D30="None",D30="",H30=""),"No",IF(VLOOKUP(H30,'Wattage Table'!$D:$F,3,0)*L30/F30<=VLOOKUP(D30,Validation!$O$7:$Q$9,3,0),"No","Yes"))) -> 
B31: 10 | E31: =IF(D31="","",IF(D31="None","None",INDEX('Lighting Controls Summary'!$D$19:$D$22,MATCH(D31,'Lighting Controls Summary'!$C$19:$C$22,0),1))) ->  | I31: =IF(H31="","",VLOOKUP(H31,'Wattage Table'!$D:$E,2,0)) ->  | K31: 0 | M31: =IF(OR(H31="",R31="No"),0,(((VLOOKUP(H31,'Wattage Table'!$D:$F,3,0)*J31)-(VLOOKUP(H31,'Wattage Table'!$D:$F,3,0)*(J31-K31)))*L31)/1000) -> 0 | N31: =IF(OR(H31="",R31="No"),0,(VLOOKUP(H31,'Wattage Table'!$D:$F,3,0)*L31)/1000*0.25) -> 0 | O31: 0 | P31: 0 | Q31: =IF(ISERROR(IF(H31="-","-",INDEX('Wattage Table'!$F$23:$F$451,MATCH(H31,'Wattage Table'!$D$23:$D$451,0)))*$L31)," ",IF(H31="-","-",INDEX('Wattage Table'!$F$23:$F$451,MATCH(H31,'Wattage Table'!$D$23:$D$451,0)))*$L31) ->  | R31: =IF(D31="","",IF(OR(D31="None",D31="",H31=""),"No",IF(VLOOKUP(H31,'Wattage Table'!$D:$F,3,0)*L31/F31<=VLOOKUP(D31,Validation!$O$7:$Q$9,3,0),"No","Yes"))) -> 
B32: 11 | E32: =IF(D32="","",IF(D32="None","None",INDEX('Lighting Controls Summary'!$D$19:$D$22,MATCH(D32,'Lighting Controls Summary'!$C$19:$C$22,0),1))) ->  | I32: =IF(H32="","",VLOOKUP(H32,'Wattage Table'!$D:$E,2,0)) ->  | K32: 0 | M32: =IF(OR(H32="",R32="No"),0,(((VLOOKUP(H32,'Wattage Table'!$D:$F,3,0)*J32)-(VLOOKUP(H32,'Wattage Table'!$D:$F,3,0)*(J32-K32)))*L32)/1000) -> 0 | N32: =IF(OR(H32="",R32="No"),0,(VLOOKUP(H32,'Wattage Table'!$D:$F,3,0)*L32)/1000*0.25) -> 0 | O32: 0 | P32: 0 | Q32: =IF(ISERROR(IF(H32="-","-",INDEX('Wattage Table'!$F$23:$F$451,MATCH(H32,'Wattage Table'!$D$23:$D$451,0)))*$L32)," ",IF(H32="-","-",INDEX('Wattage Table'!$F$23:$F$451,MATCH(H32,'Wattage Table'!$D$23:$D$451,0)))*$L32) ->  | R32: =IF(D32="","",IF(OR(D32="None",D32="",H32=""),"No",IF(VLOOKUP(H32,'Wattage Table'!$D:$F,3,0)*L32/F32<=VLOOKUP(D32,Validation!$O$7:$Q$9,3,0),"No","Yes"))) -> 
B33: 12 | E33: =IF(D33="","",IF(D33="None","None",INDEX('Lighting Controls Summary'!$D$19:$D$22,MATCH(D33,'Lighting Controls Summary'!$C$19:$C$22,0),1))) ->  | I33: =IF(H33="","",VLOOKUP(H33,'Wattage Table'!$D:$E,2,0)) ->  | K33: 0 | M33: =IF(OR(H33="",R33="No"),0,(((VLOOKUP(H33,'Wattage Table'!$D:$F,3,0)*J33)-(VLOOKUP(H33,'Wattage Table'!$D:$F,3,0)*(J33-K33)))*L33)/1000) -> 0 | N33: =IF(OR(H33="",R33="No"),0,(VLOOKUP(H33,'Wattage Table'!$D:$F,3,0)*L33)/1000*0.25) -> 0 | O33: 0 | P33: 0 | Q33: =IF(ISERROR(IF(H33="-","-",INDEX('Wattage Table'!$F$23:$F$451,MATCH(H33,'Wattage Table'!$D$23:$D$451,0)))*$L33)," ",IF(H33="-","-",INDEX('Wattage Table'!$F$23:$F$451,MATCH(H33,'Wattage Table'!$D$23:$D$451,0)))*$L33) ->  | R33: =IF(D33="","",IF(OR(D33="None",D33="",H33=""),"No",IF(VLOOKUP(H33,'Wattage Table'!$D:$F,3,0)*L33/F33<=VLOOKUP(D33,Validation!$O$7:$Q$9,3,0),"No","Yes"))) -> 
B34: 13 | E34: =IF(D34="","",IF(D34="None","None",INDEX('Lighting Controls Summary'!$D$19:$D$22,MATCH(D34,'Lighting Controls Summary'!$C$19:$C$22,0),1))) ->  | I34: =IF(H34="","",VLOOKUP(H34,'Wattage Table'!$D:$E,2,0)) ->  | K34: 0 | M34: =IF(OR(H34="",R34="No"),0,(((VLOOKUP(H34,'Wattage Table'!$D:$F,3,0)*J34)-(VLOOKUP(H34,'Wattage Table'!$D:$F,3,0)*(J34-K34)))*L34)/1000) -> 0 | N34: =IF(OR(H34="",R34="No"),0,(VLOOKUP(H34,'Wattage Table'!$D:$F,3,0)*L34)/1000*0.25) -> 0 | O34: 0 | P34: 0 | Q34: =IF(ISERROR(IF(H34="-","-",INDEX('Wattage Table'!$F$23:$F$451,MATCH(H34,'Wattage Table'!$D$23:$D$451,0)))*$L34)," ",IF(H34="-","-",INDEX('Wattage Table'!$F$23:$F$451,MATCH(H34,'Wattage Table'!$D$23:$D$451,0)))*$L34) ->  | R34: =IF(D34="","",IF(OR(D34="None",D34="",H34=""),"No",IF(VLOOKUP(H34,'Wattage Table'!$D:$F,3,0)*L34/F34<=VLOOKUP(D34,Validation!$O$7:$Q$9,3,0),"No","Yes"))) -> 
B35: 14 | E35: =IF(D35="","",IF(D35="None","None",INDEX('Lighting Controls Summary'!$D$19:$D$22,MATCH(D35,'Lighting Controls Summary'!$C$19:$C$22,0),1))) ->  | I35: =IF(H35="","",VLOOKUP(H35,'Wattage Table'!$D:$E,2,0)) ->  | K35: 0 | M35: =IF(OR(H35="",R35="No"),0,(((VLOOKUP(H35,'Wattage Table'!$D:$F,3,0)*J35)-(VLOOKUP(H35,'Wattage Table'!$D:$F,3,0)*(J35-K35)))*L35)/1000) -> 0 | N35: =IF(OR(H35="",R35="No"),0,(VLOOKUP(H35,'Wattage Table'!$D:$F,3,0)*L35)/1000*0.25) -> 0 | O35: 0 | P35: 0 | Q35: =IF(ISERROR(IF(H35="-","-",INDEX('Wattage Table'!$F$23:$F$451,MATCH(H35,'Wattage Table'!$D$23:$D$451,0)))*$L35)," ",IF(H35="-","-",INDEX('Wattage Table'!$F$23:$F$451,MATCH(H35,'Wattage Table'!$D$23:$D$451,0)))*$L35) ->  | R35: =IF(D35="","",IF(OR(D35="None",D35="",H35=""),"No",IF(VLOOKUP(H35,'Wattage Table'!$D:$F,3,0)*L35/F35<=VLOOKUP(D35,Validation!$O$7:$Q$9,3,0),"No","Yes"))) -> 
B36: 15 | E36: =IF(D36="","",IF(D36="None","None",INDEX('Lighting Controls Summary'!$D$19:$D$22,MATCH(D36,'Lighting Controls Summary'!$C$19:$C$22,0),1))) ->  | I36: =IF(H36="","",VLOOKUP(H36,'Wattage Table'!$D:$E,2,0)) ->  | K36: 0 | M36: =IF(OR(H36="",R36="No"),0,(((VLOOKUP(H36,'Wattage Table'!$D:$F,3,0)*J36)-(VLOOKUP(H36,'Wattage Table'!$D:$F,3,0)*(J36-K36)))*L36)/1000) -> 0 | N36: =IF(OR(H36="",R36="No"),0,(VLOOKUP(H36,'Wattage Table'!$D:$F,3,0)*L36)/1000*0.25) -> 0 | O36: 0 | P36: 0 | Q36: =IF(ISERROR(IF(H36="-","-",INDEX('Wattage Table'!$F$23:$F$451,MATCH(H36,'Wattage Table'!$D$23:$D$451,0)))*$L36)," ",IF(H36="-","-",INDEX('Wattage Table'!$F$23:$F$451,MATCH(H36,'Wattage Table'!$D$23:$D$451,0)))*$L36) ->  | R36: =IF(D36="","",IF(OR(D36="None",D36="",H36=""),"No",IF(VLOOKUP(H36,'Wattage Table'!$D:$F,3,0)*L36/F36<=VLOOKUP(D36,Validation!$O$7:$Q$9,3,0),"No","Yes"))) -> 
B37: 16 | E37: =IF(D37="","",IF(D37="None","None",INDEX('Lighting Controls Summary'!$D$19:$D$22,MATCH(D37,'Lighting Controls Summary'!$C$19:$C$22,0),1))) ->  | I37: =IF(H37="","",VLOOKUP(H37,'Wattage Table'!$D:$E,2,0)) ->  | K37: 0 | M37: =IF(OR(H37="",R37="No"),0,(((VLOOKUP(H37,'Wattage Table'!$D:$F,3,0)*J37)-(VLOOKUP(H37,'Wattage Table'!$D:$F,3,0)*(J37-K37)))*L37)/1000) -> 0 | N37: =IF(OR(H37="",R37="No"),0,(VLOOKUP(H37,'Wattage Table'!$D:$F,3,0)*L37)/1000*0.25) -> 0 | O37: 0 | P37: 0 | Q37: =IF(ISERROR(IF(H37="-","-",INDEX('Wattage Table'!$F$23:$F$451,MATCH(H37,'Wattage Table'!$D$23:$D$451,0)))*$L37)," ",IF(H37="-","-",INDEX('Wattage Table'!$F$23:$F$451,MATCH(H37,'Wattage Table'!$D$23:$D$451,0)))*$L37) ->  | R37: =IF(D37="","",IF(OR(D37="None",D37="",H37=""),"No",IF(VLOOKUP(H37,'Wattage Table'!$D:$F,3,0)*L37/F37<=VLOOKUP(D37,Validation!$O$7:$Q$9,3,0),"No","Yes"))) -> 
B38: 17 | E38: =IF(D38="","",IF(D38="None","None",INDEX('Lighting Controls Summary'!$D$19:$D$22,MATCH(D38,'Lighting Controls Summary'!$C$19:$C$22,0),1))) ->  | I38: =IF(H38="","",VLOOKUP(H38,'Wattage Table'!$D:$E,2,0)) ->  | K38: 0 | M38: =IF(OR(H38="",R38="No"),0,(((VLOOKUP(H38,'Wattage Table'!$D:$F,3,0)*J38)-(VLOOKUP(H38,'Wattage Table'!$D:$F,3,0)*(J38-K38)))*L38)/1000) -> 0 | N38: =IF(OR(H38="",R38="No"),0,(VLOOKUP(H38,'Wattage Table'!$D:$F,3,0)*L38)/1000*0.25) -> 0 | O38: 0 | P38: 0 | Q38: =IF(ISERROR(IF(H38="-","-",INDEX('Wattage Table'!$F$23:$F$451,MATCH(H38,'Wattage Table'!$D$23:$D$451,0)))*$L38)," ",IF(H38="-","-",INDEX('Wattage Table'!$F$23:$F$451,MATCH(H38,'Wattage Table'!$D$23:$D$451,0)))*$L38) ->  | R38: =IF(D38="","",IF(OR(D38="None",D38="",H38=""),"No",IF(VLOOKUP(H38,'Wattage Table'!$D:$F,3,0)*L38/F38<=VLOOKUP(D38,Validation!$O$7:$Q$9,3,0),"No","Yes"))) -> 
B39: 18 | E39: =IF(D39="","",IF(D39="None","None",INDEX('Lighting Controls Summary'!$D$19:$D$22,MATCH(D39,'Lighting Controls Summary'!$C$19:$C$22,0),1))) ->  | I39: =IF(H39="","",VLOOKUP(H39,'Wattage Table'!$D:$E,2,0)) ->  | K39: 0 | M39: =IF(OR(H39="",R39="No"),0,(((VLOOKUP(H39,'Wattage Table'!$D:$F,3,0)*J39)-(VLOOKUP(H39,'Wattage Table'!$D:$F,3,0)*(J39-K39)))*L39)/1000) -> 0 | N39: =IF(OR(H39="",R39="No"),0,(VLOOKUP(H39,'Wattage Table'!$D:$F,3,0)*L39)/1000*0.25) -> 0 | O39: 0 | P39: 0 | Q39: =IF(ISERROR(IF(H39="-","-",INDEX('Wattage Table'!$F$23:$F$451,MATCH(H39,'Wattage Table'!$D$23:$D$451,0)))*$L39)," ",IF(H39="-","-",INDEX('Wattage Table'!$F$23:$F$451,MATCH(H39,'Wattage Table'!$D$23:$D$451,0)))*$L39) ->  | R39: =IF(D39="","",IF(OR(D39="None",D39="",H39=""),"No",IF(VLOOKUP(H39,'Wattage Table'!$D:$F,3,0)*L39/F39<=VLOOKUP(D39,Validation!$O$7:$Q$9,3,0),"No","Yes"))) -> 
B40: 19 | E40: =IF(D40="","",IF(D40="None","None",INDEX('Lighting Controls Summary'!$D$19:$D$22,MATCH(D40,'Lighting Controls Summary'!$C$19:$C$22,0),1))) ->  | I40: =IF(H40="","",VLOOKUP(H40,'Wattage Table'!$D:$E,2,0)) ->  | K40: 0 | M40: =IF(OR(H40="",R40="No"),0,(((VLOOKUP(H40,'Wattage Table'!$D:$F,3,0)*J40)-(VLOOKUP(H40,'Wattage Table'!$D:$F,3,0)*(J40-K40)))*L40)/1000) -> 0 | N40: =IF(OR(H40="",R40="No"),0,(VLOOKUP(H40,'Wattage Table'!$D:$F,3,0)*L40)/1000*0.25) -> 0 | O40: 0 | P40: 0 | Q40: =IF(ISERROR(IF(H40="-","-",INDEX('Wattage Table'!$F$23:$F$451,MATCH(H40,'Wattage Table'!$D$23:$D$451,0)))*$L40)," ",IF(H40="-","-",INDEX('Wattage Table'!$F$23:$F$451,MATCH(H40,'Wattage Table'!$D$23:$D$451,0)))*$L40) ->  | R40: =IF(D40="","",IF(OR(D40="None",D40="",H40=""),"No",IF(VLOOKUP(H40,'Wattage Table'!$D:$F,3,0)*L40/F40<=VLOOKUP(D40,Validation!$O$7:$Q$9,3,0),"No","Yes"))) -> 
B41: 20 | E41: =IF(D41="","",IF(D41="None","None",INDEX('Lighting Controls Summary'!$D$19:$D$22,MATCH(D41,'Lighting Controls Summary'!$C$19:$C$22,0),1))) ->  | I41: =IF(H41="","",VLOOKUP(H41,'Wattage Table'!$D:$E,2,0)) ->  | K41: 0 | M41: =IF(OR(H41="",R41="No"),0,(((VLOOKUP(H41,'Wattage Table'!$D:$F,3,0)*J41)-(VLOOKUP(H41,'Wattage Table'!$D:$F,3,0)*(J41-K41)))*L41)/1000) -> 0 | N41: =IF(OR(H41="",R41="No"),0,(VLOOKUP(H41,'Wattage Table'!$D:$F,3,0)*L41)/1000*0.25) -> 0 | O41: 0 | P41: 0 | Q41: =IF(ISERROR(IF(H41="-","-",INDEX('Wattage Table'!$F$23:$F$451,MATCH(H41,'Wattage Table'!$D$23:$D$451,0)))*$L41)," ",IF(H41="-","-",INDEX('Wattage Table'!$F$23:$F$451,MATCH(H41,'Wattage Table'!$D$23:$D$451,0)))*$L41) ->  | R41: =IF(D41="","",IF(OR(D41="None",D41="",H41=""),"No",IF(VLOOKUP(H41,'Wattage Table'!$D:$F,3,0)*L41/F41<=VLOOKUP(D41,Validation!$O$7:$Q$9,3,0),"No","Yes"))) -> 
B42: 21 | E42: =IF(D42="","",IF(D42="None","None",INDEX('Lighting Controls Summary'!$D$19:$D$22,MATCH(D42,'Lighting Controls Summary'!$C$19:$C$22,0),1))) ->  | I42: =IF(H42="","",VLOOKUP(H42,'Wattage Table'!$D:$E,2,0)) ->  | K42: 0 | M42: =IF(OR(H42="",R42="No"),0,(((VLOOKUP(H42,'Wattage Table'!$D:$F,3,0)*J42)-(VLOOKUP(H42,'Wattage Table'!$D:$F,3,0)*(J42-K42)))*L42)/1000) -> 0 | N42: =IF(OR(H42="",R42="No"),0,(VLOOKUP(H42,'Wattage Table'!$D:$F,3,0)*L42)/1000*0.25) -> 0 | O42: 0 | P42: 0 | Q42: =IF(ISERROR(IF(H42="-","-",INDEX('Wattage Table'!$F$23:$F$451,MATCH(H42,'Wattage Table'!$D$23:$D$451,0)))*$L42)," ",IF(H42="-","-",INDEX('Wattage Table'!$F$23:$F$451,MATCH(H42,'Wattage Table'!$D$23:$D$451,0)))*$L42) ->  | R42: =IF(D42="","",IF(OR(D42="None",D42="",H42=""),"No",IF(VLOOKUP(H42,'Wattage Table'!$D:$F,3,0)*L42/F42<=VLOOKUP(D42,Validation!$O$7:$Q$9,3,0),"No","Yes"))) -> 
B43: 22 | E43: =IF(D43="","",IF(D43="None","None",INDEX('Lighting Controls Summary'!$D$19:$D$22,MATCH(D43,'Lighting Controls Summary'!$C$19:$C$22,0),1))) ->  | I43: =IF(H43="","",VLOOKUP(H43,'Wattage Table'!$D:$E,2,0)) ->  | K43: 0 | M43: =IF(OR(H43="",R43="No"),0,(((VLOOKUP(H43,'Wattage Table'!$D:$F,3,0)*J43)-(VLOOKUP(H43,'Wattage Table'!$D:$F,3,0)*(J43-K43)))*L43)/1000) -> 0 | N43: =IF(OR(H43="",R43="No"),0,(VLOOKUP(H43,'Wattage Table'!$D:$F,3,0)*L43)/1000*0.25) -> 0 | O43: 0 | P43: 0 | Q43: =IF(ISERROR(IF(H43="-","-",INDEX('Wattage Table'!$F$23:$F$451,MATCH(H43,'Wattage Table'!$D$23:$D$451,0)))*$L43)," ",IF(H43="-","-",INDEX('Wattage Table'!$F$23:$F$451,MATCH(H43,'Wattage Table'!$D$23:$D$451,0)))*$L43) ->  | R43: =IF(D43="","",IF(OR(D43="None",D43="",H43=""),"No",IF(VLOOKUP(H43,'Wattage Table'!$D:$F,3,0)*L43/F43<=VLOOKUP(D43,Validation!$O$7:$Q$9,3,0),"No","Yes"))) -> 
B44: 23 | E44: =IF(D44="","",IF(D44="None","None",INDEX('Lighting Controls Summary'!$D$19:$D$22,MATCH(D44,'Lighting Controls Summary'!$C$19:$C$22,0),1))) ->  | I44: =IF(H44="","",VLOOKUP(H44,'Wattage Table'!$D:$E,2,0)) ->  | K44: 0 | M44: =IF(OR(H44="",R44="No"),0,(((VLOOKUP(H44,'Wattage Table'!$D:$F,3,0)*J44)-(VLOOKUP(H44,'Wattage Table'!$D:$F,3,0)*(J44-K44)))*L44)/1000) -> 0 | N44: =IF(OR(H44="",R44="No"),0,(VLOOKUP(H44,'Wattage Table'!$D:$F,3,0)*L44)/1000*0.25) -> 0 | O44: 0 | P44: 0 | Q44: =IF(ISERROR(IF(H44="-","-",INDEX('Wattage Table'!$F$23:$F$451,MATCH(H44,'Wattage Table'!$D$23:$D$451,0)))*$L44)," ",IF(H44="-","-",INDEX('Wattage Table'!$F$23:$F$451,MATCH(H44,'Wattage Table'!$D$23:$D$451,0)))*$L44) ->  | R44: =IF(D44="","",IF(OR(D44="None",D44="",H44=""),"No",IF(VLOOKUP(H44,'Wattage Table'!$D:$F,3,0)*L44/F44<=VLOOKUP(D44,Validation!$O$7:$Q$9,3,0),"No","Yes"))) -> 
B45: 24 | E45: =IF(D45="","",IF(D45="None","None",INDEX('Lighting Controls Summary'!$D$19:$D$22,MATCH(D45,'Lighting Controls Summary'!$C$19:$C$22,0),1))) ->  | I45: =IF(H45="","",VLOOKUP(H45,'Wattage Table'!$D:$E,2,0)) ->  | K45: 0 | M45: =IF(OR(H45="",R45="No"),0,(((VLOOKUP(H45,'Wattage Table'!$D:$F,3,0)*J45)-(VLOOKUP(H45,'Wattage Table'!$D:$F,3,0)*(J45-K45)))*L45)/1000) -> 0 | N45: =IF(OR(H45="",R45="No"),0,(VLOOKUP(H45,'Wattage Table'!$D:$F,3,0)*L45)/1000*0.25) -> 0 | O45: 0 | P45: 0 | Q45: =IF(ISERROR(IF(H45="-","-",INDEX('Wattage Table'!$F$23:$F$451,MATCH(H45,'Wattage Table'!$D$23:$D$451,0)))*$L45)," ",IF(H45="-","-",INDEX('Wattage Table'!$F$23:$F$451,MATCH(H45,'Wattage Table'!$D$23:$D$451,0)))*$L45) ->  | R45: =IF(D45="","",IF(OR(D45="None",D45="",H45=""),"No",IF(VLOOKUP(H45,'Wattage Table'!$D:$F,3,0)*L45/F45<=VLOOKUP(D45,Validation!$O$7:$Q$9,3,0),"No","Yes"))) -> 
B46: 25 | E46: =IF(D46="","",IF(D46="None","None",INDEX('Lighting Controls Summary'!$D$19:$D$22,MATCH(D46,'Lighting Controls Summary'!$C$19:$C$22,0),1))) ->  | I46: =IF(H46="","",VLOOKUP(H46,'Wattage Table'!$D:$E,2,0)) ->  | K46: 0 | M46: =IF(OR(H46="",R46="No"),0,(((VLOOKUP(H46,'Wattage Table'!$D:$F,3,0)*J46)-(VLOOKUP(H46,'Wattage Table'!$D:$F,3,0)*(J46-K46)))*L46)/1000) -> 0 | N46: =IF(OR(H46="",R46="No"),0,(VLOOKUP(H46,'Wattage Table'!$D:$F,3,0)*L46)/1000*0.25) -> 0 | O46: 0 | P46: 0 | Q46: =IF(ISERROR(IF(H46="-","-",INDEX('Wattage Table'!$F$23:$F$451,MATCH(H46,'Wattage Table'!$D$23:$D$451,0)))*$L46)," ",IF(H46="-","-",INDEX('Wattage Table'!$F$23:$F$451,MATCH(H46,'Wattage Table'!$D$23:$D$451,0)))*$L46) ->  | R46: =IF(D46="","",IF(OR(D46="None",D46="",H46=""),"No",IF(VLOOKUP(H46,'Wattage Table'!$D:$F,3,0)*L46/F46<=VLOOKUP(D46,Validation!$O$7:$Q$9,3,0),"No","Yes"))) -> 
B47: 26 | E47: =IF(D47="","",IF(D47="None","None",INDEX('Lighting Controls Summary'!$D$19:$D$22,MATCH(D47,'Lighting Controls Summary'!$C$19:$C$22,0),1))) ->  | I47: =IF(H47="","",VLOOKUP(H47,'Wattage Table'!$D:$E,2,0)) ->  | K47: 0 | M47: =IF(OR(H47="",R47="No"),0,(((VLOOKUP(H47,'Wattage Table'!$D:$F,3,0)*J47)-(VLOOKUP(H47,'Wattage Table'!$D:$F,3,0)*(J47-K47)))*L47)/1000) -> 0 | N47: =IF(OR(H47="",R47="No"),0,(VLOOKUP(H47,'Wattage Table'!$D:$F,3,0)*L47)/1000*0.25) -> 0 | O47: 0 | P47: 0 | Q47: =IF(ISERROR(IF(H47="-","-",INDEX('Wattage Table'!$F$23:$F$451,MATCH(H47,'Wattage Table'!$D$23:$D$451,0)))*$L47)," ",IF(H47="-","-",INDEX('Wattage Table'!$F$23:$F$451,MATCH(H47,'Wattage Table'!$D$23:$D$451,0)))*$L47) ->  | R47: =IF(D47="","",IF(OR(D47="None",D47="",H47=""),"No",IF(VLOOKUP(H47,'Wattage Table'!$D:$F,3,0)*L47/F47<=VLOOKUP(D47,Validation!$O$7:$Q$9,3,0),"No","Yes"))) -> 
B48: 27 | E48: =IF(D48="","",IF(D48="None","None",INDEX('Lighting Controls Summary'!$D$19:$D$22,MATCH(D48,'Lighting Controls Summary'!$C$19:$C$22,0),1))) ->  | I48: =IF(H48="","",VLOOKUP(H48,'Wattage Table'!$D:$E,2,0)) ->  | K48: 0 | M48: =IF(OR(H48="",R48="No"),0,(((VLOOKUP(H48,'Wattage Table'!$D:$F,3,0)*J48)-(VLOOKUP(H48,'Wattage Table'!$D:$F,3,0)*(J48-K48)))*L48)/1000) -> 0 | N48: =IF(OR(H48="",R48="No"),0,(VLOOKUP(H48,'Wattage Table'!$D:$F,3,0)*L48)/1000*0.25) -> 0 | O48: 0 | P48: 0 | Q48: =IF(ISERROR(IF(H48="-","-",INDEX('Wattage Table'!$F$23:$F$451,MATCH(H48,'Wattage Table'!$D$23:$D$451,0)))*$L48)," ",IF(H48="-","-",INDEX('Wattage Table'!$F$23:$F$451,MATCH(H48,'Wattage Table'!$D$23:$D$451,0)))*$L48) ->  | R48: =IF(D48="","",IF(OR(D48="None",D48="",H48=""),"No",IF(VLOOKUP(H48,'Wattage Table'!$D:$F,3,0)*L48/F48<=VLOOKUP(D48,Validation!$O$7:$Q$9,3,0),"No","Yes"))) -> 
B49: 28 | E49: =IF(D49="","",IF(D49="None","None",INDEX('Lighting Controls Summary'!$D$19:$D$22,MATCH(D49,'Lighting Controls Summary'!$C$19:$C$22,0),1))) ->  | I49: =IF(H49="","",VLOOKUP(H49,'Wattage Table'!$D:$E,2,0)) ->  | K49: 0 | M49: =IF(OR(H49="",R49="No"),0,(((VLOOKUP(H49,'Wattage Table'!$D:$F,3,0)*J49)-(VLOOKUP(H49,'Wattage Table'!$D:$F,3,0)*(J49-K49)))*L49)/1000) -> 0 | N49: =IF(OR(H49="",R49="No"),0,(VLOOKUP(H49,'Wattage Table'!$D:$F,3,0)*L49)/1000*0.25) -> 0 | O49: 0 | P49: 0 | Q49: =IF(ISERROR(IF(H49="-","-",INDEX('Wattage Table'!$F$23:$F$451,MATCH(H49,'Wattage Table'!$D$23:$D$451,0)))*$L49)," ",IF(H49="-","-",INDEX('Wattage Table'!$F$23:$F$451,MATCH(H49,'Wattage Table'!$D$23:$D$451,0)))*$L49) ->  | R49: =IF(D49="","",IF(OR(D49="None",D49="",H49=""),"No",IF(VLOOKUP(H49,'Wattage Table'!$D:$F,3,0)*L49/F49<=VLOOKUP(D49,Validation!$O$7:$Q$9,3,0),"No","Yes"))) -> 
B50: 29 | E50: =IF(D50="","",IF(D50="None","None",INDEX('Lighting Controls Summary'!$D$19:$D$22,MATCH(D50,'Lighting Controls Summary'!$C$19:$C$22,0),1))) ->  | I50: =IF(H50="","",VLOOKUP(H50,'Wattage Table'!$D:$E,2,0)) ->  | K50: 0 | M50: =IF(OR(H50="",R50="No"),0,(((VLOOKUP(H50,'Wattage Table'!$D:$F,3,0)*J50)-(VLOOKUP(H50,'Wattage Table'!$D:$F,3,0)*(J50-K50)))*L50)/1000) -> 0 | N50: =IF(OR(H50="",R50="No"),0,(VLOOKUP(H50,'Wattage Table'!$D:$F,3,0)*L50)/1000*0.25) -> 0 | O50: 0 | P50: 0 | Q50: =IF(ISERROR(IF(H50="-","-",INDEX('Wattage Table'!$F$23:$F$451,MATCH(H50,'Wattage Table'!$D$23:$D$451,0)))*$L50)," ",IF(H50="-","-",INDEX('Wattage Table'!$F$23:$F$451,MATCH(H50,'Wattage Table'!$D$23:$D$451,0)))*$L50) ->  | R50: =IF(D50="","",IF(OR(D50="None",D50="",H50=""),"No",IF(VLOOKUP(H50,'Wattage Table'!$D:$F,3,0)*L50/F50<=VLOOKUP(D50,Validation!$O$7:$Q$9,3,0),"No","Yes"))) -> 
B51: 30 | E51: =IF(D51="","",IF(D51="None","None",INDEX('Lighting Controls Summary'!$D$19:$D$22,MATCH(D51,'Lighting Controls Summary'!$C$19:$C$22,0),1))) ->  | I51: =IF(H51="","",VLOOKUP(H51,'Wattage Table'!$D:$E,2,0)) ->  | K51: 0 | M51: =IF(OR(H51="",R51="No"),0,(((VLOOKUP(H51,'Wattage Table'!$D:$F,3,0)*J51)-(VLOOKUP(H51,'Wattage Table'!$D:$F,3,0)*(J51-K51)))*L51)/1000) -> 0 | N51: =IF(OR(H51="",R51="No"),0,(VLOOKUP(H51,'Wattage Table'!$D:$F,3,0)*L51)/1000*0.25) -> 0 | O51: 0 | P51: 0 | Q51: =IF(ISERROR(IF(H51="-","-",INDEX('Wattage Table'!$F$23:$F$451,MATCH(H51,'Wattage Table'!$D$23:$D$451,0)))*$L51)," ",IF(H51="-","-",INDEX('Wattage Table'!$F$23:$F$451,MATCH(H51,'Wattage Table'!$D$23:$D$451,0)))*$L51) ->  | R51: =IF(D51="","",IF(OR(D51="None",D51="",H51=""),"No",IF(VLOOKUP(H51,'Wattage Table'!$D:$F,3,0)*L51/F51<=VLOOKUP(D51,Validation!$O$7:$Q$9,3,0),"No","Yes"))) -> 
B52: 31 | E52: =IF(D52="","",IF(D52="None","None",INDEX('Lighting Controls Summary'!$D$19:$D$22,MATCH(D52,'Lighting Controls Summary'!$C$19:$C$22,0),1))) ->  | I52: =IF(H52="","",VLOOKUP(H52,'Wattage Table'!$D:$E,2,0)) ->  | K52: 0 | M52: =IF(OR(H52="",R52="No"),0,(((VLOOKUP(H52,'Wattage Table'!$D:$F,3,0)*J52)-(VLOOKUP(H52,'Wattage Table'!$D:$F,3,0)*(J52-K52)))*L52)/1000) -> 0 | N52: =IF(OR(H52="",R52="No"),0,(VLOOKUP(H52,'Wattage Table'!$D:$F,3,0)*L52)/1000*0.25) -> 0 | O52: 0 | P52: 0 | Q52: =IF(ISERROR(IF(H52="-","-",INDEX('Wattage Table'!$F$23:$F$451,MATCH(H52,'Wattage Table'!$D$23:$D$451,0)))*$L52)," ",IF(H52="-","-",INDEX('Wattage Table'!$F$23:$F$451,MATCH(H52,'Wattage Table'!$D$23:$D$451,0)))*$L52) ->  | R52: =IF(D52="","",IF(OR(D52="None",D52="",H52=""),"No",IF(VLOOKUP(H52,'Wattage Table'!$D:$F,3,0)*L52/F52<=VLOOKUP(D52,Validation!$O$7:$Q$9,3,0),"No","Yes"))) -> 
B53: 32 | E53: =IF(D53="","",IF(D53="None","None",INDEX('Lighting Controls Summary'!$D$19:$D$22,MATCH(D53,'Lighting Controls Summary'!$C$19:$C$22,0),1))) ->  | I53: =IF(H53="","",VLOOKUP(H53,'Wattage Table'!$D:$E,2,0)) ->  | K53: 0 | M53: =IF(OR(H53="",R53="No"),0,(((VLOOKUP(H53,'Wattage Table'!$D:$F,3,0)*J53)-(VLOOKUP(H53,'Wattage Table'!$D:$F,3,0)*(J53-K53)))*L53)/1000) -> 0 | N53: =IF(OR(H53="",R53="No"),0,(VLOOKUP(H53,'Wattage Table'!$D:$F,3,0)*L53)/1000*0.25) -> 0 | O53: 0 | P53: 0 | Q53: =IF(ISERROR(IF(H53="-","-",INDEX('Wattage Table'!$F$23:$F$451,MATCH(H53,'Wattage Table'!$D$23:$D$451,0)))*$L53)," ",IF(H53="-","-",INDEX('Wattage Table'!$F$23:$F$451,MATCH(H53,'Wattage Table'!$D$23:$D$451,0)))*$L53) ->  | R53: =IF(D53="","",IF(OR(D53="None",D53="",H53=""),"No",IF(VLOOKUP(H53,'Wattage Table'!$D:$F,3,0)*L53/F53<=VLOOKUP(D53,Validation!$O$7:$Q$9,3,0),"No","Yes"))) -> 
B54: 33 | E54: =IF(D54="","",IF(D54="None","None",INDEX('Lighting Controls Summary'!$D$19:$D$22,MATCH(D54,'Lighting Controls Summary'!$C$19:$C$22,0),1))) ->  | I54: =IF(H54="","",VLOOKUP(H54,'Wattage Table'!$D:$E,2,0)) ->  | K54: 0 | M54: =IF(OR(H54="",R54="No"),0,(((VLOOKUP(H54,'Wattage Table'!$D:$F,3,0)*J54)-(VLOOKUP(H54,'Wattage Table'!$D:$F,3,0)*(J54-K54)))*L54)/1000) -> 0 | N54: =IF(OR(H54="",R54="No"),0,(VLOOKUP(H54,'Wattage Table'!$D:$F,3,0)*L54)/1000*0.25) -> 0 | O54: 0 | P54: 0 | Q54: =IF(ISERROR(IF(H54="-","-",INDEX('Wattage Table'!$F$23:$F$451,MATCH(H54,'Wattage Table'!$D$23:$D$451,0)))*$L54)," ",IF(H54="-","-",INDEX('Wattage Table'!$F$23:$F$451,MATCH(H54,'Wattage Table'!$D$23:$D$451,0)))*$L54) ->  | R54: =IF(D54="","",IF(OR(D54="None",D54="",H54=""),"No",IF(VLOOKUP(H54,'Wattage Table'!$D:$F,3,0)*L54/F54<=VLOOKUP(D54,Validation!$O$7:$Q$9,3,0),"No","Yes"))) -> 
B55: 34 | E55: =IF(D55="","",IF(D55="None","None",INDEX('Lighting Controls Summary'!$D$19:$D$22,MATCH(D55,'Lighting Controls Summary'!$C$19:$C$22,0),1))) ->  | I55: =IF(H55="","",VLOOKUP(H55,'Wattage Table'!$D:$E,2,0)) ->  | K55: 0 | M55: =IF(OR(H55="",R55="No"),0,(((VLOOKUP(H55,'Wattage Table'!$D:$F,3,0)*J55)-(VLOOKUP(H55,'Wattage Table'!$D:$F,3,0)*(J55-K55)))*L55)/1000) -> 0 | N55: =IF(OR(H55="",R55="No"),0,(VLOOKUP(H55,'Wattage Table'!$D:$F,3,0)*L55)/1000*0.25) -> 0 | O55: 0 | P55: 0 | Q55: =IF(ISERROR(IF(H55="-","-",INDEX('Wattage Table'!$F$23:$F$451,MATCH(H55,'Wattage Table'!$D$23:$D$451,0)))*$L55)," ",IF(H55="-","-",INDEX('Wattage Table'!$F$23:$F$451,MATCH(H55,'Wattage Table'!$D$23:$D$451,0)))*$L55) ->  | R55: =IF(D55="","",IF(OR(D55="None",D55="",H55=""),"No",IF(VLOOKUP(H55,'Wattage Table'!$D:$F,3,0)*L55/F55<=VLOOKUP(D55,Validation!$O$7:$Q$9,3,0),"No","Yes"))) -> 
B56: 35 | E56: =IF(D56="","",IF(D56="None","None",INDEX('Lighting Controls Summary'!$D$19:$D$22,MATCH(D56,'Lighting Controls Summary'!$C$19:$C$22,0),1))) ->  | I56: =IF(H56="","",VLOOKUP(H56,'Wattage Table'!$D:$E,2,0)) ->  | K56: 0 | M56: =IF(OR(H56="",R56="No"),0,(((VLOOKUP(H56,'Wattage Table'!$D:$F,3,0)*J56)-(VLOOKUP(H56,'Wattage Table'!$D:$F,3,0)*(J56-K56)))*L56)/1000) -> 0 | N56: =IF(OR(H56="",R56="No"),0,(VLOOKUP(H56,'Wattage Table'!$D:$F,3,0)*L56)/1000*0.25) -> 0 | O56: 0 | P56: 0 | Q56: =IF(ISERROR(IF(H56="-","-",INDEX('Wattage Table'!$F$23:$F$451,MATCH(H56,'Wattage Table'!$D$23:$D$451,0)))*$L56)," ",IF(H56="-","-",INDEX('Wattage Table'!$F$23:$F$451,MATCH(H56,'Wattage Table'!$D$23:$D$451,0)))*$L56) ->  | R56: =IF(D56="","",IF(OR(D56="None",D56="",H56=""),"No",IF(VLOOKUP(H56,'Wattage Table'!$D:$F,3,0)*L56/F56<=VLOOKUP(D56,Validation!$O$7:$Q$9,3,0),"No","Yes"))) -> 
B57: 36 | E57: =IF(D57="","",IF(D57="None","None",INDEX('Lighting Controls Summary'!$D$19:$D$22,MATCH(D57,'Lighting Controls Summary'!$C$19:$C$22,0),1))) ->  | I57: =IF(H57="","",VLOOKUP(H57,'Wattage Table'!$D:$E,2,0)) ->  | K57: 0 | M57: =IF(OR(H57="",R57="No"),0,(((VLOOKUP(H57,'Wattage Table'!$D:$F,3,0)*J57)-(VLOOKUP(H57,'Wattage Table'!$D:$F,3,0)*(J57-K57)))*L57)/1000) -> 0 | N57: =IF(OR(H57="",R57="No"),0,(VLOOKUP(H57,'Wattage Table'!$D:$F,3,0)*L57)/1000*0.25) -> 0 | O57: 0 | P57: 0 | Q57: =IF(ISERROR(IF(H57="-","-",INDEX('Wattage Table'!$F$23:$F$451,MATCH(H57,'Wattage Table'!$D$23:$D$451,0)))*$L57)," ",IF(H57="-","-",INDEX('Wattage Table'!$F$23:$F$451,MATCH(H57,'Wattage Table'!$D$23:$D$451,0)))*$L57) ->  | R57: =IF(D57="","",IF(OR(D57="None",D57="",H57=""),"No",IF(VLOOKUP(H57,'Wattage Table'!$D:$F,3,0)*L57/F57<=VLOOKUP(D57,Validation!$O$7:$Q$9,3,0),"No","Yes"))) -> 
B58: 37 | E58: =IF(D58="","",IF(D58="None","None",INDEX('Lighting Controls Summary'!$D$19:$D$22,MATCH(D58,'Lighting Controls Summary'!$C$19:$C$22,0),1))) ->  | I58: =IF(H58="","",VLOOKUP(H58,'Wattage Table'!$D:$E,2,0)) ->  | K58: 0 | M58: =IF(OR(H58="",R58="No"),0,(((VLOOKUP(H58,'Wattage Table'!$D:$F,3,0)*J58)-(VLOOKUP(H58,'Wattage Table'!$D:$F,3,0)*(J58-K58)))*L58)/1000) -> 0 | N58: =IF(OR(H58="",R58="No"),0,(VLOOKUP(H58,'Wattage Table'!$D:$F,3,0)*L58)/1000*0.25) -> 0 | O58: 0 | P58: 0 | Q58: =IF(ISERROR(IF(H58="-","-",INDEX('Wattage Table'!$F$23:$F$451,MATCH(H58,'Wattage Table'!$D$23:$D$451,0)))*$L58)," ",IF(H58="-","-",INDEX('Wattage Table'!$F$23:$F$451,MATCH(H58,'Wattage Table'!$D$23:$D$451,0)))*$L58) ->  | R58: =IF(D58="","",IF(OR(D58="None",D58="",H58=""),"No",IF(VLOOKUP(H58,'Wattage Table'!$D:$F,3,0)*L58/F58<=VLOOKUP(D58,Validation!$O$7:$Q$9,3,0),"No","Yes"))) -> 
B59: 38 | E59: =IF(D59="","",IF(D59="None","None",INDEX('Lighting Controls Summary'!$D$19:$D$22,MATCH(D59,'Lighting Controls Summary'!$C$19:$C$22,0),1))) ->  | I59: =IF(H59="","",VLOOKUP(H59,'Wattage Table'!$D:$E,2,0)) ->  | K59: 0 | M59: =IF(OR(H59="",R59="No"),0,(((VLOOKUP(H59,'Wattage Table'!$D:$F,3,0)*J59)-(VLOOKUP(H59,'Wattage Table'!$D:$F,3,0)*(J59-K59)))*L59)/1000) -> 0 | N59: =IF(OR(H59="",R59="No"),0,(VLOOKUP(H59,'Wattage Table'!$D:$F,3,0)*L59)/1000*0.25) -> 0 | O59: 0 | P59: 0 | Q59: =IF(ISERROR(IF(H59="-","-",INDEX('Wattage Table'!$F$23:$F$451,MATCH(H59,'Wattage Table'!$D$23:$D$451,0)))*$L59)," ",IF(H59="-","-",INDEX('Wattage Table'!$F$23:$F$451,MATCH(H59,'Wattage Table'!$D$23:$D$451,0)))*$L59) ->  | R59: =IF(D59="","",IF(OR(D59="None",D59="",H59=""),"No",IF(VLOOKUP(H59,'Wattage Table'!$D:$F,3,0)*L59/F59<=VLOOKUP(D59,Validation!$O$7:$Q$9,3,0),"No","Yes"))) -> 
B60: 39 | E60: =IF(D60="","",IF(D60="None","None",INDEX('Lighting Controls Summary'!$D$19:$D$22,MATCH(D60,'Lighting Controls Summary'!$C$19:$C$22,0),1))) ->  | I60: =IF(H60="","",VLOOKUP(H60,'Wattage Table'!$D:$E,2,0)) ->  | K60: 0 | M60: =IF(OR(H60="",R60="No"),0,(((VLOOKUP(H60,'Wattage Table'!$D:$F,3,0)*J60)-(VLOOKUP(H60,'Wattage Table'!$D:$F,3,0)*(J60-K60)))*L60)/1000) -> 0 | N60: =IF(OR(H60="",R60="No"),0,(VLOOKUP(H60,'Wattage Table'!$D:$F,3,0)*L60)/1000*0.25) -> 0 | O60: 0 | P60: 0 | Q60: =IF(ISERROR(IF(H60="-","-",INDEX('Wattage Table'!$F$23:$F$451,MATCH(H60,'Wattage Table'!$D$23:$D$451,0)))*$L60)," ",IF(H60="-","-",INDEX('Wattage Table'!$F$23:$F$451,MATCH(H60,'Wattage Table'!$D$23:$D$451,0)))*$L60) ->  | R60: =IF(D60="","",IF(OR(D60="None",D60="",H60=""),"No",IF(VLOOKUP(H60,'Wattage Table'!$D:$F,3,0)*L60/F60<=VLOOKUP(D60,Validation!$O$7:$Q$9,3,0),"No","Yes"))) -> 
B61: 40 | E61: =IF(D61="","",IF(D61="None","None",INDEX('Lighting Controls Summary'!$D$19:$D$22,MATCH(D61,'Lighting Controls Summary'!$C$19:$C$22,0),1))) ->  | I61: =IF(H61="","",VLOOKUP(H61,'Wattage Table'!$D:$E,2,0)) ->  | K61: 0 | M61: =IF(OR(H61="",R61="No"),0,(((VLOOKUP(H61,'Wattage Table'!$D:$F,3,0)*J61)-(VLOOKUP(H61,'Wattage Table'!$D:$F,3,0)*(J61-K61)))*L61)/1000) -> 0 | N61: =IF(OR(H61="",R61="No"),0,(VLOOKUP(H61,'Wattage Table'!$D:$F,3,0)*L61)/1000*0.25) -> 0 | O61: 0 | P61: 0 | Q61: =IF(ISERROR(IF(H61="-","-",INDEX('Wattage Table'!$F$23:$F$451,MATCH(H61,'Wattage Table'!$D$23:$D$451,0)))*$L61)," ",IF(H61="-","-",INDEX('Wattage Table'!$F$23:$F$451,MATCH(H61,'Wattage Table'!$D$23:$D$451,0)))*$L61) ->  | R61: =IF(D61="","",IF(OR(D61="None",D61="",H61=""),"No",IF(VLOOKUP(H61,'Wattage Table'!$D:$F,3,0)*L61/F61<=VLOOKUP(D61,Validation!$O$7:$Q$9,3,0),"No","Yes"))) -> 
B62: 41 | E62: =IF(D62="","",IF(D62="None","None",INDEX('Lighting Controls Summary'!$D$19:$D$22,MATCH(D62,'Lighting Controls Summary'!$C$19:$C$22,0),1))) ->  | I62: =IF(H62="","",VLOOKUP(H62,'Wattage Table'!$D:$E,2,0)) ->  | K62: 0 | M62: =IF(OR(H62="",R62="No"),0,(((VLOOKUP(H62,'Wattage Table'!$D:$F,3,0)*J62)-(VLOOKUP(H62,'Wattage Table'!$D:$F,3,0)*(J62-K62)))*L62)/1000) -> 0 | N62: =IF(OR(H62="",R62="No"),0,(VLOOKUP(H62,'Wattage Table'!$D:$F,3,0)*L62)/1000*0.25) -> 0 | O62: 0 | P62: 0 | Q62: =IF(ISERROR(IF(H62="-","-",INDEX('Wattage Table'!$F$23:$F$451,MATCH(H62,'Wattage Table'!$D$23:$D$451,0)))*$L62)," ",IF(H62="-","-",INDEX('Wattage Table'!$F$23:$F$451,MATCH(H62,'Wattage Table'!$D$23:$D$451,0)))*$L62) ->  | R62: =IF(D62="","",IF(OR(D62="None",D62="",H62=""),"No",IF(VLOOKUP(H62,'Wattage Table'!$D:$F,3,0)*L62/F62<=VLOOKUP(D62,Validation!$O$7:$Q$9,3,0),"No","Yes"))) -> 
B63: 42 | E63: =IF(D63="","",IF(D63="None","None",INDEX('Lighting Controls Summary'!$D$19:$D$22,MATCH(D63,'Lighting Controls Summary'!$C$19:$C$22,0),1))) ->  | I63: =IF(H63="","",VLOOKUP(H63,'Wattage Table'!$D:$E,2,0)) ->  | K63: 0 | M63: =IF(OR(H63="",R63="No"),0,(((VLOOKUP(H63,'Wattage Table'!$D:$F,3,0)*J63)-(VLOOKUP(H63,'Wattage Table'!$D:$F,3,0)*(J63-K63)))*L63)/1000) -> 0 | N63: =IF(OR(H63="",R63="No"),0,(VLOOKUP(H63,'Wattage Table'!$D:$F,3,0)*L63)/1000*0.25) -> 0 | O63: 0 | P63: 0 | Q63: =IF(ISERROR(IF(H63="-","-",INDEX('Wattage Table'!$F$23:$F$451,MATCH(H63,'Wattage Table'!$D$23:$D$451,0)))*$L63)," ",IF(H63="-","-",INDEX('Wattage Table'!$F$23:$F$451,MATCH(H63,'Wattage Table'!$D$23:$D$451,0)))*$L63) ->  | R63: =IF(D63="","",IF(OR(D63="None",D63="",H63=""),"No",IF(VLOOKUP(H63,'Wattage Table'!$D:$F,3,0)*L63/F63<=VLOOKUP(D63,Validation!$O$7:$Q$9,3,0),"No","Yes"))) -> 
B64: 43 | E64: =IF(D64="","",IF(D64="None","None",INDEX('Lighting Controls Summary'!$D$19:$D$22,MATCH(D64,'Lighting Controls Summary'!$C$19:$C$22,0),1))) ->  | I64: =IF(H64="","",VLOOKUP(H64,'Wattage Table'!$D:$E,2,0)) ->  | K64: 0 | M64: =IF(OR(H64="",R64="No"),0,(((VLOOKUP(H64,'Wattage Table'!$D:$F,3,0)*J64)-(VLOOKUP(H64,'Wattage Table'!$D:$F,3,0)*(J64-K64)))*L64)/1000) -> 0 | N64: =IF(OR(H64="",R64="No"),0,(VLOOKUP(H64,'Wattage Table'!$D:$F,3,0)*L64)/1000*0.25) -> 0 | O64: 0 | P64: 0 | Q64: =IF(ISERROR(IF(H64="-","-",INDEX('Wattage Table'!$F$23:$F$451,MATCH(H64,'Wattage Table'!$D$23:$D$451,0)))*$L64)," ",IF(H64="-","-",INDEX('Wattage Table'!$F$23:$F$451,MATCH(H64,'Wattage Table'!$D$23:$D$451,0)))*$L64) ->  | R64: =IF(D64="","",IF(OR(D64="None",D64="",H64=""),"No",IF(VLOOKUP(H64,'Wattage Table'!$D:$F,3,0)*L64/F64<=VLOOKUP(D64,Validation!$O$7:$Q$9,3,0),"No","Yes"))) -> 
B65: 44 | E65: =IF(D65="","",IF(D65="None","None",INDEX('Lighting Controls Summary'!$D$19:$D$22,MATCH(D65,'Lighting Controls Summary'!$C$19:$C$22,0),1))) ->  | I65: =IF(H65="","",VLOOKUP(H65,'Wattage Table'!$D:$E,2,0)) ->  | K65: 0 | M65: =IF(OR(H65="",R65="No"),0,(((VLOOKUP(H65,'Wattage Table'!$D:$F,3,0)*J65)-(VLOOKUP(H65,'Wattage Table'!$D:$F,3,0)*(J65-K65)))*L65)/1000) -> 0 | N65: =IF(OR(H65="",R65="No"),0,(VLOOKUP(H65,'Wattage Table'!$D:$F,3,0)*L65)/1000*0.25) -> 0 | O65: 0 | P65: 0 | Q65: =IF(ISERROR(IF(H65="-","-",INDEX('Wattage Table'!$F$23:$F$451,MATCH(H65,'Wattage Table'!$D$23:$D$451,0)))*$L65)," ",IF(H65="-","-",INDEX('Wattage Table'!$F$23:$F$451,MATCH(H65,'Wattage Table'!$D$23:$D$451,0)))*$L65) ->  | R65: =IF(D65="","",IF(OR(D65="None",D65="",H65=""),"No",IF(VLOOKUP(H65,'Wattage Table'!$D:$F,3,0)*L65/F65<=VLOOKUP(D65,Validation!$O$7:$Q$9,3,0),"No","Yes"))) -> 
B66: 45 | E66: =IF(D66="","",IF(D66="None","None",INDEX('Lighting Controls Summary'!$D$19:$D$22,MATCH(D66,'Lighting Controls Summary'!$C$19:$C$22,0),1))) ->  | I66: =IF(H66="","",VLOOKUP(H66,'Wattage Table'!$D:$E,2,0)) ->  | K66: 0 | M66: =IF(OR(H66="",R66="No"),0,(((VLOOKUP(H66,'Wattage Table'!$D:$F,3,0)*J66)-(VLOOKUP(H66,'Wattage Table'!$D:$F,3,0)*(J66-K66)))*L66)/1000) -> 0 | N66: =IF(OR(H66="",R66="No"),0,(VLOOKUP(H66,'Wattage Table'!$D:$F,3,0)*L66)/1000*0.25) -> 0 | O66: 0 | P66: 0 | Q66: =IF(ISERROR(IF(H66="-","-",INDEX('Wattage Table'!$F$23:$F$451,MATCH(H66,'Wattage Table'!$D$23:$D$451,0)))*$L66)," ",IF(H66="-","-",INDEX('Wattage Table'!$F$23:$F$451,MATCH(H66,'Wattage Table'!$D$23:$D$451,0)))*$L66) ->  | R66: =IF(D66="","",IF(OR(D66="None",D66="",H66=""),"No",IF(VLOOKUP(H66,'Wattage Table'!$D:$F,3,0)*L66/F66<=VLOOKUP(D66,Validation!$O$7:$Q$9,3,0),"No","Yes"))) -> 
B67: 46 | E67: =IF(D67="","",IF(D67="None","None",INDEX('Lighting Controls Summary'!$D$19:$D$22,MATCH(D67,'Lighting Controls Summary'!$C$19:$C$22,0),1))) ->  | I67: =IF(H67="","",VLOOKUP(H67,'Wattage Table'!$D:$E,2,0)) ->  | K67: 0 | M67: =IF(OR(H67="",R67="No"),0,(((VLOOKUP(H67,'Wattage Table'!$D:$F,3,0)*J67)-(VLOOKUP(H67,'Wattage Table'!$D:$F,3,0)*(J67-K67)))*L67)/1000) -> 0 | N67: =IF(OR(H67="",R67="No"),0,(VLOOKUP(H67,'Wattage Table'!$D:$F,3,0)*L67)/1000*0.25) -> 0 | O67: 0 | P67: 0 | Q67: =IF(ISERROR(IF(H67="-","-",INDEX('Wattage Table'!$F$23:$F$451,MATCH(H67,'Wattage Table'!$D$23:$D$451,0)))*$L67)," ",IF(H67="-","-",INDEX('Wattage Table'!$F$23:$F$451,MATCH(H67,'Wattage Table'!$D$23:$D$451,0)))*$L67) ->  | R67: =IF(D67="","",IF(OR(D67="None",D67="",H67=""),"No",IF(VLOOKUP(H67,'Wattage Table'!$D:$F,3,0)*L67/F67<=VLOOKUP(D67,Validation!$O$7:$Q$9,3,0),"No","Yes"))) -> 
B68: 47 | E68: =IF(D68="","",IF(D68="None","None",INDEX('Lighting Controls Summary'!$D$19:$D$22,MATCH(D68,'Lighting Controls Summary'!$C$19:$C$22,0),1))) ->  | I68: =IF(H68="","",VLOOKUP(H68,'Wattage Table'!$D:$E,2,0)) ->  | K68: 0 | M68: =IF(OR(H68="",R68="No"),0,(((VLOOKUP(H68,'Wattage Table'!$D:$F,3,0)*J68)-(VLOOKUP(H68,'Wattage Table'!$D:$F,3,0)*(J68-K68)))*L68)/1000) -> 0 | N68: =IF(OR(H68="",R68="No"),0,(VLOOKUP(H68,'Wattage Table'!$D:$F,3,0)*L68)/1000*0.25) -> 0 | O68: 0 | P68: 0 | Q68: =IF(ISERROR(IF(H68="-","-",INDEX('Wattage Table'!$F$23:$F$451,MATCH(H68,'Wattage Table'!$D$23:$D$451,0)))*$L68)," ",IF(H68="-","-",INDEX('Wattage Table'!$F$23:$F$451,MATCH(H68,'Wattage Table'!$D$23:$D$451,0)))*$L68) ->  | R68: =IF(D68="","",IF(OR(D68="None",D68="",H68=""),"No",IF(VLOOKUP(H68,'Wattage Table'!$D:$F,3,0)*L68/F68<=VLOOKUP(D68,Validation!$O$7:$Q$9,3,0),"No","Yes"))) -> 
B69: 48 | E69: =IF(D69="","",IF(D69="None","None",INDEX('Lighting Controls Summary'!$D$19:$D$22,MATCH(D69,'Lighting Controls Summary'!$C$19:$C$22,0),1))) ->  | I69: =IF(H69="","",VLOOKUP(H69,'Wattage Table'!$D:$E,2,0)) ->  | K69: 0 | M69: =IF(OR(H69="",R69="No"),0,(((VLOOKUP(H69,'Wattage Table'!$D:$F,3,0)*J69)-(VLOOKUP(H69,'Wattage Table'!$D:$F,3,0)*(J69-K69)))*L69)/1000) -> 0 | N69: =IF(OR(H69="",R69="No"),0,(VLOOKUP(H69,'Wattage Table'!$D:$F,3,0)*L69)/1000*0.25) -> 0 | O69: 0 | P69: 0 | Q69: =IF(ISERROR(IF(H69="-","-",INDEX('Wattage Table'!$F$23:$F$451,MATCH(H69,'Wattage Table'!$D$23:$D$451,0)))*$L69)," ",IF(H69="-","-",INDEX('Wattage Table'!$F$23:$F$451,MATCH(H69,'Wattage Table'!$D$23:$D$451,0)))*$L69) ->  | R69: =IF(D69="","",IF(OR(D69="None",D69="",H69=""),"No",IF(VLOOKUP(H69,'Wattage Table'!$D:$F,3,0)*L69/F69<=VLOOKUP(D69,Validation!$O$7:$Q$9,3,0),"No","Yes"))) -> 
B70: 49 | E70: =IF(D70="","",IF(D70="None","None",INDEX('Lighting Controls Summary'!$D$19:$D$22,MATCH(D70,'Lighting Controls Summary'!$C$19:$C$22,0),1))) ->  | I70: =IF(H70="","",VLOOKUP(H70,'Wattage Table'!$D:$E,2,0)) ->  | K70: 0 | M70: =IF(OR(H70="",R70="No"),0,(((VLOOKUP(H70,'Wattage Table'!$D:$F,3,0)*J70)-(VLOOKUP(H70,'Wattage Table'!$D:$F,3,0)*(J70-K70)))*L70)/1000) -> 0 | N70: =IF(OR(H70="",R70="No"),0,(VLOOKUP(H70,'Wattage Table'!$D:$F,3,0)*L70)/1000*0.25) -> 0 | O70: 0 | P70: 0 | Q70: =IF(ISERROR(IF(H70="-","-",INDEX('Wattage Table'!$F$23:$F$451,MATCH(H70,'Wattage Table'!$D$23:$D$451,0)))*$L70)," ",IF(H70="-","-",INDEX('Wattage Table'!$F$23:$F$451,MATCH(H70,'Wattage Table'!$D$23:$D$451,0)))*$L70) ->  | R70: =IF(D70="","",IF(OR(D70="None",D70="",H70=""),"No",IF(VLOOKUP(H70,'Wattage Table'!$D:$F,3,0)*L70/F70<=VLOOKUP(D70,Validation!$O$7:$Q$9,3,0),"No","Yes"))) -> 
B71: 50 | E71: =IF(D71="","",IF(D71="None","None",INDEX('Lighting Controls Summary'!$D$19:$D$22,MATCH(D71,'Lighting Controls Summary'!$C$19:$C$22,0),1))) ->  | I71: =IF(H71="","",VLOOKUP(H71,'Wattage Table'!$D:$E,2,0)) ->  | K71: 0 | M71: =IF(OR(H71="",R71="No"),0,(((VLOOKUP(H71,'Wattage Table'!$D:$F,3,0)*J71)-(VLOOKUP(H71,'Wattage Table'!$D:$F,3,0)*(J71-K71)))*L71)/1000) -> 0 | N71: =IF(OR(H71="",R71="No"),0,(VLOOKUP(H71,'Wattage Table'!$D:$F,3,0)*L71)/1000*0.25) -> 0 | O71: 0 | P71: 0 | Q71: =IF(ISERROR(IF(H71="-","-",INDEX('Wattage Table'!$F$23:$F$451,MATCH(H71,'Wattage Table'!$D$23:$D$451,0)))*$L71)," ",IF(H71="-","-",INDEX('Wattage Table'!$F$23:$F$451,MATCH(H71,'Wattage Table'!$D$23:$D$451,0)))*$L71) ->  | R71: =IF(D71="","",IF(OR(D71="None",D71="",H71=""),"No",IF(VLOOKUP(H71,'Wattage Table'!$D:$F,3,0)*L71/F71<=VLOOKUP(D71,Validation!$O$7:$Q$9,3,0),"No","Yes"))) -> 
B72: 51 | E72: =IF(D72="","",IF(D72="None","None",INDEX('Lighting Controls Summary'!$D$19:$D$22,MATCH(D72,'Lighting Controls Summary'!$C$19:$C$22,0),1))) ->  | I72: =IF(H72="","",VLOOKUP(H72,'Wattage Table'!$D:$E,2,0)) ->  | K72: 0 | M72: =IF(OR(H72="",R72="No"),0,(((VLOOKUP(H72,'Wattage Table'!$D:$F,3,0)*J72)-(VLOOKUP(H72,'Wattage Table'!$D:$F,3,0)*(J72-K72)))*L72)/1000) -> 0 | N72: =IF(OR(H72="",R72="No"),0,(VLOOKUP(H72,'Wattage Table'!$D:$F,3,0)*L72)/1000*0.25) -> 0 | O72: 0 | P72: 0 | Q72: =IF(ISERROR(IF(H72="-","-",INDEX('Wattage Table'!$F$23:$F$451,MATCH(H72,'Wattage Table'!$D$23:$D$451,0)))*$L72)," ",IF(H72="-","-",INDEX('Wattage Table'!$F$23:$F$451,MATCH(H72,'Wattage Table'!$D$23:$D$451,0)))*$L72) ->  | R72: =IF(D72="","",IF(OR(D72="None",D72="",H72=""),"No",IF(VLOOKUP(H72,'Wattage Table'!$D:$F,3,0)*L72/F72<=VLOOKUP(D72,Validation!$O$7:$Q$9,3,0),"No","Yes"))) -> 
B73: 52 | E73: =IF(D73="","",IF(D73="None","None",INDEX('Lighting Controls Summary'!$D$19:$D$22,MATCH(D73,'Lighting Controls Summary'!$C$19:$C$22,0),1))) ->  | I73: =IF(H73="","",VLOOKUP(H73,'Wattage Table'!$D:$E,2,0)) ->  | K73: 0 | M73: =IF(OR(H73="",R73="No"),0,(((VLOOKUP(H73,'Wattage Table'!$D:$F,3,0)*J73)-(VLOOKUP(H73,'Wattage Table'!$D:$F,3,0)*(J73-K73)))*L73)/1000) -> 0 | N73: =IF(OR(H73="",R73="No"),0,(VLOOKUP(H73,'Wattage Table'!$D:$F,3,0)*L73)/1000*0.25) -> 0 | O73: 0 | P73: 0 | Q73: =IF(ISERROR(IF(H73="-","-",INDEX('Wattage Table'!$F$23:$F$451,MATCH(H73,'Wattage Table'!$D$23:$D$451,0)))*$L73)," ",IF(H73="-","-",INDEX('Wattage Table'!$F$23:$F$451,MATCH(H73,'Wattage Table'!$D$23:$D$451,0)))*$L73) ->  | R73: =IF(D73="","",IF(OR(D73="None",D73="",H73=""),"No",IF(VLOOKUP(H73,'Wattage Table'!$D:$F,3,0)*L73/F73<=VLOOKUP(D73,Validation!$O$7:$Q$9,3,0),"No","Yes"))) -> 
B74: 53 | E74: =IF(D74="","",IF(D74="None","None",INDEX('Lighting Controls Summary'!$D$19:$D$22,MATCH(D74,'Lighting Controls Summary'!$C$19:$C$22,0),1))) ->  | I74: =IF(H74="","",VLOOKUP(H74,'Wattage Table'!$D:$E,2,0)) ->  | K74: 0 | M74: =IF(OR(H74="",R74="No"),0,(((VLOOKUP(H74,'Wattage Table'!$D:$F,3,0)*J74)-(VLOOKUP(H74,'Wattage Table'!$D:$F,3,0)*(J74-K74)))*L74)/1000) -> 0 | N74: =IF(OR(H74="",R74="No"),0,(VLOOKUP(H74,'Wattage Table'!$D:$F,3,0)*L74)/1000*0.25) -> 0 | O74: 0 | P74: 0 | Q74: =IF(ISERROR(IF(H74="-","-",INDEX('Wattage Table'!$F$23:$F$451,MATCH(H74,'Wattage Table'!$D$23:$D$451,0)))*$L74)," ",IF(H74="-","-",INDEX('Wattage Table'!$F$23:$F$451,MATCH(H74,'Wattage Table'!$D$23:$D$451,0)))*$L74) ->  | R74: =IF(D74="","",IF(OR(D74="None",D74="",H74=""),"No",IF(VLOOKUP(H74,'Wattage Table'!$D:$F,3,0)*L74/F74<=VLOOKUP(D74,Validation!$O$7:$Q$9,3,0),"No","Yes"))) -> 
B75: 54 | E75: =IF(D75="","",IF(D75="None","None",INDEX('Lighting Controls Summary'!$D$19:$D$22,MATCH(D75,'Lighting Controls Summary'!$C$19:$C$22,0),1))) ->  | I75: =IF(H75="","",VLOOKUP(H75,'Wattage Table'!$D:$E,2,0)) ->  | K75: 0 | M75: =IF(OR(H75="",R75="No"),0,(((VLOOKUP(H75,'Wattage Table'!$D:$F,3,0)*J75)-(VLOOKUP(H75,'Wattage Table'!$D:$F,3,0)*(J75-K75)))*L75)/1000) -> 0 | N75: =IF(OR(H75="",R75="No"),0,(VLOOKUP(H75,'Wattage Table'!$D:$F,3,0)*L75)/1000*0.25) -> 0 | O75: 0 | P75: 0 | Q75: =IF(ISERROR(IF(H75="-","-",INDEX('Wattage Table'!$F$23:$F$451,MATCH(H75,'Wattage Table'!$D$23:$D$451,0)))*$L75)," ",IF(H75="-","-",INDEX('Wattage Table'!$F$23:$F$451,MATCH(H75,'Wattage Table'!$D$23:$D$451,0)))*$L75) ->  | R75: =IF(D75="","",IF(OR(D75="None",D75="",H75=""),"No",IF(VLOOKUP(H75,'Wattage Table'!$D:$F,3,0)*L75/F75<=VLOOKUP(D75,Validation!$O$7:$Q$9,3,0),"No","Yes"))) -> 
B76: 55 | E76: =IF(D76="","",IF(D76="None","None",INDEX('Lighting Controls Summary'!$D$19:$D$22,MATCH(D76,'Lighting Controls Summary'!$C$19:$C$22,0),1))) ->  | I76: =IF(H76="","",VLOOKUP(H76,'Wattage Table'!$D:$E,2,0)) ->  | K76: 0 | M76: =IF(OR(H76="",R76="No"),0,(((VLOOKUP(H76,'Wattage Table'!$D:$F,3,0)*J76)-(VLOOKUP(H76,'Wattage Table'!$D:$F,3,0)*(J76-K76)))*L76)/1000) -> 0 | N76: =IF(OR(H76="",R76="No"),0,(VLOOKUP(H76,'Wattage Table'!$D:$F,3,0)*L76)/1000*0.25) -> 0 | O76: 0 | P76: 0 | Q76: =IF(ISERROR(IF(H76="-","-",INDEX('Wattage Table'!$F$23:$F$451,MATCH(H76,'Wattage Table'!$D$23:$D$451,0)))*$L76)," ",IF(H76="-","-",INDEX('Wattage Table'!$F$23:$F$451,MATCH(H76,'Wattage Table'!$D$23:$D$451,0)))*$L76) ->  | R76: =IF(D76="","",IF(OR(D76="None",D76="",H76=""),"No",IF(VLOOKUP(H76,'Wattage Table'!$D:$F,3,0)*L76/F76<=VLOOKUP(D76,Validation!$O$7:$Q$9,3,0),"No","Yes"))) -> 
B77: 56 | E77: =IF(D77="","",IF(D77="None","None",INDEX('Lighting Controls Summary'!$D$19:$D$22,MATCH(D77,'Lighting Controls Summary'!$C$19:$C$22,0),1))) ->  | I77: =IF(H77="","",VLOOKUP(H77,'Wattage Table'!$D:$E,2,0)) ->  | K77: 0 | M77: =IF(OR(H77="",R77="No"),0,(((VLOOKUP(H77,'Wattage Table'!$D:$F,3,0)*J77)-(VLOOKUP(H77,'Wattage Table'!$D:$F,3,0)*(J77-K77)))*L77)/1000) -> 0 | N77: =IF(OR(H77="",R77="No"),0,(VLOOKUP(H77,'Wattage Table'!$D:$F,3,0)*L77)/1000*0.25) -> 0 | O77: 0 | P77: 0 | Q77: =IF(ISERROR(IF(H77="-","-",INDEX('Wattage Table'!$F$23:$F$451,MATCH(H77,'Wattage Table'!$D$23:$D$451,0)))*$L77)," ",IF(H77="-","-",INDEX('Wattage Table'!$F$23:$F$451,MATCH(H77,'Wattage Table'!$D$23:$D$451,0)))*$L77) ->  | R77: =IF(D77="","",IF(OR(D77="None",D77="",H77=""),"No",IF(VLOOKUP(H77,'Wattage Table'!$D:$F,3,0)*L77/F77<=VLOOKUP(D77,Validation!$O$7:$Q$9,3,0),"No","Yes"))) -> 
B78: 57 | E78: =IF(D78="","",IF(D78="None","None",INDEX('Lighting Controls Summary'!$D$19:$D$22,MATCH(D78,'Lighting Controls Summary'!$C$19:$C$22,0),1))) ->  | I78: =IF(H78="","",VLOOKUP(H78,'Wattage Table'!$D:$E,2,0)) ->  | K78: 0 | M78: =IF(OR(H78="",R78="No"),0,(((VLOOKUP(H78,'Wattage Table'!$D:$F,3,0)*J78)-(VLOOKUP(H78,'Wattage Table'!$D:$F,3,0)*(J78-K78)))*L78)/1000) -> 0 | N78: =IF(OR(H78="",R78="No"),0,(VLOOKUP(H78,'Wattage Table'!$D:$F,3,0)*L78)/1000*0.25) -> 0 | O78: 0 | P78: 0 | Q78: =IF(ISERROR(IF(H78="-","-",INDEX('Wattage Table'!$F$23:$F$451,MATCH(H78,'Wattage Table'!$D$23:$D$451,0)))*$L78)," ",IF(H78="-","-",INDEX('Wattage Table'!$F$23:$F$451,MATCH(H78,'Wattage Table'!$D$23:$D$451,0)))*$L78) ->  | R78: =IF(D78="","",IF(OR(D78="None",D78="",H78=""),"No",IF(VLOOKUP(H78,'Wattage Table'!$D:$F,3,0)*L78/F78<=VLOOKUP(D78,Validation!$O$7:$Q$9,3,0),"No","Yes"))) -> 
B79: 58 | E79: =IF(D79="","",IF(D79="None","None",INDEX('Lighting Controls Summary'!$D$19:$D$22,MATCH(D79,'Lighting Controls Summary'!$C$19:$C$22,0),1))) ->  | I79: =IF(H79="","",VLOOKUP(H79,'Wattage Table'!$D:$E,2,0)) ->  | K79: 0 | M79: =IF(OR(H79="",R79="No"),0,(((VLOOKUP(H79,'Wattage Table'!$D:$F,3,0)*J79)-(VLOOKUP(H79,'Wattage Table'!$D:$F,3,0)*(J79-K79)))*L79)/1000) -> 0 | N79: =IF(OR(H79="",R79="No"),0,(VLOOKUP(H79,'Wattage Table'!$D:$F,3,0)*L79)/1000*0.25) -> 0 | O79: 0 | P79: 0 | Q79: =IF(ISERROR(IF(H79="-","-",INDEX('Wattage Table'!$F$23:$F$451,MATCH(H79,'Wattage Table'!$D$23:$D$451,0)))*$L79)," ",IF(H79="-","-",INDEX('Wattage Table'!$F$23:$F$451,MATCH(H79,'Wattage Table'!$D$23:$D$451,0)))*$L79) ->  | R79: =IF(D79="","",IF(OR(D79="None",D79="",H79=""),"No",IF(VLOOKUP(H79,'Wattage Table'!$D:$F,3,0)*L79/F79<=VLOOKUP(D79,Validation!$O$7:$Q$9,3,0),"No","Yes"))) -> 
B80: 59 | E80: =IF(D80="","",IF(D80="None","None",INDEX('Lighting Controls Summary'!$D$19:$D$22,MATCH(D80,'Lighting Controls Summary'!$C$19:$C$22,0),1))) ->  | I80: =IF(H80="","",VLOOKUP(H80,'Wattage Table'!$D:$E,2,0)) ->  | K80: 0 | M80: =IF(OR(H80="",R80="No"),0,(((VLOOKUP(H80,'Wattage Table'!$D:$F,3,0)*J80)-(VLOOKUP(H80,'Wattage Table'!$D:$F,3,0)*(J80-K80)))*L80)/1000) -> 0 | N80: =IF(OR(H80="",R80="No"),0,(VLOOKUP(H80,'Wattage Table'!$D:$F,3,0)*L80)/1000*0.25) -> 0 | O80: 0 | P80: 0 | Q80: =IF(ISERROR(IF(H80="-","-",INDEX('Wattage Table'!$F$23:$F$451,MATCH(H80,'Wattage Table'!$D$23:$D$451,0)))*$L80)," ",IF(H80="-","-",INDEX('Wattage Table'!$F$23:$F$451,MATCH(H80,'Wattage Table'!$D$23:$D$451,0)))*$L80) ->  | R80: =IF(D80="","",IF(OR(D80="None",D80="",H80=""),"No",IF(VLOOKUP(H80,'Wattage Table'!$D:$F,3,0)*L80/F80<=VLOOKUP(D80,Validation!$O$7:$Q$9,3,0),"No","Yes"))) -> 
B81: 60 | E81: =IF(D81="","",IF(D81="None","None",INDEX('Lighting Controls Summary'!$D$19:$D$22,MATCH(D81,'Lighting Controls Summary'!$C$19:$C$22,0),1))) ->  | I81: =IF(H81="","",VLOOKUP(H81,'Wattage Table'!$D:$E,2,0)) ->  | K81: 0 | M81: =IF(OR(H81="",R81="No"),0,(((VLOOKUP(H81,'Wattage Table'!$D:$F,3,0)*J81)-(VLOOKUP(H81,'Wattage Table'!$D:$F,3,0)*(J81-K81)))*L81)/1000) -> 0 | N81: =IF(OR(H81="",R81="No"),0,(VLOOKUP(H81,'Wattage Table'!$D:$F,3,0)*L81)/1000*0.25) -> 0 | O81: 0 | P81: 0 | Q81: =IF(ISERROR(IF(H81="-","-",INDEX('Wattage Table'!$F$23:$F$451,MATCH(H81,'Wattage Table'!$D$23:$D$451,0)))*$L81)," ",IF(H81="-","-",INDEX('Wattage Table'!$F$23:$F$451,MATCH(H81,'Wattage Table'!$D$23:$D$451,0)))*$L81) ->  | R81: =IF(D81="","",IF(OR(D81="None",D81="",H81=""),"No",IF(VLOOKUP(H81,'Wattage Table'!$D:$F,3,0)*L81/F81<=VLOOKUP(D81,Validation!$O$7:$Q$9,3,0),"No","Yes"))) -> 
B82: 61 | E82: =IF(D82="","",IF(D82="None","None",INDEX('Lighting Controls Summary'!$D$19:$D$22,MATCH(D82,'Lighting Controls Summary'!$C$19:$C$22,0),1))) ->  | I82: =IF(H82="","",VLOOKUP(H82,'Wattage Table'!$D:$E,2,0)) ->  | K82: 0 | M82: =IF(OR(H82="",R82="No"),0,(((VLOOKUP(H82,'Wattage Table'!$D:$F,3,0)*J82)-(VLOOKUP(H82,'Wattage Table'!$D:$F,3,0)*(J82-K82)))*L82)/1000) -> 0 | N82: =IF(OR(H82="",R82="No"),0,(VLOOKUP(H82,'Wattage Table'!$D:$F,3,0)*L82)/1000*0.25) -> 0 | O82: 0 | P82: 0 | Q82: =IF(ISERROR(IF(H82="-","-",INDEX('Wattage Table'!$F$23:$F$451,MATCH(H82,'Wattage Table'!$D$23:$D$451,0)))*$L82)," ",IF(H82="-","-",INDEX('Wattage Table'!$F$23:$F$451,MATCH(H82,'Wattage Table'!$D$23:$D$451,0)))*$L82) ->  | R82: =IF(D82="","",IF(OR(D82="None",D82="",H82=""),"No",IF(VLOOKUP(H82,'Wattage Table'!$D:$F,3,0)*L82/F82<=VLOOKUP(D82,Validation!$O$7:$Q$9,3,0),"No","Yes"))) -> 
B83: 62 | E83: =IF(D83="","",IF(D83="None","None",INDEX('Lighting Controls Summary'!$D$19:$D$22,MATCH(D83,'Lighting Controls Summary'!$C$19:$C$22,0),1))) ->  | I83: =IF(H83="","",VLOOKUP(H83,'Wattage Table'!$D:$E,2,0)) ->  | K83: 0 | M83: =IF(OR(H83="",R83="No"),0,(((VLOOKUP(H83,'Wattage Table'!$D:$F,3,0)*J83)-(VLOOKUP(H83,'Wattage Table'!$D:$F,3,0)*(J83-K83)))*L83)/1000) -> 0 | N83: =IF(OR(H83="",R83="No"),0,(VLOOKUP(H83,'Wattage Table'!$D:$F,3,0)*L83)/1000*0.25) -> 0 | O83: 0 | P83: 0 | Q83: =IF(ISERROR(IF(H83="-","-",INDEX('Wattage Table'!$F$23:$F$451,MATCH(H83,'Wattage Table'!$D$23:$D$451,0)))*$L83)," ",IF(H83="-","-",INDEX('Wattage Table'!$F$23:$F$451,MATCH(H83,'Wattage Table'!$D$23:$D$451,0)))*$L83) ->  | R83: =IF(D83="","",IF(OR(D83="None",D83="",H83=""),"No",IF(VLOOKUP(H83,'Wattage Table'!$D:$F,3,0)*L83/F83<=VLOOKUP(D83,Validation!$O$7:$Q$9,3,0),"No","Yes"))) -> 
B84: 63 | E84: =IF(D84="","",IF(D84="None","None",INDEX('Lighting Controls Summary'!$D$19:$D$22,MATCH(D84,'Lighting Controls Summary'!$C$19:$C$22,0),1))) ->  | I84: =IF(H84="","",VLOOKUP(H84,'Wattage Table'!$D:$E,2,0)) ->  | K84: 0 | M84: =IF(OR(H84="",R84="No"),0,(((VLOOKUP(H84,'Wattage Table'!$D:$F,3,0)*J84)-(VLOOKUP(H84,'Wattage Table'!$D:$F,3,0)*(J84-K84)))*L84)/1000) -> 0 | N84: =IF(OR(H84="",R84="No"),0,(VLOOKUP(H84,'Wattage Table'!$D:$F,3,0)*L84)/1000*0.25) -> 0 | O84: 0 | P84: 0 | Q84: =IF(ISERROR(IF(H84="-","-",INDEX('Wattage Table'!$F$23:$F$451,MATCH(H84,'Wattage Table'!$D$23:$D$451,0)))*$L84)," ",IF(H84="-","-",INDEX('Wattage Table'!$F$23:$F$451,MATCH(H84,'Wattage Table'!$D$23:$D$451,0)))*$L84) ->  | R84: =IF(D84="","",IF(OR(D84="None",D84="",H84=""),"No",IF(VLOOKUP(H84,'Wattage Table'!$D:$F,3,0)*L84/F84<=VLOOKUP(D84,Validation!$O$7:$Q$9,3,0),"No","Yes"))) -> 
B85: 64 | E85: =IF(D85="","",IF(D85="None","None",INDEX('Lighting Controls Summary'!$D$19:$D$22,MATCH(D85,'Lighting Controls Summary'!$C$19:$C$22,0),1))) ->  | I85: =IF(H85="","",VLOOKUP(H85,'Wattage Table'!$D:$E,2,0)) ->  | K85: 0 | M85: =IF(OR(H85="",R85="No"),0,(((VLOOKUP(H85,'Wattage Table'!$D:$F,3,0)*J85)-(VLOOKUP(H85,'Wattage Table'!$D:$F,3,0)*(J85-K85)))*L85)/1000) -> 0 | N85: =IF(OR(H85="",R85="No"),0,(VLOOKUP(H85,'Wattage Table'!$D:$F,3,0)*L85)/1000*0.25) -> 0 | O85: 0 | P85: 0 | Q85: =IF(ISERROR(IF(H85="-","-",INDEX('Wattage Table'!$F$23:$F$451,MATCH(H85,'Wattage Table'!$D$23:$D$451,0)))*$L85)," ",IF(H85="-","-",INDEX('Wattage Table'!$F$23:$F$451,MATCH(H85,'Wattage Table'!$D$23:$D$451,0)))*$L85) ->  | R85: =IF(D85="","",IF(OR(D85="None",D85="",H85=""),"No",IF(VLOOKUP(H85,'Wattage Table'!$D:$F,3,0)*L85/F85<=VLOOKUP(D85,Validation!$O$7:$Q$9,3,0),"No","Yes"))) -> 
B86: 65 | E86: =IF(D86="","",IF(D86="None","None",INDEX('Lighting Controls Summary'!$D$19:$D$22,MATCH(D86,'Lighting Controls Summary'!$C$19:$C$22,0),1))) ->  | I86: =IF(H86="","",VLOOKUP(H86,'Wattage Table'!$D:$E,2,0)) ->  | K86: =IF(OR(D86="",J86=""),0,J86*0.25) -> 0 | M86: =IF(OR(H86="",R86="No"),0,(((VLOOKUP(H86,'Wattage Table'!$D:$F,3,0)*J86)-(VLOOKUP(H86,'Wattage Table'!$D:$F,3,0)*(J86-K86)))*L86)/1000) -> 0 | N86: =IF(OR(H86="",R86="No"),0,(VLOOKUP(H86,'Wattage Table'!$D:$F,3,0)*L86)/1000*0.25) -> 0 | O86: 0 | P86: =IF(O86<=0,0,F86) -> 0 | Q86: =IF(ISERROR(IF(H86="-","-",INDEX('Wattage Table'!$F$23:$F$451,MATCH(H86,'Wattage Table'!$D$23:$D$451,0)))*$L86)," ",IF(H86="-","-",INDEX('Wattage Table'!$F$23:$F$451,MATCH(H86,'Wattage Table'!$D$23:$D$451,0)))*$L86) ->  | R86: =IF(D86="","",IF(OR(D86="None",D86="",H86=""),"No",IF(VLOOKUP(H86,'Wattage Table'!$D:$F,3,0)*L86/F86<=VLOOKUP(D86,Validation!$O$7:$Q$9,3,0),"No","Yes"))) -> 
B87: 66 | E87: =IF(D87="","",IF(D87="None","None",INDEX('Lighting Controls Summary'!$D$19:$D$22,MATCH(D87,'Lighting Controls Summary'!$C$19:$C$22,0),1))) ->  | I87: =IF(H87="","",VLOOKUP(H87,'Wattage Table'!$D:$E,2,0)) ->  | K87: 0 | M87: =IF(OR(H87="",R87="No"),0,(((VLOOKUP(H87,'Wattage Table'!$D:$F,3,0)*J87)-(VLOOKUP(H87,'Wattage Table'!$D:$F,3,0)*(J87-K87)))*L87)/1000) -> 0 | N87: =IF(OR(H87="",R87="No"),0,(VLOOKUP(H87,'Wattage Table'!$D:$F,3,0)*L87)/1000*0.25) -> 0 | O87: =IF(OR(D87="None",M87<=0,N87<=0,D87="",H87="",R87="No"),0,IF(OR(D87="80B",D87="80E"),F87*35,IF(OR(D87="80A",D87="80C"),F87*15,0))) -> 0 | P87: 0 | Q87: =IF(ISERROR(IF(H87="-","-",INDEX('Wattage Table'!$F$23:$F$451,MATCH(H87,'Wattage Table'!$D$23:$D$451,0)))*$L87)," ",IF(H87="-","-",INDEX('Wattage Table'!$F$23:$F$451,MATCH(H87,'Wattage Table'!$D$23:$D$451,0)))*$L87) ->  | R87: =IF(D87="","",IF(OR(D87="None",D87="",H87=""),"No",IF(VLOOKUP(H87,'Wattage Table'!$D:$F,3,0)*L87/F87<=VLOOKUP(D87,Validation!$O$7:$Q$9,3,0),"No","Yes"))) -> 
B88: 67 | E88: =IF(D88="","",IF(D88="None","None",INDEX('Lighting Controls Summary'!$D$19:$D$22,MATCH(D88,'Lighting Controls Summary'!$C$19:$C$22,0),1))) ->  | I88: =IF(H88="","",VLOOKUP(H88,'Wattage Table'!$D:$E,2,0)) ->  | K88: 0 | M88: =IF(OR(H88="",R88="No"),0,(((VLOOKUP(H88,'Wattage Table'!$D:$F,3,0)*J88)-(VLOOKUP(H88,'Wattage Table'!$D:$F,3,0)*(J88-K88)))*L88)/1000) -> 0 | N88: =IF(OR(H88="",R88="No"),0,(VLOOKUP(H88,'Wattage Table'!$D:$F,3,0)*L88)/1000*0.25) -> 0 | O88: 0 | P88: 0 | Q88: =IF(ISERROR(IF(H88="-","-",INDEX('Wattage Table'!$F$23:$F$451,MATCH(H88,'Wattage Table'!$D$23:$D$451,0)))*$L88)," ",IF(H88="-","-",INDEX('Wattage Table'!$F$23:$F$451,MATCH(H88,'Wattage Table'!$D$23:$D$451,0)))*$L88) ->  | R88: =IF(D88="","",IF(OR(D88="None",D88="",H88=""),"No",IF(VLOOKUP(H88,'Wattage Table'!$D:$F,3,0)*L88/F88<=VLOOKUP(D88,Validation!$O$7:$Q$9,3,0),"No","Yes"))) -> 
B89: 68 | E89: =IF(D89="","",IF(D89="None","None",INDEX('Lighting Controls Summary'!$D$19:$D$22,MATCH(D89,'Lighting Controls Summary'!$C$19:$C$22,0),1))) ->  | I89: =IF(H89="","",VLOOKUP(H89,'Wattage Table'!$D:$E,2,0)) ->  | K89: 0 | M89: =IF(OR(H89="",R89="No"),0,(((VLOOKUP(H89,'Wattage Table'!$D:$F,3,0)*J89)-(VLOOKUP(H89,'Wattage Table'!$D:$F,3,0)*(J89-K89)))*L89)/1000) -> 0 | N89: =IF(OR(H89="",R89="No"),0,(VLOOKUP(H89,'Wattage Table'!$D:$F,3,0)*L89)/1000*0.25) -> 0 | O89: 0 | P89: 0 | Q89: =IF(ISERROR(IF(H89="-","-",INDEX('Wattage Table'!$F$23:$F$451,MATCH(H89,'Wattage Table'!$D$23:$D$451,0)))*$L89)," ",IF(H89="-","-",INDEX('Wattage Table'!$F$23:$F$451,MATCH(H89,'Wattage Table'!$D$23:$D$451,0)))*$L89) ->  | R89: =IF(D89="","",IF(OR(D89="None",D89="",H89=""),"No",IF(VLOOKUP(H89,'Wattage Table'!$D:$F,3,0)*L89/F89<=VLOOKUP(D89,Validation!$O$7:$Q$9,3,0),"No","Yes"))) -> 
B90: 69 | E90: =IF(D90="","",IF(D90="None","None",INDEX('Lighting Controls Summary'!$D$19:$D$22,MATCH(D90,'Lighting Controls Summary'!$C$19:$C$22,0),1))) ->  | I90: =IF(H90="","",VLOOKUP(H90,'Wattage Table'!$D:$E,2,0)) ->  | K90: 0 | M90: =IF(OR(H90="",R90="No"),0,(((VLOOKUP(H90,'Wattage Table'!$D:$F,3,0)*J90)-(VLOOKUP(H90,'Wattage Table'!$D:$F,3,0)*(J90-K90)))*L90)/1000) -> 0 | N90: =IF(OR(H90="",R90="No"),0,(VLOOKUP(H90,'Wattage Table'!$D:$F,3,0)*L90)/1000*0.25) -> 0 | O90: 0 | P90: 0 | Q90: =IF(ISERROR(IF(H90="-","-",INDEX('Wattage Table'!$F$23:$F$451,MATCH(H90,'Wattage Table'!$D$23:$D$451,0)))*$L90)," ",IF(H90="-","-",INDEX('Wattage Table'!$F$23:$F$451,MATCH(H90,'Wattage Table'!$D$23:$D$451,0)))*$L90) ->  | R90: =IF(D90="","",IF(OR(D90="None",D90="",H90=""),"No",IF(VLOOKUP(H90,'Wattage Table'!$D:$F,3,0)*L90/F90<=VLOOKUP(D90,Validation!$O$7:$Q$9,3,0),"No","Yes"))) -> 
B91: 70 | E91: =IF(D91="","",IF(D91="None","None",INDEX('Lighting Controls Summary'!$D$19:$D$22,MATCH(D91,'Lighting Controls Summary'!$C$19:$C$22,0),1))) ->  | I91: =IF(H91="","",VLOOKUP(H91,'Wattage Table'!$D:$E,2,0)) ->  | K91: 0 | M91: =IF(OR(H91="",R91="No"),0,(((VLOOKUP(H91,'Wattage Table'!$D:$F,3,0)*J91)-(VLOOKUP(H91,'Wattage Table'!$D:$F,3,0)*(J91-K91)))*L91)/1000) -> 0 | N91: =IF(OR(H91="",R91="No"),0,(VLOOKUP(H91,'Wattage Table'!$D:$F,3,0)*L91)/1000*0.25) -> 0 | O91: 0 | P91: 0 | Q91: =IF(ISERROR(IF(H91="-","-",INDEX('Wattage Table'!$F$23:$F$451,MATCH(H91,'Wattage Table'!$D$23:$D$451,0)))*$L91)," ",IF(H91="-","-",INDEX('Wattage Table'!$F$23:$F$451,MATCH(H91,'Wattage Table'!$D$23:$D$451,0)))*$L91) ->  | R91: =IF(D91="","",IF(OR(D91="None",D91="",H91=""),"No",IF(VLOOKUP(H91,'Wattage Table'!$D:$F,3,0)*L91/F91<=VLOOKUP(D91,Validation!$O$7:$Q$9,3,0),"No","Yes"))) -> 
B92: 71 | E92: =IF(D92="","",IF(D92="None","None",INDEX('Lighting Controls Summary'!$D$19:$D$22,MATCH(D92,'Lighting Controls Summary'!$C$19:$C$22,0),1))) ->  | I92: =IF(H92="","",VLOOKUP(H92,'Wattage Table'!$D:$E,2,0)) ->  | K92: 0 | M92: =IF(OR(H92="",R92="No"),0,(((VLOOKUP(H92,'Wattage Table'!$D:$F,3,0)*J92)-(VLOOKUP(H92,'Wattage Table'!$D:$F,3,0)*(J92-K92)))*L92)/1000) -> 0 | N92: =IF(OR(H92="",R92="No"),0,(VLOOKUP(H92,'Wattage Table'!$D:$F,3,0)*L92)/1000*0.25) -> 0 | O92: 0 | P92: 0 | Q92: =IF(ISERROR(IF(H92="-","-",INDEX('Wattage Table'!$F$23:$F$451,MATCH(H92,'Wattage Table'!$D$23:$D$451,0)))*$L92)," ",IF(H92="-","-",INDEX('Wattage Table'!$F$23:$F$451,MATCH(H92,'Wattage Table'!$D$23:$D$451,0)))*$L92) ->  | R92: =IF(D92="","",IF(OR(D92="None",D92="",H92=""),"No",IF(VLOOKUP(H92,'Wattage Table'!$D:$F,3,0)*L92/F92<=VLOOKUP(D92,Validation!$O$7:$Q$9,3,0),"No","Yes"))) -> 
B93: 72 | E93: =IF(D93="","",IF(D93="None","None",INDEX('Lighting Controls Summary'!$D$19:$D$22,MATCH(D93,'Lighting Controls Summary'!$C$19:$C$22,0),1))) ->  | I93: =IF(H93="","",VLOOKUP(H93,'Wattage Table'!$D:$E,2,0)) ->  | K93: 0 | M93: =IF(OR(H93="",R93="No"),0,(((VLOOKUP(H93,'Wattage Table'!$D:$F,3,0)*J93)-(VLOOKUP(H93,'Wattage Table'!$D:$F,3,0)*(J93-K93)))*L93)/1000) -> 0 | N93: =IF(OR(H93="",R93="No"),0,(VLOOKUP(H93,'Wattage Table'!$D:$F,3,0)*L93)/1000*0.25) -> 0 | O93: 0 | P93: 0 | Q93: =IF(ISERROR(IF(H93="-","-",INDEX('Wattage Table'!$F$23:$F$451,MATCH(H93,'Wattage Table'!$D$23:$D$451,0)))*$L93)," ",IF(H93="-","-",INDEX('Wattage Table'!$F$23:$F$451,MATCH(H93,'Wattage Table'!$D$23:$D$451,0)))*$L93) ->  | R93: =IF(D93="","",IF(OR(D93="None",D93="",H93=""),"No",IF(VLOOKUP(H93,'Wattage Table'!$D:$F,3,0)*L93/F93<=VLOOKUP(D93,Validation!$O$7:$Q$9,3,0),"No","Yes"))) -> 
B94: 73 | E94: =IF(D94="","",IF(D94="None","None",INDEX('Lighting Controls Summary'!$D$19:$D$22,MATCH(D94,'Lighting Controls Summary'!$C$19:$C$22,0),1))) ->  | I94: =IF(H94="","",VLOOKUP(H94,'Wattage Table'!$D:$E,2,0)) ->  | K94: 0 | M94: =IF(OR(H94="",R94="No"),0,(((VLOOKUP(H94,'Wattage Table'!$D:$F,3,0)*J94)-(VLOOKUP(H94,'Wattage Table'!$D:$F,3,0)*(J94-K94)))*L94)/1000) -> 0 | N94: =IF(OR(H94="",R94="No"),0,(VLOOKUP(H94,'Wattage Table'!$D:$F,3,0)*L94)/1000*0.25) -> 0 | O94: 0 | P94: 0 | Q94: =IF(ISERROR(IF(H94="-","-",INDEX('Wattage Table'!$F$23:$F$451,MATCH(H94,'Wattage Table'!$D$23:$D$451,0)))*$L94)," ",IF(H94="-","-",INDEX('Wattage Table'!$F$23:$F$451,MATCH(H94,'Wattage Table'!$D$23:$D$451,0)))*$L94) ->  | R94: =IF(D94="","",IF(OR(D94="None",D94="",H94=""),"No",IF(VLOOKUP(H94,'Wattage Table'!$D:$F,3,0)*L94/F94<=VLOOKUP(D94,Validation!$O$7:$Q$9,3,0),"No","Yes"))) -> 
B95: 74 | E95: =IF(D95="","",IF(D95="None","None",INDEX('Lighting Controls Summary'!$D$19:$D$22,MATCH(D95,'Lighting Controls Summary'!$C$19:$C$22,0),1))) ->  | I95: =IF(H95="","",VLOOKUP(H95,'Wattage Table'!$D:$E,2,0)) ->  | K95: 0 | M95: =IF(OR(H95="",R95="No"),0,(((VLOOKUP(H95,'Wattage Table'!$D:$F,3,0)*J95)-(VLOOKUP(H95,'Wattage Table'!$D:$F,3,0)*(J95-K95)))*L95)/1000) -> 0 | N95: =IF(OR(H95="",R95="No"),0,(VLOOKUP(H95,'Wattage Table'!$D:$F,3,0)*L95)/1000*0.25) -> 0 | O95: 0 | P95: 0 | Q95: =IF(ISERROR(IF(H95="-","-",INDEX('Wattage Table'!$F$23:$F$451,MATCH(H95,'Wattage Table'!$D$23:$D$451,0)))*$L95)," ",IF(H95="-","-",INDEX('Wattage Table'!$F$23:$F$451,MATCH(H95,'Wattage Table'!$D$23:$D$451,0)))*$L95) ->  | R95: =IF(D95="","",IF(OR(D95="None",D95="",H95=""),"No",IF(VLOOKUP(H95,'Wattage Table'!$D:$F,3,0)*L95/F95<=VLOOKUP(D95,Validation!$O$7:$Q$9,3,0),"No","Yes"))) -> 
B96: 75 | E96: =IF(D96="","",IF(D96="None","None",INDEX('Lighting Controls Summary'!$D$19:$D$22,MATCH(D96,'Lighting Controls Summary'!$C$19:$C$22,0),1))) ->  | I96: =IF(H96="","",VLOOKUP(H96,'Wattage Table'!$D:$E,2,0)) ->  | K96: 0 | M96: =IF(OR(H96="",R96="No"),0,(((VLOOKUP(H96,'Wattage Table'!$D:$F,3,0)*J96)-(VLOOKUP(H96,'Wattage Table'!$D:$F,3,0)*(J96-K96)))*L96)/1000) -> 0 | N96: =IF(OR(H96="",R96="No"),0,(VLOOKUP(H96,'Wattage Table'!$D:$F,3,0)*L96)/1000*0.25) -> 0 | O96: 0 | P96: 0 | Q96: =IF(ISERROR(IF(H96="-","-",INDEX('Wattage Table'!$F$23:$F$451,MATCH(H96,'Wattage Table'!$D$23:$D$451,0)))*$L96)," ",IF(H96="-","-",INDEX('Wattage Table'!$F$23:$F$451,MATCH(H96,'Wattage Table'!$D$23:$D$451,0)))*$L96) ->  | R96: =IF(D96="","",IF(OR(D96="None",D96="",H96=""),"No",IF(VLOOKUP(H96,'Wattage Table'!$D:$F,3,0)*L96/F96<=VLOOKUP(D96,Validation!$O$7:$Q$9,3,0),"No","Yes"))) -> 
B97: 76 | E97: =IF(D97="","",IF(D97="None","None",INDEX('Lighting Controls Summary'!$D$19:$D$22,MATCH(D97,'Lighting Controls Summary'!$C$19:$C$22,0),1))) ->  | I97: =IF(H97="","",VLOOKUP(H97,'Wattage Table'!$D:$E,2,0)) ->  | K97: 0 | M97: =IF(OR(H97="",R97="No"),0,(((VLOOKUP(H97,'Wattage Table'!$D:$F,3,0)*J97)-(VLOOKUP(H97,'Wattage Table'!$D:$F,3,0)*(J97-K97)))*L97)/1000) -> 0 | N97: =IF(OR(H97="",R97="No"),0,(VLOOKUP(H97,'Wattage Table'!$D:$F,3,0)*L97)/1000*0.25) -> 0 | O97: 0 | P97: 0 | Q97: =IF(ISERROR(IF(H97="-","-",INDEX('Wattage Table'!$F$23:$F$451,MATCH(H97,'Wattage Table'!$D$23:$D$451,0)))*$L97)," ",IF(H97="-","-",INDEX('Wattage Table'!$F$23:$F$451,MATCH(H97,'Wattage Table'!$D$23:$D$451,0)))*$L97) ->  | R97: =IF(D97="","",IF(OR(D97="None",D97="",H97=""),"No",IF(VLOOKUP(H97,'Wattage Table'!$D:$F,3,0)*L97/F97<=VLOOKUP(D97,Validation!$O$7:$Q$9,3,0),"No","Yes"))) -> 
B98: 77 | E98: =IF(D98="","",IF(D98="None","None",INDEX('Lighting Controls Summary'!$D$19:$D$22,MATCH(D98,'Lighting Controls Summary'!$C$19:$C$22,0),1))) ->  | I98: =IF(H98="","",VLOOKUP(H98,'Wattage Table'!$D:$E,2,0)) ->  | K98: 0 | M98: =IF(OR(H98="",R98="No"),0,(((VLOOKUP(H98,'Wattage Table'!$D:$F,3,0)*J98)-(VLOOKUP(H98,'Wattage Table'!$D:$F,3,0)*(J98-K98)))*L98)/1000) -> 0 | N98: =IF(OR(H98="",R98="No"),0,(VLOOKUP(H98,'Wattage Table'!$D:$F,3,0)*L98)/1000*0.25) -> 0 | O98: 0 | P98: 0 | Q98: =IF(ISERROR(IF(H98="-","-",INDEX('Wattage Table'!$F$23:$F$451,MATCH(H98,'Wattage Table'!$D$23:$D$451,0)))*$L98)," ",IF(H98="-","-",INDEX('Wattage Table'!$F$23:$F$451,MATCH(H98,'Wattage Table'!$D$23:$D$451,0)))*$L98) ->  | R98: =IF(D98="","",IF(OR(D98="None",D98="",H98=""),"No",IF(VLOOKUP(H98,'Wattage Table'!$D:$F,3,0)*L98/F98<=VLOOKUP(D98,Validation!$O$7:$Q$9,3,0),"No","Yes"))) -> 
B99: 78 | E99: =IF(D99="","",IF(D99="None","None",INDEX('Lighting Controls Summary'!$D$19:$D$22,MATCH(D99,'Lighting Controls Summary'!$C$19:$C$22,0),1))) ->  | I99: =IF(H99="","",VLOOKUP(H99,'Wattage Table'!$D:$E,2,0)) ->  | K99: 0 | M99: =IF(OR(H99="",R99="No"),0,(((VLOOKUP(H99,'Wattage Table'!$D:$F,3,0)*J99)-(VLOOKUP(H99,'Wattage Table'!$D:$F,3,0)*(J99-K99)))*L99)/1000) -> 0 | N99: =IF(OR(H99="",R99="No"),0,(VLOOKUP(H99,'Wattage Table'!$D:$F,3,0)*L99)/1000*0.25) -> 0 | O99: 0 | P99: 0 | Q99: =IF(ISERROR(IF(H99="-","-",INDEX('Wattage Table'!$F$23:$F$451,MATCH(H99,'Wattage Table'!$D$23:$D$451,0)))*$L99)," ",IF(H99="-","-",INDEX('Wattage Table'!$F$23:$F$451,MATCH(H99,'Wattage Table'!$D$23:$D$451,0)))*$L99) ->  | R99: =IF(D99="","",IF(OR(D99="None",D99="",H99=""),"No",IF(VLOOKUP(H99,'Wattage Table'!$D:$F,3,0)*L99/F99<=VLOOKUP(D99,Validation!$O$7:$Q$9,3,0),"No","Yes"))) -> 
B100: 79 | E100: =IF(D100="","",IF(D100="None","None",INDEX('Lighting Controls Summary'!$D$19:$D$22,MATCH(D100,'Lighting Controls Summary'!$C$19:$C$22,0),1))) ->  | I100: =IF(H100="","",VLOOKUP(H100,'Wattage Table'!$D:$E,2,0)) ->  | K100: 0 | M100: =IF(OR(H100="",R100="No"),0,(((VLOOKUP(H100,'Wattage Table'!$D:$F,3,0)*J100)-(VLOOKUP(H100,'Wattage Table'!$D:$F,3,0)*(J100-K100)))*L100)/1000) -> 0 | N100: =IF(OR(H100="",R100="No"),0,(VLOOKUP(H100,'Wattage Table'!$D:$F,3,0)*L100)/1000*0.25) -> 0 | O100: 0 | P100: 0 | Q100: =IF(ISERROR(IF(H100="-","-",INDEX('Wattage Table'!$F$23:$F$451,MATCH(H100,'Wattage Table'!$D$23:$D$451,0)))*$L100)," ",IF(H100="-","-",INDEX('Wattage Table'!$F$23:$F$451,MATCH(H100,'Wattage Table'!$D$23:$D$451,0)))*$L100) ->  | R100: =IF(D100="","",IF(OR(D100="None",D100="",H100=""),"No",IF(VLOOKUP(H100,'Wattage Table'!$D:$F,3,0)*L100/F100<=VLOOKUP(D100,Validation!$O$7:$Q$9,3,0),"No","Yes"))) -> 
B101: 80 | E101: =IF(D101="","",IF(D101="None","None",INDEX('Lighting Controls Summary'!$D$19:$D$22,MATCH(D101,'Lighting Controls Summary'!$C$19:$C$22,0),1))) ->  | I101: =IF(H101="","",VLOOKUP(H101,'Wattage Table'!$D:$E,2,0)) ->  | K101: 0 | M101: =IF(OR(H101="",R101="No"),0,(((VLOOKUP(H101,'Wattage Table'!$D:$F,3,0)*J101)-(VLOOKUP(H101,'Wattage Table'!$D:$F,3,0)*(J101-K101)))*L101)/1000) -> 0 | N101: =IF(OR(H101="",R101="No"),0,(VLOOKUP(H101,'Wattage Table'!$D:$F,3,0)*L101)/1000*0.25) -> 0 | O101: 0 | P101: 0 | Q101: =IF(ISERROR(IF(H101="-","-",INDEX('Wattage Table'!$F$23:$F$451,MATCH(H101,'Wattage Table'!$D$23:$D$451,0)))*$L101)," ",IF(H101="-","-",INDEX('Wattage Table'!$F$23:$F$451,MATCH(H101,'Wattage Table'!$D$23:$D$451,0)))*$L101) ->  | R101: =IF(D101="","",IF(OR(D101="None",D101="",H101=""),"No",IF(VLOOKUP(H101,'Wattage Table'!$D:$F,3,0)*L101/F101<=VLOOKUP(D101,Validation!$O$7:$Q$9,3,0),"No","Yes"))) -> 
B102: 81 | E102: =IF(D102="","",IF(D102="None","None",INDEX('Lighting Controls Summary'!$D$19:$D$22,MATCH(D102,'Lighting Controls Summary'!$C$19:$C$22,0),1))) ->  | I102: =IF(H102="","",VLOOKUP(H102,'Wattage Table'!$D:$E,2,0)) ->  | K102: 0 | M102: =IF(OR(H102="",R102="No"),0,(((VLOOKUP(H102,'Wattage Table'!$D:$F,3,0)*J102)-(VLOOKUP(H102,'Wattage Table'!$D:$F,3,0)*(J102-K102)))*L102)/1000) -> 0 | N102: =IF(OR(H102="",R102="No"),0,(VLOOKUP(H102,'Wattage Table'!$D:$F,3,0)*L102)/1000*0.25) -> 0 | O102: 0 | P102: 0 | Q102: =IF(ISERROR(IF(H102="-","-",INDEX('Wattage Table'!$F$23:$F$451,MATCH(H102,'Wattage Table'!$D$23:$D$451,0)))*$L102)," ",IF(H102="-","-",INDEX('Wattage Table'!$F$23:$F$451,MATCH(H102,'Wattage Table'!$D$23:$D$451,0)))*$L102) ->  | R102: =IF(D102="","",IF(OR(D102="None",D102="",H102=""),"No",IF(VLOOKUP(H102,'Wattage Table'!$D:$F,3,0)*L102/F102<=VLOOKUP(D102,Validation!$O$7:$Q$9,3,0),"No","Yes"))) -> 
B103: 82 | E103: =IF(D103="","",IF(D103="None","None",INDEX('Lighting Controls Summary'!$D$19:$D$22,MATCH(D103,'Lighting Controls Summary'!$C$19:$C$22,0),1))) ->  | I103: =IF(H103="","",VLOOKUP(H103,'Wattage Table'!$D:$E,2,0)) ->  | K103: 0 | M103: =IF(OR(H103="",R103="No"),0,(((VLOOKUP(H103,'Wattage Table'!$D:$F,3,0)*J103)-(VLOOKUP(H103,'Wattage Table'!$D:$F,3,0)*(J103-K103)))*L103)/1000) -> 0 | N103: =IF(OR(H103="",R103="No"),0,(VLOOKUP(H103,'Wattage Table'!$D:$F,3,0)*L103)/1000*0.25) -> 0 | O103: 0 | P103: 0 | Q103: =IF(ISERROR(IF(H103="-","-",INDEX('Wattage Table'!$F$23:$F$451,MATCH(H103,'Wattage Table'!$D$23:$D$451,0)))*$L103)," ",IF(H103="-","-",INDEX('Wattage Table'!$F$23:$F$451,MATCH(H103,'Wattage Table'!$D$23:$D$451,0)))*$L103) ->  | R103: =IF(D103="","",IF(OR(D103="None",D103="",H103=""),"No",IF(VLOOKUP(H103,'Wattage Table'!$D:$F,3,0)*L103/F103<=VLOOKUP(D103,Validation!$O$7:$Q$9,3,0),"No","Yes"))) -> 
B104: 83 | E104: =IF(D104="","",IF(D104="None","None",INDEX('Lighting Controls Summary'!$D$19:$D$22,MATCH(D104,'Lighting Controls Summary'!$C$19:$C$22,0),1))) ->  | I104: =IF(H104="","",VLOOKUP(H104,'Wattage Table'!$D:$E,2,0)) ->  | K104: 0 | M104: =IF(OR(H104="",R104="No"),0,(((VLOOKUP(H104,'Wattage Table'!$D:$F,3,0)*J104)-(VLOOKUP(H104,'Wattage Table'!$D:$F,3,0)*(J104-K104)))*L104)/1000) -> 0 | N104: =IF(OR(H104="",R104="No"),0,(VLOOKUP(H104,'Wattage Table'!$D:$F,3,0)*L104)/1000*0.25) -> 0 | O104: 0 | P104: 0 | Q104: =IF(ISERROR(IF(H104="-","-",INDEX('Wattage Table'!$F$23:$F$451,MATCH(H104,'Wattage Table'!$D$23:$D$451,0)))*$L104)," ",IF(H104="-","-",INDEX('Wattage Table'!$F$23:$F$451,MATCH(H104,'Wattage Table'!$D$23:$D$451,0)))*$L104) ->  | R104: =IF(D104="","",IF(OR(D104="None",D104="",H104=""),"No",IF(VLOOKUP(H104,'Wattage Table'!$D:$F,3,0)*L104/F104<=VLOOKUP(D104,Validation!$O$7:$Q$9,3,0),"No","Yes"))) -> 
B105: 84 | E105: =IF(D105="","",IF(D105="None","None",INDEX('Lighting Controls Summary'!$D$19:$D$22,MATCH(D105,'Lighting Controls Summary'!$C$19:$C$22,0),1))) ->  | I105: =IF(H105="","",VLOOKUP(H105,'Wattage Table'!$D:$E,2,0)) ->  | K105: 0 | M105: =IF(OR(H105="",R105="No"),0,(((VLOOKUP(H105,'Wattage Table'!$D:$F,3,0)*J105)-(VLOOKUP(H105,'Wattage Table'!$D:$F,3,0)*(J105-K105)))*L105)/1000) -> 0 | N105: =IF(OR(H105="",R105="No"),0,(VLOOKUP(H105,'Wattage Table'!$D:$F,3,0)*L105)/1000*0.25) -> 0 | O105: 0 | P105: 0 | Q105: =IF(ISERROR(IF(H105="-","-",INDEX('Wattage Table'!$F$23:$F$451,MATCH(H105,'Wattage Table'!$D$23:$D$451,0)))*$L105)," ",IF(H105="-","-",INDEX('Wattage Table'!$F$23:$F$451,MATCH(H105,'Wattage Table'!$D$23:$D$451,0)))*$L105) ->  | R105: =IF(D105="","",IF(OR(D105="None",D105="",H105=""),"No",IF(VLOOKUP(H105,'Wattage Table'!$D:$F,3,0)*L105/F105<=VLOOKUP(D105,Validation!$O$7:$Q$9,3,0),"No","Yes"))) -> 
B106: 85 | E106: =IF(D106="","",IF(D106="None","None",INDEX('Lighting Controls Summary'!$D$19:$D$22,MATCH(D106,'Lighting Controls Summary'!$C$19:$C$22,0),1))) ->  | I106: =IF(H106="","",VLOOKUP(H106,'Wattage Table'!$D:$E,2,0)) ->  | K106: 0 | M106: =IF(OR(H106="",R106="No"),0,(((VLOOKUP(H106,'Wattage Table'!$D:$F,3,0)*J106)-(VLOOKUP(H106,'Wattage Table'!$D:$F,3,0)*(J106-K106)))*L106)/1000) -> 0 | N106: =IF(OR(H106="",R106="No"),0,(VLOOKUP(H106,'Wattage Table'!$D:$F,3,0)*L106)/1000*0.25) -> 0 | O106: 0 | P106: 0 | Q106: =IF(ISERROR(IF(H106="-","-",INDEX('Wattage Table'!$F$23:$F$451,MATCH(H106,'Wattage Table'!$D$23:$D$451,0)))*$L106)," ",IF(H106="-","-",INDEX('Wattage Table'!$F$23:$F$451,MATCH(H106,'Wattage Table'!$D$23:$D$451,0)))*$L106) ->  | R106: =IF(D106="","",IF(OR(D106="None",D106="",H106=""),"No",IF(VLOOKUP(H106,'Wattage Table'!$D:$F,3,0)*L106/F106<=VLOOKUP(D106,Validation!$O$7:$Q$9,3,0),"No","Yes"))) -> 
B107: 86 | E107: =IF(D107="","",IF(D107="None","None",INDEX('Lighting Controls Summary'!$D$19:$D$22,MATCH(D107,'Lighting Controls Summary'!$C$19:$C$22,0),1))) ->  | I107: =IF(H107="","",VLOOKUP(H107,'Wattage Table'!$D:$E,2,0)) ->  | K107: 0 | M107: =IF(OR(H107="",R107="No"),0,(((VLOOKUP(H107,'Wattage Table'!$D:$F,3,0)*J107)-(VLOOKUP(H107,'Wattage Table'!$D:$F,3,0)*(J107-K107)))*L107)/1000) -> 0 | N107: =IF(OR(H107="",R107="No"),0,(VLOOKUP(H107,'Wattage Table'!$D:$F,3,0)*L107)/1000*0.25) -> 0 | O107: 0 | P107: 0 | Q107: =IF(ISERROR(IF(H107="-","-",INDEX('Wattage Table'!$F$23:$F$451,MATCH(H107,'Wattage Table'!$D$23:$D$451,0)))*$L107)," ",IF(H107="-","-",INDEX('Wattage Table'!$F$23:$F$451,MATCH(H107,'Wattage Table'!$D$23:$D$451,0)))*$L107) ->  | R107: =IF(D107="","",IF(OR(D107="None",D107="",H107=""),"No",IF(VLOOKUP(H107,'Wattage Table'!$D:$F,3,0)*L107/F107<=VLOOKUP(D107,Validation!$O$7:$Q$9,3,0),"No","Yes"))) -> 
B108: 87 | E108: =IF(D108="","",IF(D108="None","None",INDEX('Lighting Controls Summary'!$D$19:$D$22,MATCH(D108,'Lighting Controls Summary'!$C$19:$C$22,0),1))) ->  | I108: =IF(H108="","",VLOOKUP(H108,'Wattage Table'!$D:$E,2,0)) ->  | K108: 0 | M108: =IF(OR(H108="",R108="No"),0,(((VLOOKUP(H108,'Wattage Table'!$D:$F,3,0)*J108)-(VLOOKUP(H108,'Wattage Table'!$D:$F,3,0)*(J108-K108)))*L108)/1000) -> 0 | N108: =IF(OR(H108="",R108="No"),0,(VLOOKUP(H108,'Wattage Table'!$D:$F,3,0)*L108)/1000*0.25) -> 0 | O108: 0 | P108: 0 | Q108: =IF(ISERROR(IF(H108="-","-",INDEX('Wattage Table'!$F$23:$F$451,MATCH(H108,'Wattage Table'!$D$23:$D$451,0)))*$L108)," ",IF(H108="-","-",INDEX('Wattage Table'!$F$23:$F$451,MATCH(H108,'Wattage Table'!$D$23:$D$451,0)))*$L108) ->  | R108: =IF(D108="","",IF(OR(D108="None",D108="",H108=""),"No",IF(VLOOKUP(H108,'Wattage Table'!$D:$F,3,0)*L108/F108<=VLOOKUP(D108,Validation!$O$7:$Q$9,3,0),"No","Yes"))) -> 
B109: 88 | E109: =IF(D109="","",IF(D109="None","None",INDEX('Lighting Controls Summary'!$D$19:$D$22,MATCH(D109,'Lighting Controls Summary'!$C$19:$C$22,0),1))) ->  | I109: =IF(H109="","",VLOOKUP(H109,'Wattage Table'!$D:$E,2,0)) ->  | K109: 0 | M109: =IF(OR(H109="",R109="No"),0,(((VLOOKUP(H109,'Wattage Table'!$D:$F,3,0)*J109)-(VLOOKUP(H109,'Wattage Table'!$D:$F,3,0)*(J109-K109)))*L109)/1000) -> 0 | N109: =IF(OR(H109="",R109="No"),0,(VLOOKUP(H109,'Wattage Table'!$D:$F,3,0)*L109)/1000*0.25) -> 0 | O109: 0 | P109: 0 | Q109: =IF(ISERROR(IF(H109="-","-",INDEX('Wattage Table'!$F$23:$F$451,MATCH(H109,'Wattage Table'!$D$23:$D$451,0)))*$L109)," ",IF(H109="-","-",INDEX('Wattage Table'!$F$23:$F$451,MATCH(H109,'Wattage Table'!$D$23:$D$451,0)))*$L109) ->  | R109: =IF(D109="","",IF(OR(D109="None",D109="",H109=""),"No",IF(VLOOKUP(H109,'Wattage Table'!$D:$F,3,0)*L109/F109<=VLOOKUP(D109,Validation!$O$7:$Q$9,3,0),"No","Yes"))) -> 
B110: 89 | E110: =IF(D110="","",IF(D110="None","None",INDEX('Lighting Controls Summary'!$D$19:$D$22,MATCH(D110,'Lighting Controls Summary'!$C$19:$C$22,0),1))) ->  | I110: =IF(H110="","",VLOOKUP(H110,'Wattage Table'!$D:$E,2,0)) ->  | K110: 0 | M110: =IF(OR(H110="",R110="No"),0,(((VLOOKUP(H110,'Wattage Table'!$D:$F,3,0)*J110)-(VLOOKUP(H110,'Wattage Table'!$D:$F,3,0)*(J110-K110)))*L110)/1000) -> 0 | N110: =IF(OR(H110="",R110="No"),0,(VLOOKUP(H110,'Wattage Table'!$D:$F,3,0)*L110)/1000*0.25) -> 0 | O110: 0 | P110: 0 | Q110: =IF(ISERROR(IF(H110="-","-",INDEX('Wattage Table'!$F$23:$F$451,MATCH(H110,'Wattage Table'!$D$23:$D$451,0)))*$L110)," ",IF(H110="-","-",INDEX('Wattage Table'!$F$23:$F$451,MATCH(H110,'Wattage Table'!$D$23:$D$451,0)))*$L110) ->  | R110: =IF(D110="","",IF(OR(D110="None",D110="",H110=""),"No",IF(VLOOKUP(H110,'Wattage Table'!$D:$F,3,0)*L110/F110<=VLOOKUP(D110,Validation!$O$7:$Q$9,3,0),"No","Yes"))) -> 
B111: 90 | E111: =IF(D111="","",IF(D111="None","None",INDEX('Lighting Controls Summary'!$D$19:$D$22,MATCH(D111,'Lighting Controls Summary'!$C$19:$C$22,0),1))) ->  | I111: =IF(H111="","",VLOOKUP(H111,'Wattage Table'!$D:$E,2,0)) ->  | K111: 0 | M111: =IF(OR(H111="",R111="No"),0,(((VLOOKUP(H111,'Wattage Table'!$D:$F,3,0)*J111)-(VLOOKUP(H111,'Wattage Table'!$D:$F,3,0)*(J111-K111)))*L111)/1000) -> 0 | N111: =IF(OR(H111="",R111="No"),0,(VLOOKUP(H111,'Wattage Table'!$D:$F,3,0)*L111)/1000*0.25) -> 0 | O111: 0 | P111: 0 | Q111: =IF(ISERROR(IF(H111="-","-",INDEX('Wattage Table'!$F$23:$F$451,MATCH(H111,'Wattage Table'!$D$23:$D$451,0)))*$L111)," ",IF(H111="-","-",INDEX('Wattage Table'!$F$23:$F$451,MATCH(H111,'Wattage Table'!$D$23:$D$451,0)))*$L111) ->  | R111: =IF(D111="","",IF(OR(D111="None",D111="",H111=""),"No",IF(VLOOKUP(H111,'Wattage Table'!$D:$F,3,0)*L111/F111<=VLOOKUP(D111,Validation!$O$7:$Q$9,3,0),"No","Yes"))) -> 
B112: 91 | E112: =IF(D112="","",IF(D112="None","None",INDEX('Lighting Controls Summary'!$D$19:$D$22,MATCH(D112,'Lighting Controls Summary'!$C$19:$C$22,0),1))) ->  | I112: =IF(H112="","",VLOOKUP(H112,'Wattage Table'!$D:$E,2,0)) ->  | K112: 0 | M112: =IF(OR(H112="",R112="No"),0,(((VLOOKUP(H112,'Wattage Table'!$D:$F,3,0)*J112)-(VLOOKUP(H112,'Wattage Table'!$D:$F,3,0)*(J112-K112)))*L112)/1000) -> 0 | N112: =IF(OR(H112="",R112="No"),0,(VLOOKUP(H112,'Wattage Table'!$D:$F,3,0)*L112)/1000*0.25) -> 0 | O112: 0 | P112: 0 | Q112: =IF(ISERROR(IF(H112="-","-",INDEX('Wattage Table'!$F$23:$F$451,MATCH(H112,'Wattage Table'!$D$23:$D$451,0)))*$L112)," ",IF(H112="-","-",INDEX('Wattage Table'!$F$23:$F$451,MATCH(H112,'Wattage Table'!$D$23:$D$451,0)))*$L112) ->  | R112: =IF(D112="","",IF(OR(D112="None",D112="",H112=""),"No",IF(VLOOKUP(H112,'Wattage Table'!$D:$F,3,0)*L112/F112<=VLOOKUP(D112,Validation!$O$7:$Q$9,3,0),"No","Yes"))) -> 
B113: 92 | E113: =IF(D113="","",IF(D113="None","None",INDEX('Lighting Controls Summary'!$D$19:$D$22,MATCH(D113,'Lighting Controls Summary'!$C$19:$C$22,0),1))) ->  | I113: =IF(H113="","",VLOOKUP(H113,'Wattage Table'!$D:$E,2,0)) ->  | K113: 0 | M113: =IF(OR(H113="",R113="No"),0,(((VLOOKUP(H113,'Wattage Table'!$D:$F,3,0)*J113)-(VLOOKUP(H113,'Wattage Table'!$D:$F,3,0)*(J113-K113)))*L113)/1000) -> 0 | N113: =IF(OR(H113="",R113="No"),0,(VLOOKUP(H113,'Wattage Table'!$D:$F,3,0)*L113)/1000*0.25) -> 0 | O113: 0 | P113: 0 | Q113: =IF(ISERROR(IF(H113="-","-",INDEX('Wattage Table'!$F$23:$F$451,MATCH(H113,'Wattage Table'!$D$23:$D$451,0)))*$L113)," ",IF(H113="-","-",INDEX('Wattage Table'!$F$23:$F$451,MATCH(H113,'Wattage Table'!$D$23:$D$451,0)))*$L113) ->  | R113: =IF(D113="","",IF(OR(D113="None",D113="",H113=""),"No",IF(VLOOKUP(H113,'Wattage Table'!$D:$F,3,0)*L113/F113<=VLOOKUP(D113,Validation!$O$7:$Q$9,3,0),"No","Yes"))) -> 
B114: 93 | E114: =IF(D114="","",IF(D114="None","None",INDEX('Lighting Controls Summary'!$D$19:$D$22,MATCH(D114,'Lighting Controls Summary'!$C$19:$C$22,0),1))) ->  | I114: =IF(H114="","",VLOOKUP(H114,'Wattage Table'!$D:$E,2,0)) ->  | K114: 0 | M114: =IF(OR(H114="",R114="No"),0,(((VLOOKUP(H114,'Wattage Table'!$D:$F,3,0)*J114)-(VLOOKUP(H114,'Wattage Table'!$D:$F,3,0)*(J114-K114)))*L114)/1000) -> 0 | N114: =IF(OR(H114="",R114="No"),0,(VLOOKUP(H114,'Wattage Table'!$D:$F,3,0)*L114)/1000*0.25) -> 0 | O114: 0 | P114: 0 | Q114: =IF(ISERROR(IF(H114="-","-",INDEX('Wattage Table'!$F$23:$F$451,MATCH(H114,'Wattage Table'!$D$23:$D$451,0)))*$L114)," ",IF(H114="-","-",INDEX('Wattage Table'!$F$23:$F$451,MATCH(H114,'Wattage Table'!$D$23:$D$451,0)))*$L114) ->  | R114: =IF(D114="","",IF(OR(D114="None",D114="",H114=""),"No",IF(VLOOKUP(H114,'Wattage Table'!$D:$F,3,0)*L114/F114<=VLOOKUP(D114,Validation!$O$7:$Q$9,3,0),"No","Yes"))) -> 
B115: 94 | E115: =IF(D115="","",IF(D115="None","None",INDEX('Lighting Controls Summary'!$D$19:$D$22,MATCH(D115,'Lighting Controls Summary'!$C$19:$C$22,0),1))) ->  | I115: =IF(H115="","",VLOOKUP(H115,'Wattage Table'!$D:$E,2,0)) ->  | K115: 0 | M115: =IF(OR(H115="",R115="No"),0,(((VLOOKUP(H115,'Wattage Table'!$D:$F,3,0)*J115)-(VLOOKUP(H115,'Wattage Table'!$D:$F,3,0)*(J115-K115)))*L115)/1000) -> 0 | N115: =IF(OR(H115="",R115="No"),0,(VLOOKUP(H115,'Wattage Table'!$D:$F,3,0)*L115)/1000*0.25) -> 0 | O115: 0 | P115: 0 | Q115: =IF(ISERROR(IF(H115="-","-",INDEX('Wattage Table'!$F$23:$F$451,MATCH(H115,'Wattage Table'!$D$23:$D$451,0)))*$L115)," ",IF(H115="-","-",INDEX('Wattage Table'!$F$23:$F$451,MATCH(H115,'Wattage Table'!$D$23:$D$451,0)))*$L115) ->  | R115: =IF(D115="","",IF(OR(D115="None",D115="",H115=""),"No",IF(VLOOKUP(H115,'Wattage Table'!$D:$F,3,0)*L115/F115<=VLOOKUP(D115,Validation!$O$7:$Q$9,3,0),"No","Yes"))) -> 
B116: 95 | E116: =IF(D116="","",IF(D116="None","None",INDEX('Lighting Controls Summary'!$D$19:$D$22,MATCH(D116,'Lighting Controls Summary'!$C$19:$C$22,0),1))) ->  | I116: =IF(H116="","",VLOOKUP(H116,'Wattage Table'!$D:$E,2,0)) ->  | K116: 0 | M116: =IF(OR(H116="",R116="No"),0,(((VLOOKUP(H116,'Wattage Table'!$D:$F,3,0)*J116)-(VLOOKUP(H116,'Wattage Table'!$D:$F,3,0)*(J116-K116)))*L116)/1000) -> 0 | N116: =IF(OR(H116="",R116="No"),0,(VLOOKUP(H116,'Wattage Table'!$D:$F,3,0)*L116)/1000*0.25) -> 0 | O116: 0 | P116: 0 | Q116: =IF(ISERROR(IF(H116="-","-",INDEX('Wattage Table'!$F$23:$F$451,MATCH(H116,'Wattage Table'!$D$23:$D$451,0)))*$L116)," ",IF(H116="-","-",INDEX('Wattage Table'!$F$23:$F$451,MATCH(H116,'Wattage Table'!$D$23:$D$451,0)))*$L116) ->  | R116: =IF(D116="","",IF(OR(D116="None",D116="",H116=""),"No",IF(VLOOKUP(H116,'Wattage Table'!$D:$F,3,0)*L116/F116<=VLOOKUP(D116,Validation!$O$7:$Q$9,3,0),"No","Yes"))) -> 
B117: 96 | E117: =IF(D117="","",IF(D117="None","None",INDEX('Lighting Controls Summary'!$D$19:$D$22,MATCH(D117,'Lighting Controls Summary'!$C$19:$C$22,0),1))) ->  | I117: =IF(H117="","",VLOOKUP(H117,'Wattage Table'!$D:$E,2,0)) ->  | K117: 0 | M117: =IF(OR(H117="",R117="No"),0,(((VLOOKUP(H117,'Wattage Table'!$D:$F,3,0)*J117)-(VLOOKUP(H117,'Wattage Table'!$D:$F,3,0)*(J117-K117)))*L117)/1000) -> 0 | N117: =IF(OR(H117="",R117="No"),0,(VLOOKUP(H117,'Wattage Table'!$D:$F,3,0)*L117)/1000*0.25) -> 0 | O117: 0 | P117: 0 | Q117: =IF(ISERROR(IF(H117="-","-",INDEX('Wattage Table'!$F$23:$F$451,MATCH(H117,'Wattage Table'!$D$23:$D$451,0)))*$L117)," ",IF(H117="-","-",INDEX('Wattage Table'!$F$23:$F$451,MATCH(H117,'Wattage Table'!$D$23:$D$451,0)))*$L117) ->  | R117: =IF(D117="","",IF(OR(D117="None",D117="",H117=""),"No",IF(VLOOKUP(H117,'Wattage Table'!$D:$F,3,0)*L117/F117<=VLOOKUP(D117,Validation!$O$7:$Q$9,3,0),"No","Yes"))) -> 
B118: 97 | E118: =IF(D118="","",IF(D118="None","None",INDEX('Lighting Controls Summary'!$D$19:$D$22,MATCH(D118,'Lighting Controls Summary'!$C$19:$C$22,0),1))) ->  | I118: =IF(H118="","",VLOOKUP(H118,'Wattage Table'!$D:$E,2,0)) ->  | K118: 0 | M118: =IF(OR(H118="",R118="No"),0,(((VLOOKUP(H118,'Wattage Table'!$D:$F,3,0)*J118)-(VLOOKUP(H118,'Wattage Table'!$D:$F,3,0)*(J118-K118)))*L118)/1000) -> 0 | N118: =IF(OR(H118="",R118="No"),0,(VLOOKUP(H118,'Wattage Table'!$D:$F,3,0)*L118)/1000*0.25) -> 0 | O118: 0 | P118: 0 | Q118: =IF(ISERROR(IF(H118="-","-",INDEX('Wattage Table'!$F$23:$F$451,MATCH(H118,'Wattage Table'!$D$23:$D$451,0)))*$L118)," ",IF(H118="-","-",INDEX('Wattage Table'!$F$23:$F$451,MATCH(H118,'Wattage Table'!$D$23:$D$451,0)))*$L118) ->  | R118: =IF(D118="","",IF(OR(D118="None",D118="",H118=""),"No",IF(VLOOKUP(H118,'Wattage Table'!$D:$F,3,0)*L118/F118<=VLOOKUP(D118,Validation!$O$7:$Q$9,3,0),"No","Yes"))) -> 
B119: 98 | E119: =IF(D119="","",IF(D119="None","None",INDEX('Lighting Controls Summary'!$D$19:$D$22,MATCH(D119,'Lighting Controls Summary'!$C$19:$C$22,0),1))) ->  | I119: =IF(H119="","",VLOOKUP(H119,'Wattage Table'!$D:$E,2,0)) ->  | K119: 0 | M119: =IF(OR(H119="",R119="No"),0,(((VLOOKUP(H119,'Wattage Table'!$D:$F,3,0)*J119)-(VLOOKUP(H119,'Wattage Table'!$D:$F,3,0)*(J119-K119)))*L119)/1000) -> 0 | N119: =IF(OR(H119="",R119="No"),0,(VLOOKUP(H119,'Wattage Table'!$D:$F,3,0)*L119)/1000*0.25) -> 0 | O119: 0 | P119: 0 | Q119: =IF(ISERROR(IF(H119="-","-",INDEX('Wattage Table'!$F$23:$F$451,MATCH(H119,'Wattage Table'!$D$23:$D$451,0)))*$L119)," ",IF(H119="-","-",INDEX('Wattage Table'!$F$23:$F$451,MATCH(H119,'Wattage Table'!$D$23:$D$451,0)))*$L119) ->  | R119: =IF(D119="","",IF(OR(D119="None",D119="",H119=""),"No",IF(VLOOKUP(H119,'Wattage Table'!$D:$F,3,0)*L119/F119<=VLOOKUP(D119,Validation!$O$7:$Q$9,3,0),"No","Yes"))) -> 
B120: 99 | E120: =IF(D120="","",IF(D120="None","None",INDEX('Lighting Controls Summary'!$D$19:$D$22,MATCH(D120,'Lighting Controls Summary'!$C$19:$C$22,0),1))) ->  | I120: =IF(H120="","",VLOOKUP(H120,'Wattage Table'!$D:$E,2,0)) ->  | K120: 0 | M120: =IF(OR(H120="",R120="No"),0,(((VLOOKUP(H120,'Wattage Table'!$D:$F,3,0)*J120)-(VLOOKUP(H120,'Wattage Table'!$D:$F,3,0)*(J120-K120)))*L120)/1000) -> 0 | N120: =IF(OR(H120="",R120="No"),0,(VLOOKUP(H120,'Wattage Table'!$D:$F,3,0)*L120)/1000*0.25) -> 0 | O120: 0 | P120: 0 | Q120: =IF(ISERROR(IF(H120="-","-",INDEX('Wattage Table'!$F$23:$F$451,MATCH(H120,'Wattage Table'!$D$23:$D$451,0)))*$L120)," ",IF(H120="-","-",INDEX('Wattage Table'!$F$23:$F$451,MATCH(H120,'Wattage Table'!$D$23:$D$451,0)))*$L120) ->  | R120: =IF(D120="","",IF(OR(D120="None",D120="",H120=""),"No",IF(VLOOKUP(H120,'Wattage Table'!$D:$F,3,0)*L120/F120<=VLOOKUP(D120,Validation!$O$7:$Q$9,3,0),"No","Yes"))) -> 
B121: 100 | E121: =IF(D121="","",IF(D121="None","None",INDEX('Lighting Controls Summary'!$D$19:$D$22,MATCH(D121,'Lighting Controls Summary'!$C$19:$C$22,0),1))) ->  | I121: =IF(H121="","",VLOOKUP(H121,'Wattage Table'!$D:$E,2,0)) ->  | K121: 0 | M121: =IF(OR(H121="",R121="No"),0,(((VLOOKUP(H121,'Wattage Table'!$D:$F,3,0)*J121)-(VLOOKUP(H121,'Wattage Table'!$D:$F,3,0)*(J121-K121)))*L121)/1000) -> 0 | N121: =IF(OR(H121="",R121="No"),0,(VLOOKUP(H121,'Wattage Table'!$D:$F,3,0)*L121)/1000*0.25) -> 0 | O121: 0 | P121: 0 | Q121: =IF(ISERROR(IF(H121="-","-",INDEX('Wattage Table'!$F$23:$F$451,MATCH(H121,'Wattage Table'!$D$23:$D$451,0)))*$L121)," ",IF(H121="-","-",INDEX('Wattage Table'!$F$23:$F$451,MATCH(H121,'Wattage Table'!$D$23:$D$451,0)))*$L121) ->  | R121: =IF(D121="","",IF(OR(D121="None",D121="",H121=""),"No",IF(VLOOKUP(H121,'Wattage Table'!$D:$F,3,0)*L121/F121<=VLOOKUP(D121,Validation!$O$7:$Q$9,3,0),"No","Yes"))) -> 
B122: 101 | E122: =IF(D122="","",IF(D122="None","None",INDEX('Lighting Controls Summary'!$D$19:$D$22,MATCH(D122,'Lighting Controls Summary'!$C$19:$C$22,0),1))) ->  | I122: =IF(H122="","",VLOOKUP(H122,'Wattage Table'!$D:$E,2,0)) ->  | K122: 0 | M122: =IF(OR(H122="",R122="No"),0,(((VLOOKUP(H122,'Wattage Table'!$D:$F,3,0)*J122)-(VLOOKUP(H122,'Wattage Table'!$D:$F,3,0)*(J122-K122)))*L122)/1000) -> 0 | N122: =IF(OR(H122="",R122="No"),0,(VLOOKUP(H122,'Wattage Table'!$D:$F,3,0)*L122)/1000*0.25) -> 0 | O122: 0 | P122: 0 | Q122: =IF(ISERROR(IF(H122="-","-",INDEX('Wattage Table'!$F$23:$F$451,MATCH(H122,'Wattage Table'!$D$23:$D$451,0)))*$L122)," ",IF(H122="-","-",INDEX('Wattage Table'!$F$23:$F$451,MATCH(H122,'Wattage Table'!$D$23:$D$451,0)))*$L122) ->  | R122: =IF(D122="","",IF(OR(D122="None",D122="",H122=""),"No",IF(VLOOKUP(H122,'Wattage Table'!$D:$F,3,0)*L122/F122<=VLOOKUP(D122,Validation!$O$7:$Q$9,3,0),"No","Yes"))) -> 
B123: 102 | E123: =IF(D123="","",IF(D123="None","None",INDEX('Lighting Controls Summary'!$D$19:$D$22,MATCH(D123,'Lighting Controls Summary'!$C$19:$C$22,0),1))) ->  | I123: =IF(H123="","",VLOOKUP(H123,'Wattage Table'!$D:$E,2,0)) ->  | K123: 0 | M123: =IF(OR(H123="",R123="No"),0,(((VLOOKUP(H123,'Wattage Table'!$D:$F,3,0)*J123)-(VLOOKUP(H123,'Wattage Table'!$D:$F,3,0)*(J123-K123)))*L123)/1000) -> 0 | N123: =IF(OR(H123="",R123="No"),0,(VLOOKUP(H123,'Wattage Table'!$D:$F,3,0)*L123)/1000*0.25) -> 0 | O123: 0 | P123: 0 | Q123: =IF(ISERROR(IF(H123="-","-",INDEX('Wattage Table'!$F$23:$F$451,MATCH(H123,'Wattage Table'!$D$23:$D$451,0)))*$L123)," ",IF(H123="-","-",INDEX('Wattage Table'!$F$23:$F$451,MATCH(H123,'Wattage Table'!$D$23:$D$451,0)))*$L123) ->  | R123: =IF(D123="","",IF(OR(D123="None",D123="",H123=""),"No",IF(VLOOKUP(H123,'Wattage Table'!$D:$F,3,0)*L123/F123<=VLOOKUP(D123,Validation!$O$7:$Q$9,3,0),"No","Yes"))) -> 
B124: 103 | E124: =IF(D124="","",IF(D124="None","None",INDEX('Lighting Controls Summary'!$D$19:$D$22,MATCH(D124,'Lighting Controls Summary'!$C$19:$C$22,0),1))) ->  | I124: =IF(H124="","",VLOOKUP(H124,'Wattage Table'!$D:$E,2,0)) ->  | K124: 0 | M124: =IF(OR(H124="",R124="No"),0,(((VLOOKUP(H124,'Wattage Table'!$D:$F,3,0)*J124)-(VLOOKUP(H124,'Wattage Table'!$D:$F,3,0)*(J124-K124)))*L124)/1000) -> 0 | N124: =IF(OR(H124="",R124="No"),0,(VLOOKUP(H124,'Wattage Table'!$D:$F,3,0)*L124)/1000*0.25) -> 0 | O124: 0 | P124: 0 | Q124: =IF(ISERROR(IF(H124="-","-",INDEX('Wattage Table'!$F$23:$F$451,MATCH(H124,'Wattage Table'!$D$23:$D$451,0)))*$L124)," ",IF(H124="-","-",INDEX('Wattage Table'!$F$23:$F$451,MATCH(H124,'Wattage Table'!$D$23:$D$451,0)))*$L124) ->  | R124: =IF(D124="","",IF(OR(D124="None",D124="",H124=""),"No",IF(VLOOKUP(H124,'Wattage Table'!$D:$F,3,0)*L124/F124<=VLOOKUP(D124,Validation!$O$7:$Q$9,3,0),"No","Yes"))) -> 
B125: 104 | E125: =IF(D125="","",IF(D125="None","None",INDEX('Lighting Controls Summary'!$D$19:$D$22,MATCH(D125,'Lighting Controls Summary'!$C$19:$C$22,0),1))) ->  | I125: =IF(H125="","",VLOOKUP(H125,'Wattage Table'!$D:$E,2,0)) ->  | K125: 0 | M125: =IF(OR(H125="",R125="No"),0,(((VLOOKUP(H125,'Wattage Table'!$D:$F,3,0)*J125)-(VLOOKUP(H125,'Wattage Table'!$D:$F,3,0)*(J125-K125)))*L125)/1000) -> 0 | N125: =IF(OR(H125="",R125="No"),0,(VLOOKUP(H125,'Wattage Table'!$D:$F,3,0)*L125)/1000*0.25) -> 0 | O125: 0 | P125: 0 | Q125: =IF(ISERROR(IF(H125="-","-",INDEX('Wattage Table'!$F$23:$F$451,MATCH(H125,'Wattage Table'!$D$23:$D$451,0)))*$L125)," ",IF(H125="-","-",INDEX('Wattage Table'!$F$23:$F$451,MATCH(H125,'Wattage Table'!$D$23:$D$451,0)))*$L125) ->  | R125: =IF(D125="","",IF(OR(D125="None",D125="",H125=""),"No",IF(VLOOKUP(H125,'Wattage Table'!$D:$F,3,0)*L125/F125<=VLOOKUP(D125,Validation!$O$7:$Q$9,3,0),"No","Yes"))) -> 
B126: 105 | E126: =IF(D126="","",IF(D126="None","None",INDEX('Lighting Controls Summary'!$D$19:$D$22,MATCH(D126,'Lighting Controls Summary'!$C$19:$C$22,0),1))) ->  | I126: =IF(H126="","",VLOOKUP(H126,'Wattage Table'!$D:$E,2,0)) ->  | K126: 0 | M126: =IF(OR(H126="",R126="No"),0,(((VLOOKUP(H126,'Wattage Table'!$D:$F,3,0)*J126)-(VLOOKUP(H126,'Wattage Table'!$D:$F,3,0)*(J126-K126)))*L126)/1000) -> 0 | N126: =IF(OR(H126="",R126="No"),0,(VLOOKUP(H126,'Wattage Table'!$D:$F,3,0)*L126)/1000*0.25) -> 0 | O126: 0 | P126: 0 | Q126: =IF(ISERROR(IF(H126="-","-",INDEX('Wattage Table'!$F$23:$F$451,MATCH(H126,'Wattage Table'!$D$23:$D$451,0)))*$L126)," ",IF(H126="-","-",INDEX('Wattage Table'!$F$23:$F$451,MATCH(H126,'Wattage Table'!$D$23:$D$451,0)))*$L126) ->  | R126: =IF(D126="","",IF(OR(D126="None",D126="",H126=""),"No",IF(VLOOKUP(H126,'Wattage Table'!$D:$F,3,0)*L126/F126<=VLOOKUP(D126,Validation!$O$7:$Q$9,3,0),"No","Yes"))) -> 
B127: 106 | E127: =IF(D127="","",IF(D127="None","None",INDEX('Lighting Controls Summary'!$D$19:$D$22,MATCH(D127,'Lighting Controls Summary'!$C$19:$C$22,0),1))) ->  | I127: =IF(H127="","",VLOOKUP(H127,'Wattage Table'!$D:$E,2,0)) ->  | K127: 0 | M127: =IF(OR(H127="",R127="No"),0,(((VLOOKUP(H127,'Wattage Table'!$D:$F,3,0)*J127)-(VLOOKUP(H127,'Wattage Table'!$D:$F,3,0)*(J127-K127)))*L127)/1000) -> 0 | N127: =IF(OR(H127="",R127="No"),0,(VLOOKUP(H127,'Wattage Table'!$D:$F,3,0)*L127)/1000*0.25) -> 0 | O127: 0 | P127: 0 | Q127: =IF(ISERROR(IF(H127="-","-",INDEX('Wattage Table'!$F$23:$F$451,MATCH(H127,'Wattage Table'!$D$23:$D$451,0)))*$L127)," ",IF(H127="-","-",INDEX('Wattage Table'!$F$23:$F$451,MATCH(H127,'Wattage Table'!$D$23:$D$451,0)))*$L127) ->  | R127: =IF(D127="","",IF(OR(D127="None",D127="",H127=""),"No",IF(VLOOKUP(H127,'Wattage Table'!$D:$F,3,0)*L127/F127<=VLOOKUP(D127,Validation!$O$7:$Q$9,3,0),"No","Yes"))) -> 
B128: 107 | E128: =IF(D128="","",IF(D128="None","None",INDEX('Lighting Controls Summary'!$D$19:$D$22,MATCH(D128,'Lighting Controls Summary'!$C$19:$C$22,0),1))) ->  | I128: =IF(H128="","",VLOOKUP(H128,'Wattage Table'!$D:$E,2,0)) ->  | K128: 0 | M128: =IF(OR(H128="",R128="No"),0,(((VLOOKUP(H128,'Wattage Table'!$D:$F,3,0)*J128)-(VLOOKUP(H128,'Wattage Table'!$D:$F,3,0)*(J128-K128)))*L128)/1000) -> 0 | N128: =IF(OR(H128="",R128="No"),0,(VLOOKUP(H128,'Wattage Table'!$D:$F,3,0)*L128)/1000*0.25) -> 0 | O128: 0 | P128: 0 | Q128: =IF(ISERROR(IF(H128="-","-",INDEX('Wattage Table'!$F$23:$F$451,MATCH(H128,'Wattage Table'!$D$23:$D$451,0)))*$L128)," ",IF(H128="-","-",INDEX('Wattage Table'!$F$23:$F$451,MATCH(H128,'Wattage Table'!$D$23:$D$451,0)))*$L128) ->  | R128: =IF(D128="","",IF(OR(D128="None",D128="",H128=""),"No",IF(VLOOKUP(H128,'Wattage Table'!$D:$F,3,0)*L128/F128<=VLOOKUP(D128,Validation!$O$7:$Q$9,3,0),"No","Yes"))) -> 
B129: 108 | E129: =IF(D129="","",IF(D129="None","None",INDEX('Lighting Controls Summary'!$D$19:$D$22,MATCH(D129,'Lighting Controls Summary'!$C$19:$C$22,0),1))) ->  | I129: =IF(H129="","",VLOOKUP(H129,'Wattage Table'!$D:$E,2,0)) ->  | K129: 0 | M129: =IF(OR(H129="",R129="No"),0,(((VLOOKUP(H129,'Wattage Table'!$D:$F,3,0)*J129)-(VLOOKUP(H129,'Wattage Table'!$D:$F,3,0)*(J129-K129)))*L129)/1000) -> 0 | N129: =IF(OR(H129="",R129="No"),0,(VLOOKUP(H129,'Wattage Table'!$D:$F,3,0)*L129)/1000*0.25) -> 0 | O129: 0 | P129: 0 | Q129: =IF(ISERROR(IF(H129="-","-",INDEX('Wattage Table'!$F$23:$F$451,MATCH(H129,'Wattage Table'!$D$23:$D$451,0)))*$L129)," ",IF(H129="-","-",INDEX('Wattage Table'!$F$23:$F$451,MATCH(H129,'Wattage Table'!$D$23:$D$451,0)))*$L129) ->  | R129: =IF(D129="","",IF(OR(D129="None",D129="",H129=""),"No",IF(VLOOKUP(H129,'Wattage Table'!$D:$F,3,0)*L129/F129<=VLOOKUP(D129,Validation!$O$7:$Q$9,3,0),"No","Yes"))) -> 
B130: 109 | E130: =IF(D130="","",IF(D130="None","None",INDEX('Lighting Controls Summary'!$D$19:$D$22,MATCH(D130,'Lighting Controls Summary'!$C$19:$C$22,0),1))) ->  | I130: =IF(H130="","",VLOOKUP(H130,'Wattage Table'!$D:$E,2,0)) ->  | K130: 0 | M130: =IF(OR(H130="",R130="No"),0,(((VLOOKUP(H130,'Wattage Table'!$D:$F,3,0)*J130)-(VLOOKUP(H130,'Wattage Table'!$D:$F,3,0)*(J130-K130)))*L130)/1000) -> 0 | N130: =IF(OR(H130="",R130="No"),0,(VLOOKUP(H130,'Wattage Table'!$D:$F,3,0)*L130)/1000*0.25) -> 0 | O130: 0 | P130: 0 | Q130: =IF(ISERROR(IF(H130="-","-",INDEX('Wattage Table'!$F$23:$F$451,MATCH(H130,'Wattage Table'!$D$23:$D$451,0)))*$L130)," ",IF(H130="-","-",INDEX('Wattage Table'!$F$23:$F$451,MATCH(H130,'Wattage Table'!$D$23:$D$451,0)))*$L130) ->  | R130: =IF(D130="","",IF(OR(D130="None",D130="",H130=""),"No",IF(VLOOKUP(H130,'Wattage Table'!$D:$F,3,0)*L130/F130<=VLOOKUP(D130,Validation!$O$7:$Q$9,3,0),"No","Yes"))) -> 
B131: 110 | E131: =IF(D131="","",IF(D131="None","None",INDEX('Lighting Controls Summary'!$D$19:$D$22,MATCH(D131,'Lighting Controls Summary'!$C$19:$C$22,0),1))) ->  | I131: =IF(H131="","",VLOOKUP(H131,'Wattage Table'!$D:$E,2,0)) ->  | K131: 0 | M131: =IF(OR(H131="",R131="No"),0,(((VLOOKUP(H131,'Wattage Table'!$D:$F,3,0)*J131)-(VLOOKUP(H131,'Wattage Table'!$D:$F,3,0)*(J131-K131)))*L131)/1000) -> 0 | N131: =IF(OR(H131="",R131="No"),0,(VLOOKUP(H131,'Wattage Table'!$D:$F,3,0)*L131)/1000*0.25) -> 0 | O131: 0 | P131: 0 | Q131: =IF(ISERROR(IF(H131="-","-",INDEX('Wattage Table'!$F$23:$F$451,MATCH(H131,'Wattage Table'!$D$23:$D$451,0)))*$L131)," ",IF(H131="-","-",INDEX('Wattage Table'!$F$23:$F$451,MATCH(H131,'Wattage Table'!$D$23:$D$451,0)))*$L131) ->  | R131: =IF(D131="","",IF(OR(D131="None",D131="",H131=""),"No",IF(VLOOKUP(H131,'Wattage Table'!$D:$F,3,0)*L131/F131<=VLOOKUP(D131,Validation!$O$7:$Q$9,3,0),"No","Yes"))) -> 
B132: 111 | E132: =IF(D132="","",IF(D132="None","None",INDEX('Lighting Controls Summary'!$D$19:$D$22,MATCH(D132,'Lighting Controls Summary'!$C$19:$C$22,0),1))) ->  | I132: =IF(H132="","",VLOOKUP(H132,'Wattage Table'!$D:$E,2,0)) ->  | K132: 0 | M132: =IF(OR(H132="",R132="No"),0,(((VLOOKUP(H132,'Wattage Table'!$D:$F,3,0)*J132)-(VLOOKUP(H132,'Wattage Table'!$D:$F,3,0)*(J132-K132)))*L132)/1000) -> 0 | N132: =IF(OR(H132="",R132="No"),0,(VLOOKUP(H132,'Wattage Table'!$D:$F,3,0)*L132)/1000*0.25) -> 0 | O132: 0 | P132: 0 | Q132: =IF(ISERROR(IF(H132="-","-",INDEX('Wattage Table'!$F$23:$F$451,MATCH(H132,'Wattage Table'!$D$23:$D$451,0)))*$L132)," ",IF(H132="-","-",INDEX('Wattage Table'!$F$23:$F$451,MATCH(H132,'Wattage Table'!$D$23:$D$451,0)))*$L132) ->  | R132: =IF(D132="","",IF(OR(D132="None",D132="",H132=""),"No",IF(VLOOKUP(H132,'Wattage Table'!$D:$F,3,0)*L132/F132<=VLOOKUP(D132,Validation!$O$7:$Q$9,3,0),"No","Yes"))) -> 
B133: 112 | E133: =IF(D133="","",IF(D133="None","None",INDEX('Lighting Controls Summary'!$D$19:$D$22,MATCH(D133,'Lighting Controls Summary'!$C$19:$C$22,0),1))) ->  | I133: =IF(H133="","",VLOOKUP(H133,'Wattage Table'!$D:$E,2,0)) ->  | K133: 0 | M133: =IF(OR(H133="",R133="No"),0,(((VLOOKUP(H133,'Wattage Table'!$D:$F,3,0)*J133)-(VLOOKUP(H133,'Wattage Table'!$D:$F,3,0)*(J133-K133)))*L133)/1000) -> 0 | N133: =IF(OR(H133="",R133="No"),0,(VLOOKUP(H133,'Wattage Table'!$D:$F,3,0)*L133)/1000*0.25) -> 0 | O133: 0 | P133: 0 | Q133: =IF(ISERROR(IF(H133="-","-",INDEX('Wattage Table'!$F$23:$F$451,MATCH(H133,'Wattage Table'!$D$23:$D$451,0)))*$L133)," ",IF(H133="-","-",INDEX('Wattage Table'!$F$23:$F$451,MATCH(H133,'Wattage Table'!$D$23:$D$451,0)))*$L133) ->  | R133: =IF(D133="","",IF(OR(D133="None",D133="",H133=""),"No",IF(VLOOKUP(H133,'Wattage Table'!$D:$F,3,0)*L133/F133<=VLOOKUP(D133,Validation!$O$7:$Q$9,3,0),"No","Yes"))) -> 
B134: 113 | E134: =IF(D134="","",IF(D134="None","None",INDEX('Lighting Controls Summary'!$D$19:$D$22,MATCH(D134,'Lighting Controls Summary'!$C$19:$C$22,0),1))) ->  | I134: =IF(H134="","",VLOOKUP(H134,'Wattage Table'!$D:$E,2,0)) ->  | K134: 0 | M134: =IF(OR(H134="",R134="No"),0,(((VLOOKUP(H134,'Wattage Table'!$D:$F,3,0)*J134)-(VLOOKUP(H134,'Wattage Table'!$D:$F,3,0)*(J134-K134)))*L134)/1000) -> 0 | N134: =IF(OR(H134="",R134="No"),0,(VLOOKUP(H134,'Wattage Table'!$D:$F,3,0)*L134)/1000*0.25) -> 0 | O134: 0 | P134: 0 | Q134: =IF(ISERROR(IF(H134="-","-",INDEX('Wattage Table'!$F$23:$F$451,MATCH(H134,'Wattage Table'!$D$23:$D$451,0)))*$L134)," ",IF(H134="-","-",INDEX('Wattage Table'!$F$23:$F$451,MATCH(H134,'Wattage Table'!$D$23:$D$451,0)))*$L134) ->  | R134: =IF(D134="","",IF(OR(D134="None",D134="",H134=""),"No",IF(VLOOKUP(H134,'Wattage Table'!$D:$F,3,0)*L134/F134<=VLOOKUP(D134,Validation!$O$7:$Q$9,3,0),"No","Yes"))) -> 
B135: 114 | E135: =IF(D135="","",IF(D135="None","None",INDEX('Lighting Controls Summary'!$D$19:$D$22,MATCH(D135,'Lighting Controls Summary'!$C$19:$C$22,0),1))) ->  | I135: =IF(H135="","",VLOOKUP(H135,'Wattage Table'!$D:$E,2,0)) ->  | K135: 0 | M135: =IF(OR(H135="",R135="No"),0,(((VLOOKUP(H135,'Wattage Table'!$D:$F,3,0)*J135)-(VLOOKUP(H135,'Wattage Table'!$D:$F,3,0)*(J135-K135)))*L135)/1000) -> 0 | N135: =IF(OR(H135="",R135="No"),0,(VLOOKUP(H135,'Wattage Table'!$D:$F,3,0)*L135)/1000*0.25) -> 0 | O135: 0 | P135: 0 | Q135: =IF(ISERROR(IF(H135="-","-",INDEX('Wattage Table'!$F$23:$F$451,MATCH(H135,'Wattage Table'!$D$23:$D$451,0)))*$L135)," ",IF(H135="-","-",INDEX('Wattage Table'!$F$23:$F$451,MATCH(H135,'Wattage Table'!$D$23:$D$451,0)))*$L135) ->  | R135: =IF(D135="","",IF(OR(D135="None",D135="",H135=""),"No",IF(VLOOKUP(H135,'Wattage Table'!$D:$F,3,0)*L135/F135<=VLOOKUP(D135,Validation!$O$7:$Q$9,3,0),"No","Yes"))) -> 
B136: 115 | E136: =IF(D136="","",IF(D136="None","None",INDEX('Lighting Controls Summary'!$D$19:$D$22,MATCH(D136,'Lighting Controls Summary'!$C$19:$C$22,0),1))) ->  | I136: =IF(H136="","",VLOOKUP(H136,'Wattage Table'!$D:$E,2,0)) ->  | K136: 0 | M136: =IF(OR(H136="",R136="No"),0,(((VLOOKUP(H136,'Wattage Table'!$D:$F,3,0)*J136)-(VLOOKUP(H136,'Wattage Table'!$D:$F,3,0)*(J136-K136)))*L136)/1000) -> 0 | N136: =IF(OR(H136="",R136="No"),0,(VLOOKUP(H136,'Wattage Table'!$D:$F,3,0)*L136)/1000*0.25) -> 0 | O136: 0 | P136: 0 | Q136: =IF(ISERROR(IF(H136="-","-",INDEX('Wattage Table'!$F$23:$F$451,MATCH(H136,'Wattage Table'!$D$23:$D$451,0)))*$L136)," ",IF(H136="-","-",INDEX('Wattage Table'!$F$23:$F$451,MATCH(H136,'Wattage Table'!$D$23:$D$451,0)))*$L136) ->  | R136: =IF(D136="","",IF(OR(D136="None",D136="",H136=""),"No",IF(VLOOKUP(H136,'Wattage Table'!$D:$F,3,0)*L136/F136<=VLOOKUP(D136,Validation!$O$7:$Q$9,3,0),"No","Yes"))) -> 
B137: 116 | E137: =IF(D137="","",IF(D137="None","None",INDEX('Lighting Controls Summary'!$D$19:$D$22,MATCH(D137,'Lighting Controls Summary'!$C$19:$C$22,0),1))) ->  | I137: =IF(H137="","",VLOOKUP(H137,'Wattage Table'!$D:$E,2,0)) ->  | K137: 0 | M137: =IF(OR(H137="",R137="No"),0,(((VLOOKUP(H137,'Wattage Table'!$D:$F,3,0)*J137)-(VLOOKUP(H137,'Wattage Table'!$D:$F,3,0)*(J137-K137)))*L137)/1000) -> 0 | N137: =IF(OR(H137="",R137="No"),0,(VLOOKUP(H137,'Wattage Table'!$D:$F,3,0)*L137)/1000*0.25) -> 0 | O137: 0 | P137: 0 | Q137: =IF(ISERROR(IF(H137="-","-",INDEX('Wattage Table'!$F$23:$F$451,MATCH(H137,'Wattage Table'!$D$23:$D$451,0)))*$L137)," ",IF(H137="-","-",INDEX('Wattage Table'!$F$23:$F$451,MATCH(H137,'Wattage Table'!$D$23:$D$451,0)))*$L137) ->  | R137: =IF(D137="","",IF(OR(D137="None",D137="",H137=""),"No",IF(VLOOKUP(H137,'Wattage Table'!$D:$F,3,0)*L137/F137<=VLOOKUP(D137,Validation!$O$7:$Q$9,3,0),"No","Yes"))) -> 
B138: 117 | E138: =IF(D138="","",IF(D138="None","None",INDEX('Lighting Controls Summary'!$D$19:$D$22,MATCH(D138,'Lighting Controls Summary'!$C$19:$C$22,0),1))) ->  | I138: =IF(H138="","",VLOOKUP(H138,'Wattage Table'!$D:$E,2,0)) ->  | K138: 0 | M138: =IF(OR(H138="",R138="No"),0,(((VLOOKUP(H138,'Wattage Table'!$D:$F,3,0)*J138)-(VLOOKUP(H138,'Wattage Table'!$D:$F,3,0)*(J138-K138)))*L138)/1000) -> 0 | N138: =IF(OR(H138="",R138="No"),0,(VLOOKUP(H138,'Wattage Table'!$D:$F,3,0)*L138)/1000*0.25) -> 0 | O138: 0 | P138: 0 | Q138: =IF(ISERROR(IF(H138="-","-",INDEX('Wattage Table'!$F$23:$F$451,MATCH(H138,'Wattage Table'!$D$23:$D$451,0)))*$L138)," ",IF(H138="-","-",INDEX('Wattage Table'!$F$23:$F$451,MATCH(H138,'Wattage Table'!$D$23:$D$451,0)))*$L138) ->  | R138: =IF(D138="","",IF(OR(D138="None",D138="",H138=""),"No",IF(VLOOKUP(H138,'Wattage Table'!$D:$F,3,0)*L138/F138<=VLOOKUP(D138,Validation!$O$7:$Q$9,3,0),"No","Yes"))) -> 
B139: 118 | E139: =IF(D139="","",IF(D139="None","None",INDEX('Lighting Controls Summary'!$D$19:$D$22,MATCH(D139,'Lighting Controls Summary'!$C$19:$C$22,0),1))) ->  | I139: =IF(H139="","",VLOOKUP(H139,'Wattage Table'!$D:$E,2,0)) ->  | K139: 0 | M139: =IF(OR(H139="",R139="No"),0,(((VLOOKUP(H139,'Wattage Table'!$D:$F,3,0)*J139)-(VLOOKUP(H139,'Wattage Table'!$D:$F,3,0)*(J139-K139)))*L139)/1000) -> 0 | N139: =IF(OR(H139="",R139="No"),0,(VLOOKUP(H139,'Wattage Table'!$D:$F,3,0)*L139)/1000*0.25) -> 0 | O139: 0 | P139: 0 | Q139: =IF(ISERROR(IF(H139="-","-",INDEX('Wattage Table'!$F$23:$F$451,MATCH(H139,'Wattage Table'!$D$23:$D$451,0)))*$L139)," ",IF(H139="-","-",INDEX('Wattage Table'!$F$23:$F$451,MATCH(H139,'Wattage Table'!$D$23:$D$451,0)))*$L139) ->  | R139: =IF(D139="","",IF(OR(D139="None",D139="",H139=""),"No",IF(VLOOKUP(H139,'Wattage Table'!$D:$F,3,0)*L139/F139<=VLOOKUP(D139,Validation!$O$7:$Q$9,3,0),"No","Yes"))) -> 
B140: 119 | E140: =IF(D140="","",IF(D140="None","None",INDEX('Lighting Controls Summary'!$D$19:$D$22,MATCH(D140,'Lighting Controls Summary'!$C$19:$C$22,0),1))) ->  | I140: =IF(H140="","",VLOOKUP(H140,'Wattage Table'!$D:$E,2,0)) ->  | K140: 0 | M140: =IF(OR(H140="",R140="No"),0,(((VLOOKUP(H140,'Wattage Table'!$D:$F,3,0)*J140)-(VLOOKUP(H140,'Wattage Table'!$D:$F,3,0)*(J140-K140)))*L140)/1000) -> 0 | N140: =IF(OR(H140="",R140="No"),0,(VLOOKUP(H140,'Wattage Table'!$D:$F,3,0)*L140)/1000*0.25) -> 0 | O140: 0 | P140: 0 | Q140: =IF(ISERROR(IF(H140="-","-",INDEX('Wattage Table'!$F$23:$F$451,MATCH(H140,'Wattage Table'!$D$23:$D$451,0)))*$L140)," ",IF(H140="-","-",INDEX('Wattage Table'!$F$23:$F$451,MATCH(H140,'Wattage Table'!$D$23:$D$451,0)))*$L140) ->  | R140: =IF(D140="","",IF(OR(D140="None",D140="",H140=""),"No",IF(VLOOKUP(H140,'Wattage Table'!$D:$F,3,0)*L140/F140<=VLOOKUP(D140,Validation!$O$7:$Q$9,3,0),"No","Yes"))) -> 
B141: 120 | E141: =IF(D141="","",IF(D141="None","None",INDEX('Lighting Controls Summary'!$D$19:$D$22,MATCH(D141,'Lighting Controls Summary'!$C$19:$C$22,0),1))) ->  | I141: =IF(H141="","",VLOOKUP(H141,'Wattage Table'!$D:$E,2,0)) ->  | K141: 0 | M141: =IF(OR(H141="",R141="No"),0,(((VLOOKUP(H141,'Wattage Table'!$D:$F,3,0)*J141)-(VLOOKUP(H141,'Wattage Table'!$D:$F,3,0)*(J141-K141)))*L141)/1000) -> 0 | N141: =IF(OR(H141="",R141="No"),0,(VLOOKUP(H141,'Wattage Table'!$D:$F,3,0)*L141)/1000*0.25) -> 0 | O141: 0 | P141: 0 | Q141: =IF(ISERROR(IF(H141="-","-",INDEX('Wattage Table'!$F$23:$F$451,MATCH(H141,'Wattage Table'!$D$23:$D$451,0)))*$L141)," ",IF(H141="-","-",INDEX('Wattage Table'!$F$23:$F$451,MATCH(H141,'Wattage Table'!$D$23:$D$451,0)))*$L141) ->  | R141: =IF(D141="","",IF(OR(D141="None",D141="",H141=""),"No",IF(VLOOKUP(H141,'Wattage Table'!$D:$F,3,0)*L141/F141<=VLOOKUP(D141,Validation!$O$7:$Q$9,3,0),"No","Yes"))) -> 
B142: 121 | E142: =IF(D142="","",IF(D142="None","None",INDEX('Lighting Controls Summary'!$D$19:$D$22,MATCH(D142,'Lighting Controls Summary'!$C$19:$C$22,0),1))) ->  | I142: =IF(H142="","",VLOOKUP(H142,'Wattage Table'!$D:$E,2,0)) ->  | K142: 0 | M142: =IF(OR(H142="",R142="No"),0,(((VLOOKUP(H142,'Wattage Table'!$D:$F,3,0)*J142)-(VLOOKUP(H142,'Wattage Table'!$D:$F,3,0)*(J142-K142)))*L142)/1000) -> 0 | N142: =IF(OR(H142="",R142="No"),0,(VLOOKUP(H142,'Wattage Table'!$D:$F,3,0)*L142)/1000*0.25) -> 0 | O142: 0 | P142: 0 | Q142: =IF(ISERROR(IF(H142="-","-",INDEX('Wattage Table'!$F$23:$F$451,MATCH(H142,'Wattage Table'!$D$23:$D$451,0)))*$L142)," ",IF(H142="-","-",INDEX('Wattage Table'!$F$23:$F$451,MATCH(H142,'Wattage Table'!$D$23:$D$451,0)))*$L142) ->  | R142: =IF(D142="","",IF(OR(D142="None",D142="",H142=""),"No",IF(VLOOKUP(H142,'Wattage Table'!$D:$F,3,0)*L142/F142<=VLOOKUP(D142,Validation!$O$7:$Q$9,3,0),"No","Yes"))) -> 
B143: 122 | E143: =IF(D143="","",IF(D143="None","None",INDEX('Lighting Controls Summary'!$D$19:$D$22,MATCH(D143,'Lighting Controls Summary'!$C$19:$C$22,0),1))) ->  | I143: =IF(H143="","",VLOOKUP(H143,'Wattage Table'!$D:$E,2,0)) ->  | K143: 0 | M143: =IF(OR(H143="",R143="No"),0,(((VLOOKUP(H143,'Wattage Table'!$D:$F,3,0)*J143)-(VLOOKUP(H143,'Wattage Table'!$D:$F,3,0)*(J143-K143)))*L143)/1000) -> 0 | N143: =IF(OR(H143="",R143="No"),0,(VLOOKUP(H143,'Wattage Table'!$D:$F,3,0)*L143)/1000*0.25) -> 0 | O143: 0 | P143: 0 | Q143: =IF(ISERROR(IF(H143="-","-",INDEX('Wattage Table'!$F$23:$F$451,MATCH(H143,'Wattage Table'!$D$23:$D$451,0)))*$L143)," ",IF(H143="-","-",INDEX('Wattage Table'!$F$23:$F$451,MATCH(H143,'Wattage Table'!$D$23:$D$451,0)))*$L143) ->  | R143: =IF(D143="","",IF(OR(D143="None",D143="",H143=""),"No",IF(VLOOKUP(H143,'Wattage Table'!$D:$F,3,0)*L143/F143<=VLOOKUP(D143,Validation!$O$7:$Q$9,3,0),"No","Yes"))) -> 
B144: 123 | E144: =IF(D144="","",IF(D144="None","None",INDEX('Lighting Controls Summary'!$D$19:$D$22,MATCH(D144,'Lighting Controls Summary'!$C$19:$C$22,0),1))) ->  | I144: =IF(H144="","",VLOOKUP(H144,'Wattage Table'!$D:$E,2,0)) ->  | K144: 0 | M144: =IF(OR(H144="",R144="No"),0,(((VLOOKUP(H144,'Wattage Table'!$D:$F,3,0)*J144)-(VLOOKUP(H144,'Wattage Table'!$D:$F,3,0)*(J144-K144)))*L144)/1000) -> 0 | N144: =IF(OR(H144="",R144="No"),0,(VLOOKUP(H144,'Wattage Table'!$D:$F,3,0)*L144)/1000*0.25) -> 0 | O144: 0 | P144: 0 | Q144: =IF(ISERROR(IF(H144="-","-",INDEX('Wattage Table'!$F$23:$F$451,MATCH(H144,'Wattage Table'!$D$23:$D$451,0)))*$L144)," ",IF(H144="-","-",INDEX('Wattage Table'!$F$23:$F$451,MATCH(H144,'Wattage Table'!$D$23:$D$451,0)))*$L144) ->  | R144: =IF(D144="","",IF(OR(D144="None",D144="",H144=""),"No",IF(VLOOKUP(H144,'Wattage Table'!$D:$F,3,0)*L144/F144<=VLOOKUP(D144,Validation!$O$7:$Q$9,3,0),"No","Yes"))) -> 
B145: 124 | E145: =IF(D145="","",IF(D145="None","None",INDEX('Lighting Controls Summary'!$D$19:$D$22,MATCH(D145,'Lighting Controls Summary'!$C$19:$C$22,0),1))) ->  | I145: =IF(H145="","",VLOOKUP(H145,'Wattage Table'!$D:$E,2,0)) ->  | K145: 0 | M145: =IF(OR(H145="",R145="No"),0,(((VLOOKUP(H145,'Wattage Table'!$D:$F,3,0)*J145)-(VLOOKUP(H145,'Wattage Table'!$D:$F,3,0)*(J145-K145)))*L145)/1000) -> 0 | N145: =IF(OR(H145="",R145="No"),0,(VLOOKUP(H145,'Wattage Table'!$D:$F,3,0)*L145)/1000*0.25) -> 0 | O145: 0 | P145: 0 | Q145: =IF(ISERROR(IF(H145="-","-",INDEX('Wattage Table'!$F$23:$F$451,MATCH(H145,'Wattage Table'!$D$23:$D$451,0)))*$L145)," ",IF(H145="-","-",INDEX('Wattage Table'!$F$23:$F$451,MATCH(H145,'Wattage Table'!$D$23:$D$451,0)))*$L145) ->  | R145: =IF(D145="","",IF(OR(D145="None",D145="",H145=""),"No",IF(VLOOKUP(H145,'Wattage Table'!$D:$F,3,0)*L145/F145<=VLOOKUP(D145,Validation!$O$7:$Q$9,3,0),"No","Yes"))) -> 
B146: 125 | E146: =IF(D146="","",IF(D146="None","None",INDEX('Lighting Controls Summary'!$D$19:$D$22,MATCH(D146,'Lighting Controls Summary'!$C$19:$C$22,0),1))) ->  | I146: =IF(H146="","",VLOOKUP(H146,'Wattage Table'!$D:$E,2,0)) ->  | K146: 0 | M146: =IF(OR(H146="",R146="No"),0,(((VLOOKUP(H146,'Wattage Table'!$D:$F,3,0)*J146)-(VLOOKUP(H146,'Wattage Table'!$D:$F,3,0)*(J146-K146)))*L146)/1000) -> 0 | N146: =IF(OR(H146="",R146="No"),0,(VLOOKUP(H146,'Wattage Table'!$D:$F,3,0)*L146)/1000*0.25) -> 0 | O146: 0 | P146: 0 | Q146: =IF(ISERROR(IF(H146="-","-",INDEX('Wattage Table'!$F$23:$F$451,MATCH(H146,'Wattage Table'!$D$23:$D$451,0)))*$L146)," ",IF(H146="-","-",INDEX('Wattage Table'!$F$23:$F$451,MATCH(H146,'Wattage Table'!$D$23:$D$451,0)))*$L146) ->  | R146: =IF(D146="","",IF(OR(D146="None",D146="",H146=""),"No",IF(VLOOKUP(H146,'Wattage Table'!$D:$F,3,0)*L146/F146<=VLOOKUP(D146,Validation!$O$7:$Q$9,3,0),"No","Yes"))) -> 
B147: 126 | E147: =IF(D147="","",IF(D147="None","None",INDEX('Lighting Controls Summary'!$D$19:$D$22,MATCH(D147,'Lighting Controls Summary'!$C$19:$C$22,0),1))) ->  | I147: =IF(H147="","",VLOOKUP(H147,'Wattage Table'!$D:$E,2,0)) ->  | K147: 0 | M147: =IF(OR(H147="",R147="No"),0,(((VLOOKUP(H147,'Wattage Table'!$D:$F,3,0)*J147)-(VLOOKUP(H147,'Wattage Table'!$D:$F,3,0)*(J147-K147)))*L147)/1000) -> 0 | N147: =IF(OR(H147="",R147="No"),0,(VLOOKUP(H147,'Wattage Table'!$D:$F,3,0)*L147)/1000*0.25) -> 0 | O147: 0 | P147: 0 | Q147: =IF(ISERROR(IF(H147="-","-",INDEX('Wattage Table'!$F$23:$F$451,MATCH(H147,'Wattage Table'!$D$23:$D$451,0)))*$L147)," ",IF(H147="-","-",INDEX('Wattage Table'!$F$23:$F$451,MATCH(H147,'Wattage Table'!$D$23:$D$451,0)))*$L147) ->  | R147: =IF(D147="","",IF(OR(D147="None",D147="",H147=""),"No",IF(VLOOKUP(H147,'Wattage Table'!$D:$F,3,0)*L147/F147<=VLOOKUP(D147,Validation!$O$7:$Q$9,3,0),"No","Yes"))) -> 
B148: 127 | E148: =IF(D148="","",IF(D148="None","None",INDEX('Lighting Controls Summary'!$D$19:$D$22,MATCH(D148,'Lighting Controls Summary'!$C$19:$C$22,0),1))) ->  | I148: =IF(H148="","",VLOOKUP(H148,'Wattage Table'!$D:$E,2,0)) ->  | K148: 0 | M148: =IF(OR(H148="",R148="No"),0,(((VLOOKUP(H148,'Wattage Table'!$D:$F,3,0)*J148)-(VLOOKUP(H148,'Wattage Table'!$D:$F,3,0)*(J148-K148)))*L148)/1000) -> 0 | N148: =IF(OR(H148="",R148="No"),0,(VLOOKUP(H148,'Wattage Table'!$D:$F,3,0)*L148)/1000*0.25) -> 0 | O148: 0 | P148: 0 | Q148: =IF(ISERROR(IF(H148="-","-",INDEX('Wattage Table'!$F$23:$F$451,MATCH(H148,'Wattage Table'!$D$23:$D$451,0)))*$L148)," ",IF(H148="-","-",INDEX('Wattage Table'!$F$23:$F$451,MATCH(H148,'Wattage Table'!$D$23:$D$451,0)))*$L148) ->  | R148: =IF(D148="","",IF(OR(D148="None",D148="",H148=""),"No",IF(VLOOKUP(H148,'Wattage Table'!$D:$F,3,0)*L148/F148<=VLOOKUP(D148,Validation!$O$7:$Q$9,3,0),"No","Yes"))) -> 
B149: 128 | E149: =IF(D149="","",IF(D149="None","None",INDEX('Lighting Controls Summary'!$D$19:$D$22,MATCH(D149,'Lighting Controls Summary'!$C$19:$C$22,0),1))) ->  | I149: =IF(H149="","",VLOOKUP(H149,'Wattage Table'!$D:$E,2,0)) ->  | K149: 0 | M149: =IF(OR(H149="",R149="No"),0,(((VLOOKUP(H149,'Wattage Table'!$D:$F,3,0)*J149)-(VLOOKUP(H149,'Wattage Table'!$D:$F,3,0)*(J149-K149)))*L149)/1000) -> 0 | N149: =IF(OR(H149="",R149="No"),0,(VLOOKUP(H149,'Wattage Table'!$D:$F,3,0)*L149)/1000*0.25) -> 0 | O149: 0 | P149: 0 | Q149: =IF(ISERROR(IF(H149="-","-",INDEX('Wattage Table'!$F$23:$F$451,MATCH(H149,'Wattage Table'!$D$23:$D$451,0)))*$L149)," ",IF(H149="-","-",INDEX('Wattage Table'!$F$23:$F$451,MATCH(H149,'Wattage Table'!$D$23:$D$451,0)))*$L149) ->  | R149: =IF(D149="","",IF(OR(D149="None",D149="",H149=""),"No",IF(VLOOKUP(H149,'Wattage Table'!$D:$F,3,0)*L149/F149<=VLOOKUP(D149,Validation!$O$7:$Q$9,3,0),"No","Yes"))) -> 
B150: 129 | E150: =IF(D150="","",IF(D150="None","None",INDEX('Lighting Controls Summary'!$D$19:$D$22,MATCH(D150,'Lighting Controls Summary'!$C$19:$C$22,0),1))) ->  | I150: =IF(H150="","",VLOOKUP(H150,'Wattage Table'!$D:$E,2,0)) ->  | K150: =IF(OR(D150="",J150=""),0,J150*0.25) -> 0 | M150: =IF(OR(H150="",R150="No"),0,(((VLOOKUP(H150,'Wattage Table'!$D:$F,3,0)*J150)-(VLOOKUP(H150,'Wattage Table'!$D:$F,3,0)*(J150-K150)))*L150)/1000) -> 0 | N150: =IF(OR(H150="",R150="No"),0,(VLOOKUP(H150,'Wattage Table'!$D:$F,3,0)*L150)/1000*0.25) -> 0 | O150: 0 | P150: =IF(O150<=0,0,F150) -> 0 | Q150: =IF(ISERROR(IF(H150="-","-",INDEX('Wattage Table'!$F$23:$F$451,MATCH(H150,'Wattage Table'!$D$23:$D$451,0)))*$L150)," ",IF(H150="-","-",INDEX('Wattage Table'!$F$23:$F$451,MATCH(H150,'Wattage Table'!$D$23:$D$451,0)))*$L150) ->  | R150: =IF(D150="","",IF(OR(D150="None",D150="",H150=""),"No",IF(VLOOKUP(H150,'Wattage Table'!$D:$F,3,0)*L150/F150<=VLOOKUP(D150,Validation!$O$7:$Q$9,3,0),"No","Yes"))) -> 
B151: 130 | E151: =IF(D151="","",IF(D151="None","None",INDEX('Lighting Controls Summary'!$D$19:$D$22,MATCH(D151,'Lighting Controls Summary'!$C$19:$C$22,0),1))) ->  | I151: =IF(H151="","",VLOOKUP(H151,'Wattage Table'!$D:$E,2,0)) ->  | K151: 0 | M151: =IF(OR(H151="",R151="No"),0,(((VLOOKUP(H151,'Wattage Table'!$D:$F,3,0)*J151)-(VLOOKUP(H151,'Wattage Table'!$D:$F,3,0)*(J151-K151)))*L151)/1000) -> 0 | N151: =IF(OR(H151="",R151="No"),0,(VLOOKUP(H151,'Wattage Table'!$D:$F,3,0)*L151)/1000*0.25) -> 0 | O151: =IF(OR(D151="None",M151<=0,N151<=0,D151="",H151="",R151="No"),0,IF(OR(D151="80B",D151="80E"),F151*35,IF(OR(D151="80A",D151="80C"),F151*15,0))) -> 0 | P151: 0 | Q151: =IF(ISERROR(IF(H151="-","-",INDEX('Wattage Table'!$F$23:$F$451,MATCH(H151,'Wattage Table'!$D$23:$D$451,0)))*$L151)," ",IF(H151="-","-",INDEX('Wattage Table'!$F$23:$F$451,MATCH(H151,'Wattage Table'!$D$23:$D$451,0)))*$L151) ->  | R151: =IF(D151="","",IF(OR(D151="None",D151="",H151=""),"No",IF(VLOOKUP(H151,'Wattage Table'!$D:$F,3,0)*L151/F151<=VLOOKUP(D151,Validation!$O$7:$Q$9,3,0),"No","Yes"))) -> 
B152: 131 | E152: =IF(D152="","",IF(D152="None","None",INDEX('Lighting Controls Summary'!$D$19:$D$22,MATCH(D152,'Lighting Controls Summary'!$C$19:$C$22,0),1))) ->  | I152: =IF(H152="","",VLOOKUP(H152,'Wattage Table'!$D:$E,2,0)) ->  | K152: 0 | M152: =IF(OR(H152="",R152="No"),0,(((VLOOKUP(H152,'Wattage Table'!$D:$F,3,0)*J152)-(VLOOKUP(H152,'Wattage Table'!$D:$F,3,0)*(J152-K152)))*L152)/1000) -> 0 | N152: =IF(OR(H152="",R152="No"),0,(VLOOKUP(H152,'Wattage Table'!$D:$F,3,0)*L152)/1000*0.25) -> 0 | O152: 0 | P152: 0 | Q152: =IF(ISERROR(IF(H152="-","-",INDEX('Wattage Table'!$F$23:$F$451,MATCH(H152,'Wattage Table'!$D$23:$D$451,0)))*$L152)," ",IF(H152="-","-",INDEX('Wattage Table'!$F$23:$F$451,MATCH(H152,'Wattage Table'!$D$23:$D$451,0)))*$L152) ->  | R152: =IF(D152="","",IF(OR(D152="None",D152="",H152=""),"No",IF(VLOOKUP(H152,'Wattage Table'!$D:$F,3,0)*L152/F152<=VLOOKUP(D152,Validation!$O$7:$Q$9,3,0),"No","Yes"))) -> 
B153: 132 | E153: =IF(D153="","",IF(D153="None","None",INDEX('Lighting Controls Summary'!$D$19:$D$22,MATCH(D153,'Lighting Controls Summary'!$C$19:$C$22,0),1))) ->  | I153: =IF(H153="","",VLOOKUP(H153,'Wattage Table'!$D:$E,2,0)) ->  | K153: 0 | M153: =IF(OR(H153="",R153="No"),0,(((VLOOKUP(H153,'Wattage Table'!$D:$F,3,0)*J153)-(VLOOKUP(H153,'Wattage Table'!$D:$F,3,0)*(J153-K153)))*L153)/1000) -> 0 | N153: =IF(OR(H153="",R153="No"),0,(VLOOKUP(H153,'Wattage Table'!$D:$F,3,0)*L153)/1000*0.25) -> 0 | O153: 0 | P153: 0 | Q153: =IF(ISERROR(IF(H153="-","-",INDEX('Wattage Table'!$F$23:$F$451,MATCH(H153,'Wattage Table'!$D$23:$D$451,0)))*$L153)," ",IF(H153="-","-",INDEX('Wattage Table'!$F$23:$F$451,MATCH(H153,'Wattage Table'!$D$23:$D$451,0)))*$L153) ->  | R153: =IF(D153="","",IF(OR(D153="None",D153="",H153=""),"No",IF(VLOOKUP(H153,'Wattage Table'!$D:$F,3,0)*L153/F153<=VLOOKUP(D153,Validation!$O$7:$Q$9,3,0),"No","Yes"))) -> 
B154: 133 | E154: =IF(D154="","",IF(D154="None","None",INDEX('Lighting Controls Summary'!$D$19:$D$22,MATCH(D154,'Lighting Controls Summary'!$C$19:$C$22,0),1))) ->  | I154: =IF(H154="","",VLOOKUP(H154,'Wattage Table'!$D:$E,2,0)) ->  | K154: 0 | M154: =IF(OR(H154="",R154="No"),0,(((VLOOKUP(H154,'Wattage Table'!$D:$F,3,0)*J154)-(VLOOKUP(H154,'Wattage Table'!$D:$F,3,0)*(J154-K154)))*L154)/1000) -> 0 | N154: =IF(OR(H154="",R154="No"),0,(VLOOKUP(H154,'Wattage Table'!$D:$F,3,0)*L154)/1000*0.25) -> 0 | O154: 0 | P154: 0 | Q154: =IF(ISERROR(IF(H154="-","-",INDEX('Wattage Table'!$F$23:$F$451,MATCH(H154,'Wattage Table'!$D$23:$D$451,0)))*$L154)," ",IF(H154="-","-",INDEX('Wattage Table'!$F$23:$F$451,MATCH(H154,'Wattage Table'!$D$23:$D$451,0)))*$L154) ->  | R154: =IF(D154="","",IF(OR(D154="None",D154="",H154=""),"No",IF(VLOOKUP(H154,'Wattage Table'!$D:$F,3,0)*L154/F154<=VLOOKUP(D154,Validation!$O$7:$Q$9,3,0),"No","Yes"))) -> 
B155: 134 | E155: =IF(D155="","",IF(D155="None","None",INDEX('Lighting Controls Summary'!$D$19:$D$22,MATCH(D155,'Lighting Controls Summary'!$C$19:$C$22,0),1))) ->  | I155: =IF(H155="","",VLOOKUP(H155,'Wattage Table'!$D:$E,2,0)) ->  | K155: 0 | M155: =IF(OR(H155="",R155="No"),0,(((VLOOKUP(H155,'Wattage Table'!$D:$F,3,0)*J155)-(VLOOKUP(H155,'Wattage Table'!$D:$F,3,0)*(J155-K155)))*L155)/1000) -> 0 | N155: =IF(OR(H155="",R155="No"),0,(VLOOKUP(H155,'Wattage Table'!$D:$F,3,0)*L155)/1000*0.25) -> 0 | O155: 0 | P155: 0 | Q155: =IF(ISERROR(IF(H155="-","-",INDEX('Wattage Table'!$F$23:$F$451,MATCH(H155,'Wattage Table'!$D$23:$D$451,0)))*$L155)," ",IF(H155="-","-",INDEX('Wattage Table'!$F$23:$F$451,MATCH(H155,'Wattage Table'!$D$23:$D$451,0)))*$L155) ->  | R155: =IF(D155="","",IF(OR(D155="None",D155="",H155=""),"No",IF(VLOOKUP(H155,'Wattage Table'!$D:$F,3,0)*L155/F155<=VLOOKUP(D155,Validation!$O$7:$Q$9,3,0),"No","Yes"))) -> 
B156: 135 | E156: =IF(D156="","",IF(D156="None","None",INDEX('Lighting Controls Summary'!$D$19:$D$22,MATCH(D156,'Lighting Controls Summary'!$C$19:$C$22,0),1))) ->  | I156: =IF(H156="","",VLOOKUP(H156,'Wattage Table'!$D:$E,2,0)) ->  | K156: 0 | M156: =IF(OR(H156="",R156="No"),0,(((VLOOKUP(H156,'Wattage Table'!$D:$F,3,0)*J156)-(VLOOKUP(H156,'Wattage Table'!$D:$F,3,0)*(J156-K156)))*L156)/1000) -> 0 | N156: =IF(OR(H156="",R156="No"),0,(VLOOKUP(H156,'Wattage Table'!$D:$F,3,0)*L156)/1000*0.25) -> 0 | O156: 0 | P156: 0 | Q156: =IF(ISERROR(IF(H156="-","-",INDEX('Wattage Table'!$F$23:$F$451,MATCH(H156,'Wattage Table'!$D$23:$D$451,0)))*$L156)," ",IF(H156="-","-",INDEX('Wattage Table'!$F$23:$F$451,MATCH(H156,'Wattage Table'!$D$23:$D$451,0)))*$L156) ->  | R156: =IF(D156="","",IF(OR(D156="None",D156="",H156=""),"No",IF(VLOOKUP(H156,'Wattage Table'!$D:$F,3,0)*L156/F156<=VLOOKUP(D156,Validation!$O$7:$Q$9,3,0),"No","Yes"))) -> 
B157: 136 | E157: =IF(D157="","",IF(D157="None","None",INDEX('Lighting Controls Summary'!$D$19:$D$22,MATCH(D157,'Lighting Controls Summary'!$C$19:$C$22,0),1))) ->  | I157: =IF(H157="","",VLOOKUP(H157,'Wattage Table'!$D:$E,2,0)) ->  | K157: 0 | M157: =IF(OR(H157="",R157="No"),0,(((VLOOKUP(H157,'Wattage Table'!$D:$F,3,0)*J157)-(VLOOKUP(H157,'Wattage Table'!$D:$F,3,0)*(J157-K157)))*L157)/1000) -> 0 | N157: =IF(OR(H157="",R157="No"),0,(VLOOKUP(H157,'Wattage Table'!$D:$F,3,0)*L157)/1000*0.25) -> 0 | O157: 0 | P157: 0 | Q157: =IF(ISERROR(IF(H157="-","-",INDEX('Wattage Table'!$F$23:$F$451,MATCH(H157,'Wattage Table'!$D$23:$D$451,0)))*$L157)," ",IF(H157="-","-",INDEX('Wattage Table'!$F$23:$F$451,MATCH(H157,'Wattage Table'!$D$23:$D$451,0)))*$L157) ->  | R157: =IF(D157="","",IF(OR(D157="None",D157="",H157=""),"No",IF(VLOOKUP(H157,'Wattage Table'!$D:$F,3,0)*L157/F157<=VLOOKUP(D157,Validation!$O$7:$Q$9,3,0),"No","Yes"))) -> 
B158: 137 | E158: =IF(D158="","",IF(D158="None","None",INDEX('Lighting Controls Summary'!$D$19:$D$22,MATCH(D158,'Lighting Controls Summary'!$C$19:$C$22,0),1))) ->  | I158: =IF(H158="","",VLOOKUP(H158,'Wattage Table'!$D:$E,2,0)) ->  | K158: 0 | M158: =IF(OR(H158="",R158="No"),0,(((VLOOKUP(H158,'Wattage Table'!$D:$F,3,0)*J158)-(VLOOKUP(H158,'Wattage Table'!$D:$F,3,0)*(J158-K158)))*L158)/1000) -> 0 | N158: =IF(OR(H158="",R158="No"),0,(VLOOKUP(H158,'Wattage Table'!$D:$F,3,0)*L158)/1000*0.25) -> 0 | O158: 0 | P158: 0 | Q158: =IF(ISERROR(IF(H158="-","-",INDEX('Wattage Table'!$F$23:$F$451,MATCH(H158,'Wattage Table'!$D$23:$D$451,0)))*$L158)," ",IF(H158="-","-",INDEX('Wattage Table'!$F$23:$F$451,MATCH(H158,'Wattage Table'!$D$23:$D$451,0)))*$L158) ->  | R158: =IF(D158="","",IF(OR(D158="None",D158="",H158=""),"No",IF(VLOOKUP(H158,'Wattage Table'!$D:$F,3,0)*L158/F158<=VLOOKUP(D158,Validation!$O$7:$Q$9,3,0),"No","Yes"))) -> 
B159: 138 | E159: =IF(D159="","",IF(D159="None","None",INDEX('Lighting Controls Summary'!$D$19:$D$22,MATCH(D159,'Lighting Controls Summary'!$C$19:$C$22,0),1))) ->  | I159: =IF(H159="","",VLOOKUP(H159,'Wattage Table'!$D:$E,2,0)) ->  | K159: 0 | M159: =IF(OR(H159="",R159="No"),0,(((VLOOKUP(H159,'Wattage Table'!$D:$F,3,0)*J159)-(VLOOKUP(H159,'Wattage Table'!$D:$F,3,0)*(J159-K159)))*L159)/1000) -> 0 | N159: =IF(OR(H159="",R159="No"),0,(VLOOKUP(H159,'Wattage Table'!$D:$F,3,0)*L159)/1000*0.25) -> 0 | O159: 0 | P159: 0 | Q159: =IF(ISERROR(IF(H159="-","-",INDEX('Wattage Table'!$F$23:$F$451,MATCH(H159,'Wattage Table'!$D$23:$D$451,0)))*$L159)," ",IF(H159="-","-",INDEX('Wattage Table'!$F$23:$F$451,MATCH(H159,'Wattage Table'!$D$23:$D$451,0)))*$L159) ->  | R159: =IF(D159="","",IF(OR(D159="None",D159="",H159=""),"No",IF(VLOOKUP(H159,'Wattage Table'!$D:$F,3,0)*L159/F159<=VLOOKUP(D159,Validation!$O$7:$Q$9,3,0),"No","Yes"))) -> 
B160: 139 | E160: =IF(D160="","",IF(D160="None","None",INDEX('Lighting Controls Summary'!$D$19:$D$22,MATCH(D160,'Lighting Controls Summary'!$C$19:$C$22,0),1))) ->  | I160: =IF(H160="","",VLOOKUP(H160,'Wattage Table'!$D:$E,2,0)) ->  | K160: 0 | M160: =IF(OR(H160="",R160="No"),0,(((VLOOKUP(H160,'Wattage Table'!$D:$F,3,0)*J160)-(VLOOKUP(H160,'Wattage Table'!$D:$F,3,0)*(J160-K160)))*L160)/1000) -> 0 | N160: =IF(OR(H160="",R160="No"),0,(VLOOKUP(H160,'Wattage Table'!$D:$F,3,0)*L160)/1000*0.25) -> 0 | O160: 0 | P160: 0 | Q160: =IF(ISERROR(IF(H160="-","-",INDEX('Wattage Table'!$F$23:$F$451,MATCH(H160,'Wattage Table'!$D$23:$D$451,0)))*$L160)," ",IF(H160="-","-",INDEX('Wattage Table'!$F$23:$F$451,MATCH(H160,'Wattage Table'!$D$23:$D$451,0)))*$L160) ->  | R160: =IF(D160="","",IF(OR(D160="None",D160="",H160=""),"No",IF(VLOOKUP(H160,'Wattage Table'!$D:$F,3,0)*L160/F160<=VLOOKUP(D160,Validation!$O$7:$Q$9,3,0),"No","Yes"))) -> 
B161: 140 | E161: =IF(D161="","",IF(D161="None","None",INDEX('Lighting Controls Summary'!$D$19:$D$22,MATCH(D161,'Lighting Controls Summary'!$C$19:$C$22,0),1))) ->  | I161: =IF(H161="","",VLOOKUP(H161,'Wattage Table'!$D:$E,2,0)) ->  | K161: 0 | M161: =IF(OR(H161="",R161="No"),0,(((VLOOKUP(H161,'Wattage Table'!$D:$F,3,0)*J161)-(VLOOKUP(H161,'Wattage Table'!$D:$F,3,0)*(J161-K161)))*L161)/1000) -> 0 | N161: =IF(OR(H161="",R161="No"),0,(VLOOKUP(H161,'Wattage Table'!$D:$F,3,0)*L161)/1000*0.25) -> 0 | O161: 0 | P161: 0 | Q161: =IF(ISERROR(IF(H161="-","-",INDEX('Wattage Table'!$F$23:$F$451,MATCH(H161,'Wattage Table'!$D$23:$D$451,0)))*$L161)," ",IF(H161="-","-",INDEX('Wattage Table'!$F$23:$F$451,MATCH(H161,'Wattage Table'!$D$23:$D$451,0)))*$L161) ->  | R161: =IF(D161="","",IF(OR(D161="None",D161="",H161=""),"No",IF(VLOOKUP(H161,'Wattage Table'!$D:$F,3,0)*L161/F161<=VLOOKUP(D161,Validation!$O$7:$Q$9,3,0),"No","Yes"))) -> 
B162: 141 | E162: =IF(D162="","",IF(D162="None","None",INDEX('Lighting Controls Summary'!$D$19:$D$22,MATCH(D162,'Lighting Controls Summary'!$C$19:$C$22,0),1))) ->  | I162: =IF(H162="","",VLOOKUP(H162,'Wattage Table'!$D:$E,2,0)) ->  | K162: 0 | M162: =IF(OR(H162="",R162="No"),0,(((VLOOKUP(H162,'Wattage Table'!$D:$F,3,0)*J162)-(VLOOKUP(H162,'Wattage Table'!$D:$F,3,0)*(J162-K162)))*L162)/1000) -> 0 | N162: =IF(OR(H162="",R162="No"),0,(VLOOKUP(H162,'Wattage Table'!$D:$F,3,0)*L162)/1000*0.25) -> 0 | O162: 0 | P162: 0 | Q162: =IF(ISERROR(IF(H162="-","-",INDEX('Wattage Table'!$F$23:$F$451,MATCH(H162,'Wattage Table'!$D$23:$D$451,0)))*$L162)," ",IF(H162="-","-",INDEX('Wattage Table'!$F$23:$F$451,MATCH(H162,'Wattage Table'!$D$23:$D$451,0)))*$L162) ->  | R162: =IF(D162="","",IF(OR(D162="None",D162="",H162=""),"No",IF(VLOOKUP(H162,'Wattage Table'!$D:$F,3,0)*L162/F162<=VLOOKUP(D162,Validation!$O$7:$Q$9,3,0),"No","Yes"))) -> 
B163: 142 | E163: =IF(D163="","",IF(D163="None","None",INDEX('Lighting Controls Summary'!$D$19:$D$22,MATCH(D163,'Lighting Controls Summary'!$C$19:$C$22,0),1))) ->  | I163: =IF(H163="","",VLOOKUP(H163,'Wattage Table'!$D:$E,2,0)) ->  | K163: 0 | M163: =IF(OR(H163="",R163="No"),0,(((VLOOKUP(H163,'Wattage Table'!$D:$F,3,0)*J163)-(VLOOKUP(H163,'Wattage Table'!$D:$F,3,0)*(J163-K163)))*L163)/1000) -> 0 | N163: =IF(OR(H163="",R163="No"),0,(VLOOKUP(H163,'Wattage Table'!$D:$F,3,0)*L163)/1000*0.25) -> 0 | O163: 0 | P163: 0 | Q163: =IF(ISERROR(IF(H163="-","-",INDEX('Wattage Table'!$F$23:$F$451,MATCH(H163,'Wattage Table'!$D$23:$D$451,0)))*$L163)," ",IF(H163="-","-",INDEX('Wattage Table'!$F$23:$F$451,MATCH(H163,'Wattage Table'!$D$23:$D$451,0)))*$L163) ->  | R163: =IF(D163="","",IF(OR(D163="None",D163="",H163=""),"No",IF(VLOOKUP(H163,'Wattage Table'!$D:$F,3,0)*L163/F163<=VLOOKUP(D163,Validation!$O$7:$Q$9,3,0),"No","Yes"))) -> 
B164: 143 | E164: =IF(D164="","",IF(D164="None","None",INDEX('Lighting Controls Summary'!$D$19:$D$22,MATCH(D164,'Lighting Controls Summary'!$C$19:$C$22,0),1))) ->  | I164: =IF(H164="","",VLOOKUP(H164,'Wattage Table'!$D:$E,2,0)) ->  | K164: 0 | M164: =IF(OR(H164="",R164="No"),0,(((VLOOKUP(H164,'Wattage Table'!$D:$F,3,0)*J164)-(VLOOKUP(H164,'Wattage Table'!$D:$F,3,0)*(J164-K164)))*L164)/1000) -> 0 | N164: =IF(OR(H164="",R164="No"),0,(VLOOKUP(H164,'Wattage Table'!$D:$F,3,0)*L164)/1000*0.25) -> 0 | O164: 0 | P164: 0 | Q164: =IF(ISERROR(IF(H164="-","-",INDEX('Wattage Table'!$F$23:$F$451,MATCH(H164,'Wattage Table'!$D$23:$D$451,0)))*$L164)," ",IF(H164="-","-",INDEX('Wattage Table'!$F$23:$F$451,MATCH(H164,'Wattage Table'!$D$23:$D$451,0)))*$L164) ->  | R164: =IF(D164="","",IF(OR(D164="None",D164="",H164=""),"No",IF(VLOOKUP(H164,'Wattage Table'!$D:$F,3,0)*L164/F164<=VLOOKUP(D164,Validation!$O$7:$Q$9,3,0),"No","Yes"))) -> 
B165: 144 | E165: =IF(D165="","",IF(D165="None","None",INDEX('Lighting Controls Summary'!$D$19:$D$22,MATCH(D165,'Lighting Controls Summary'!$C$19:$C$22,0),1))) ->  | I165: =IF(H165="","",VLOOKUP(H165,'Wattage Table'!$D:$E,2,0)) ->  | K165: 0 | M165: =IF(OR(H165="",R165="No"),0,(((VLOOKUP(H165,'Wattage Table'!$D:$F,3,0)*J165)-(VLOOKUP(H165,'Wattage Table'!$D:$F,3,0)*(J165-K165)))*L165)/1000) -> 0 | N165: =IF(OR(H165="",R165="No"),0,(VLOOKUP(H165,'Wattage Table'!$D:$F,3,0)*L165)/1000*0.25) -> 0 | O165: 0 | P165: 0 | Q165: =IF(ISERROR(IF(H165="-","-",INDEX('Wattage Table'!$F$23:$F$451,MATCH(H165,'Wattage Table'!$D$23:$D$451,0)))*$L165)," ",IF(H165="-","-",INDEX('Wattage Table'!$F$23:$F$451,MATCH(H165,'Wattage Table'!$D$23:$D$451,0)))*$L165) ->  | R165: =IF(D165="","",IF(OR(D165="None",D165="",H165=""),"No",IF(VLOOKUP(H165,'Wattage Table'!$D:$F,3,0)*L165/F165<=VLOOKUP(D165,Validation!$O$7:$Q$9,3,0),"No","Yes"))) -> 
B166: 145 | E166: =IF(D166="","",IF(D166="None","None",INDEX('Lighting Controls Summary'!$D$19:$D$22,MATCH(D166,'Lighting Controls Summary'!$C$19:$C$22,0),1))) ->  | I166: =IF(H166="","",VLOOKUP(H166,'Wattage Table'!$D:$E,2,0)) ->  | K166: 0 | M166: =IF(OR(H166="",R166="No"),0,(((VLOOKUP(H166,'Wattage Table'!$D:$F,3,0)*J166)-(VLOOKUP(H166,'Wattage Table'!$D:$F,3,0)*(J166-K166)))*L166)/1000) -> 0 | N166: =IF(OR(H166="",R166="No"),0,(VLOOKUP(H166,'Wattage Table'!$D:$F,3,0)*L166)/1000*0.25) -> 0 | O166: 0 | P166: 0 | Q166: =IF(ISERROR(IF(H166="-","-",INDEX('Wattage Table'!$F$23:$F$451,MATCH(H166,'Wattage Table'!$D$23:$D$451,0)))*$L166)," ",IF(H166="-","-",INDEX('Wattage Table'!$F$23:$F$451,MATCH(H166,'Wattage Table'!$D$23:$D$451,0)))*$L166) ->  | R166: =IF(D166="","",IF(OR(D166="None",D166="",H166=""),"No",IF(VLOOKUP(H166,'Wattage Table'!$D:$F,3,0)*L166/F166<=VLOOKUP(D166,Validation!$O$7:$Q$9,3,0),"No","Yes"))) -> 
B167: 146 | E167: =IF(D167="","",IF(D167="None","None",INDEX('Lighting Controls Summary'!$D$19:$D$22,MATCH(D167,'Lighting Controls Summary'!$C$19:$C$22,0),1))) ->  | I167: =IF(H167="","",VLOOKUP(H167,'Wattage Table'!$D:$E,2,0)) ->  | K167: 0 | M167: =IF(OR(H167="",R167="No"),0,(((VLOOKUP(H167,'Wattage Table'!$D:$F,3,0)*J167)-(VLOOKUP(H167,'Wattage Table'!$D:$F,3,0)*(J167-K167)))*L167)/1000) -> 0 | N167: =IF(OR(H167="",R167="No"),0,(VLOOKUP(H167,'Wattage Table'!$D:$F,3,0)*L167)/1000*0.25) -> 0 | O167: 0 | P167: 0 | Q167: =IF(ISERROR(IF(H167="-","-",INDEX('Wattage Table'!$F$23:$F$451,MATCH(H167,'Wattage Table'!$D$23:$D$451,0)))*$L167)," ",IF(H167="-","-",INDEX('Wattage Table'!$F$23:$F$451,MATCH(H167,'Wattage Table'!$D$23:$D$451,0)))*$L167) ->  | R167: =IF(D167="","",IF(OR(D167="None",D167="",H167=""),"No",IF(VLOOKUP(H167,'Wattage Table'!$D:$F,3,0)*L167/F167<=VLOOKUP(D167,Validation!$O$7:$Q$9,3,0),"No","Yes"))) -> 
B168: 147 | E168: =IF(D168="","",IF(D168="None","None",INDEX('Lighting Controls Summary'!$D$19:$D$22,MATCH(D168,'Lighting Controls Summary'!$C$19:$C$22,0),1))) ->  | I168: =IF(H168="","",VLOOKUP(H168,'Wattage Table'!$D:$E,2,0)) ->  | K168: 0 | M168: =IF(OR(H168="",R168="No"),0,(((VLOOKUP(H168,'Wattage Table'!$D:$F,3,0)*J168)-(VLOOKUP(H168,'Wattage Table'!$D:$F,3,0)*(J168-K168)))*L168)/1000) -> 0 | N168: =IF(OR(H168="",R168="No"),0,(VLOOKUP(H168,'Wattage Table'!$D:$F,3,0)*L168)/1000*0.25) -> 0 | O168: 0 | P168: 0 | Q168: =IF(ISERROR(IF(H168="-","-",INDEX('Wattage Table'!$F$23:$F$451,MATCH(H168,'Wattage Table'!$D$23:$D$451,0)))*$L168)," ",IF(H168="-","-",INDEX('Wattage Table'!$F$23:$F$451,MATCH(H168,'Wattage Table'!$D$23:$D$451,0)))*$L168) ->  | R168: =IF(D168="","",IF(OR(D168="None",D168="",H168=""),"No",IF(VLOOKUP(H168,'Wattage Table'!$D:$F,3,0)*L168/F168<=VLOOKUP(D168,Validation!$O$7:$Q$9,3,0),"No","Yes"))) -> 
B169: 148 | E169: =IF(D169="","",IF(D169="None","None",INDEX('Lighting Controls Summary'!$D$19:$D$22,MATCH(D169,'Lighting Controls Summary'!$C$19:$C$22,0),1))) ->  | I169: =IF(H169="","",VLOOKUP(H169,'Wattage Table'!$D:$E,2,0)) ->  | K169: 0 | M169: =IF(OR(H169="",R169="No"),0,(((VLOOKUP(H169,'Wattage Table'!$D:$F,3,0)*J169)-(VLOOKUP(H169,'Wattage Table'!$D:$F,3,0)*(J169-K169)))*L169)/1000) -> 0 | N169: =IF(OR(H169="",R169="No"),0,(VLOOKUP(H169,'Wattage Table'!$D:$F,3,0)*L169)/1000*0.25) -> 0 | O169: 0 | P169: 0 | Q169: =IF(ISERROR(IF(H169="-","-",INDEX('Wattage Table'!$F$23:$F$451,MATCH(H169,'Wattage Table'!$D$23:$D$451,0)))*$L169)," ",IF(H169="-","-",INDEX('Wattage Table'!$F$23:$F$451,MATCH(H169,'Wattage Table'!$D$23:$D$451,0)))*$L169) ->  | R169: =IF(D169="","",IF(OR(D169="None",D169="",H169=""),"No",IF(VLOOKUP(H169,'Wattage Table'!$D:$F,3,0)*L169/F169<=VLOOKUP(D169,Validation!$O$7:$Q$9,3,0),"No","Yes"))) -> 
B170: 149 | E170: =IF(D170="","",IF(D170="None","None",INDEX('Lighting Controls Summary'!$D$19:$D$22,MATCH(D170,'Lighting Controls Summary'!$C$19:$C$22,0),1))) ->  | I170: =IF(H170="","",VLOOKUP(H170,'Wattage Table'!$D:$E,2,0)) ->  | K170: 0 | M170: =IF(OR(H170="",R170="No"),0,(((VLOOKUP(H170,'Wattage Table'!$D:$F,3,0)*J170)-(VLOOKUP(H170,'Wattage Table'!$D:$F,3,0)*(J170-K170)))*L170)/1000) -> 0 | N170: =IF(OR(H170="",R170="No"),0,(VLOOKUP(H170,'Wattage Table'!$D:$F,3,0)*L170)/1000*0.25) -> 0 | O170: 0 | P170: 0 | Q170: =IF(ISERROR(IF(H170="-","-",INDEX('Wattage Table'!$F$23:$F$451,MATCH(H170,'Wattage Table'!$D$23:$D$451,0)))*$L170)," ",IF(H170="-","-",INDEX('Wattage Table'!$F$23:$F$451,MATCH(H170,'Wattage Table'!$D$23:$D$451,0)))*$L170) ->  | R170: =IF(D170="","",IF(OR(D170="None",D170="",H170=""),"No",IF(VLOOKUP(H170,'Wattage Table'!$D:$F,3,0)*L170/F170<=VLOOKUP(D170,Validation!$O$7:$Q$9,3,0),"No","Yes"))) -> 
B171: 150 | E171: =IF(D171="","",IF(D171="None","None",INDEX('Lighting Controls Summary'!$D$19:$D$22,MATCH(D171,'Lighting Controls Summary'!$C$19:$C$22,0),1))) ->  | I171: =IF(H171="","",VLOOKUP(H171,'Wattage Table'!$D:$E,2,0)) ->  | K171: 0 | M171: =IF(OR(H171="",R171="No"),0,(((VLOOKUP(H171,'Wattage Table'!$D:$F,3,0)*J171)-(VLOOKUP(H171,'Wattage Table'!$D:$F,3,0)*(J171-K171)))*L171)/1000) -> 0 | N171: =IF(OR(H171="",R171="No"),0,(VLOOKUP(H171,'Wattage Table'!$D:$F,3,0)*L171)/1000*0.25) -> 0 | O171: 0 | P171: 0 | Q171: =IF(ISERROR(IF(H171="-","-",INDEX('Wattage Table'!$F$23:$F$451,MATCH(H171,'Wattage Table'!$D$23:$D$451,0)))*$L171)," ",IF(H171="-","-",INDEX('Wattage Table'!$F$23:$F$451,MATCH(H171,'Wattage Table'!$D$23:$D$451,0)))*$L171) ->  | R171: =IF(D171="","",IF(OR(D171="None",D171="",H171=""),"No",IF(VLOOKUP(H171,'Wattage Table'!$D:$F,3,0)*L171/F171<=VLOOKUP(D171,Validation!$O$7:$Q$9,3,0),"No","Yes"))) -> 
B172: 151 | E172: =IF(D172="","",IF(D172="None","None",INDEX('Lighting Controls Summary'!$D$19:$D$22,MATCH(D172,'Lighting Controls Summary'!$C$19:$C$22,0),1))) ->  | I172: =IF(H172="","",VLOOKUP(H172,'Wattage Table'!$D:$E,2,0)) ->  | K172: 0 | M172: =IF(OR(H172="",R172="No"),0,(((VLOOKUP(H172,'Wattage Table'!$D:$F,3,0)*J172)-(VLOOKUP(H172,'Wattage Table'!$D:$F,3,0)*(J172-K172)))*L172)/1000) -> 0 | N172: =IF(OR(H172="",R172="No"),0,(VLOOKUP(H172,'Wattage Table'!$D:$F,3,0)*L172)/1000*0.25) -> 0 | O172: 0 | P172: 0 | Q172: =IF(ISERROR(IF(H172="-","-",INDEX('Wattage Table'!$F$23:$F$451,MATCH(H172,'Wattage Table'!$D$23:$D$451,0)))*$L172)," ",IF(H172="-","-",INDEX('Wattage Table'!$F$23:$F$451,MATCH(H172,'Wattage Table'!$D$23:$D$451,0)))*$L172) ->  | R172: =IF(D172="","",IF(OR(D172="None",D172="",H172=""),"No",IF(VLOOKUP(H172,'Wattage Table'!$D:$F,3,0)*L172/F172<=VLOOKUP(D172,Validation!$O$7:$Q$9,3,0),"No","Yes"))) -> 
B173: 152 | E173: =IF(D173="","",IF(D173="None","None",INDEX('Lighting Controls Summary'!$D$19:$D$22,MATCH(D173,'Lighting Controls Summary'!$C$19:$C$22,0),1))) ->  | I173: =IF(H173="","",VLOOKUP(H173,'Wattage Table'!$D:$E,2,0)) ->  | K173: 0 | M173: =IF(OR(H173="",R173="No"),0,(((VLOOKUP(H173,'Wattage Table'!$D:$F,3,0)*J173)-(VLOOKUP(H173,'Wattage Table'!$D:$F,3,0)*(J173-K173)))*L173)/1000) -> 0 | N173: =IF(OR(H173="",R173="No"),0,(VLOOKUP(H173,'Wattage Table'!$D:$F,3,0)*L173)/1000*0.25) -> 0 | O173: 0 | P173: 0 | Q173: =IF(ISERROR(IF(H173="-","-",INDEX('Wattage Table'!$F$23:$F$451,MATCH(H173,'Wattage Table'!$D$23:$D$451,0)))*$L173)," ",IF(H173="-","-",INDEX('Wattage Table'!$F$23:$F$451,MATCH(H173,'Wattage Table'!$D$23:$D$451,0)))*$L173) ->  | R173: =IF(D173="","",IF(OR(D173="None",D173="",H173=""),"No",IF(VLOOKUP(H173,'Wattage Table'!$D:$F,3,0)*L173/F173<=VLOOKUP(D173,Validation!$O$7:$Q$9,3,0),"No","Yes"))) -> 
B174: 153 | E174: =IF(D174="","",IF(D174="None","None",INDEX('Lighting Controls Summary'!$D$19:$D$22,MATCH(D174,'Lighting Controls Summary'!$C$19:$C$22,0),1))) ->  | I174: =IF(H174="","",VLOOKUP(H174,'Wattage Table'!$D:$E,2,0)) ->  | K174: 0 | M174: =IF(OR(H174="",R174="No"),0,(((VLOOKUP(H174,'Wattage Table'!$D:$F,3,0)*J174)-(VLOOKUP(H174,'Wattage Table'!$D:$F,3,0)*(J174-K174)))*L174)/1000) -> 0 | N174: =IF(OR(H174="",R174="No"),0,(VLOOKUP(H174,'Wattage Table'!$D:$F,3,0)*L174)/1000*0.25) -> 0 | O174: 0 | P174: 0 | Q174: =IF(ISERROR(IF(H174="-","-",INDEX('Wattage Table'!$F$23:$F$451,MATCH(H174,'Wattage Table'!$D$23:$D$451,0)))*$L174)," ",IF(H174="-","-",INDEX('Wattage Table'!$F$23:$F$451,MATCH(H174,'Wattage Table'!$D$23:$D$451,0)))*$L174) ->  | R174: =IF(D174="","",IF(OR(D174="None",D174="",H174=""),"No",IF(VLOOKUP(H174,'Wattage Table'!$D:$F,3,0)*L174/F174<=VLOOKUP(D174,Validation!$O$7:$Q$9,3,0),"No","Yes"))) -> 
B175: 154 | E175: =IF(D175="","",IF(D175="None","None",INDEX('Lighting Controls Summary'!$D$19:$D$22,MATCH(D175,'Lighting Controls Summary'!$C$19:$C$22,0),1))) ->  | I175: =IF(H175="","",VLOOKUP(H175,'Wattage Table'!$D:$E,2,0)) ->  | K175: 0 | M175: =IF(OR(H175="",R175="No"),0,(((VLOOKUP(H175,'Wattage Table'!$D:$F,3,0)*J175)-(VLOOKUP(H175,'Wattage Table'!$D:$F,3,0)*(J175-K175)))*L175)/1000) -> 0 | N175: =IF(OR(H175="",R175="No"),0,(VLOOKUP(H175,'Wattage Table'!$D:$F,3,0)*L175)/1000*0.25) -> 0 | O175: 0 | P175: 0 | Q175: =IF(ISERROR(IF(H175="-","-",INDEX('Wattage Table'!$F$23:$F$451,MATCH(H175,'Wattage Table'!$D$23:$D$451,0)))*$L175)," ",IF(H175="-","-",INDEX('Wattage Table'!$F$23:$F$451,MATCH(H175,'Wattage Table'!$D$23:$D$451,0)))*$L175) ->  | R175: =IF(D175="","",IF(OR(D175="None",D175="",H175=""),"No",IF(VLOOKUP(H175,'Wattage Table'!$D:$F,3,0)*L175/F175<=VLOOKUP(D175,Validation!$O$7:$Q$9,3,0),"No","Yes"))) -> 
B176: 155 | E176: =IF(D176="","",IF(D176="None","None",INDEX('Lighting Controls Summary'!$D$19:$D$22,MATCH(D176,'Lighting Controls Summary'!$C$19:$C$22,0),1))) ->  | I176: =IF(H176="","",VLOOKUP(H176,'Wattage Table'!$D:$E,2,0)) ->  | K176: 0 | M176: =IF(OR(H176="",R176="No"),0,(((VLOOKUP(H176,'Wattage Table'!$D:$F,3,0)*J176)-(VLOOKUP(H176,'Wattage Table'!$D:$F,3,0)*(J176-K176)))*L176)/1000) -> 0 | N176: =IF(OR(H176="",R176="No"),0,(VLOOKUP(H176,'Wattage Table'!$D:$F,3,0)*L176)/1000*0.25) -> 0 | O176: 0 | P176: 0 | Q176: =IF(ISERROR(IF(H176="-","-",INDEX('Wattage Table'!$F$23:$F$451,MATCH(H176,'Wattage Table'!$D$23:$D$451,0)))*$L176)," ",IF(H176="-","-",INDEX('Wattage Table'!$F$23:$F$451,MATCH(H176,'Wattage Table'!$D$23:$D$451,0)))*$L176) ->  | R176: =IF(D176="","",IF(OR(D176="None",D176="",H176=""),"No",IF(VLOOKUP(H176,'Wattage Table'!$D:$F,3,0)*L176/F176<=VLOOKUP(D176,Validation!$O$7:$Q$9,3,0),"No","Yes"))) -> 
B177: 156 | E177: =IF(D177="","",IF(D177="None","None",INDEX('Lighting Controls Summary'!$D$19:$D$22,MATCH(D177,'Lighting Controls Summary'!$C$19:$C$22,0),1))) ->  | I177: =IF(H177="","",VLOOKUP(H177,'Wattage Table'!$D:$E,2,0)) ->  | K177: 0 | M177: =IF(OR(H177="",R177="No"),0,(((VLOOKUP(H177,'Wattage Table'!$D:$F,3,0)*J177)-(VLOOKUP(H177,'Wattage Table'!$D:$F,3,0)*(J177-K177)))*L177)/1000) -> 0 | N177: =IF(OR(H177="",R177="No"),0,(VLOOKUP(H177,'Wattage Table'!$D:$F,3,0)*L177)/1000*0.25) -> 0 | O177: 0 | P177: 0 | Q177: =IF(ISERROR(IF(H177="-","-",INDEX('Wattage Table'!$F$23:$F$451,MATCH(H177,'Wattage Table'!$D$23:$D$451,0)))*$L177)," ",IF(H177="-","-",INDEX('Wattage Table'!$F$23:$F$451,MATCH(H177,'Wattage Table'!$D$23:$D$451,0)))*$L177) ->  | R177: =IF(D177="","",IF(OR(D177="None",D177="",H177=""),"No",IF(VLOOKUP(H177,'Wattage Table'!$D:$F,3,0)*L177/F177<=VLOOKUP(D177,Validation!$O$7:$Q$9,3,0),"No","Yes"))) -> 
B178: 157 | E178: =IF(D178="","",IF(D178="None","None",INDEX('Lighting Controls Summary'!$D$19:$D$22,MATCH(D178,'Lighting Controls Summary'!$C$19:$C$22,0),1))) ->  | I178: =IF(H178="","",VLOOKUP(H178,'Wattage Table'!$D:$E,2,0)) ->  | K178: 0 | M178: =IF(OR(H178="",R178="No"),0,(((VLOOKUP(H178,'Wattage Table'!$D:$F,3,0)*J178)-(VLOOKUP(H178,'Wattage Table'!$D:$F,3,0)*(J178-K178)))*L178)/1000) -> 0 | N178: =IF(OR(H178="",R178="No"),0,(VLOOKUP(H178,'Wattage Table'!$D:$F,3,0)*L178)/1000*0.25) -> 0 | O178: 0 | P178: 0 | Q178: =IF(ISERROR(IF(H178="-","-",INDEX('Wattage Table'!$F$23:$F$451,MATCH(H178,'Wattage Table'!$D$23:$D$451,0)))*$L178)," ",IF(H178="-","-",INDEX('Wattage Table'!$F$23:$F$451,MATCH(H178,'Wattage Table'!$D$23:$D$451,0)))*$L178) ->  | R178: =IF(D178="","",IF(OR(D178="None",D178="",H178=""),"No",IF(VLOOKUP(H178,'Wattage Table'!$D:$F,3,0)*L178/F178<=VLOOKUP(D178,Validation!$O$7:$Q$9,3,0),"No","Yes"))) -> 
B179: 158 | E179: =IF(D179="","",IF(D179="None","None",INDEX('Lighting Controls Summary'!$D$19:$D$22,MATCH(D179,'Lighting Controls Summary'!$C$19:$C$22,0),1))) ->  | I179: =IF(H179="","",VLOOKUP(H179,'Wattage Table'!$D:$E,2,0)) ->  | K179: 0 | M179: =IF(OR(H179="",R179="No"),0,(((VLOOKUP(H179,'Wattage Table'!$D:$F,3,0)*J179)-(VLOOKUP(H179,'Wattage Table'!$D:$F,3,0)*(J179-K179)))*L179)/1000) -> 0 | N179: =IF(OR(H179="",R179="No"),0,(VLOOKUP(H179,'Wattage Table'!$D:$F,3,0)*L179)/1000*0.25) -> 0 | O179: 0 | P179: 0 | Q179: =IF(ISERROR(IF(H179="-","-",INDEX('Wattage Table'!$F$23:$F$451,MATCH(H179,'Wattage Table'!$D$23:$D$451,0)))*$L179)," ",IF(H179="-","-",INDEX('Wattage Table'!$F$23:$F$451,MATCH(H179,'Wattage Table'!$D$23:$D$451,0)))*$L179) ->  | R179: =IF(D179="","",IF(OR(D179="None",D179="",H179=""),"No",IF(VLOOKUP(H179,'Wattage Table'!$D:$F,3,0)*L179/F179<=VLOOKUP(D179,Validation!$O$7:$Q$9,3,0),"No","Yes"))) -> 
B180: 159 | E180: =IF(D180="","",IF(D180="None","None",INDEX('Lighting Controls Summary'!$D$19:$D$22,MATCH(D180,'Lighting Controls Summary'!$C$19:$C$22,0),1))) ->  | I180: =IF(H180="","",VLOOKUP(H180,'Wattage Table'!$D:$E,2,0)) ->  | K180: 0 | M180: =IF(OR(H180="",R180="No"),0,(((VLOOKUP(H180,'Wattage Table'!$D:$F,3,0)*J180)-(VLOOKUP(H180,'Wattage Table'!$D:$F,3,0)*(J180-K180)))*L180)/1000) -> 0 | N180: =IF(OR(H180="",R180="No"),0,(VLOOKUP(H180,'Wattage Table'!$D:$F,3,0)*L180)/1000*0.25) -> 0 | O180: 0 | P180: 0 | Q180: =IF(ISERROR(IF(H180="-","-",INDEX('Wattage Table'!$F$23:$F$451,MATCH(H180,'Wattage Table'!$D$23:$D$451,0)))*$L180)," ",IF(H180="-","-",INDEX('Wattage Table'!$F$23:$F$451,MATCH(H180,'Wattage Table'!$D$23:$D$451,0)))*$L180) ->  | R180: =IF(D180="","",IF(OR(D180="None",D180="",H180=""),"No",IF(VLOOKUP(H180,'Wattage Table'!$D:$F,3,0)*L180/F180<=VLOOKUP(D180,Validation!$O$7:$Q$9,3,0),"No","Yes"))) -> 
B181: 160 | E181: =IF(D181="","",IF(D181="None","None",INDEX('Lighting Controls Summary'!$D$19:$D$22,MATCH(D181,'Lighting Controls Summary'!$C$19:$C$22,0),1))) ->  | I181: =IF(H181="","",VLOOKUP(H181,'Wattage Table'!$D:$E,2,0)) ->  | K181: 0 | M181: =IF(OR(H181="",R181="No"),0,(((VLOOKUP(H181,'Wattage Table'!$D:$F,3,0)*J181)-(VLOOKUP(H181,'Wattage Table'!$D:$F,3,0)*(J181-K181)))*L181)/1000) -> 0 | N181: =IF(OR(H181="",R181="No"),0,(VLOOKUP(H181,'Wattage Table'!$D:$F,3,0)*L181)/1000*0.25) -> 0 | O181: 0 | P181: 0 | Q181: =IF(ISERROR(IF(H181="-","-",INDEX('Wattage Table'!$F$23:$F$451,MATCH(H181,'Wattage Table'!$D$23:$D$451,0)))*$L181)," ",IF(H181="-","-",INDEX('Wattage Table'!$F$23:$F$451,MATCH(H181,'Wattage Table'!$D$23:$D$451,0)))*$L181) ->  | R181: =IF(D181="","",IF(OR(D181="None",D181="",H181=""),"No",IF(VLOOKUP(H181,'Wattage Table'!$D:$F,3,0)*L181/F181<=VLOOKUP(D181,Validation!$O$7:$Q$9,3,0),"No","Yes"))) -> 
B182: 161 | E182: =IF(D182="","",IF(D182="None","None",INDEX('Lighting Controls Summary'!$D$19:$D$22,MATCH(D182,'Lighting Controls Summary'!$C$19:$C$22,0),1))) ->  | I182: =IF(H182="","",VLOOKUP(H182,'Wattage Table'!$D:$E,2,0)) ->  | K182: 0 | M182: =IF(OR(H182="",R182="No"),0,(((VLOOKUP(H182,'Wattage Table'!$D:$F,3,0)*J182)-(VLOOKUP(H182,'Wattage Table'!$D:$F,3,0)*(J182-K182)))*L182)/1000) -> 0 | N182: =IF(OR(H182="",R182="No"),0,(VLOOKUP(H182,'Wattage Table'!$D:$F,3,0)*L182)/1000*0.25) -> 0 | O182: 0 | P182: 0 | Q182: =IF(ISERROR(IF(H182="-","-",INDEX('Wattage Table'!$F$23:$F$451,MATCH(H182,'Wattage Table'!$D$23:$D$451,0)))*$L182)," ",IF(H182="-","-",INDEX('Wattage Table'!$F$23:$F$451,MATCH(H182,'Wattage Table'!$D$23:$D$451,0)))*$L182) ->  | R182: =IF(D182="","",IF(OR(D182="None",D182="",H182=""),"No",IF(VLOOKUP(H182,'Wattage Table'!$D:$F,3,0)*L182/F182<=VLOOKUP(D182,Validation!$O$7:$Q$9,3,0),"No","Yes"))) -> 
B183: 162 | E183: =IF(D183="","",IF(D183="None","None",INDEX('Lighting Controls Summary'!$D$19:$D$22,MATCH(D183,'Lighting Controls Summary'!$C$19:$C$22,0),1))) ->  | I183: =IF(H183="","",VLOOKUP(H183,'Wattage Table'!$D:$E,2,0)) ->  | K183: 0 | M183: =IF(OR(H183="",R183="No"),0,(((VLOOKUP(H183,'Wattage Table'!$D:$F,3,0)*J183)-(VLOOKUP(H183,'Wattage Table'!$D:$F,3,0)*(J183-K183)))*L183)/1000) -> 0 | N183: =IF(OR(H183="",R183="No"),0,(VLOOKUP(H183,'Wattage Table'!$D:$F,3,0)*L183)/1000*0.25) -> 0 | O183: 0 | P183: 0 | Q183: =IF(ISERROR(IF(H183="-","-",INDEX('Wattage Table'!$F$23:$F$451,MATCH(H183,'Wattage Table'!$D$23:$D$451,0)))*$L183)," ",IF(H183="-","-",INDEX('Wattage Table'!$F$23:$F$451,MATCH(H183,'Wattage Table'!$D$23:$D$451,0)))*$L183) ->  | R183: =IF(D183="","",IF(OR(D183="None",D183="",H183=""),"No",IF(VLOOKUP(H183,'Wattage Table'!$D:$F,3,0)*L183/F183<=VLOOKUP(D183,Validation!$O$7:$Q$9,3,0),"No","Yes"))) -> 
B184: 163 | E184: =IF(D184="","",IF(D184="None","None",INDEX('Lighting Controls Summary'!$D$19:$D$22,MATCH(D184,'Lighting Controls Summary'!$C$19:$C$22,0),1))) ->  | I184: =IF(H184="","",VLOOKUP(H184,'Wattage Table'!$D:$E,2,0)) ->  | K184: 0 | M184: =IF(OR(H184="",R184="No"),0,(((VLOOKUP(H184,'Wattage Table'!$D:$F,3,0)*J184)-(VLOOKUP(H184,'Wattage Table'!$D:$F,3,0)*(J184-K184)))*L184)/1000) -> 0 | N184: =IF(OR(H184="",R184="No"),0,(VLOOKUP(H184,'Wattage Table'!$D:$F,3,0)*L184)/1000*0.25) -> 0 | O184: 0 | P184: 0 | Q184: =IF(ISERROR(IF(H184="-","-",INDEX('Wattage Table'!$F$23:$F$451,MATCH(H184,'Wattage Table'!$D$23:$D$451,0)))*$L184)," ",IF(H184="-","-",INDEX('Wattage Table'!$F$23:$F$451,MATCH(H184,'Wattage Table'!$D$23:$D$451,0)))*$L184) ->  | R184: =IF(D184="","",IF(OR(D184="None",D184="",H184=""),"No",IF(VLOOKUP(H184,'Wattage Table'!$D:$F,3,0)*L184/F184<=VLOOKUP(D184,Validation!$O$7:$Q$9,3,0),"No","Yes"))) -> 
B185: 164 | E185: =IF(D185="","",IF(D185="None","None",INDEX('Lighting Controls Summary'!$D$19:$D$22,MATCH(D185,'Lighting Controls Summary'!$C$19:$C$22,0),1))) ->  | I185: =IF(H185="","",VLOOKUP(H185,'Wattage Table'!$D:$E,2,0)) ->  | K185: 0 | M185: =IF(OR(H185="",R185="No"),0,(((VLOOKUP(H185,'Wattage Table'!$D:$F,3,0)*J185)-(VLOOKUP(H185,'Wattage Table'!$D:$F,3,0)*(J185-K185)))*L185)/1000) -> 0 | N185: =IF(OR(H185="",R185="No"),0,(VLOOKUP(H185,'Wattage Table'!$D:$F,3,0)*L185)/1000*0.25) -> 0 | O185: 0 | P185: 0 | Q185: =IF(ISERROR(IF(H185="-","-",INDEX('Wattage Table'!$F$23:$F$451,MATCH(H185,'Wattage Table'!$D$23:$D$451,0)))*$L185)," ",IF(H185="-","-",INDEX('Wattage Table'!$F$23:$F$451,MATCH(H185,'Wattage Table'!$D$23:$D$451,0)))*$L185) ->  | R185: =IF(D185="","",IF(OR(D185="None",D185="",H185=""),"No",IF(VLOOKUP(H185,'Wattage Table'!$D:$F,3,0)*L185/F185<=VLOOKUP(D185,Validation!$O$7:$Q$9,3,0),"No","Yes"))) -> 
B186: 165 | E186: =IF(D186="","",IF(D186="None","None",INDEX('Lighting Controls Summary'!$D$19:$D$22,MATCH(D186,'Lighting Controls Summary'!$C$19:$C$22,0),1))) ->  | I186: =IF(H186="","",VLOOKUP(H186,'Wattage Table'!$D:$E,2,0)) ->  | K186: 0 | M186: =IF(OR(H186="",R186="No"),0,(((VLOOKUP(H186,'Wattage Table'!$D:$F,3,0)*J186)-(VLOOKUP(H186,'Wattage Table'!$D:$F,3,0)*(J186-K186)))*L186)/1000) -> 0 | N186: =IF(OR(H186="",R186="No"),0,(VLOOKUP(H186,'Wattage Table'!$D:$F,3,0)*L186)/1000*0.25) -> 0 | O186: 0 | P186: 0 | Q186: =IF(ISERROR(IF(H186="-","-",INDEX('Wattage Table'!$F$23:$F$451,MATCH(H186,'Wattage Table'!$D$23:$D$451,0)))*$L186)," ",IF(H186="-","-",INDEX('Wattage Table'!$F$23:$F$451,MATCH(H186,'Wattage Table'!$D$23:$D$451,0)))*$L186) ->  | R186: =IF(D186="","",IF(OR(D186="None",D186="",H186=""),"No",IF(VLOOKUP(H186,'Wattage Table'!$D:$F,3,0)*L186/F186<=VLOOKUP(D186,Validation!$O$7:$Q$9,3,0),"No","Yes"))) -> 
B187: 166 | E187: =IF(D187="","",IF(D187="None","None",INDEX('Lighting Controls Summary'!$D$19:$D$22,MATCH(D187,'Lighting Controls Summary'!$C$19:$C$22,0),1))) ->  | I187: =IF(H187="","",VLOOKUP(H187,'Wattage Table'!$D:$E,2,0)) ->  | K187: 0 | M187: =IF(OR(H187="",R187="No"),0,(((VLOOKUP(H187,'Wattage Table'!$D:$F,3,0)*J187)-(VLOOKUP(H187,'Wattage Table'!$D:$F,3,0)*(J187-K187)))*L187)/1000) -> 0 | N187: =IF(OR(H187="",R187="No"),0,(VLOOKUP(H187,'Wattage Table'!$D:$F,3,0)*L187)/1000*0.25) -> 0 | O187: 0 | P187: 0 | Q187: =IF(ISERROR(IF(H187="-","-",INDEX('Wattage Table'!$F$23:$F$451,MATCH(H187,'Wattage Table'!$D$23:$D$451,0)))*$L187)," ",IF(H187="-","-",INDEX('Wattage Table'!$F$23:$F$451,MATCH(H187,'Wattage Table'!$D$23:$D$451,0)))*$L187) ->  | R187: =IF(D187="","",IF(OR(D187="None",D187="",H187=""),"No",IF(VLOOKUP(H187,'Wattage Table'!$D:$F,3,0)*L187/F187<=VLOOKUP(D187,Validation!$O$7:$Q$9,3,0),"No","Yes"))) -> 
B188: 167 | E188: =IF(D188="","",IF(D188="None","None",INDEX('Lighting Controls Summary'!$D$19:$D$22,MATCH(D188,'Lighting Controls Summary'!$C$19:$C$22,0),1))) ->  | I188: =IF(H188="","",VLOOKUP(H188,'Wattage Table'!$D:$E,2,0)) ->  | K188: 0 | M188: =IF(OR(H188="",R188="No"),0,(((VLOOKUP(H188,'Wattage Table'!$D:$F,3,0)*J188)-(VLOOKUP(H188,'Wattage Table'!$D:$F,3,0)*(J188-K188)))*L188)/1000) -> 0 | N188: =IF(OR(H188="",R188="No"),0,(VLOOKUP(H188,'Wattage Table'!$D:$F,3,0)*L188)/1000*0.25) -> 0 | O188: 0 | P188: 0 | Q188: =IF(ISERROR(IF(H188="-","-",INDEX('Wattage Table'!$F$23:$F$451,MATCH(H188,'Wattage Table'!$D$23:$D$451,0)))*$L188)," ",IF(H188="-","-",INDEX('Wattage Table'!$F$23:$F$451,MATCH(H188,'Wattage Table'!$D$23:$D$451,0)))*$L188) ->  | R188: =IF(D188="","",IF(OR(D188="None",D188="",H188=""),"No",IF(VLOOKUP(H188,'Wattage Table'!$D:$F,3,0)*L188/F188<=VLOOKUP(D188,Validation!$O$7:$Q$9,3,0),"No","Yes"))) -> 
B189: 168 | E189: =IF(D189="","",IF(D189="None","None",INDEX('Lighting Controls Summary'!$D$19:$D$22,MATCH(D189,'Lighting Controls Summary'!$C$19:$C$22,0),1))) ->  | I189: =IF(H189="","",VLOOKUP(H189,'Wattage Table'!$D:$E,2,0)) ->  | K189: 0 | M189: =IF(OR(H189="",R189="No"),0,(((VLOOKUP(H189,'Wattage Table'!$D:$F,3,0)*J189)-(VLOOKUP(H189,'Wattage Table'!$D:$F,3,0)*(J189-K189)))*L189)/1000) -> 0 | N189: =IF(OR(H189="",R189="No"),0,(VLOOKUP(H189,'Wattage Table'!$D:$F,3,0)*L189)/1000*0.25) -> 0 | O189: 0 | P189: 0 | Q189: =IF(ISERROR(IF(H189="-","-",INDEX('Wattage Table'!$F$23:$F$451,MATCH(H189,'Wattage Table'!$D$23:$D$451,0)))*$L189)," ",IF(H189="-","-",INDEX('Wattage Table'!$F$23:$F$451,MATCH(H189,'Wattage Table'!$D$23:$D$451,0)))*$L189) ->  | R189: =IF(D189="","",IF(OR(D189="None",D189="",H189=""),"No",IF(VLOOKUP(H189,'Wattage Table'!$D:$F,3,0)*L189/F189<=VLOOKUP(D189,Validation!$O$7:$Q$9,3,0),"No","Yes"))) -> 
B190: 169 | E190: =IF(D190="","",IF(D190="None","None",INDEX('Lighting Controls Summary'!$D$19:$D$22,MATCH(D190,'Lighting Controls Summary'!$C$19:$C$22,0),1))) ->  | I190: =IF(H190="","",VLOOKUP(H190,'Wattage Table'!$D:$E,2,0)) ->  | K190: 0 | M190: =IF(OR(H190="",R190="No"),0,(((VLOOKUP(H190,'Wattage Table'!$D:$F,3,0)*J190)-(VLOOKUP(H190,'Wattage Table'!$D:$F,3,0)*(J190-K190)))*L190)/1000) -> 0 | N190: =IF(OR(H190="",R190="No"),0,(VLOOKUP(H190,'Wattage Table'!$D:$F,3,0)*L190)/1000*0.25) -> 0 | O190: 0 | P190: 0 | Q190: =IF(ISERROR(IF(H190="-","-",INDEX('Wattage Table'!$F$23:$F$451,MATCH(H190,'Wattage Table'!$D$23:$D$451,0)))*$L190)," ",IF(H190="-","-",INDEX('Wattage Table'!$F$23:$F$451,MATCH(H190,'Wattage Table'!$D$23:$D$451,0)))*$L190) ->  | R190: =IF(D190="","",IF(OR(D190="None",D190="",H190=""),"No",IF(VLOOKUP(H190,'Wattage Table'!$D:$F,3,0)*L190/F190<=VLOOKUP(D190,Validation!$O$7:$Q$9,3,0),"No","Yes"))) -> 
B191: 170 | E191: =IF(D191="","",IF(D191="None","None",INDEX('Lighting Controls Summary'!$D$19:$D$22,MATCH(D191,'Lighting Controls Summary'!$C$19:$C$22,0),1))) ->  | I191: =IF(H191="","",VLOOKUP(H191,'Wattage Table'!$D:$E,2,0)) ->  | K191: 0 | M191: =IF(OR(H191="",R191="No"),0,(((VLOOKUP(H191,'Wattage Table'!$D:$F,3,0)*J191)-(VLOOKUP(H191,'Wattage Table'!$D:$F,3,0)*(J191-K191)))*L191)/1000) -> 0 | N191: =IF(OR(H191="",R191="No"),0,(VLOOKUP(H191,'Wattage Table'!$D:$F,3,0)*L191)/1000*0.25) -> 0 | O191: 0 | P191: 0 | Q191: =IF(ISERROR(IF(H191="-","-",INDEX('Wattage Table'!$F$23:$F$451,MATCH(H191,'Wattage Table'!$D$23:$D$451,0)))*$L191)," ",IF(H191="-","-",INDEX('Wattage Table'!$F$23:$F$451,MATCH(H191,'Wattage Table'!$D$23:$D$451,0)))*$L191) ->  | R191: =IF(D191="","",IF(OR(D191="None",D191="",H191=""),"No",IF(VLOOKUP(H191,'Wattage Table'!$D:$F,3,0)*L191/F191<=VLOOKUP(D191,Validation!$O$7:$Q$9,3,0),"No","Yes"))) -> 
B192: 171 | E192: =IF(D192="","",IF(D192="None","None",INDEX('Lighting Controls Summary'!$D$19:$D$22,MATCH(D192,'Lighting Controls Summary'!$C$19:$C$22,0),1))) ->  | I192: =IF(H192="","",VLOOKUP(H192,'Wattage Table'!$D:$E,2,0)) ->  | K192: 0 | M192: =IF(OR(H192="",R192="No"),0,(((VLOOKUP(H192,'Wattage Table'!$D:$F,3,0)*J192)-(VLOOKUP(H192,'Wattage Table'!$D:$F,3,0)*(J192-K192)))*L192)/1000) -> 0 | N192: =IF(OR(H192="",R192="No"),0,(VLOOKUP(H192,'Wattage Table'!$D:$F,3,0)*L192)/1000*0.25) -> 0 | O192: 0 | P192: 0 | Q192: =IF(ISERROR(IF(H192="-","-",INDEX('Wattage Table'!$F$23:$F$451,MATCH(H192,'Wattage Table'!$D$23:$D$451,0)))*$L192)," ",IF(H192="-","-",INDEX('Wattage Table'!$F$23:$F$451,MATCH(H192,'Wattage Table'!$D$23:$D$451,0)))*$L192) ->  | R192: =IF(D192="","",IF(OR(D192="None",D192="",H192=""),"No",IF(VLOOKUP(H192,'Wattage Table'!$D:$F,3,0)*L192/F192<=VLOOKUP(D192,Validation!$O$7:$Q$9,3,0),"No","Yes"))) -> 
B193: 172 | E193: =IF(D193="","",IF(D193="None","None",INDEX('Lighting Controls Summary'!$D$19:$D$22,MATCH(D193,'Lighting Controls Summary'!$C$19:$C$22,0),1))) ->  | I193: =IF(H193="","",VLOOKUP(H193,'Wattage Table'!$D:$E,2,0)) ->  | K193: 0 | M193: =IF(OR(H193="",R193="No"),0,(((VLOOKUP(H193,'Wattage Table'!$D:$F,3,0)*J193)-(VLOOKUP(H193,'Wattage Table'!$D:$F,3,0)*(J193-K193)))*L193)/1000) -> 0 | N193: =IF(OR(H193="",R193="No"),0,(VLOOKUP(H193,'Wattage Table'!$D:$F,3,0)*L193)/1000*0.25) -> 0 | O193: 0 | P193: 0 | Q193: =IF(ISERROR(IF(H193="-","-",INDEX('Wattage Table'!$F$23:$F$451,MATCH(H193,'Wattage Table'!$D$23:$D$451,0)))*$L193)," ",IF(H193="-","-",INDEX('Wattage Table'!$F$23:$F$451,MATCH(H193,'Wattage Table'!$D$23:$D$451,0)))*$L193) ->  | R193: =IF(D193="","",IF(OR(D193="None",D193="",H193=""),"No",IF(VLOOKUP(H193,'Wattage Table'!$D:$F,3,0)*L193/F193<=VLOOKUP(D193,Validation!$O$7:$Q$9,3,0),"No","Yes"))) -> 
B194: 173 | E194: =IF(D194="","",IF(D194="None","None",INDEX('Lighting Controls Summary'!$D$19:$D$22,MATCH(D194,'Lighting Controls Summary'!$C$19:$C$22,0),1))) ->  | I194: =IF(H194="","",VLOOKUP(H194,'Wattage Table'!$D:$E,2,0)) ->  | K194: 0 | M194: =IF(OR(H194="",R194="No"),0,(((VLOOKUP(H194,'Wattage Table'!$D:$F,3,0)*J194)-(VLOOKUP(H194,'Wattage Table'!$D:$F,3,0)*(J194-K194)))*L194)/1000) -> 0 | N194: =IF(OR(H194="",R194="No"),0,(VLOOKUP(H194,'Wattage Table'!$D:$F,3,0)*L194)/1000*0.25) -> 0 | O194: 0 | P194: 0 | Q194: =IF(ISERROR(IF(H194="-","-",INDEX('Wattage Table'!$F$23:$F$451,MATCH(H194,'Wattage Table'!$D$23:$D$451,0)))*$L194)," ",IF(H194="-","-",INDEX('Wattage Table'!$F$23:$F$451,MATCH(H194,'Wattage Table'!$D$23:$D$451,0)))*$L194) ->  | R194: =IF(D194="","",IF(OR(D194="None",D194="",H194=""),"No",IF(VLOOKUP(H194,'Wattage Table'!$D:$F,3,0)*L194/F194<=VLOOKUP(D194,Validation!$O$7:$Q$9,3,0),"No","Yes"))) -> 
B195: 174 | E195: =IF(D195="","",IF(D195="None","None",INDEX('Lighting Controls Summary'!$D$19:$D$22,MATCH(D195,'Lighting Controls Summary'!$C$19:$C$22,0),1))) ->  | I195: =IF(H195="","",VLOOKUP(H195,'Wattage Table'!$D:$E,2,0)) ->  | K195: 0 | M195: =IF(OR(H195="",R195="No"),0,(((VLOOKUP(H195,'Wattage Table'!$D:$F,3,0)*J195)-(VLOOKUP(H195,'Wattage Table'!$D:$F,3,0)*(J195-K195)))*L195)/1000) -> 0 | N195: =IF(OR(H195="",R195="No"),0,(VLOOKUP(H195,'Wattage Table'!$D:$F,3,0)*L195)/1000*0.25) -> 0 | O195: 0 | P195: 0 | Q195: =IF(ISERROR(IF(H195="-","-",INDEX('Wattage Table'!$F$23:$F$451,MATCH(H195,'Wattage Table'!$D$23:$D$451,0)))*$L195)," ",IF(H195="-","-",INDEX('Wattage Table'!$F$23:$F$451,MATCH(H195,'Wattage Table'!$D$23:$D$451,0)))*$L195) ->  | R195: =IF(D195="","",IF(OR(D195="None",D195="",H195=""),"No",IF(VLOOKUP(H195,'Wattage Table'!$D:$F,3,0)*L195/F195<=VLOOKUP(D195,Validation!$O$7:$Q$9,3,0),"No","Yes"))) -> 
B196: 175 | E196: =IF(D196="","",IF(D196="None","None",INDEX('Lighting Controls Summary'!$D$19:$D$22,MATCH(D196,'Lighting Controls Summary'!$C$19:$C$22,0),1))) ->  | I196: =IF(H196="","",VLOOKUP(H196,'Wattage Table'!$D:$E,2,0)) ->  | K196: 0 | M196: =IF(OR(H196="",R196="No"),0,(((VLOOKUP(H196,'Wattage Table'!$D:$F,3,0)*J196)-(VLOOKUP(H196,'Wattage Table'!$D:$F,3,0)*(J196-K196)))*L196)/1000) -> 0 | N196: =IF(OR(H196="",R196="No"),0,(VLOOKUP(H196,'Wattage Table'!$D:$F,3,0)*L196)/1000*0.25) -> 0 | O196: 0 | P196: 0 | Q196: =IF(ISERROR(IF(H196="-","-",INDEX('Wattage Table'!$F$23:$F$451,MATCH(H196,'Wattage Table'!$D$23:$D$451,0)))*$L196)," ",IF(H196="-","-",INDEX('Wattage Table'!$F$23:$F$451,MATCH(H196,'Wattage Table'!$D$23:$D$451,0)))*$L196) ->  | R196: =IF(D196="","",IF(OR(D196="None",D196="",H196=""),"No",IF(VLOOKUP(H196,'Wattage Table'!$D:$F,3,0)*L196/F196<=VLOOKUP(D196,Validation!$O$7:$Q$9,3,0),"No","Yes"))) -> 
B197: 176 | E197: =IF(D197="","",IF(D197="None","None",INDEX('Lighting Controls Summary'!$D$19:$D$22,MATCH(D197,'Lighting Controls Summary'!$C$19:$C$22,0),1))) ->  | I197: =IF(H197="","",VLOOKUP(H197,'Wattage Table'!$D:$E,2,0)) ->  | K197: 0 | M197: =IF(OR(H197="",R197="No"),0,(((VLOOKUP(H197,'Wattage Table'!$D:$F,3,0)*J197)-(VLOOKUP(H197,'Wattage Table'!$D:$F,3,0)*(J197-K197)))*L197)/1000) -> 0 | N197: =IF(OR(H197="",R197="No"),0,(VLOOKUP(H197,'Wattage Table'!$D:$F,3,0)*L197)/1000*0.25) -> 0 | O197: 0 | P197: 0 | Q197: =IF(ISERROR(IF(H197="-","-",INDEX('Wattage Table'!$F$23:$F$451,MATCH(H197,'Wattage Table'!$D$23:$D$451,0)))*$L197)," ",IF(H197="-","-",INDEX('Wattage Table'!$F$23:$F$451,MATCH(H197,'Wattage Table'!$D$23:$D$451,0)))*$L197) ->  | R197: =IF(D197="","",IF(OR(D197="None",D197="",H197=""),"No",IF(VLOOKUP(H197,'Wattage Table'!$D:$F,3,0)*L197/F197<=VLOOKUP(D197,Validation!$O$7:$Q$9,3,0),"No","Yes"))) -> 
B198: 177 | E198: =IF(D198="","",IF(D198="None","None",INDEX('Lighting Controls Summary'!$D$19:$D$22,MATCH(D198,'Lighting Controls Summary'!$C$19:$C$22,0),1))) ->  | I198: =IF(H198="","",VLOOKUP(H198,'Wattage Table'!$D:$E,2,0)) ->  | K198: 0 | M198: =IF(OR(H198="",R198="No"),0,(((VLOOKUP(H198,'Wattage Table'!$D:$F,3,0)*J198)-(VLOOKUP(H198,'Wattage Table'!$D:$F,3,0)*(J198-K198)))*L198)/1000) -> 0 | N198: =IF(OR(H198="",R198="No"),0,(VLOOKUP(H198,'Wattage Table'!$D:$F,3,0)*L198)/1000*0.25) -> 0 | O198: 0 | P198: 0 | Q198: =IF(ISERROR(IF(H198="-","-",INDEX('Wattage Table'!$F$23:$F$451,MATCH(H198,'Wattage Table'!$D$23:$D$451,0)))*$L198)," ",IF(H198="-","-",INDEX('Wattage Table'!$F$23:$F$451,MATCH(H198,'Wattage Table'!$D$23:$D$451,0)))*$L198) ->  | R198: =IF(D198="","",IF(OR(D198="None",D198="",H198=""),"No",IF(VLOOKUP(H198,'Wattage Table'!$D:$F,3,0)*L198/F198<=VLOOKUP(D198,Validation!$O$7:$Q$9,3,0),"No","Yes"))) -> 
B199: 178 | E199: =IF(D199="","",IF(D199="None","None",INDEX('Lighting Controls Summary'!$D$19:$D$22,MATCH(D199,'Lighting Controls Summary'!$C$19:$C$22,0),1))) ->  | I199: =IF(H199="","",VLOOKUP(H199,'Wattage Table'!$D:$E,2,0)) ->  | K199: 0 | M199: =IF(OR(H199="",R199="No"),0,(((VLOOKUP(H199,'Wattage Table'!$D:$F,3,0)*J199)-(VLOOKUP(H199,'Wattage Table'!$D:$F,3,0)*(J199-K199)))*L199)/1000) -> 0 | N199: =IF(OR(H199="",R199="No"),0,(VLOOKUP(H199,'Wattage Table'!$D:$F,3,0)*L199)/1000*0.25) -> 0 | O199: 0 | P199: 0 | Q199: =IF(ISERROR(IF(H199="-","-",INDEX('Wattage Table'!$F$23:$F$451,MATCH(H199,'Wattage Table'!$D$23:$D$451,0)))*$L199)," ",IF(H199="-","-",INDEX('Wattage Table'!$F$23:$F$451,MATCH(H199,'Wattage Table'!$D$23:$D$451,0)))*$L199) ->  | R199: =IF(D199="","",IF(OR(D199="None",D199="",H199=""),"No",IF(VLOOKUP(H199,'Wattage Table'!$D:$F,3,0)*L199/F199<=VLOOKUP(D199,Validation!$O$7:$Q$9,3,0),"No","Yes"))) -> 
B200: 179 | E200: =IF(D200="","",IF(D200="None","None",INDEX('Lighting Controls Summary'!$D$19:$D$22,MATCH(D200,'Lighting Controls Summary'!$C$19:$C$22,0),1))) ->  | I200: =IF(H200="","",VLOOKUP(H200,'Wattage Table'!$D:$E,2,0)) ->  | K200: 0 | M200: =IF(OR(H200="",R200="No"),0,(((VLOOKUP(H200,'Wattage Table'!$D:$F,3,0)*J200)-(VLOOKUP(H200,'Wattage Table'!$D:$F,3,0)*(J200-K200)))*L200)/1000) -> 0 | N200: =IF(OR(H200="",R200="No"),0,(VLOOKUP(H200,'Wattage Table'!$D:$F,3,0)*L200)/1000*0.25) -> 0 | O200: 0 | P200: 0 | Q200: =IF(ISERROR(IF(H200="-","-",INDEX('Wattage Table'!$F$23:$F$451,MATCH(H200,'Wattage Table'!$D$23:$D$451,0)))*$L200)," ",IF(H200="-","-",INDEX('Wattage Table'!$F$23:$F$451,MATCH(H200,'Wattage Table'!$D$23:$D$451,0)))*$L200) ->  | R200: =IF(D200="","",IF(OR(D200="None",D200="",H200=""),"No",IF(VLOOKUP(H200,'Wattage Table'!$D:$F,3,0)*L200/F200<=VLOOKUP(D200,Validation!$O$7:$Q$9,3,0),"No","Yes"))) -> 
B201: 180 | E201: =IF(D201="","",IF(D201="None","None",INDEX('Lighting Controls Summary'!$D$19:$D$22,MATCH(D201,'Lighting Controls Summary'!$C$19:$C$22,0),1))) ->  | I201: =IF(H201="","",VLOOKUP(H201,'Wattage Table'!$D:$E,2,0)) ->  | K201: 0 | M201: =IF(OR(H201="",R201="No"),0,(((VLOOKUP(H201,'Wattage Table'!$D:$F,3,0)*J201)-(VLOOKUP(H201,'Wattage Table'!$D:$F,3,0)*(J201-K201)))*L201)/1000) -> 0 | N201: =IF(OR(H201="",R201="No"),0,(VLOOKUP(H201,'Wattage Table'!$D:$F,3,0)*L201)/1000*0.25) -> 0 | O201: 0 | P201: 0 | Q201: =IF(ISERROR(IF(H201="-","-",INDEX('Wattage Table'!$F$23:$F$451,MATCH(H201,'Wattage Table'!$D$23:$D$451,0)))*$L201)," ",IF(H201="-","-",INDEX('Wattage Table'!$F$23:$F$451,MATCH(H201,'Wattage Table'!$D$23:$D$451,0)))*$L201) ->  | R201: =IF(D201="","",IF(OR(D201="None",D201="",H201=""),"No",IF(VLOOKUP(H201,'Wattage Table'!$D:$F,3,0)*L201/F201<=VLOOKUP(D201,Validation!$O$7:$Q$9,3,0),"No","Yes"))) -> 
B202: 181 | E202: =IF(D202="","",IF(D202="None","None",INDEX('Lighting Controls Summary'!$D$19:$D$22,MATCH(D202,'Lighting Controls Summary'!$C$19:$C$22,0),1))) ->  | I202: =IF(H202="","",VLOOKUP(H202,'Wattage Table'!$D:$E,2,0)) ->  | K202: 0 | M202: =IF(OR(H202="",R202="No"),0,(((VLOOKUP(H202,'Wattage Table'!$D:$F,3,0)*J202)-(VLOOKUP(H202,'Wattage Table'!$D:$F,3,0)*(J202-K202)))*L202)/1000) -> 0 | N202: =IF(OR(H202="",R202="No"),0,(VLOOKUP(H202,'Wattage Table'!$D:$F,3,0)*L202)/1000*0.25) -> 0 | O202: 0 | P202: 0 | Q202: =IF(ISERROR(IF(H202="-","-",INDEX('Wattage Table'!$F$23:$F$451,MATCH(H202,'Wattage Table'!$D$23:$D$451,0)))*$L202)," ",IF(H202="-","-",INDEX('Wattage Table'!$F$23:$F$451,MATCH(H202,'Wattage Table'!$D$23:$D$451,0)))*$L202) ->  | R202: =IF(D202="","",IF(OR(D202="None",D202="",H202=""),"No",IF(VLOOKUP(H202,'Wattage Table'!$D:$F,3,0)*L202/F202<=VLOOKUP(D202,Validation!$O$7:$Q$9,3,0),"No","Yes"))) -> 
B203: 182 | E203: =IF(D203="","",IF(D203="None","None",INDEX('Lighting Controls Summary'!$D$19:$D$22,MATCH(D203,'Lighting Controls Summary'!$C$19:$C$22,0),1))) ->  | I203: =IF(H203="","",VLOOKUP(H203,'Wattage Table'!$D:$E,2,0)) ->  | K203: 0 | M203: =IF(OR(H203="",R203="No"),0,(((VLOOKUP(H203,'Wattage Table'!$D:$F,3,0)*J203)-(VLOOKUP(H203,'Wattage Table'!$D:$F,3,0)*(J203-K203)))*L203)/1000) -> 0 | N203: =IF(OR(H203="",R203="No"),0,(VLOOKUP(H203,'Wattage Table'!$D:$F,3,0)*L203)/1000*0.25) -> 0 | O203: 0 | P203: 0 | Q203: =IF(ISERROR(IF(H203="-","-",INDEX('Wattage Table'!$F$23:$F$451,MATCH(H203,'Wattage Table'!$D$23:$D$451,0)))*$L203)," ",IF(H203="-","-",INDEX('Wattage Table'!$F$23:$F$451,MATCH(H203,'Wattage Table'!$D$23:$D$451,0)))*$L203) ->  | R203: =IF(D203="","",IF(OR(D203="None",D203="",H203=""),"No",IF(VLOOKUP(H203,'Wattage Table'!$D:$F,3,0)*L203/F203<=VLOOKUP(D203,Validation!$O$7:$Q$9,3,0),"No","Yes"))) -> 
B204: 183 | E204: =IF(D204="","",IF(D204="None","None",INDEX('Lighting Controls Summary'!$D$19:$D$22,MATCH(D204,'Lighting Controls Summary'!$C$19:$C$22,0),1))) ->  | I204: =IF(H204="","",VLOOKUP(H204,'Wattage Table'!$D:$E,2,0)) ->  | K204: 0 | M204: =IF(OR(H204="",R204="No"),0,(((VLOOKUP(H204,'Wattage Table'!$D:$F,3,0)*J204)-(VLOOKUP(H204,'Wattage Table'!$D:$F,3,0)*(J204-K204)))*L204)/1000) -> 0 | N204: =IF(OR(H204="",R204="No"),0,(VLOOKUP(H204,'Wattage Table'!$D:$F,3,0)*L204)/1000*0.25) -> 0 | O204: 0 | P204: 0 | Q204: =IF(ISERROR(IF(H204="-","-",INDEX('Wattage Table'!$F$23:$F$451,MATCH(H204,'Wattage Table'!$D$23:$D$451,0)))*$L204)," ",IF(H204="-","-",INDEX('Wattage Table'!$F$23:$F$451,MATCH(H204,'Wattage Table'!$D$23:$D$451,0)))*$L204) ->  | R204: =IF(D204="","",IF(OR(D204="None",D204="",H204=""),"No",IF(VLOOKUP(H204,'Wattage Table'!$D:$F,3,0)*L204/F204<=VLOOKUP(D204,Validation!$O$7:$Q$9,3,0),"No","Yes"))) -> 
B205: 184 | E205: =IF(D205="","",IF(D205="None","None",INDEX('Lighting Controls Summary'!$D$19:$D$22,MATCH(D205,'Lighting Controls Summary'!$C$19:$C$22,0),1))) ->  | I205: =IF(H205="","",VLOOKUP(H205,'Wattage Table'!$D:$E,2,0)) ->  | K205: 0 | M205: =IF(OR(H205="",R205="No"),0,(((VLOOKUP(H205,'Wattage Table'!$D:$F,3,0)*J205)-(VLOOKUP(H205,'Wattage Table'!$D:$F,3,0)*(J205-K205)))*L205)/1000) -> 0 | N205: =IF(OR(H205="",R205="No"),0,(VLOOKUP(H205,'Wattage Table'!$D:$F,3,0)*L205)/1000*0.25) -> 0 | O205: 0 | P205: 0 | Q205: =IF(ISERROR(IF(H205="-","-",INDEX('Wattage Table'!$F$23:$F$451,MATCH(H205,'Wattage Table'!$D$23:$D$451,0)))*$L205)," ",IF(H205="-","-",INDEX('Wattage Table'!$F$23:$F$451,MATCH(H205,'Wattage Table'!$D$23:$D$451,0)))*$L205) ->  | R205: =IF(D205="","",IF(OR(D205="None",D205="",H205=""),"No",IF(VLOOKUP(H205,'Wattage Table'!$D:$F,3,0)*L205/F205<=VLOOKUP(D205,Validation!$O$7:$Q$9,3,0),"No","Yes"))) -> 
B206: 185 | E206: =IF(D206="","",IF(D206="None","None",INDEX('Lighting Controls Summary'!$D$19:$D$22,MATCH(D206,'Lighting Controls Summary'!$C$19:$C$22,0),1))) ->  | I206: =IF(H206="","",VLOOKUP(H206,'Wattage Table'!$D:$E,2,0)) ->  | K206: 0 | M206: =IF(OR(H206="",R206="No"),0,(((VLOOKUP(H206,'Wattage Table'!$D:$F,3,0)*J206)-(VLOOKUP(H206,'Wattage Table'!$D:$F,3,0)*(J206-K206)))*L206)/1000) -> 0 | N206: =IF(OR(H206="",R206="No"),0,(VLOOKUP(H206,'Wattage Table'!$D:$F,3,0)*L206)/1000*0.25) -> 0 | O206: 0 | P206: 0 | Q206: =IF(ISERROR(IF(H206="-","-",INDEX('Wattage Table'!$F$23:$F$451,MATCH(H206,'Wattage Table'!$D$23:$D$451,0)))*$L206)," ",IF(H206="-","-",INDEX('Wattage Table'!$F$23:$F$451,MATCH(H206,'Wattage Table'!$D$23:$D$451,0)))*$L206) ->  | R206: =IF(D206="","",IF(OR(D206="None",D206="",H206=""),"No",IF(VLOOKUP(H206,'Wattage Table'!$D:$F,3,0)*L206/F206<=VLOOKUP(D206,Validation!$O$7:$Q$9,3,0),"No","Yes"))) -> 
... 15 more rows

Sheet Lighting Controls Summary
B4: Lighting Controls Summary
B5: ="Version # "&'Version Tracking'!C4 -> Version # 10.1
B7: Copyright © 2010 ICF Resources, LLC, All Rights Reserved. Do not copy, distribute or quote without ICF’s written permission.
B9: Required General Project Information
C11: Project Name | D11: =IF('Input - Lighting Controls'!D11=0,"",'Input - Lighting Controls'!D11) ->  | F11: Prepared By | G11: =IF('Input - Lighting Controls'!G11=0,"",'Input - Lighting Controls'!G11) -> 
C12: Project Address | D12: =IF('Input - Lighting Controls'!D12=0,"",'Input - Lighting Controls'!D12) ->  | F12: Contact Person | G12: =IF('Input - Lighting Controls'!G12=0,"",'Input - Lighting Controls'!G12) -> 
C13: City | D13: =IF('Input - Lighting Controls'!D13=0,"",'Input - Lighting Controls'!D13) ->  | F13: Phone | G13: =IF('Input - Lighting Controls'!G13=0,"",'Input - Lighting Controls'!G13) -> 
C14: ZIP | D14: =IF('Input - Lighting Controls'!D14=0,"",'Input - Lighting Controls'!D14) ->  | F14: Email | G14: =IF('Input - Lighting Controls'!G14=0,"",'Input - Lighting Controls'!G14) -> 
C17: Measure Code | D17: Proposed Measure | E17: Minnimum Watts that Must be Controlled | F17: Total Unit Quantity | G17: Incentive / Unit | H17: Total Incentive
B19: Lighting Controls | C19: 80A | D19: Occupancy Control: Wall Switch Replacement | E19: 40 | F19: =SUMIF('Input - Lighting Controls'!$D$22:$D$221,$C19,'Input - Lighting Controls'!$P$22:$P$221) -> 0 | G19: $15/ Control | H19: =SUMIF('Input - Lighting Controls'!$D$22:$D$221,$C19,'Input - Lighting Controls'!$O$22:$O$221) -> 0
C20: 80B | D20: Occupancy Control: Ceiling / Wall Mount (Remote) | E20: 119 | F20: =SUMIF('Input - Lighting Controls'!$D$22:$D$221,$C20,'Input - Lighting Controls'!$P$22:$P$221) -> 0 | G20: $35 / Control | H20: =SUMIF('Input - Lighting Controls'!$D$22:$D$221,$C20,'Input - Lighting Controls'!$O$22:$O$221) -> 0
C21: 80C | D21: Occupancy Control: Fixture Mounted (High Bay) | E21: 40 | F21: =SUMIF('Input - Lighting Controls'!$D$22:$D$221,$C21,'Input - Lighting Controls'!$P$22:$P$221) -> 0 | G21: $15 / Control | H21: =SUMIF('Input - Lighting Controls'!$D$22:$D$221,$C21,'Input - Lighting Controls'!$O$22:$O$221) -> 0
C22: 80E | D22: Daylight Control/Harvesting (On/Off) | E22: 119 | F22: =SUMIF('Input - Lighting Controls'!$D$22:$D$221,$C22,'Input - Lighting Controls'!$P$22:$P$221) -> 0 | G22: $35 / Control | H22: =SUMIF('Input - Lighting Controls'!$D$22:$D$221,$C22,'Input - Lighting Controls'!$O$22:$O$221) -> 0
G23: Total Incentive | H23: =SUM(H17:H22) -> 0

Sheet Building Type LPD
B6: (NO INPUT NEEDED - FOR REFERENCE ONLY)
B8: Building Area Lighting Power Density
B11: Lighting Power Density (W/Sq. Ft.) by Building
B12: Building Area Method
B13: BUILDING TYPE | C13: Base LPD Watts/Sq. Ft. | D13: Base LPD Watts/Sq. Ft. Less 15%
B14: Automotive Facility | C14: 0.9 | D14: =PRODUCT(C14,0.85) -> 0.765
B15: Convention Center | C15: 1.2 | D15: =PRODUCT(C15,0.85) -> 1.02
B16: Court House | C16: 1.2 | D16: =PRODUCT(C16,0.85) -> 1.02
B17: Dining: Bar Lounge/Leisure | C17: 1.3 | D17: 1.105
B18: Dining: Cafeteria/Fast Food | C18: 1.4 | D18: 1.19
B19: Dining: Family | C19: 1.6 | D19: 1.36
B20: Dormitory | C20: 1 | D20: 0.85
B21: Exercise Center | C21: 1 | D21: 0.85
B22: Gymnasium | C22: 1.1 | D22: 0.935
B23: Healthcare-Clinic | C23: 1 | D23: 0.85
B24: Hospital | C24: 1.2 | D24: 1.02
B25: Hotel | C25: 1 | D25: 0.85
B26: Library | C26: 1.3 | D26: 1.105
B27: Manufacturing Facility | C27: 1.3 | D27: 1.105
B28: Motel | C28: 1 | D28: 0.85
B29: Motion Picture Theater | C29: 1.2 | D29: 1.02
B30: Multi-Family | C30: 0.7 | D30: 0.595
B31: Museum | C31: 1.1 | D31: 0.935
B32: Office | C32: 1 | D32: 0.85
B33: Parking Garage | C33: 0.3 | D33: 0.255
B34: Penitentiary | C34: 1 | D34: 0.85
B35: Performing Arts Theater | C35: 1.6 | D35: 1.36
B36: Police/Fire Station | C36: 1 | D36: 0.85
B37: Post Office | C37: 1.1 | D37: 0.935
B38: Religious Building | C38: 1.3 | D38: 1.105
B39: Retail | C39: 1.5 | D39: 1.275
B40: School/University | C40: 1.2 | D40: 1.02
B41: Sports Arena | C41: 1.1 | D41: 0.935
B42: Town Hall | C42: 1.1 | D42: 0.935
B43: Transportation | C43: 1 | D43: 0.85
B44: Warehouse | C44: 0.8 | D44: 0.68
B45: Workshop | C45: 1.4 | D45: =PRODUCT(C45,0.85) -> 1.19
D46: ="Version #" & 'Version Tracking'!C4 -> Version #10.1

Sheet Space-by-Space LPD
B5: (NO INPUT NEEDED - FOR REFERENCE ONLY)
B7: Space-by-Space Lighting Power Density
B10: Lighting Power Density (W/Sq. Ft.) by Space Type
B11: Space-by-Space Method
B12: BUILDING TYPE | C12: Base LPD Watts/Sq. Ft. | D12: Base LPD Watts/Sq. Ft. Less 15%
B13: Atrium-Each Additional Floor | C13: 0.2 | D13: =PRODUCT(C13,0.85) -> 0.17
B14: Atrium-First Three Floors | C14: 0.6 | D14: =PRODUCT(C14,0.85) -> 0.51
B15: Audience /Seating Area | C15: 0.9 | D15: =PRODUCT(C15,0.85) -> 0.765
B16: Audience /Seating Area - Convention Center | C16: 0.7 | D16: 0.595
B17: Audience /Seating Area - Exercise Center | C17: 0.3 | D17: 0.255
B18: Audience /Seating Area - Gymnasium | C18: 0.4 | D18: 0.34
B19: Audience /Seating Area - Penitentiary | C19: 0.7 | D19: 0.595
B20: Audience /Seating Area - Performing Arts Theater | C20: 2.6 | D20: 2.21
B21: Audience /Seating Area - Motion Picture Theater | C21: 1.2 | D21: 1.02
B22: Audience /Seating Area - Religious Buildings | C22: 1.7 | D22: 1.445
B23: Audience /Seating Area - Sports Arena | C23: 0.4 | D23: 0.34
B24: Audience /Seating Area -Transportation | C24: 0.5 | D24: 0.425
B25: Automotive - Service/Repair | C25: 0.7 | D25: 0.595
B26: Banking/Office - Banking Activity Area | C26: 1.5 | D26: 1.275
B27: Classroom / Lecture Hall / Training room | C27: 1.4 | D27: 1.19
B28: Conference / Meeting Room / Multipurpose | C28: 1.3 | D28: 1.105
B29: Convention Center - Exhibit Space | C29: 1.3 | D29: 1.105
B30: Corridor / Transition | C30: 0.5 | D30: 0.425
B31: Corridor / Transition - Hospital | C31: 1 | D31: 0.85
B32: Corridor / Transition - Manufacturing Facility | C32: 0.5 | D32: 0.425
B33: Courthouse - Judges Chambers | C33: 1.3 | D33: 1.105
B34: Courtroom | C34: 1.9 | D34: 1.615
B35: Dining Area | C35: 0.9 | D35: 0.765
B36: Dining Area - Bar/Lounge/Leisure Dining | C36: 1.4 | D36: 1.19
B37: Dining Area - Family Dining | C37: 2.1 | D37: 1.785
B38: Dining Area - Hotel | C38: 1.3 | D38: 1.105
B39: Dining Area - Motel | C39: 1.2 | D39: 1.02
B40: Dining Area - Penitentiary | C40: 1.3 | D40: 1.105
B41: Dormitory-Living Quarters | C41: 1.1 | D41: 0.935
B42: Dressing / Locker / Fitting Room | C42: 0.6 | D42: 0.51
B43: Electrical / Mechanical Area | C43: 1.5 | D43: 1.275
B44: Exercise Area | C44: 0.9 | D44: 0.765
B45: Exhibition Space | C45: 1.3 | D45: 1.105
B46: Fire Stations-Engine Room | C46: 0.8 | D46: 0.68
B47: Fire Stations-Sleeping Quarters | C47: 0.3 | D47: 0.255
B48: Food Preparation | C48: 1.2 | D48: 1.02
B49: Gymnasium Playing Area | C49: 1.4 | D49: 1.19
B50: Hospital Corridor | C50: 1 | D50: 0.85
B51: Hospital Pharmacy | C51: 1.2 | D51: 1.02
B52: Hospital-Emergency | C52: 2.7 | D52: 2.295
B53: Hospital-Exam/Treatment | C53: 1.5 | D53: 1.275
B54: Hospital-Laundry Washing | C54: 0.6 | D54: 0.51
B55: Hospital-Lounge/Recreation | C55: 0.8 | D55: 0.68
B56: Hospital-Medical Supply | C56: 1.4 | D56: 1.19
B57: Hospital-Nursery | C57: 0.6 | D57: 0.51
B58: Hospital-Operating Room | C58: 2.2 | D58: 1.87
B59: Hospital-Patient Room | C59: 0.7 | D59: 0.595
B60: Hospital-Physical Therapy | C60: 0.9 | D60: 0.765
B61: Hospital-Radiology | C61: 0.4 | D61: 0.34
B62: Hospital-Recovery Room | C62: 0.8 | D62: 0.68
B63: Hotel Dining | C63: 1.3 | D63: 1.105
B64: Hotel Lobby | C64: 1.1 | D64: 0.935
B65: Hotel/ Motel Guest Rooms | C65: 1.1 | D65: 0.935
B66: Inactive Storage | C66: 0.3 | D66: 0.255
B67: Inactive Storage -Museum | C67: 0.8 | D67: 0.68
B68: Laboratory | C68: 1.4 | D68: 1.19
B69: Library - Stacks | C69: 1.7 | D69: 1.445
B70: Library - Reading Area | C70: 1.2 | D70: 1.02
B71: Library - Card File & Cataloguing | C71: 1.1 | D71: 0.935
B72: Lobby - Hotel | C72: 1.1 | D72: 0.935
B73: Lobby | C73: 1.3 | D73: 1.105
B74: Lobby-Motion Picture Theater | C74: 1.1 | D74: 0.935
B75: Lobby-Performing Arts Theater | C75: 3.3 | D75: 2.805
B76: Lounge/ Recreation | C76: 1.2 | D76: 1.02
B77: Lounge/ Recreation-Hospital | C77: 0.8 | D77: 0.68
B78: Mall Concourse | C78: 1.7 | D78: 1.445
B79: Mall Sales Area (see Retail Sales) | C79: 1.7 | D79: =PRODUCT(C79,0.85) -> 1.445
B80: Manufacturing Low Bay (<25 FT Floor to Ceiling Hgt) | C80: 1.2 | D80: 1.02
B81: Manufacturing High Bay (>25 FT Floor to Ceiling Hgt) | C81: 1.7 | D81: 1.445
B82: Manufacturing-Control Room | C82: 0.5 | D82: 0.425
B83: Manufacturing-Corridor | C83: 0.5 | D83: 0.425
B84: Manufacturing-Detailed | C84: 2.1 | D84: 1.785
B85: Manufacturing-Equipment Room | C85: 1.2 | D85: 1.02
B86: Motel-Dining | C86: 1.2 | D86: 1.02
B87: Museum-General Exhibition | C87: 1 | D87: 0.85
B88: Museum-Restoration | C88: 1.7 | D88: 1.445
B89: Hospital-Nurses Stations | C89: 1 | D89: 0.85
B90: Office-Open Plan | C90: 1.1 | D90: 0.935
B91: Office-Enclosed | C91: 1.1 | D91: 0.935
B92: Penitentiary-Dining | C92: 1.3 | D92: 1.105
B93: Penitentiary- Meeting/ Lecture/ Classroom | C93: 1.3 | D93: 1.105
B94: Courthouse/Police Station / Penitentiary | C94: 0.9 | D94: 0.765
B95: Parking Garage | C95: 0.2 | D95: 0.17
B96: Post Office-Sorting Area | C96: 1.2 | D96: 1.02
B97: Religious Buildings Fellowship Hall | C97: 0.9 | D97: 0.765
B98: Religious Buildings Worship | C98: 2.4 | D98: 2.04
B99: Restroom | C99: 0.9 | D99: 0.765
B100: Retail Sales Area | C100: 1.7 | D100: 1.445
B101: Sports Arena (Court Type) | C101: 2.3 | D101: 1.955
B102: Sports Arena (Indoor Playing Field) | C102: 1.4 | D102: 1.19
B103: Sports Arena (Ring Type) | C103: 2.7 | D103: 2.295
B104: Stairs (Active) | C104: 0.6 | D104: 0.51
B105: Storage - Hospital | C105: 0.9 | D105: 0.765
B106: Storage (Active) | C106: 0.8 | D106: 0.68
B107: Storage (Inactive) | C107: 0.3 | D107: 0.255
B108: Transportation (Air/ Train/ Bus Baggage Area) | C108: 1 | D108: 0.85
B109: Transportation (Airport Concourse) | C109: 0.6 | D109: 0.51
B110: Transportation (Terminal Ticket Counter ) | C110: 1.5 | D110: 1.275
B111: Warehouse Storage (Fine Material) | C111: 1.4 | D111: 1.19
B112: Warehouse Storage (Medium/ Bulky Material) | C112: 0.9 | D112: 0.765
B113: Workshop | C113: 1.9 | D113: =PRODUCT(C113,0.85) -> 1.615
D114: ="Version #" & 'Version Tracking'!C4 -> Version #10.1

Sheet Wattage Table
B4: (NO INPUT NEEDED - FOR REFERENCE ONLY)
B7: Lighting System Rated Wattage Table
B9: Device Description Abbreviations
B10: BX | C10: Biax/Twin Tube Lamp
B11: HW | C11: Hard Wire Fixture
B12: EEMAG | C12: Energy-Efficient Magnetic
B13: EE | C13: Energy-Efficient Lamp
B14: ELIG | C14: Electronic Ballast
B15: HBF | C15: High Ballast Factor
B16: HPF | C16: High Power Factor
B17: HO | C17: High Output Lamp
B18: LBF | C18: Low Ballast Factor
B19: STD | C19: Standard Ballast or Lamp
B20: VHO | C20: Very High Output Lamp
B22: Measure Codes | C22: System Category | D22: Device Code | E22: Device Description | F22: Rated Watts | G22: Lookup for Baseline based on Device Type | H22: Fluorescent Length
B23: 10A Proposed | C23: Four Foot Fluorescent T8 Systems | D23: 1F32SSE | E23: 1L4' T8/ELIG | F23: 28 | G23: Linear Fluorescent | H23: L4' | I23: =IF(B23="",I22,B23) -> 10A Proposed
C24: Four Foot Fluorescent T8 Systems | D24: 1F32SHH | E24: 1L4' T8/ELIG HIGH LUMEN HBF | F24: 30 | G24: Linear Fluorescent | H24: L4' | I24: =IF(B24="",I23,B24) -> 10A Proposed
C25: Four Foot Fluorescent T8 Systems | D25: 1F32SHL | E25: 1L4 T8/ELIG HIGH LUMEN LBF | F25: 26 | G25: Linear Fluorescent | H25: L4 | I25: =IF(B25="",I24,B25) -> 10A Proposed
C26: Four Foot Fluorescent T8 Systems | D26: 2F32SSE | E26: 2L4' T8/ELIG | F26: 55 | G26: Linear Fluorescent | H26: L4' | I26: 10A Proposed
C27: Four Foot Fluorescent T8 Systems | D27: 2F32SHH | E27: 2L4' T8/ELIG HIGH LUMEN HBF | F27: 78 | G27: Linear Fluorescent | H27: L4' | I27: 10A Proposed
C28: Four Foot Fluorescent T8 Systems | D28: 2F32SHL | E28: 2L4 T8/ELIG HIGH LUMEN LBF | F28: 52 | G28: Linear Fluorescent | H28: L4 | I28: 10A Proposed
B29: 10B Proposed | C29: Four Foot Fluorescent T8 Systems | D29: 3F32SSE | E29: 3L4' T8/ELIG | F29: 82 | G29: Linear Fluorescent | H29: L4' | I29: 10B Proposed
C30: Four Foot Fluorescent T8 Systems | D30: 3F32SHH | E30: 3L4' T8/ELIG HIGH LUMEN HBF | F30: 112 | G30: Linear Fluorescent | H30: L4' | I30: 10B Proposed
C31: Four Foot Fluorescent T8 Systems | D31: 3F32SHL | E31: 3L4 T8/ELIG HIGH LUMEN LBF | F31: 76 | G31: Linear Fluorescent | H31: L4 | I31: 10B Proposed
C32: Four Foot Fluorescent T8 Systems | D32: 4F32SSE | E32: 4L4' T8/ELIG | F32: 108 | G32: Linear Fluorescent | H32: L4' | I32: 10B Proposed
C33: Four Foot Fluorescent T8 Systems | D33: 4F32SHH | E33: 4L4' T8/ELIG HIGH LUMEN HBF | F33: 153 | G33: Linear Fluorescent | H33: L4' | I33: 10B Proposed
C34: Four Foot Fluorescent T8 Systems | D34: 4F32SHL | E34: 4L4 T8/ELIG HIGH LUMEN LBF | F34: 98 | G34: Linear Fluorescent | H34: L4 | I34: 10B Proposed
B35: 10C Proposed | C35: T8 Reduced Wattage | D35: 1F25EEH | E35: 1L4' 25W T8EE/EELE HBF | F35: 30 | G35: Linear Fluorescent | H35: L4' | I35: 10C Proposed
C36: T8 Reduced Wattage | D36: 1F25EEE | E36: 1L4' 25W T8EE/ELEE | F36: 22 | G36: Linear Fluorescent | H36: L4' | I36: 10C Proposed
C37: T8 Reduced Wattage | D37: 1F25EEL | E37: 1L4' 25W T8EE/ELEE LBF | F37: 20 | G37: Linear Fluorescent | H37: L4' | I37: 10C Proposed
C38: T8 Reduced Wattage | D38: 2F25EEH | E38: 2L4' 25WT8EE/EELE HBF | F38: 86 | G38: Linear Fluorescent | H38: L4' | I38: 10C Proposed
C39: T8 Reduced Wattage | D39: 2F25EEE | E39: 2L4' 25W T8EE/ELEE | F39: 43 | G39: Linear Fluorescent | H39: L4' | I39: 10C Proposed
C40: T8 Reduced Wattage | D40: 2F25EEL | E40: 2L4' 25W T8EE/ELEE LBF | F40: 57 | G40: Linear Fluorescent | H40: L4' | I40: 10C Proposed
C41: T8 Reduced Wattage | D41: 1F28EEH | E41: 1L4' 28W T8EE/EELE HBF | F41: 33 | G41: Linear Fluorescent | H41: L4' | I41: 10C Proposed
C42: T8 Reduced Wattage | D42: 1F28EEE | E42: 1L4' 28W T8EE/ELEE | F42: 24 | G42: Linear Fluorescent | H42: L4' | I42: 10C Proposed
C43: T8 Reduced Wattage | D43: 1F28EEL | E43: 1L4' 28W T8EE/ELEE LBF | F43: 22 | G43: Linear Fluorescent | H43: L4' | I43: 10C Proposed
C44: T8 Reduced Wattage | D44: 2F28EEH | E44: 2L4' 28WT8EE/EELE HBF | F44: 65 | G44: Linear Fluorescent | H44: L4' | I44: 10C Proposed
C45: T8 Reduced Wattage | D45: 2F28EEE | E45: 2L4' 28W T8EE/ELEE | F45: 49 | G45: Linear Fluorescent | H45: L4' | I45: 10C Proposed
C46: T8 Reduced Wattage | D46: 2F28EEL | E46: 2L4' 28W T8EE/ELEE LBF | F46: 42 | G46: Linear Fluorescent | H46: L4' | I46: 10C Proposed
B47: 10D Proposed | C47: T8 Reduced Wattage | D47: 3F25EEH | E47: 3L4' 25W T8EE/EELE HBF | F47: 86 | G47: Linear Fluorescent | H47: L4' | I47: 10D Proposed
C48: T8 Reduced Wattage | D48: 3F25EEE | E48: 3L4' 25W T8EE/ELEE | F48: 66 | G48: Linear Fluorescent | H48: L4' | I48: 10D Proposed
C49: T8 Reduced Wattage | D49: 3F25EEL | E49: 3L4' 25W T8EE/ELEE LBF | F49: 57 | G49: Linear Fluorescent | H49: L4' | I49: 10D Proposed
C50: T8 Reduced Wattage | D50: 4F25EEH | E50: 4L4' 25W T8EE/EELE HBF | F50: 112 | G50: Linear Fluorescent | H50: L4' | I50: 10D Proposed
C51: T8 Reduced Wattage | D51: 4F25EEE | E51: 4L4' 25W T8EE/ELEE | F51: 86 | G51: Linear Fluorescent | H51: L4' | I51: 10D Proposed
C52: T8 Reduced Wattage | D52: 4F25EEL | E52: 4L4' 25W T8EE/ELEE LBF | F52: 75 | G52: Linear Fluorescent | H52: L4' | I52: 10D Proposed
C53: T8 Reduced Wattage | D53: 3F28EEH | E53: 3L4' 28W T8EE/EELE HBF | F53: 100 | G53: Linear Fluorescent | H53: L4' | I53: 10D Proposed
C54: T8 Reduced Wattage | D54: 3F28EEE | E54: 3L4' 28W T8EE/ELEE | F54: 73 | G54: Linear Fluorescent | H54: L4' | I54: 10D Proposed
C55: T8 Reduced Wattage | D55: 3F28EEL | E55: 3L4' 28W T8EE/ELEE LBF | F55: 64 | G55: Linear Fluorescent | H55: L4' | I55: 10D Proposed
C56: T8 Reduced Wattage | D56: 4F28EEH | E56: 4L4' 28W T8EE/EELE HBF | F56: 126 | G56: Linear Fluorescent | H56: L4' | I56: 10D Proposed
C57: T8 Reduced Wattage | D57: 4F28EEE | E57: 4L4' 28W T8EE/ELEE | F57: 94 | G57: Linear Fluorescent | H57: L4' | I57: 10D Proposed
C58: T8 Reduced Wattage | D58: 4F28EEL | E58: 4L4' 28W T8EE/ELEE LBF | F58: 83 | G58: Linear Fluorescent | H58: L4' | I58: 10D Proposed
B59: 10E Proposed | C59: Three Foot Fluorescent Systems | D59: 1F25SSE | E59: 1L3'T8/ELIG | F59: 24 | G59: Linear Fluorescent | H59: L3' | I59: 10E Proposed
C60: Three Foot Fluorescent Systems | D60: 2F25SSE | E60: 2L3' T8/ELIG | F60: 47 | G60: Linear Fluorescent | H60: L3' | I60: 10E Proposed
C61: Three Foot Fluorescent Systems | D61: 3F25SSE | E61: 3L3'T8/ELIG | F61: 68 | G61: Linear Fluorescent | H61: L3' | I61: 10E Proposed
C62: Three Foot Fluorescent Systems | D62: 4F25SSE | E62: 4L3' T8/ELIG | F62: 88 | G62: Linear Fluorescent | H62: L3' | I62: 10E Proposed
B63: 10F Proposed | C63: Two Foot Fluorescent Systems | D63: 1F17SSE | E63: 1L2'T8/ELIG | F63: 17 | G63: Linear Fluorescent | H63: L2' | I63: 10F Proposed
C64: Two Foot Fluorescent Systems | D64: 1F17SSL | E64: 1L2'T8/ELIG LBF | F64: 14 | G64: Linear Fluorescent | H64: L2' | I64: 10F Proposed
C65: Two Foot Fluorescent Systems | D65: 2F17SSE | E65: 2L2' T8/ELIG | F65: 37 | G65: Linear Fluorescent | H65: L2' | I65: 10F Proposed
C66: Two Foot Fluorescent Systems | D66: 2F17SSL | E66: 2L2' T8/ELIG LBF | F66: 27 | G66: Linear Fluorescent | H66: L2' | I66: 10F Proposed
C67: Two Foot Fluorescent Systems | D67: 3F17SSE | E67: 3L2' T8/ELIG | F67: 53 | G67: Linear Fluorescent | H67: L2' | I67: 10F Proposed
C68: Two Foot Fluorescent Systems | D68: 3F17SSL | E68: 3L2' T8/ELIG LBF | F68: 39 | G68: Linear Fluorescent | H68: L2' | I68: 10F Proposed
C69: Two Foot Fluorescent Systems | D69: 4F17SSE | E69: 4L2' T8/ELIG | F69: 62 | G69: Linear Fluorescent | H69: L2' | I69: 10F Proposed
C70: Two Foot Fluorescent Systems | D70: 4F17SSL | E70: 4L2' T8/ELIG LBF | F70: 53 | G70: Linear Fluorescent | H70: L2' | I70: 10F Proposed
B71: 10A Existing | C71: Four Foot Fluorescent T12 Systems | D71: 1F34SSS | E71: 1L4' EE/STD | F71: 41 | G71: Linear Fluorescent | H71: L4' | I71: 10A Existing
C72: Four Foot Fluorescent T12 Systems | D72: 2F34SSS | E72: 2L4' EE/STD | F72: 74 | G72: Linear Fluorescent | H72: L4' | I72: 10A Existing
B73: 10C Existing | C73: Four Foot Fluorescent T12 Systems | D73: 1F34SSS | E73: 1L4' EE/STD | F73: 41 | G73: Linear Fluorescent | H73: L4' | I73: 10C Existing
C74: Four Foot Fluorescent T12 Systems | D74: 2F34SSS | E74: 2L4' EE/STD | F74: 74 | G74: Linear Fluorescent | H74: L4' | I74: 10C Existing
C75: Four Foot Fluorescent T8 Systems | D75: 1F32SSS | E75: 1L4' EE/STD | F75: 30 | G75: Linear Fluorescent | H75: L4' | I75: 10C Existing
C76: Four Foot Fluorescent T8 Systems | D76: 2F32SSS | E76: 2L4' EE/STD | F76: 60 | G76: Linear Fluorescent | H76: L4' | I76: 10C Existing
B77: 10B Existing | C77: Four Foot Fluorescent T12 Systems | D77: 3F34SSS | E77: 3L4' EE/STD | F77: 115 | G77: Linear Fluorescent | H77: L4' | I77: 10B Existing
C78: Four Foot Fluorescent T12 Systems | D78: 4F34SSS | E78: 4L4' EE/STD | F78: 148 | G78: Linear Fluorescent | H78: L4' | I78: 10B Existing
B79: 10D Existing | C79: Four Foot Fluorescent T12 Systems | D79: 3F34SSS | E79: 3L4' EE/STD | F79: 115 | G79: Linear Fluorescent | H79: L4' | I79: 10D Existing
C80: Four Foot Fluorescent T12 Systems | D80: 4F34SSS | E80: 4L4' EE/STD | F80: 148 | G80: Linear Fluorescent | H80: L4' | I80: 10D Existing
C81: Four Foot Fluorescent T8 Systems | D81: 3F32SSS | E81: 3L4' EE/STD | F81: 88 | G81: Linear Fluorescent | H81: L4' | I81: 10D Existing
C82: Four Foot Fluorescent T8 Systems | D82: 4F32SSS | E82: 4L4' EE/STD | F82: 112 | G82: Linear Fluorescent | H82: L4' | I82: 10D Existing
B83: 10E Existing | C83: Three Foot Fluorescent Systems | D83: 1F30SEM | E83: 1L3' EE/EEMAG | F83: 38 | G83: Linear Fluorescent | H83: L3' | I83: 10E Existing
C84: Three Foot Fluorescent Systems | D84: 1F30SES | E84: 1L3' EE/STD | F84: 42 | G84: Linear Fluorescent | H84: L3' | I84: 10E Existing
C85: Three Foot Fluorescent Systems | D85: 1F30SSS | E85: 1L3' STD/STD | F85: 46 | G85: Linear Fluorescent | H85: L3' | I85: 10E Existing
C86: Three Foot Fluorescent Systems | D86: 2F30SEE | E86: 2L3' EE/ELIG | F86: 49 | G86: Linear Fluorescent | H86: L3' | I86: 10E Existing
C87: Three Foot Fluorescent Systems | D87: 2F30SEM | E87: 2L3' EE/EEMAG | F87: 66 | G87: Linear Fluorescent | H87: L3' | I87: 10E Existing
C88: Three Foot Fluorescent Systems | D88: 2F30SES | E88: 2L3' EE/STD | F88: 73 | G88: Linear Fluorescent | H88: L3' | I88: 10E Existing
C89: Three Foot Fluorescent Systems | D89: 2F30SSS | E89: 2L3' STD/STD | F89: 80 | G89: Linear Fluorescent | H89: L3' | I89: =IF(B89="",I88,B89) -> 10E Existing
C90: Three Foot Fluorescent Systems | D90: 3F30SES | E90: 3L3' EE/STD | F90: 127 | G90: Linear Fluorescent | H90: L3' | I90: 10E Existing
C91: Three Foot Fluorescent Systems | D91: 3F30SSS | E91: 3L3' STD/STD | F91: 140 | G91: Linear Fluorescent | H91: L3' | I91: 10E Existing
B92: 10F Existing | C92: Two Foot Fluorescent Systems | D92: 1F20SSS | E92: F20T12/HPF(1) | F92: 32 | G92: Linear Fluorescent | H92: L2' | I92: 10F Existing
C93: Two Foot Fluorescent Systems | D93: 2F20SSS | E93: F20T12/HPF(2) | F93: 56 | G93: Linear Fluorescent | H93: L2' | I93: 10F Existing
C94: Two Foot Fluorescent Systems | D94: 3F20SSS | E94: F20T12/HPF(3) | F94: 78 | G94: Linear Fluorescent | H94: L2' | I94: 10F Existing
C95: Two Foot Fluorescent Systems | D95: 4F20SSS | E95: F20T12/HPF(4) | F95: 104 | G95: Linear Fluorescent | H95: L2' | I95: 10F Existing
B96: 15A Proposed | C96: Four Foot Fluorescent T8 Systems | D96: 2F32SSE | E96: 2L4' T8/ELIG | F96: 55 | G96: Linear Fluorescent | H96: L4' | I96: 15A Proposed
C97: Four Foot Fluorescent T8 Systems | D97: 2F32SHH | E97: 2L4' T8/ELIG HIGH LUMEN HBF | F97: 78 | G97: Linear Fluorescent | H97: L4' | I97: 15A Proposed
C98: Four Foot Fluorescent T8 Systems | D98: 2F32SHL | E98: 2L4 T8/ELIG HIGH LUMEN LBF | F98: 52 | G98: Linear Fluorescent | H98: L4 | I98: 15A Proposed
B99: 15B Proposed | C99: Four Foot Fluorescent T8 Systems | D99: 2F32SSE | E99: 2L4' T8/ELIG | F99: 55 | G99: Linear Fluorescent | H99: L4' | I99: 15B Proposed
C100: Four Foot Fluorescent T8 Systems | D100: 2F32SHH | E100: 2L4' T8/ELIG HIGH LUMEN HBF | F100: 78 | G100: Linear Fluorescent | H100: L4' | I100: 15B Proposed
C101: Four Foot Fluorescent T8 Systems | D101: 2F32SHL | E101: 2L4 T8/ELIG HIGH LUMEN LBF | F101: 52 | G101: Linear Fluorescent | H101: L4 | I101: 15B Proposed
B102: 15C Proposed | C102: Four Foot Fluorescent T8 Systems | D102: 2F32SSE | E102: 2L4' T8/ELIG | F102: 55 | G102: Linear Fluorescent | H102: L4' | I102: 15C Proposed
C103: Four Foot Fluorescent T8 Systems | D103: 2F32SHH | E103: 2L4' T8/ELIG HIGH LUMEN HBF | F103: 78 | G103: Linear Fluorescent | H103: L4' | I103: 15C Proposed
C104: Four Foot Fluorescent T8 Systems | D104: 2F32SHL | E104: 2L4 T8/ELIG HIGH LUMEN LBF | F104: 52 | G104: Linear Fluorescent | H104: L4 | I104: 15C Proposed
B105: 15D Proposed | C105: Four Foot Fluorescent T8 Systems | D105: 1F32SSE | E105: 1L4' T8/ELIG | F105: 28 | G105: Linear Fluorescent | H105: L4' | I105: 15D Proposed
C106: Four Foot Fluorescent T8 Systems | D106: 1F32SHH | E106: 1L4' T8/ELIG HIGH LUMEN HBF | F106: 30 | G106: Linear Fluorescent | H106: L4' | I106: 15D Proposed
C107: Four Foot Fluorescent T8 Systems | D107: 1F32SHL | E107: 1L4 T8/ELIG HIGH LUMEN LBF | F107: 26 | G107: Linear Fluorescent | H107: L4 | I107: 15D Proposed
B108: 15E Proposed | C108: Two Foot Fluorescent Systems | D108: 2F17SSE | E108: 2L2' T8/ELIG | F108: 30 | G108: Linear Fluorescent | H108: L2' | I108: 15E Proposed
C109: Two Foot Fluorescent Systems | D109: 2F17SSH | E109: 1L2' T8/ELIG HBF | F109: 39 | G109: Linear Fluorescent | H109: L2' | I109: 15E Proposed
C110: Two Foot Fluorescent Systems | D110: 2F17SSL | E110: 2L2' T8/ELIG LBF | F110: 27 | G110: Linear Fluorescent | H110: L2' | I110: 15E Proposed
B111: 15A Existing | C111: Eight Foot T12 HO Systems | D111: 2F96HEM | E111: 2L8' HO/EE/EEMAG | F111: 207 | G111: Linear Fluorescent | H111: L8' | I111: 15A Existing
C112: Eight Foot T12 HO Systems | D112: 2F96HES | E112: 2L8' HO/EE/STD | F112: 227 | G112: Linear Fluorescent | H112: L8' | I112: 15A Existing
C113: Eight Foot T12 VHO Systems | D113: 2F96VES | E113: 2L8' VHO/EE/STD | F113: 390 | G113: Linear Fluorescent | H113: L8' | I113: 15A Existing
C114: Eight Foot T12 VHO Systems | D114: 2F96VSS | E114: 2L8' VHO/STD/STD | F114: 450 | G114: Linear Fluorescent | H114: L8' | I114: 15A Existing
C115: Eight Foot T8 Systems | D115: 2F80SSE | E115: 2L8' T8 HO/ELIG | F115: 160 | G115: Linear Fluorescent | H115: L8' | I115: 15A Existing
B116: 15B Existing | C116: Eight Foot T12 Systems | D116: 2F96SEM | E116: 2L8' EE/EEMAG | F116: 123 | G116: Linear Fluorescent | H116: L8' | I116: 15B Existing
C117: Eight Foot T12 Systems | D117: 2F96SES | E117: 2L8' EE/STD | F117: 138 | G117: Linear Fluorescent | H117: L8' | I117: 15B Existing
C118: Eight Foot T8 Systems | D118: 2F59SSE | E118: 2L8' T8/ELIG | F118: 109 | G118: Linear Fluorescent | H118: L8' | I118: 15B Existing
C119: Eight Foot T8 Systems | D119: 2F59SSL | E119: 2L8' T8/ELIG LOW PWR | F119: 100 | G119: Linear Fluorescent | H119: L8' | I119: 15B Existing
B120: 15C Existing | C120: Four Foot Fluorescent T12 Systems | D120: 3F34SSS | E120: 3L4' EE/STD | F120: 115 | G120: Linear Fluorescent | H120: L4' | I120: 15C Existing
C121: Four Foot Fluorescent T12 Systems | D121: 4F34SSS | E121: 4L4' EE/STD | F121: 148 | G121: Linear Fluorescent | H121: L4' | I121: 15C Existing
C122: Four Foot Fluorescent T8 Systems | D122: 3F32SSS | E122: 3L4' EE/STD | F122: 88 | G122: Linear Fluorescent | H122: L4' | I122: 15C Existing
C123: Four Foot Fluorescent T8 Systems | D123: 4F32SSS | E123: 4L4' EE/STD | F123: 112 | G123: Linear Fluorescent | H123: L4' | I123: 15C Existing
B124: 15D Existing | C124: Four Foot Fluorescent T12 Systems | D124: 2F34SSS | E124: 2L4' EE/STD | F124: 74 | G124: Linear Fluorescent | H124: L4' | I124: 15D Existing
C125: Four Foot Fluorescent T12 Systems | D125: 3F34SSS | E125: 3L4' EE/STD | F125: 115 | G125: Linear Fluorescent | H125: L4' | I125: 15D Existing
C126: Four Foot Fluorescent T8 Systems | D126: 2F32SSS | E126: 2L4' T8/ELIG | F126: 60 | G126: Linear Fluorescent | H126: L4' | I126: 15D Existing
C127: Four Foot Fluorescent T8 Systems | D127: 3F32SSS | E127: 3L4' T8/ELIG | F127: 88 | G127: Linear Fluorescent | H127: L4' | I127: 15D Existing
B128: 15E Existing | C128: Four Foot Fluorescent T12 U-Bend Systems | D128: 2F34SSS | E128: 2L4' EE/STD | F128: 74 | G128: Linear Fluorescent | H128: L4' | I128: 15E Existing
C129: Four Foot Fluorescent T8 U-Bend Systems | D129: 2F32SSS | E129: 2L2' STD/U BEND | F129: 60 | G129: Linear Fluorescent | H129: L4' | I129: 15E Existing
B130: 20 Proposed | C130: Four Foot Fluorescent T8 Systems | D130: 1F32SSE | E130: 1L4' T8/ELIG | F130: 28 | G130: Linear Fluorescent | H130: L4' | I130: 20 Proposed
C131: Four Foot Fluorescent T8 Systems | D131: 1F32SHH | E131: 1L4' T8/ELIG HIGH LUMEN HBF | F131: 30 | G131: Linear Fluorescent | H131: L4' | I131: 20 Proposed
C132: Four Foot Fluorescent T8 Systems | D132: 1F32SHL | E132: 1L4 T8/ELIG HIGH LUMEN LBF | F132: 26 | G132: Linear Fluorescent | H132: L4 | I132: 20 Proposed
C133: Four Foot Fluorescent T8 Systems | D133: 2F32SSE | E133: 2L4' T8/ELIG | F133: 55 | G133: Linear Fluorescent | H133: L4' | I133: 20 Proposed
C134: Four Foot Fluorescent T8 Systems | D134: 2F32SHH | E134: 2L4' T8/ELIG HIGH LUMEN HBF | F134: 78 | G134: Linear Fluorescent | H134: L4' | I134: 20 Proposed
C135: Four Foot Fluorescent T8 Systems | D135: 2F32SHL | E135: 2L4 T8/ELIG HIGH LUMEN LBF | F135: 52 | G135: Linear Fluorescent | H135: L4 | I135: 20 Proposed
C136: T8 Reduced Wattage | D136: 1F25EEH | E136: 1L4' 25W T8EE/EELE HBF | F136: 30 | G136: Linear Fluorescent | H136: L4' | I136: 20 Proposed
C137: T8 Reduced Wattage | D137: 1F25EEE | E137: 1L4' 25W T8EE/ELEE | F137: 22 | G137: Linear Fluorescent | H137: L4' | I137: 20 Proposed
C138: T8 Reduced Wattage | D138: 1F25EEL | E138: 1L4' 25W T8EE/ELEE LBF | F138: 20 | G138: Linear Fluorescent | H138: L4' | I138: 20 Proposed
C139: T8 Reduced Wattage | D139: 2F25EEH | E139: 2L4' 25WT8EE/EELE HBF | F139: 86 | G139: Linear Fluorescent | H139: L4' | I139: 20 Proposed
C140: T8 Reduced Wattage | D140: 2F25EEE | E140: 2L4' 25W T8EE/ELEE | F140: 43 | G140: Linear Fluorescent | H140: L4' | I140: 20 Proposed
C141: T8 Reduced Wattage | D141: 2F25EEL | E141: 2L4' 25W T8EE/ELEE LBF | F141: 57 | G141: Linear Fluorescent | H141: L4' | I141: 20 Proposed
C142: T8 Reduced Wattage | D142: 1F28EEH | E142: 1L4' 28W T8EE/EELE HBF | F142: 33 | G142: Linear Fluorescent | H142: L4' | I142: 20 Proposed
C143: T8 Reduced Wattage | D143: 1F28EEE | E143: 1L4' 28W T8EE/ELEE | F143: 24 | G143: Linear Fluorescent | H143: L4' | I143: 20 Proposed
C144: T8 Reduced Wattage | D144: 1F28EEL | E144: 1L4' 28W T8EE/ELEE LBF | F144: 22 | G144: Linear Fluorescent | H144: L4' | I144: 20 Proposed
C145: T8 Reduced Wattage | D145: 2F28EEH | E145: 2L4' 28WT8EE/EELE HBF | F145: 65 | G145: Linear Fluorescent | H145: L4' | I145: 20 Proposed
C146: T8 Reduced Wattage | D146: 2F28EEE | E146: 2L4' 28W T8EE/ELEE | F146: 49 | G146: Linear Fluorescent | H146: L4' | I146: 20 Proposed
C147: T8 Reduced Wattage | D147: 2F28EEL | E147: 2L4' 28W T8EE/ELEE LBF | F147: 42 | G147: Linear Fluorescent | H147: L4' | I147: 20 Proposed
C148: T5 Systems | D148: 1F28SSE | E148: 1L4' T5/ELIG | F148: 32 | G148: Linear Fluorescent | H148: L4' | I148: 20 Proposed
C149: T5 Systems | D149: 2F28SSE | E149: 2L4' T5/ELIG | F149: 63 | G149: Linear Fluorescent | H149: L4' | I149: 20 Proposed
C150: T5HO Systems | D150: 1F54HSE | E150: 1L4' T5 HO/ELIG | F150: 59 | G150: T5HO Systems | H150: L4' | I150: 20 Proposed
C151: T5HO Systems | D151: 2F54HSE | E151: 2L4' T5 HO/ELIG | F151: 117 | G151: T5HO Systems | H151: L4' | I151: 20 Proposed
C152: Four Foot Fluorescent T8 Systems | D152: 3F32SSE | E152: 3L4' T8/ELIG | F152: 82 | G152: Linear Fluorescent | H152: L4' | I152: 20 Proposed
C153: Four Foot Fluorescent T8 Systems | D153: 3F32SHH | E153: 3L4' T8/ELIG HIGH LUMEN HBF | F153: 112 | G153: Linear Fluorescent | H153: L4' | I153: =IF(B153="",I152,B153) -> 20 Proposed
C154: Four Foot Fluorescent T8 Systems | D154: 3F32SHL | E154: 3L4 T8/ELIG HIGH LUMEN LBF | F154: 76 | G154: Linear Fluorescent | H154: L4 | I154: 20 Proposed
C155: Four Foot Fluorescent T8 Systems | D155: 4F32SSE | E155: 4L4' T8/ELIG | F155: 108 | G155: Linear Fluorescent | H155: L4' | I155: 20 Proposed
C156: Four Foot Fluorescent T8 Systems | D156: 4F32SHH | E156: 4L4' T8/ELIG HIGH LUMEN HBF | F156: 153 | G156: Linear Fluorescent | H156: L4' | I156: 20 Proposed
C157: Four Foot Fluorescent T8 Systems | D157: 4F32SHL | E157: 4L4 T8/ELIG HIGH LUMEN LBF | F157: 98 | G157: Linear Fluorescent | H157: L4 | I157: 20 Proposed
C158: T8 Reduced Wattage | D158: 3F25EEH | E158: 3L4' 25W T8EE/EELE HBF | F158: 86 | G158: Linear Fluorescent | H158: L4' | I158: 20 Proposed
C159: T8 Reduced Wattage | D159: 3F25EEE | E159: 3L4' 25W T8EE/ELEE | F159: 66 | G159: Linear Fluorescent | H159: L4' | I159: 20 Proposed
C160: T8 Reduced Wattage | D160: 3F25EEL | E160: 3L4' 25W T8EE/ELEE LBF | F160: 57 | G160: Linear Fluorescent | H160: L4' | I160: 20 Proposed
C161: T8 Reduced Wattage | D161: 4F25EEH | E161: 4L4' 25W T8EE/EELE HBF | F161: 112 | G161: Linear Fluorescent | H161: L4' | I161: 20 Proposed
C162: T8 Reduced Wattage | D162: 4F25EEE | E162: 4L4' 25W T8EE/ELEE | F162: 86 | G162: Linear Fluorescent | H162: L4' | I162: 20 Proposed
C163: T8 Reduced Wattage | D163: 4F25EEL | E163: 4L4' 25W T8EE/ELEE LBF | F163: 75 | G163: Linear Fluorescent | H163: L4' | I163: 20 Proposed
C164: T8 Reduced Wattage | D164: 3F28EEH | E164: 3L4' 28W T8EE/EELE HBF | F164: 100 | G164: Linear Fluorescent | H164: L4' | I164: 20 Proposed
C165: T8 Reduced Wattage | D165: 3F28EEE | E165: 3L4' 28W T8EE/ELEE | F165: 73 | G165: Linear Fluorescent | H165: L4' | I165: 20 Proposed
C166: T8 Reduced Wattage | D166: 3F28EEL | E166: 3L4' 28W T8EE/ELEE LBF | F166: 64 | G166: Linear Fluorescent | H166: L4' | I166: 20 Proposed
C167: T8 Reduced Wattage | D167: 4F28EEH | E167: 4L4' 28W T8EE/EELE HBF | F167: 126 | G167: Linear Fluorescent | H167: L4' | I167: 20 Proposed
C168: T8 Reduced Wattage | D168: 4F28EEE | E168: 4L4' 28W T8EE/ELEE | F168: 94 | G168: Linear Fluorescent | H168: L4' | I168: 20 Proposed
C169: T8 Reduced Wattage | D169: 4F28EEL | E169: 4L4' 28W T8EE/ELEE LBF | F169: 83 | G169: Linear Fluorescent | H169: L4' | I169: 20 Proposed
C170: T5HO Systems | D170: 3F54HSE | E170: 3L4' T5 HO/ELIG | F170: 177 | G170: T5HO Systems | H170: L4' | I170: 20 Proposed
C171: T5HO Systems | D171: 4F54HSE | E171: 4L 54W T5 HO | F171: 234 | G171: T5HO Systems | H171: L4' | I171: 20 Proposed
C172: Three Foot Fluorescent Systems | D172: 1F25SSE | E172: 1L3'T8/ELIG | F172: 24 | G172: Linear Fluorescent | H172: L3' | I172: 20 Proposed
C173: Three Foot Fluorescent Systems | D173: 2F25SSE | E173: 2L3' T8/ELIG | F173: 47 | G173: Linear Fluorescent | H173: L3' | I173: 20 Proposed
C174: Three Foot Fluorescent Systems | D174: 3F25SSE | E174: 3L3'T8/ELIG | F174: 68 | G174: Linear Fluorescent | H174: L3' | I174: 20 Proposed
C175: Three Foot Fluorescent Systems | D175: 4F25SSE | E175: 4L3' T8/ELIG | F175: 88 | G175: Linear Fluorescent | H175: L3' | I175: 20 Proposed
C176: T5 Systems | D176: 1F21SSE | E176: 1L3' T5/ELIG | F176: 27 | G176: Linear Fluorescent | H176: L3' | I176: 20 Proposed
C177: T5 Systems | D177: 2F21SSE | E177: 2L3' T5/ELIG | F177: 52 | G177: Linear Fluorescent | H177: L3' | I177: 20 Proposed
C178: T5HO Systems | D178: 1F39HSE | E178: 1L3' T5 HO/ELIG | F178: 43 | G178: T5HO Systems | H178: L3' | I178: 20 Proposed
C179: T5HO Systems | D179: 2F39HSE | E179: 2L3' T5 HO/ELIG | F179: 85 | G179: T5HO Systems | H179: L3' | I179: 20 Proposed
C180: Two Foot Fluorescent Systems | D180: 1F17SSE | E180: 1L2'T8/ELIG | F180: 17 | G180: Linear Fluorescent | H180: L2' | I180: 20 Proposed
C181: Two Foot Fluorescent Systems | D181: 2F17SSE | E181: 2L2' T8/ELIG | F181: 37 | G181: Linear Fluorescent | H181: L2' | I181: 20 Proposed
C182: Two Foot Fluorescent Systems | D182: 2F17SSL | E182: 2L2' T8/ELIG LBF | F182: 27 | G182: Linear Fluorescent | H182: L2' | I182: 20 Proposed
C183: Two Foot Fluorescent Systems | D183: 3F17SSE | E183: 3L2' T8/ELIG | F183: 53 | G183: Linear Fluorescent | H183: L2' | I183: 20 Proposed
C184: Two Foot Fluorescent Systems | D184: 3F17SSL | E184: 3L2' T8/ELIG LBF | F184: 39 | G184: Linear Fluorescent | H184: L2' | I184: 20 Proposed
C185: Two Foot Fluorescent Systems | D185: 4F17SSE | E185: 4L2' T8/ELIG | F185: 62 | G185: Linear Fluorescent | H185: L2' | I185: 20 Proposed
B186: 20 Existing | C186: Four Foot Fluorescent T12 Systems | D186: 1F34SSS | E186: 1L4' EE/STD | F186: 41 | G186: Linear Fluorescent | H186: L4' | I186: 20 Existing
C187: Four Foot Fluorescent T12 Systems | D187: 2F34SSS | E187: 2L4' EE/STD | F187: 74 | G187: Linear Fluorescent | H187: L4' | I187: 20 Existing
C188: Four Foot Fluorescent T8 Systems | D188: 1F32SSS | E188: 1L4' T8/EEMAG | F188: 30 | G188: Linear Fluorescent | H188: L4' | I188: 20 Existing
C189: Four Foot Fluorescent T8 Systems | D189: 2F32SSS | E189: 2L4' T8/ELIG | F189: 60 | G189: Linear Fluorescent | H189: L4' | I189: 20 Existing
C190: Eight Foot T12 Systems | D190: 2F96SEM | E190: 2L8' EE/EEMAG | F190: 123 | G190: Linear Fluorescent | H190: L8' | I190: 20 Existing
C191: Eight Foot T12 Systems | D191: 2F96SES | E191: 2L8' EE/STD | F191: 138 | G191: Linear Fluorescent | H191: L8' | I191: 20 Existing
C192: Eight Foot T12 Systems | D192: 1F96SSE | E192: 1L8' EE/STD | F192: 83 | G192: Linear Fluorescent | H192: L8' | I192: 20 Existing
C193: Eight Foot T8 Systems | D193: 2F59SSE | E193: 2L8' T8/ELIG | F193: 109 | G193: Linear Fluorescent | H193: L8' | I193: 20 Existing
C194: Eight Foot T8 Systems | D194: 2F59SSL | E194: 2L8' T8/ELIG LOW PWR | F194: 100 | G194: Linear Fluorescent | H194: L8' | I194: 20 Existing
C195: Eight Foot T8 Systems | D195: 1F59SSE | E195: 1L8' T8/ELIG | F195: 60 | G195: Linear Fluorescent | H195: L8' | I195: 20 Existing
C196: Eight Foot T12 HO Systems | D196: 2F96HEM | E196: 2L8' HO/EE/EEMAG | F196: 207 | G196: Linear Fluorescent | H196: L8' | I196: 20 Existing
C197: Eight Foot T12 HO Systems | D197: 2F96HES | E197: 2L8' HO/EE/STD | F197: 227 | G197: Linear Fluorescent | H197: L8' | I197: 20 Existing
C198: Eight Foot T12 HO Systems | D198: 1F96HES | E198: 1L8' HO/EE/STD | F198: 125 | G198: Linear Fluorescent | H198: L8' | I198: 20 Existing
C199: Eight Foot T12 VHO Systems | D199: 2F96VES | E199: 2L8' VHO/EE/STD | F199: 390 | G199: Linear Fluorescent | H199: L8' | I199: 20 Existing
C200: Eight Foot T12 VHO Systems | D200: 2F96VSS | E200: 2L8' VHO/STD/STD | F200: 450 | G200: Linear Fluorescent | H200: L8' | I200: 20 Existing
C201: Eight Foot T12 VHO Systems | D201: 1F96VES | E201: 1L8' VHO/EE/STD | F201: 200 | G201: Linear Fluorescent | H201: L8' | I201: 20 Existing
C202: Eight Foot T12 VHO Systems | D202: 1F96VSS | E202: 1L8' VHO/STD/STD | F202: 230 | G202: Linear Fluorescent | H202: L8' | I202: 20 Existing
C203: Eight Foot T8 HO Systems | D203: 2F80SSE | E203: 2L8' T8 HO/ELIG | F203: 160 | G203: Linear Fluorescent | H203: L8' | I203: 20 Existing
C204: Eight Foot T8 HO Systems | D204: 1F80SSE | E204: 1L8' T8 HO/ELIG | F204: 85 | G204: Linear Fluorescent | H204: L8' | I204: 20 Existing
C205: Incandescent Lamps | D205: 1I0060 | E205: 60W INC | F205: 60 | G205: Incandescent Lamps | I205: 20 Existing
C206: Incandescent Lamps | D206: 1I0075 | E206: 75W INC | F206: 75 | G206: Incandescent Lamps | I206: 20 Existing
C207: Incandescent Lamps | D207: 1I0100 | E207: 100W INC | F207: 100 | G207: Incandescent Lamps | I207: 20 Existing
... 245 more rows

Sheet AEG Import (hidden)
A1: Measure # | B1: Import? | C1: 1st_Yr_Non_Resource_Benefits | D1: Adjusted_Volume | E1: AFUE | F1: AHRI_Ref_number | G1: Air_Leakage | H1: amperage | I1: Annual_Cords_Saved | J1: Annual_Cords_Used | K1: Annual_Gallons_Saved | L1: Annual_Gallons_Used | M1: Annual_Non_Resource_Benefits | N1: Annual_Pounds_Saved | O1: Annual_Pounds_Used | P1: Annual_Therms_Saved | Q1: Annual_Therms_Used | R1: Area_Lit | S1: Avg_Wind_Speed | T1: ballast_type_sel | U1: Base_or_Efficiency_Case_sel | V1: basecase_age | W1: basecase_Capacity_or_size | X1: basecase_efficiency | Y1: basecase_other | Z1: basecase_quantity | AA1: basecase_system_rating | AB1: basecase_type | AC1: basecase_unit_rating | AD1: Baseline_equipment_cost | AE1: Baseline_Installed_Cost | AF1: Baseline_system_age | AG1: BEF | AH1: Benefit_1_Description_sel | AI1: Benefit_1a_Description | AJ1: Benefit_2_Description | AK1: Benefit_2a_Description | AL1: benefit_multiplier | AM1: Blower_Fan_E_Use | AN1: Blower_Fan_motor_control_sel | AO1: Boiler_Type_sel | AP1: BTU | AQ1: BTU_Cool | AR1: BTU_Heat | AS1: Btuh | AT1: Building_Conditioned_Area | AU1: building_type_sel | AV1: Capacity | AW1: CEE_Tier_sel | AX1: CFM | AY1: CO2_Generator | AZ1: CO2_Pt_Source_or_Meter | BA1: Comm_Coincidence | BB1: Comm_Coincidence_Factor | BC1: Commercial Spillover | BD1: Commercial_Free_Driver | BE1: Commercial_Free_Ridership | BF1: Commercial_Net_to_Gross_Ratio | BG1: Commercial_Snap_Back | BH1: Commissioned_sel | BI1: Control_Type_sel | BJ1: Cooling_Bonus | BK1: COP | BL1: CRI | BM1: CTRL_Comm_Type_sel | BN1: Customer_refID | BO1: DeltaTemp | BP1: Description | BQ1: discount_rate | BR1: Door_type_sel | BS1: Duct_Leakage | BT1: Economizer_Type_sel | BU1: EER | BV1: ef | BW1: Efficiency | BX1: Elec_Savings_Adj | BY1: Elec_Util_cust_Incentive | BZ1: Eligibility_Status_sel | CA1: End_Use_sel | CB1: ENERGY_STAR_Compliant_sel | CC1: Equip_Orientation_sel | CD1: equipment_cost | CE1: Exist_Equip_Age | CF1: Exist_Equip_Life | CG1: Fed_Tax_Credit_Eligible_sel | CH1: Fixture_Efficiency | CI1: fixture_mounting_sel | CJ1: Fixture_Size | CK1: fixture_style_sel | CL1: Flow | CM1: fuel_used_2_sel | CN1: fuel_used_3_sel | CO1: fuel_used_sel | CP1: Full_Cost_for_Retrofit | CQ1: Full_Load_Hours | CR1: Full_Load_Hours_Cool | CS1: Full_Load_Hours_Heat | CT1: Gas_Util_Cust_Incentive | CU1: Geothermal_Loop_Type_sel | CV1: Green_Certification_sel | CW1: Heat_Exchanger_Type_sel | CX1: Heating_Penalty | CY1: Heating_Type_sel | CZ1: HERS_rating | DA1: HiEff_Blower_Fan_sel | DB1: Horse_Power | DC1: Hrs_of_Use | DD1: HSPF | DE1: Hub_Height | DF1: Incentive_Per_Unit | DG1: Incremental_Installed_Cost | DH1: Install_Type_sel | DI1: Installed_Cost | DJ1: Insulation_Location_sel | DK1: Insulation_Material_sel | DL1: IPLV | DM1: IRR | DN1: IsElectric | DO1: IsTested | DP1: kW_Impact | DQ1: kw_pjm_peak_adjusted | DR1: kw_pjm_peak_unadjusted | DS1: kW_Summer_Gross | DT1: kW_Summer_Net | DU1: kw_ton_IPLV | DV1: kw_ton_peak | DW1: kW_Winter_Gross | DX1: kW_Winter_Net | DY1: kWh_Gross | DZ1: kWh_Impact | EA1: kWh_Net | EB1: kwh_nonsummer_offpeak_adjusted | EC1: kwh_nonsummer_offpeak_unadjusted | ED1: kwh_nonsummer_peak_adjusted | EE1: kwh_nonsummer_peak_unadjusted | EF1: kwh_summer_offpeak_adjusted | EG1: kwh_summer_offpeak_unadjusted | EH1: kwh_summer_peak_adjusted | EI1: kwh_summer_peak_unadjusted | EJ1: Lamp_Length | EK1: lamp_type_sel | EL1: Line_loss_kW | EM1: Line_loss_kWh | EN1: Load | EO1: LoadFactor | EP1: Loadshape_sel | EQ1: Loan_Interest_Rate | ER1: Location | ES1: Lumens | ET1: Manufacturer | EU1: Manufacturer_Non_split_system | EV1: Manufacturer_Split_System_Coil | EW1: Manufacturer_Split_System_Condenser | EX1: Manufacturer_sub_components_1 | EY1: Manufacturer_sub_components_2 | EZ1: Manufacturer_sub_components_3 | FA1: MBtuh_Input | FB1: MBtuh_Output | FC1: Measure_Life | FD1: Meets_building_code_sel | FE1: MEF | FF1: Model | FG1: Motor_Enclosure_Type_sel | FH1: name | FI1: Name_Plate_Power_Rating | FJ1: Natural_Gas_Savings_Adjustment | FK1: Natural_Gas_Savings_mmbtu | FL1: New_Baseline_Inst_Cost | FM1: nox | FN1: NPV | FO1: number_lamps | FP1: Number_of_Panes | FQ1: Number_Units | FR1: Output_Watts | FS1: Phase_sel | FT1: Pool_pump_type_sel | FU1: pool_size | FV1: pool_type_sel | FW1: Program_Name | FX1: quantity | FY1: R_value | FZ1: rebate_kwh | GA1: rebate_ton | GB1: rebate_watt | GC1: Resi_coincidence | GD1: Resi_Coincidence_factor | GE1: Residential Spillover | GF1: Residential_Freedriver | GG1: Residential_Freeridership | GH1: Residential_Net_to_Gross_Ratio | GI1: Residential_Snap_back | GJ1: RLA | GK1: RLA_Actual | GL1: RNC_Tier_sel | GM1: RPM | GN1: SEER | GO1: SENS_Latent_Total | GP1: Sensor_Type_sel | GQ1: Serial_number | GR1: SHGC | GS1: Solar_AC_kW_Net | GT1: sox | GU1: SRI | GV1: Steady_state_efficiency | GW1: Style | GX1: Thermal_efficiency | GY1: Thickness | GZ1: Tilt_Angle | HA1: Tons | HB1: Tons_Controlled | HC1: Tune_up_equipment_type_sel | HD1: turbine_rating_capacity | HE1: U_value | HF1: Units_Controlled_by_Control | HG1: Unused_Incentive | HH1: userid | HI1: ventilation_type_sel | HJ1: Volts | HK1: Volume_ft3 | HL1: Warranty | HM1: Water | HN1: Water_Consumption | HO1: Water_Factor | HP1: water_gallons_per_minute_ton | HQ1: Water_Heating_Type_sel | HR1: Water_Storage_Capacity | HS1: Wattage | HT1: Watts_sqft | HU1: Watts_sqft_Saved | HV1: Wind_Output_Reduction | HW1: Window_Frame_Material_sel | HX1: Window_Gas_sel | HY1: Window_Type_sel
A2: Building Method | B2: =IF(ISBLANK('Input - Building Method'!F22),"No","Yes") -> No | BN2: =IF(B2="yes",A2," ") ->  | BY2: ='Input - Building Method'!Q22/FX2 -> 0 | DC2: ='Input - Building Method'!E22 -> 0 | DP2: ='Input - Building Method'!P11 -> 0 | DS2: ='Input - Building Method'!P11 -> 0 | DZ2: ='Input - Building Method'!O11 -> 0 | FC2: 11 | FH2: =A2 -> Building Method | FX2: 1 | HS2: ='Input - Building Method'!F22 -> 0 | HT2: ='Input - Building Method'!I22 ->  | HU2: =IF('Input - Building Method'!H22="","",'Input - Building Method'!H22-'Input - Building Method'!I22) -> 
A3: Space Method | B3: =IF('Input - Space Method'!F21=0,"No","Yes") -> No | BN3: =IF(B3="yes",A3," ") ->  | BY3: ='Input - Space Method'!P21/FX3 ->  | DC3: ='Input - Space Method'!E21 ->  | DP3: ='Input - Space Method'!R11 ->  | DS3: ='Input - Space Method'!S11 ->  | DZ3: ='Input - Space Method'!R11 ->  | FC3: 11 | FH3: =A3 -> Space Method | FX3: 1 | HS3: ='Input - Space Method'!F21 -> 0
A5: 80A | B5: =IF(SUMIF('Input - Lighting Controls'!$D$22:$D$221,A5,'Input - Lighting Controls'!$F$22:$F$221)>0,"Yes","No") -> No | BI5: =INDEX(Validation!$P$7:$P$10,MATCH($A5,Validation!$O$7:$O$10,0)) -> Occupancy Sensor: Wall Switch Replacement | BY5: =SUMIF('Input - Lighting Controls'!$D$22:$D$221,$A5,'Input - Lighting Controls'!$O$22:$O$221)/FX5 ->  | DC5: =SUMIF('Input - Lighting Controls'!$D$22:$D$221,$A5,'Input - Lighting Controls'!$J$22:$J$221) -> 0 | DP5: =DS5 ->  | DS5: =SUMIF('Input - Lighting Controls'!$D$22:$D$221,$A5,'Input - Lighting Controls'!$N$22:$N$221)/FX5 ->  | DZ5: =SUMIF('Input - Lighting Controls'!$D$22:$D$221,$A5,'Input - Lighting Controls'!$M$22:$M$221)/FX5 ->  | FC5: 8 | FH5: =A5 -> 80A | FX5: =SUMIF('Input - Lighting Controls'!$D$22:$D$221,$A5,'Input - Lighting Controls'!$P$22:$P$221) -> 0 | HS5: =SUMIF('Input - Lighting Controls'!$D$22:$D$221,$A5,'Input - Lighting Controls'!$Q$22:$Q$221)/FX5 -> 
A6: 80B | B6: =IF(SUMIF('Input - Lighting Controls'!$D$22:$D$221,A6,'Input - Lighting Controls'!$F$22:$F$221)>0,"Yes","No") -> No | BI6: =INDEX(Validation!$P$7:$P$10,MATCH($A6,Validation!$O$7:$O$10,0)) -> Occupancy Sensor: Ceiling / Wall Mount (Remote) | BY6: =SUMIF('Input - Lighting Controls'!$D$22:$D$221,$A6,'Input - Lighting Controls'!$O$22:$O$221)/FX6 ->  | DC6: =SUMIF('Input - Lighting Controls'!$D$22:$D$221,$A6,'Input - Lighting Controls'!$J$22:$J$221) -> 0 | DP6: =DS6 ->  | DS6: =SUMIF('Input - Lighting Controls'!$D$22:$D$221,$A6,'Input - Lighting Controls'!$N$22:$N$221)/FX6 ->  | DZ6: =SUMIF('Input - Lighting Controls'!$D$22:$D$221,$A6,'Input - Lighting Controls'!$M$22:$M$221)/FX6 ->  | FC6: 8 | FH6: =A6 -> 80B | FX6: =SUMIF('Input - Lighting Controls'!$D$22:$D$221,$A6,'Input - Lighting Controls'!$P$22:$P$221) -> 0 | HS6: =SUMIF('Input - Lighting Controls'!$D$22:$D$221,$A6,'Input - Lighting Controls'!$Q$22:$Q$221)/FX6 -> 
A7: 80C | B7: =IF(SUMIF('Input - Lighting Controls'!$D$22:$D$221,A7,'Input - Lighting Controls'!$F$22:$F$221)>0,"Yes","No") -> No | BI7: =INDEX(Validation!$P$7:$P$10,MATCH($A7,Validation!$O$7:$O$10,0)) -> Occupancy Sensor: Fixture Mounted (High Bay) | BY7: =SUMIF('Input - Lighting Controls'!$D$22:$D$221,$A7,'Input - Lighting Controls'!$O$22:$O$221)/FX7 ->  | DC7: =SUMIF('Input - Lighting Controls'!$D$22:$D$221,$A7,'Input - Lighting Controls'!$J$22:$J$221) -> 0 | DP7: =DS7 ->  | DS7: =SUMIF('Input - Lighting Controls'!$D$22:$D$221,$A7,'Input - Lighting Controls'!$N$22:$N$221)/FX7 ->  | DZ7: =SUMIF('Input - Lighting Controls'!$D$22:$D$221,$A7,'Input - Lighting Controls'!$M$22:$M$221)/FX7 ->  | FC7: 8 | FH7: =A7 -> 80C | FX7: =SUMIF('Input - Lighting Controls'!$D$22:$D$221,$A7,'Input - Lighting Controls'!$P$22:$P$221) -> 0 | HS7: =SUMIF('Input - Lighting Controls'!$D$22:$D$221,$A7,'Input - Lighting Controls'!$Q$22:$Q$221)/FX7 -> 
A8: 80E | B8: =IF(SUMIF('Input - Lighting Controls'!$D$22:$D$221,A8,'Input - Lighting Controls'!$F$22:$F$221)>0,"Yes","No") -> No | BI8: =INDEX(Validation!$P$7:$P$10,MATCH($A8,Validation!$O$7:$O$10,0)) -> Daylight Control/Harvesting (On/Off) | BY8: =SUMIF('Input - Lighting Controls'!$D$22:$D$221,$A8,'Input - Lighting Controls'!$O$22:$O$221)/FX8 ->  | DC8: =SUMIF('Input - Lighting Controls'!$D$22:$D$221,$A8,'Input - Lighting Controls'!$J$22:$J$221) -> 0 | DP8: =DS8 ->  | DS8: =SUMIF('Input - Lighting Controls'!$D$22:$D$221,$A8,'Input - Lighting Controls'!$N$22:$N$221)/FX8 ->  | DZ8: =SUMIF('Input - Lighting Controls'!$D$22:$D$221,$A8,'Input - Lighting Controls'!$M$22:$M$221)/FX8 ->  | FC8: 8 | FH8: =A8 -> 80E | FX8: =SUMIF('Input - Lighting Controls'!$D$22:$D$221,$A8,'Input - Lighting Controls'!$P$22:$P$221) -> 0 | HS8: =SUMIF('Input - Lighting Controls'!$D$22:$D$221,$A8,'Input - Lighting Controls'!$Q$22:$Q$221)/FX8 -> 

Sheet Validation (hidden)
D4: =COUNTA(D6:D14) -> 9 | E4: 6 | F4: 5 | G4: 4 | H4: 2 | I4: 8 | J4: 2 | K4: 4 | L4: 2 | M4: =COUNTA(M6:M9) -> 4 | T4: =COUNTA(T6:T100) -> 6 | U4: =COUNTA(U6:U100) -> 2 | V4: 6 | W4: 2 | X4: 12 | Y4: 4 | Z4: 12 | AA4: 4 | AB4: 4 | AC4: 9 | AD4: 8 | AE4: 4 | AF4: 3 | AG4: 5 | AH4: 3 | AI4: 4 | AJ4: 3 | AK4: 4 | AL4: 3 | AM4: 4 | AN4: 3 | AO4: 2 | AP4: 22 | AQ4: 30 | AR4: 20 | AS4: 30 | AT4: 8 | AU4: 12 | AV4: 6 | AW4: 9 | AX4: 4 | AY4: 6 | AZ4: 5 | BA4: 4 | BB4: 2 | BC4: 7 | BD4: 2 | BE4: 9 | BF4: 2 | BG4: 9 | BH4: 4 | BI4: 9 | BJ4: 2 | BK4: 7 | BL4: 2 | BM4: 9 | BN4: 1 | BO4: 9 | BP4: 4 | BQ4: 9 | BR4: 2 | BS4: 3 | BT4: 2 | BU4: 3 | BV4: 5 | BW4: 11 | BX4: 6 | BY4: 8 | BZ4: 4 | CA4: 9 | CB4: 4 | CC4: 4 | CD4: 7 | CE4: 2 | CF4: 7 | CG4: =COUNTA(CG6:CG100) -> 2
A5: Building Type | D5: Measure Type | E5: Lamp and Ballast Retrofits | F5: Permanent Delamping | G5: Commodity Fixtures | H5: Advanced Fixtures | I5: Fluorescent High Bay Fixtures | J5: HID | K5: Compact Flourescent | L5: LED Exits | M5: Lighting Controls | O5: Control Parameters by Measure Code | T5: 10A Proposed | U5: 10A Existing | V5: 10B Proposed | W5: 10B Existing | X5: 10C Proposed | Y5: 10C Existing | Z5: 10D Proposed | AA5: 10D Existing | AB5: 10E Proposed | AC5: 10E Existing | AD5: 10F Proposed | AE5: 10F Existing | AF5: 15A Proposed | AG5: 15A Existing | AH5: 15B Proposed | AI5: 15B Existing | AJ5: 15C Proposed | AK5: 15C Existing | AL5: 15D Proposed | AM5: 15D Existing | AN5: 15E Proposed | AO5: 15E Existing | AP5: 20A Proposed | AQ5: 20A Existing | AR5: 20B Proposed | AS5: 20B Existing | AT5: 20C Proposed | AU5: 20C Existing | AV5: 20D Proposed | AW5: 20D Existing | AX5: 40A Proposed | AY5: 40A Existing | AZ5: 40B Proposed | BA5: 40B Existing | BB5: 60A Proposed | BC5: 60A Existing | BD5: 60B Proposed | BE5: 60B Existing | BF5: 60C Proposed | BG5: 60C Existing | BH5: 60D Proposed | BI5: 60D Existing | BJ5: 61A Proposed | BK5: 61A Existing | BL5: 61B Proposed | BM5: 61B Existing | BN5: 61C Proposed | BO5: 61C Existing | BP5: 61D Proposed | BQ5: 61D Existing | BR5: 65A Proposed | BS5: 65A Existing | BT5: 65B Proposed | BU5: 65B Existing | BV5: 70A Proposed | BW5: 70A Existing | BX5: 70B Proposed | BY5: 70B Existing | BZ5: 70C Proposed | CA5: 70C Existing | CB5: 71A Proposed | CC5: 71A Existing | CD5: 90A Proposed | CE5: 90A Existing | CF5: 90B Proposed | CG5: 90B Existing | CI5: 4’ HPT8 Retrofit: 1-2 Lamps | CJ5: 10A Proposed | CK5: 4’ HPT8 Retrofit: 1-2 Lamps | CM5: 4’ HPT8 Retrofit: 1-2 Lamps | CN5: =CM5=CI5 -> TRUE | CP5: 10A
D6: Lamp and Ballast Retrofits | E6: 10A | F6: 15A | G6: 20A | H6: 40A | I6: 60A | J6: 65A | K6: 70A | L6: 90A | M6: 80A | O6: Measure Code | P6: Description | Q6: Minimum Watts | R6: Assumed % Savings | T6: 1F32SSE | U6: 1F34SSS | V6: 3F32SSE | W6: 3F34SSS | X6: 1F25EEH | Y6: 1F34SSS | Z6: 3F25EEH | AA6: 3F34SSS | AB6: 1F25SSE | AC6: 1F30SEM | AD6: 1F17SSE | AE6: 1F20SSS | AF6: 2F32SSE | AG6: 2F96HEM | AH6: 2F32SSE | AI6: 2F96SEM | AJ6: 2F32SSE | AK6: 3F34SSS | AL6: 1F32SSE | AM6: 2F34SSS | AN6: 2F17SSE | AO6: 2F34SSS | AP6: 1F32SSE | AQ6: 1F34SSS | AR6: 3F32SSE | AS6: 3F40SSS | AT6: 1F25SSE | AU6: 1F30SEM | AV6: 1F17SSE | AW6: 1F20SSS | AX6: 1F32SSE | AY6: 2F34SSS | AZ6: 2F32SSE | BA6: 3F34SSS | BB6: 3F54HSE | BC6: 1MH0250S | BD6: 4F54HSE | BE6: 1MH0400S | BF6: 5F54HSW | BG6: 1MH0400S | BH6: 12F54HSE | BI6: 1MH01000S | BJ6: 4F32SHH | BK6: 1MH0250S | BL6: 6F32SHH | BM6: 1MH0400S | BN6: 8F32SHH | BO6: 1MH0400S | BP6: 16F32SHH | BQ6: 1MH01000S | BR6: 1PS0320P | BS6: 1MH0400S | BT6: 1PS0750P | BU6: 1MH1000S | BV6: 1C0013S | BW6: 1I0060 | BX6: 2C0013E | BY6: 1MH0050S | BZ6: 3C0018E | CA6: 1I0150 | CB6: 1C0011S | CC6: 1I0040 | CD6: 1E0002 | CE6: 1I0020 | CF6: 1E0002 | CG6: 1C0009S | CI6: 4’ HPT8 Retrofit: 3-4 Lamps | CJ6: 10B Proposed | CK6: 4’ HPT8 Retrofit: 3-4 Lamps | CM6: 4’ HPT8 Retrofit: 3-4 Lamps | CN6: =CM6=CI6 -> TRUE | CP6: 10B
D7: Permanent Delamping | E7: 10B | F7: 15B | G7: 20B | H7: 40B | I7: 60B | J7: 65B | K7: 70B | L7: 90B | M7: 80B | O7: 80A | P7: Occupancy Sensor: Wall Switch Replacement | Q7: 40 | R7: 0.25 | T7: 1F32SHH | U7: 2F34SSS | V7: 3F32SHH | W7: 4F34SSS | X7: 1F25EEE | Y7: 2F34SSS | Z7: 3F25EEE | AA7: 4F34SSS | AB7: 2F25SSE | AC7: 1F30SES | AD7: 1F17SSL | AE7: 2F20SSS | AF7: 2F32SHH | AG7: 2F96HES | AH7: 2F32SHH | AI7: 2F96SES | AJ7: 2F32SHH | AK7: 4F34SSS | AL7: 1F32SHH | AM7: 3F34SSS | AN7: 2F17SSH | AO7: 2F32SSS | AP7: 1F32SHH | AQ7: 2F34SSS | AR7: 3F32SHH | AS7: 4F40SSS | AT7: 2F25SSE | AU7: 1F30SES | AV7: 2F17SSE | AW7: 2F20SSS | AX7: 1F32SHL | AY7: 3F34SSS | AZ7: 2F32SHH | BA7: 4F34SSS | BB7: 2F54HSE | BC7: 1MV0250S | BD7: 3F54HSE | BE7: 1MV0400S | BF7: 6F54HSE | BG7: 1MV0400S | BH7: 10F54HSE | BI7: 1MV1000S | BJ7: 3F32SHH | BK7: 1MV0250S | BL7: 4F32SHH | BM7: 1MV0400S | BO7: 1MV0400S | BP7: 12F32SHH | BQ7: 1MV1000S | BR7: 1PS0320R | BS7: 1MV0400S | BT7: 1PS0750R | BU7: 1MV1000S | BV7: 1C0018E | BW7: 1I0075 | BX7: 2C0013S | BY7: 1MH0070S | BZ7: 3C0026E | CA7: 1I0200 | CB7: 1C0013S | CC7: 1I0060 | CD7: 1E0003 | CE7: 1I0040 | CF7: 1E0003 | CG7: 1C0018E | CI7: 4’ Reduced-Wattage T8 Retrofit: 1-2 Lamps | CJ7: 10C Proposed | CK7: 4’ Reduced-Wattage T8 Retrofit: 1-2 Lamps | CM7: 4’ Reduced-Wattage T8 Retrofit: 1-2 Lamps | CN7: TRUE | CP7: 10C
D8: Commodity Fixtures | E8: 10C | F8: 15C | G8: 20C | I8: 60C | K8: 70C | M8: 80C | O8: 80B | P8: Occupancy Sensor: Ceiling / Wall Mount (Remote) | Q8: 119 | R8: 0.25 | T8: 1F32SHL | V8: 3F32SHL | X8: 1F25EEL | Y8: 1F32SSS | Z8: 3F25EEL | AA8: 3F32SSS | AB8: 3F25SSE | AC8: 1F30SSS | AD8: 2F17SSE | AE8: 3F20SSS | AF8: 2F32SHL | AG8: 2F96VES | AH8: 2F32SHL | AI8: 2F59SSE | AJ8: 2F32SHL | AK8: 3F32SSS | AL8: 1F32SHL | AM8: 2F32SSS | AN8: 2F17SSL | AP8: 1F32SHL | AQ8: 1F32SSS | AR8: 3F32SHL | AS8: 3F32SSS | AT8: 3F25SSE | AU8: 1F30SSS | AV8: 2F17SSL | AW8: 2F24HSS | AX8: 1F28SSE | AY8: 4F34SSS | AZ8: 2F32SHL | BA8: 3F32SSS | BC8: 1HPS0250S | BE8: 1HPS0400S | BG8: 1HPS0400S | BH8: 8F54HSE | BI8: 1HPS01000S | BK8: 1HPS0250S | BM8: 1HPS0400S | BO8: 1HPS0400S | BP8: 10F32SHH | BQ8: 1HPS01000S | BS8: 1HPS0400S | BU8: 1HPS1000S | BV8: 1C0026E | BW8: 1I0100 | BX8: 2C0018E | BY8: 1MH0100S | BZ8: 3C0032E | CA8: 1I0300 | CB8: 1C0018E | CC8: 1I0075 | CD8: 1E0005 | CF8: 1E0005 | CI8: 4’ Reduced-Wattage T8 Retrofit: 3-4 Lamps | CJ8: 10D Proposed | CK8: 4’ Reduced-Wattage T8 Retrofit: 3-4 Lamps | CM8: 4’ Reduced-Wattage T8 Retrofit: 3-4 Lamps | CN8: TRUE | CP8: 10D
D9: Advanced Fixtures | E9: 10D | F9: 15D | G9: 20D | I9: 60D | K9: 71A | M9: 80E | O9: 80C | P9: Occupancy Sensor: Fixture Mounted (High Bay) | Q9: 40 | R9: 0.25 | T9: 2F32SSE | V9: 4F32SSE | X9: 2F25EEH | Y9: 2F32SSS | Z9: 4F25EEH | AA9: 4F32SSS | AB9: 4F25SSE | AC9: 2F30SEE | AD9: 2F17SSL | AE9: 4F20SSS | AG9: 2F96VSS | AI9: 2F59SSL | AK9: 4F32SSS | AM9: 3F32SSS | AP9: 2F32SSE | AQ9: 2F32SSS | AR9: 4F32SSE | AS9: 4F32SSS | AT9: 4F25SSE | AU9: 2F30SEE | AV9: 3F17SSE | AW9: 3F20SSS | AX9: 1F54HSE | AY9: 2F32SSS | AZ9: 2F28SSE | BA9: 4F32SSS | BC9: 1MH0175S | BE9: 1MH0360S | BG9: 1MH0360S | BH9: 6F54HSE | BI9: 1MH0750S | BK9: 1MH0175S | BM9: 1MH0360S | BO9: 1MH0360S | BP9: 8F32SHH | BQ9: 1MH0750S | BV9: 1C0032E | BW9: 1MH0050S | BX9: 2C0026E | BY9: 1MH0150S | BZ9: 3C0042E | CA9: 1MH0175S | CB9: 1C0026E | CC9: 1I0100 | CD9: 1E0005C | CF9: 1E0005C | CI9: 3’ T8 Retrofit: 1-4 Lamps | CJ9: 10E Proposed | CK9: 3’ T8 Retrofit: 1-4 Lamps | CM9: 3’ T8 Retrofit: 1-4 Lamps | CN9: TRUE | CP9: 10E
D10: Fluorescent High Bay Fixtures | E10: 10E | F10: 15E | I10: 61A | O10: 80E | P10: Daylight Control/Harvesting (On/Off) | Q10: 119 | R10: 0.25 | T10: 2F32SHH | V10: 4F32SHH | X10: 2F25EEE | Z10: 4F25EEE | AC10: 2F30SEM | AD10: 3F17SSE | AG10: 2F80SSE | AP10: 2F32SHH | AQ10: 2F96SEM | AR10: 4F32SHH | AS10: 2F96SEM | AT10: 1F21SSE | AU10: 2F30SEM | AV10: 3F17SSL | AW10: 3F24HSE | AY10: 3F32SSS | AZ10: 2F54HSE | BC10: 1MV0175S | BE10: PS0300P | BG10: PS0300P | BI10: 1MV0700S | BK10: 1MV0175S | BM10: PS0300P | BO10: PS0300P | BQ10: 1MV0700S | BV10: 1C0042E | BW10: 1MH0070S | BX10: 2C0032E | BY10: 1HPS0050S | CA10: 1MH0250S | CD10: 1E0008 | CF10: 1E0008 | CI10: 2’ T8 Retrofit: 1-4 Lamps | CJ10: 10F Proposed | CK10: 2’ T8 Retrofit: 1-4 Lamps | CM10: 2’ T8 Retrofit: 1-4 Lamps | CN10: TRUE | CP10: 10F
D11: HID | E11: 10F | I11: 61B | T11: 2F32SHL | V11: 4F32SHL | X11: 2F25EEL | Z11: 4F25EEL | AC11: 2F30SES | AD11: 3F17SSL | AP11: 2F32SHL | AQ11: 2F96SES | AR11: 4F32SHL | AS11: 2F96SES | AT11: 2F21SSE | AU11: 2F30SES | AV11: 4F17SSE | AW11: 4F20SSS | AY11: 4F32SSS | BC11: 1HPS0150S | BE11: PS0320P | BG11: PS0320P | BI11: 1MV0400S | BK11: 1HPS0150S | BM11: PS0320P | BO11: PS0320P | BQ11: 1MV0400S | BW11: 1MH0100S | BX11: 2C0042E | BY11: 1HPS0070S | CA11: 1HPS0175S | CD11: 1E0015 | CF11: 1E0015 | CI11: New Commodity-Grade Fixture w/ 4' HPT8 or T5/T5HO: 1-2 Lamps | CJ11: 20A Proposed | CK11: New Commodity-Grade Fixture w/ 4' HPT8 or T5/T5HO: 1-2 Lamps | CM11: New Commodity-Grade Fixture w/ 4' HPT8 or T5/T5HO: 1-2 Lamps | CN11: TRUE | CP11: 20A
D12: Compact Flourescent | I12: 61C | X12: 1F28EEH | Z12: 3F28EEH | AC12: 2F30SSS | AD12: 4F17SSE | AP12: 1F25EEH | AQ12: 1F96SSE | AR12: 3F25EEH | AS12: 1F96SSE | AT12: 1F39HSE | AU12: 2F30SSS | AW12: 1I0060 | BC12: 1MH0150S | BE12: PS0350P | BG12: PS0350P | BI12: 1HPS0600S | BK12: 1MH0150S | BM12: PS0350P | BO12: PS0350P | BQ12: 1HPS0600S | BW12: 1MH0150S | BY12: 1HPS0100S | CA12: 1HPS0200S | CD12: 1E0105 | CF12: 1E0105 | CI12: New Commodity-Grade Fixture w/ 4’ HPT8 or T5/T5HO: 3-4 Lamps | CJ12: 20B Proposed | CK12: New Commodity-Grade Fixture w/ 4’ HPT8 or T5/T5HO: 3-4 Lamps | CM12: New Commodity-Grade Fixture w/ 4’ HPT8 or T5/T5HO: 3-4 Lamps | CN12: TRUE | CP12: 20B
D13: LED Exits | I13: 61D | X13: 1F28EEE | Z13: 3F28EEE | AC13: 3F30SES | AD13: 4F17SSL | AP13: 1F25EEE | AQ13: 2F59SSE | AR13: 3F25EEE | AS13: 2F59SSE | AT13: 2F39HSE | AU13: 3F30SES | AW13: 1I0075 | BE13: 1HPS0310S | BG13: 1HPS0310S | BI13: 1HPS0750S | BM13: 1HPS0310S | BO13: 1HPS0310S | BQ13: 1HPS0750S | BW13: 1HPS0050S | BY13: 1HPS0150S | CA13: 1HPS0225S | CI13: New Commodity-Grade Fixture w/ 3’ T8 or T5/T5HO: 1-4 Lamps | CJ13: 20C Proposed | CK13: New Commodity-Grade Fixture w/ 3’ T8 or T5/T5HO: 1-4 Lamps | CM13: New Commodity-Grade Fixture w/ 3’ T8 or T5/T5HO: 1-4 Lamps | CN13: TRUE | CP13: 20C
D14: Lighting Controls | X14: 1F28EEL | Z14: 3F28EEL | AC14: 3F30SSS | AP14: 1F25EEL | AQ14: 2F59SSL | AR14: 3F25EEL | AS14: 2F59SSL | AU14: 3F30SSS | AW14: 1I0100 | BE14: 1HPS0360S | BG14: 1HPS0360S | BI14: PS0750P | BM14: 1HPS0360S | BO14: 1HPS0360S | BQ14: PS0750P | BW14: 1HPS0070S | CA14: 1HPS0250S | CI14: New Commodity-Grade Fixture w/ 2' T8 or T5/T5HO: 1-4 Lamps | CJ14: 20D Proposed | CK14: New Commodity-Grade Fixture w/ 2' T8 or T5/T5HO: 1-4 Lamps | CM14: New Commodity-Grade Fixture w/ 2' T8 or T5/T5HO: 1-4 Lamps | CN14: TRUE | CP14: 20D
X15: 2F28EEH | Z15: 4F28EEH | AP15: 2F25EEH | AQ15: 1F59SSE | AR15: 4F25EEH | AS15: 1F59SSE | AU15: 1I0060 | BW15: 1HPS0100S | CI15: New High Efficiency Advanced Fixture w/ 4' HPT8 or T5/T5HO: 1 Lamp | CJ15: 40A Proposed | CK15: New High Efficiency Advanced Fixture w/ 4' HPT8 or T5/T5HO: 1 Lamp | CM15: New High Efficiency Advanced Fixture w/ 4' HPT8 or T5/T5HO: 1 Lamp | CN15: TRUE | CP15: 40A
X16: 2F28EEE | Z16: 4F28EEE | AP16: 2F25EEE | AQ16: 2F96HEM | AR16: 4F25EEE | AS16: 2F96HEM | AU16: 1I0075 | BW16: 1HPS0150S | CI16: New High Efficiency Advanced Fixture w/ 4' HPT8 or T5/T5HO: 2 Lamp | CJ16: 40B Proposed | CK16: New High Efficiency Advanced Fixture w/ 4' HPT8 or T5/T5HO: 2 Lamp | CM16: New High Efficiency Advanced Fixture w/ 4' HPT8 or T5/T5HO: 2 Lamp | CN16: TRUE | CP16: 40B
D17: ClgHtgType & ClgHtgTypeData | X17: 2F28EEL | Z17: 4F28EEL | AP17: 2F25EEL | AQ17: 2F96HES | AR17: 4F25EEL | AS17: 2F96HES | AU17: 1I0100 | CI17: New Fluorescent High Bay Fixture w/ 4’ T5HO: 2-3 Lamps | CJ17: 60A Proposed | CK17: New Fluorescent High Bay Fixture w/ 4’ T5HO: 2-3 Lamps | CM17: New Fluorescent High Bay Fixture w/ 4’ T5HO: 2-3 Lamps | CN17: TRUE | CP17: 60A
D18: Cooling / Heating Type | E18: WHFD | F18: WHFE | AP18: 1F28EEH | AQ18: 1F96HES | AR18: 3F28EEH | AS18: 1F96HES | CI18: New Fluorescent High Bay Fixture w/ 4’ T5HO: 3-4 Lamps | CJ18: 60B Proposed | CK18: New Fluorescent High Bay Fixture w/ 4’ T5HO: 3-4 Lamps | CM18: New Fluorescent High Bay Fixture w/ 4’ T5HO: 3-4 Lamps | CN18: TRUE | CP18: 60B
D19: No A/C / Gas | E19: 1 | F19: 1 | AP19: 1F28EEE | AQ19: 2F96VES | AR19: 3F28EEE | AS19: 2F96VES | CI19: New Fluorescent High Bay Fixture w/ 4’ T5HO: 5-6 Lamps | CJ19: 60C Proposed | CK19: New Fluorescent High Bay Fixture w/ 4’ T5HO: 5-6 Lamps | CM19: New Fluorescent High Bay Fixture w/ 4’ T5HO: 5-6 Lamps | CN19: TRUE | CP19: 60C
D20: No A/C / Electric Resistance | E20: 1 | F20: 0.78 | AP20: 1F28EEL | AQ20: 2F96VSS | AR20: 3F28EEL | AS20: 2F96VSS | CI20: New Fluorescent High Bay Fixture w/ 4’ T5HO: 6-12 Lamps | CJ20: 60D Proposed | CK20: New Fluorescent High Bay Fixture w/ 4’ T5HO: 6-12 Lamps | CM20: New Fluorescent High Bay Fixture w/ 4’ T5HO: 6-12 Lamps | CN20: TRUE | CP20: 60D
D21: No A/C / Unknown | E21: 1 | F21: 0.89 | AP21: 2F28EEH | AQ21: 1F96VES | AR21: 4F28EEH | AS21: 1F96VES | CI21: New Fluorescent High Bay Fixture w/ 4’ HPT8: 3-4 Lamps | CJ21: 61A Proposed | CK21: New Fluorescent High Bay Fixture w/ 4’ HPT8: 3-4 Lamps | CM21: New Fluorescent High Bay Fixture w/ 4’ HPT8: 3-4 Lamps | CN21: TRUE | CP21: 61A
D22: A/C / Gas | E22: 1.2 | F22: 1.09 | AP22: 2F28EEE | AQ22: 1F96VSS | AR22: 4F28EEE | AS22: 1F96VSS | CI22: New Fluorescent High Bay Fixture w/ 4’ HPT8: 4-6 Lamps | CJ22: 61B Proposed | CK22: New Fluorescent High Bay Fixture w/ 4’ HPT8: 4-6 Lamps | CM22: New Fluorescent High Bay Fixture w/ 4’ HPT8: 4-6 Lamps | CN22: TRUE | CP22: 61B
D23: A/C / Electric Resistance | E23: 1.2 | F23: 0.87 | AP23: 2F28EEL | AQ23: 2F80SSE | AR23: 4F28EEL | AS23: 2F80SSE | CI23: New Fluorescent High Bay Fixture w/ 4’ HPT8: 8 Lamps | CJ23: 61C Proposed | CK23: New Fluorescent High Bay Fixture w/ 4’ HPT8: 8 Lamps | CM23: New Fluorescent High Bay Fixture w/ 4’ HPT8: 8 Lamps | CN23: TRUE | CP23: 61C
D24: A/C / Heat Pump | E24: 1.2 | F24: 1.02 | AP24: 1F28SSE | AQ24: 1F80SSE | AR24: 3F54HSE | AS24: 1F80SSE | CI24: New Fluorescent High Bay Fixture w/ 4’ HPT8: 8-16 Lamps (Double Fixture) | CJ24: 61D Proposed | CK24: New Fluorescent High Bay Fixture w/ 4’ HPT8: 8-16 Lamps (Double Fixture) | CM24: New Fluorescent High Bay Fixture w/ 4’ HPT8: 8-16 Lamps (Double Fixture) | CN24: TRUE | CP24: 61D
D25: A/C / Unknown | E25: 1.2 | F25: 0.98 | AP25: 2F28SSE | AQ25: 1I0060 | AR25: 4F54HSE | AS25: 1I0060 | CI25: Pulse Start Metal Halide Retrofit: 320W | CJ25: 65A Proposed | CK25: Pulse Start Metal Halide Retrofit: 320W | CM25: Pulse Start Metal Halide Retrofit: 320W | CN25: TRUE | CP25: 65A
D26: Med. Temp. Refrigerated Space | E26: 1.25 | F26: 1.25 | AP26: 1F54HSE | AQ26: 1I0075 | AS26: 1I0075 | CI26: Pulse Start Metal Halide Retrofit: 750W | CJ26: 65B Proposed | CK26: Pulse Start Metal Halide Retrofit: 750W | CM26: Pulse Start Metal Halide Retrofit: 750W | CN26: TRUE | CP26: 65B
D27: Low Temp. Freezer Space | E27: 1.3 | F27: 1.3 | AP27: 2F54HSE | AQ27: 1I0100 | AS27: 1I0100 | CI27: New Hardwired CFL Downlight, Surface, Pendant or Wallpack: 1 Lamp | CJ27: 70A Proposed | CK27: New Hardwired CFL Downlight, Surface, Pendant or Wallpack: 1 Lamp | CM27: New Hardwired CFL Downlight, Surface, Pendant or Wallpack: 1 Lamp | CN27: TRUE | CP27: 70A
AQ28: 1MH0050S | AS28: 1MH0050S | CI28: New Hardwired CFL Downlight, Surface, Pendant or Wallpack: 2 Lamp | CJ28: 70B Proposed | CK28: New Hardwired CFL Downlight, Surface, Pendant or Wallpack: 2 Lamp | CM28: New Hardwired CFL Downlight, Surface, Pendant or Wallpack: 2 Lamp | CN28: TRUE | CP28: 70B
AQ29: 1MH0070S | AS29: 1MH0070S | CI29: New Hardwired CFL Downlight, Surface, Pendant or Wallpack: 3 Lamp | CJ29: 70C Proposed | CK29: New Hardwired CFL Downlight, Surface, Pendant or Wallpack: 3 Lamp | CM29: New Hardwired CFL Downlight, Surface, Pendant or Wallpack: 3 Lamp | CN29: TRUE | CP29: 70C
AQ30: 1MH0100S | AS30: 1MH0100S | CI30: Screw-in CFL | CJ30: 71A Proposed | CK30: Screw-in CFL | CM30: Screw-in CFL | CN30: TRUE | CP30: 71A
AQ31: 1MH0150S | AS31: 1MH0150S | CI31: 4’ T12: 1-2 Lamps | CJ31: 10A Existing | CK31: 4’ T12: 1-2 Lamps | CM31: 4’ T12: 1-2 Lamps | CO31: 10A
AQ32: 1HPS0050S | AS32: 1HPS0050S | CI32: 4’ T12: 3-4 Lamps | CJ32: 10B Existing | CK32: 4’ T12: 3-4 Lamps | CM32: 4’ T12: 3-4 Lamps | CO32: 10B
AQ33: 1HPS0070S | AS33: 1HPS0070S | CI33: 4’ T12 or Standard T8: 1-2 Lamps | CJ33: 10C Existing | CK33: 4’ T12 or Standard T8: 1-2 Lamps | CM33: 4’ T12 or Standard T8: 1-2 Lamps | CO33: 10C
AQ34: 1HPS0100S | AS34: 1HPS0100S | CI34: 4’ T12 or Standard T8: 3-4 Lamps | CJ34: 10D Existing | CK34: 4’ T12 or Standard T8: 3-4 Lamps | CM34: 4’ T12 or Standard T8: 3-4 Lamps | CO34: 10D
AQ35: 1HPS0150S | AS35: 1HPS0150S | CI35: 3’ T12: 1-4 Lamps | CJ35: 10E Existing | CK35: 3’ T12: 1-4 Lamps | CM35: 3’ T12: 1-4 Lamps | CO35: 10E
CI36: 2’ T12: 1-4 Lamps | CJ36: 10F Existing | CK36: 2’ T12: 1-4 Lamps | CM36: 2’ T12: 1-4 Lamps | CO36: 10F
CI37: 8’ T12HO/VHO or T8HO: 2 Lamps | CJ37: 15A Existing | CK37: 8’ T12HO/VHO or T8HO: 2 Lamps | CM37: 8’ T12HO/VHO or T8HO: 2 Lamps | CO37: 15A
CI38: 8’ T12 or T8 Slimline: 2 Lamps | CJ38: 15B Existing | CK38: 8’ T12 or T8 Slimline: 2 Lamps | CM38: 8’ T12 or T8 Slimline: 2 Lamps | CO38: 15B
CI39: 4’ T12 or Standard T8: 3-4 Lamps | CJ39: 15C Existing | CK39: 4’ T12 or Standard T8: 3-4 Lamps | CM39: 4’ T12 or Standard T8: 3-4 Lamps | CO39: 15C
CI40: 4’ T12 or Standard T8: 2-3 Lamps | CJ40: 15D Existing | CK40: 4’ T12 or Standard T8: 2-3 Lamps | CM40: 4’ T12 or Standard T8: 2-3 Lamps | CO40: 15D
CI41: 4’ T12 or T8 U-Bend: 2 Lamps | CJ41: 15E Existing | CK41: 4’ T12 or T8 U-Bend: 2 Lamps | CM41: 4’ T12 or T8 U-Bend: 2 Lamps | CO41: 15E
CI42: T12, Standard T8, Incandescent or Low-Wattage HID (50-150W) | CJ42: 20A Existing | CK42: T12, Standard T8, Incandescent or Low-Wattage HID (50-150W) | CM42: T12, Standard T8, Incandescent or Low-Wattage HID (50-150W) | CO42: 20A
CI43: T12, Standard T8, Incandescent or Low-Wattage HID (50-150W) | CJ43: 20B Existing | CK43: T12, Standard T8, Incandescent or Low-Wattage HID (50-150W) | CM43: T12, Standard T8, Incandescent or Low-Wattage HID (50-150W) | CO43: 20B
CI44: T12, Standard T8 or Incandescent | CJ44: 20C Existing | CK44: T12, Standard T8 or Incandescent | CM44: T12, Standard T8 or Incandescent | CO44: 20C
CI45: T12, Standard T8 or Incandescent | CJ45: 20D Existing | CK45: T12, Standard T8 or Incandescent | CM45: T12, Standard T8 or Incandescent | CO45: 20D
CI46: 4' T12 or Standard T8: 2-4 Lamps | CJ46: 40A Existing | CK46: 4' T12 or Standard T8: 2-4 Lamps | CM46: 4' T12 or Standard T8: 2-4 Lamps | CO46: 40A
CI47: 4' T12 or Standard T8: 3-4 Lamps | CJ47: 40B Existing | CK47: 4' T12 or Standard T8: 3-4 Lamps | CM47: 4' T12 or Standard T8: 3-4 Lamps | CO47: 40B
CI48: 150 - 250W HID High Bay | CJ48: 60A Existing | CK48: 150 - 250W HID High Bay | CM48: 150 - 250W HID High Bay | CO48: 60A
CI49: 320 - 400W HID High Bay | CJ49: 60B Existing | CK49: 320 - 400W HID High Bay | CM49: 320 - 400W HID High Bay | CO49: 60B
CI50: 320 - 400W HID High Bay | CJ50: 60C Existing | CK50: 320 - 400W HID High Bay | CM50: 320 - 400W HID High Bay | CO50: 60C
CI51: 750 - 1,000W HID High Bay | CJ51: 60D Existing | CK51: 750 - 1,000W HID High Bay | CM51: 750 - 1,000W HID High Bay | CO51: 60D
CI52: 150 - 250W HID High Bay | CJ52: 61A Existing | CK52: 150 - 250W HID High Bay | CM52: 150 - 250W HID High Bay | CO52: 61A
CI53: 320 - 400W HID High Bay | CJ53: 61B Existing | CK53: 320 - 400W HID High Bay | CM53: 320 - 400W HID High Bay | CO53: 61B
CI54: 320 - 400W HID High Bay | CJ54: 61C Existing | CK54: 320 - 400W HID High Bay | CM54: 320 - 400W HID High Bay | CO54: 61C
CI55: 750 - 1,000W HID High Bay | CJ55: 61D Existing | CK55: 750 - 1,000W HID High Bay | CM55: 750 - 1,000W HID High Bay | CO55: 61D
CI56: 400W HID, Interior or Exterior | CJ56: 65A Existing | CK56: 400W HID, Interior or Exterior | CM56: 400W HID, Interior or Exterior | CO56: 65A
CI57: 1,000W HID, Interior or Exterior | CJ57: 65B Existing | CK57: 1,000W HID, Interior or Exterior | CM57: 1,000W HID, Interior or Exterior | CO57: 65B
CI58: Incandescent (>60W) or Low-Wattage HID (50-150W) | CJ58: 70A Existing | CK58: Incandescent (>60W) or Low-Wattage HID (50-150W) | CM58: Incandescent (>60W) or Low-Wattage HID (50-150W) | CO58: 70A
CI59: Incandescent (>100W) or Low-Wattage HID (50-150W) | CJ59: 70B Existing | CK59: Incandescent (>100W) or Low-Wattage HID (50-150W) | CM59: Incandescent (>100W) or Low-Wattage HID (50-150W) | CO59: 70B
CI60: High-Wattage Incandescent (>150W) or Medium-Wattage HID (175 - 250W) | CJ60: 70C Existing | CK60: High-Wattage Incandescent (>150W) or Medium-Wattage HID (175 - 250W) | CM60: High-Wattage Incandescent (>150W) or Medium-Wattage HID (175 - 250W) | CO60: 70C
CI61: Incandescent | CJ61: 71A Existing | CK61: Incandescent | CM61: Incandescent | CO61: 71A
CM62: Incandescent: 2x20W or Similar | CO62: 90A
CM63: Fluorescent / CFL: 2x9W or Similar | CO63: 90B

Sheet Version Tracking (hidden)
B4: Current: | C4: =LOOKUP(2,1/(B1:B50001<>""),B1:B50001) -> 10.1
B5: Version | C5: Notes | D5: Date | E5: Updated By
B6: 1.0 | C6: Initial creation of New Construction lighting tool for SCANA. | D6: 2010-11-10 | E6: Drew Durkee
B7: 1.1 | C7: Format changes as instructed by scana | D7: 2010-11-29 | E7: Drew Durkee
B8: 1.2 | C8: Made adjustment to AEG tab | D8: 2011-05-06 | E8: Oneil Morgan
B9: 1.3 | C9: Adjustments made to Aeg tab to alow savings to be reoprted on a per unit basis in vision. | D9: 2011-07-13 | E9: Colin Odell
B10: 1.4 | C10: Added the fixture cap algorithm to pay 30/fixture | D10: 2013-07-31 | E10: Oneil Morgan
B11: 1.5 | C11: Changed Control Incentive | D11: 2014-06-10 | E11: Oneil Morgan
B12: 2 | C12: New Excel based application form | D12: 2015-04-30 | E12: Rachael Miller
B13: 2.1 | C13: Misc edits per Jennifer Mosser | D13: 2015-06-23 | E13: Bruce Helwig
B14: 2.2 | C14: Updates and clean up | D14: 2015-10-15 | E14: Joy Zins
B15: 2.3 | C15: Formatted, added tab buttons, adjusted based on Jennifer's feedback | D15: 2015-10-20 | E15: Rachael Miller
B16: 2.4 | C16: Additional formatting | D16: 2015-10-21 | E16: Joy Zins
B17: 2.5 | C17: Updated macro for the input instructions tab | D17: 2015-10-21 | E17: Rachael Miller
B18: 2.6 | C18: Additional formatting and content revisions | D18: 2015-10-21 | E18: Jennifer Mosser
B19: 2.7 | C19: Added reference to Orange tabs on Input Instructions tab | D19: 2015-10-28 | E19: JZ
B20: 2.8 | C20: Added Waste heat factor algorithm to tool | D20: 2016-08-12 | E20: Oneil Morgan
B21: 2.9 | C21: Minor edits | D21: 2016-09-14 | E21: RC
B22: 3 | C22: Hid savings information, minor edits | D22: 2016-11-29 | E22: RC
B23: 3.1 | C23: Updated Major Renovation, additonal contact, Project tab | D23: 2017-01-24 | E23: JZ
B24: 3.2 | C24: Highlighted pre approval req's, add hyphen, add version #'s | D24: 2017-01-31 | E24: JZ
B25: 3.3 | C25: Fixed buttons | D25: 2017-11-13 | E25: RC
B26: 3.4 | C26: Fixed calcs on Building Type LPD and Space LPD sheets | D26: 2018-02-06 | E26: RC
B27: 10.1 | C27: Updated T&Cs Dominion Branding Added 70%DLC language | D27: 2020-08-27 | E27: JSE
